Workbook

Sheet YARIŞMA BİLGİLERİ
A2: Gençlik ve Spor Bakanlığı Spor Genel Müdürlüğü Spor Faaliyetleri Daire Başkanlığı
A14: =F19 -> Olimpik Baraj Yarışmları
A18: Yarışma Bilgileri
A19: Yarışma Adı : | F19: Olimpik Baraj Yarışmları
A20: Yarışmanın Yapıldığı İl : | F20: MERSİN
A21: Kategori : | F21: Büyük Erkekler
A22: Tarih : | F22: 16-17 MAYIS 2015
A23: Katılan Sporcu Sayısı : | F23: 58

Sheet KAYIT LİSTESİ
A1: ='YARIŞMA BİLGİLERİ'!F19 -> Olimpik Baraj Yarışmları
A2: ='YARIŞMA BİLGİLERİ'!F21 -> Büyük Erkekler | G2: Kayıt Listesi | I2: =NOW() -> 42142.49098
A3: S.N. | B3: SERİ-KULVAR FORMÜLÜ | C3: GÖĞÜS NO | D3: TC NO | E3: DOĞUM TARİHİ | F3: ADI VE SOYADI | G3: İLİ-İLİ-OKULU | H3: YARIŞACAĞI BRANŞ | I3: EN İYİ DERECESİ | J3: SERİ | K3: KULVAR | L3: ATMA-ATLAMA SIRASI | N3: 8
A4: 1 | B4: =CONCATENATE(H4,"-",J4,"-",K4) -> 100M-1-2 | C4: 919 | E4: 08.02.1979 | F4: MEHMET AKIF ÇELİK | G4: AMASYA | H4: 100M | J4: 1 | K4: 2
A5: 2 | B5: 100M-1-3 | C5: 921 | E5: 15.08.1993 | F5: SAMET KESLER | G5: AMASYA | H5: 100M | J5: 1 | K5: 3
A6: 3 | B6: 100M-1-4 | C6: 935 | E6: 1982-09-29 | F6: HAKAN KARACAOĞLU | G6: ANKARA | H6: 100M | J6: 1 | K6: 4
A7: 4 | B7: 100M-1-5 | C7: 941 | E7: 1983-03-18 | F7: MUSA ALTIN | G7: ANKARA | H7: 100M | J7: 1 | K7: 5
A8: 5 | B8: 100M-1-6 | C8: 944 | E8: 1990-08-07 | F8: MUSTAFA YAĞMURLU | G8: ANKARA | H8: 100M | J8: 1 | K8: 6
A9: 6 | B9: 100M-1-7 | C9: 947 | E9: 1985-07-16 | F9: OKAN KAMIŞ | G9: ANKARA | H9: 100M | J9: 1 | K9: 7
A10: 7 | B10: 100M-1-8 | C10: 951 | E10: 1987-10-03 | F10: SERDAR ELMAS | G10: ANKARA | H10: 100M | J10: 1 | K10: 8
A11: 8 | B11: 100M-2-1 | C11: 957 | E11: 1995-01-01 | F11: AYKUT AY | G11: ANTALYA | H11: 100M | J11: 2 | K11: 1
A12: 9 | B12: 100M-2-2 | C12: A89 | F12: CUMALI U. EMEKTAŞ | G12: BURSA | H12: 100M | J12: 2 | K12: 2
A13: 10 | B13: 100M-2-3 | C13: A528 | E13: 1991-06-11 | F13: VOLKAN ÇAKAN | G13: İSTANBUL | H13: 100M | J13: 2 | K13: 3
A14: 11 | B14: 100M-2-4 | C14: 542 | E14: 08 02 1979 | F14: LEVENT YEK | G14: KAHRAMANMARAŞ | H14: 100M | J14: 2 | K14: 4
A15: 12 | B15: 100M-2-5 | C15: 601 | E15: 1995-02-11 | F15: EMRE BERK CAN | G15: MERSİN | H15: 100M | J15: 2 | K15: 5
A16: 13 | B16: 100M-2-6 | C16: 610 | E16: 1981-03-07 | F16: İSMAILASLAN | G16: MERSİN | H16: 100M | J16: 2 | K16: 6
A17: 14 | B17: 100M-2-7 | C17: 9 | E17: 1990-01-05 | F17: ABDURRAHMAN ORUÇ | G17: ŞANLIURFA | H17: 100M | J17: 2 | K17: 7
A18: 15 | B18: 100M-2-8 | C18: 343 | E18: 1993-01-02 | F18: MAHMUT ÇİFTÇİ | G18: ŞANLIURFA | H18: 100M | J18: 2 | K18: 8
B19: 100M-- | H19: 100M
A20: 1 | B20: 400M-1-5 | C20: 924 | E20: 1987-04-05 | F20: ALİ EKBER KAYAŞ | G20: ANKARA | H20: 400M | J20: 1 | K20: 5
A21: 2 | B21: 400M-1-3 | C21: A346 | E21: 1989-01-01 | F21: HÜSEYİN TOK | G21: ANKARA | H21: 400M | J21: 1 | K21: 3
A22: 3 | B22: 400M-1-4 | C22: 973 | E22: 1993-05-11 | F22: KAAN AKALP | G22: BURSA | H22: 400M | J22: 1 | K22: 4
A23: 4 | B23: 400M-1-2 | C23: 989 | E23: 1995-03-05 | F23: ARDA ERİŞ | G23: GAZİANTEP | H23: 400M | I23: 4950 | J23: 1 | K23: 2
A24: 5 | B24: 400M-1-6 | C24: 495 | E24: 1991-07-14 | F24: BUĞRAHAN KOCABEYOĞLU | G24: İSTANBUL | H24: 400M | J24: 1 | K24: 6
A25: 6 | B25: 400M-2-2 | C25: 501 | E25: 1992-03-01 | F25: HALİT KILIÇ | G25: İSTANBUL | H25: 400M | J25: 2 | K25: 2
A26: 7 | B26: 400M-2-3 | C26: 540 | E26: 07 07 1995 | F26: HASAN BİRİCİK | G26: KAHRAMANMARAŞ | H26: 400M | J26: 2 | K26: 3
A27: 8 | B27: 400M-2-4 | C27: 546 | E27: 19 08 1994 | F27: ZAFER GÖK | G27: KAHRAMANMARAŞ | H27: 400M | J27: 2 | K27: 4
A28: 9 | B28: 400M-2-5 | C28: 58 | E28: 1995-02-08 | F28: UTKU ÇOBANOĞLU | G28: MERSİN | H28: 400M | I28: 4910 | J28: 2 | K28: 5
A29: 10 | B29: 400M-2-6 | C29: 344 | E29: 1995-02-17 | F29: MEHMET CASIM BAKIR | G29: ŞANLIURFA | H29: 400M | J29: 2 | K29: 6
A30: 1 | B30: 1500M-1-1 | C30: 942 | F30: MUSTAFA INCESU | G30: ANKARA | H30: 1500M | J30: 1 | K30: 1
A31: 2 | B31: 1500M-1-2 | C31: 943 | F31: MUSTAFA MAVİLİ | G31: ANKARA | H31: 1500M | J31: 1 | K31: 2
A32: 3 | B32: 1500M-1-3 | C32: 972 | E32: 1997-01-04 | F32: FERHAT ARGUN | G32: BURSA | H32: 1500M | J32: 1 | K32: 3
A33: 4 | B33: 1500M-1-4 | C33: 544 | E33: 1995-01-10 | F33: MUSTAFA BARLI | G33: KAHRAMANMARAŞ | H33: 1500M | J33: 1 | K33: 4
A34: 5 | B34: 1500M-1-5 | C34: 554 | E34: 1985-01-25 | F34: KEMAL KOYUNCU | G34: KAYSERİ | H34: 1500M | J34: 1 | K34: 5
A35: 6 | B35: 1500M-1-6 | C35: 558 | E35: 1995-06-15 | F35: TURGAY BAYRAM | G35: KAYSERİ | H35: 1500M | J35: 1 | K35: 6
A36: 7 | B36: 1500M-1-7 | C36: 345 | E36: 1995-04-20 | F36: BÜNYAMİN AKYÜREK | G36: TOKAT | H36: 1500M | J36: 1 | K36: 7
A37: 8 | B37: 1500M-- | H37: 1500M
A38: 9 | B38: 1500M-- | H38: 1500M
A39: 4 | B39: 5000M-1-1 | C39: 936 | E39: 1990-02-14 | F39: HAMZA AYDOĞAN | G39: ANKARA | H39: 5000M | J39: 1 | K39: 1
B40: 5000M-1-2 | C40: 943 | F40: MUSTAFA MAVİLİ | G40: ANKARA | H40: 5000M | J40: 1 | K40: 2
B41: 5000M-1-3 | C41: 488 | E41: 1977-06-04 | F41: ALMİTU BEKELE DEGFA | G41: İSTANBUL | H41: 5000M | J41: 1 | K41: 3
B42: 5000M-- | H42: 5000M
A43: 5 | B43: 110M.ENG-1-2 | C43: 6 | E43: 1994-08-08 | F43: TOLGA YILMAZ | G43: SAMSUN | H43: 110M.ENG | J43: 1 | K43: 2
B44: 110M.ENG-- | H44: 110M.ENG
B45: 110M.ENG-- | H45: 110M.ENG
B46: 110M.ENG-- | H46: 110M.ENG
B47: 110M.ENG-- | H47: 110M.ENG
B48: 110M.ENG-- | H48: 110M.ENG
B49: 110M.ENG-- | H49: 110M.ENG
B50: 110M.ENG-- | H50: 110M.ENG
B51: 110M.ENG-- | H51: 110M.ENG
B52: 110M.ENG-- | H52: 110M.ENG
A53: 1 | B53: 200M-1-2 | C53: 921 | E53: 15.08.1993 | F53: SAMET KESLER | G53: AMASYA | H53: 200M | J53: 1 | K53: 2
A54: 2 | B54: 200M-1-3 | C54: 935 | E54: 1982-09-29 | F54: HAKAN KARACAOĞLU | G54: ANKARA | H54: 200M | J54: 1 | K54: 3
A55: 3 | B55: 200M-1-4 | C55: 944 | E55: 1990-08-07 | F55: MUSTAFA YAĞMURLU | G55: ANKARA | H55: 200M | J55: 1 | K55: 4
A56: 4 | B56: 200M-1-5 | C56: 947 | E56: 1985-07-16 | F56: OKAN KAMIŞ | G56: ANKARA | H56: 200M | J56: 1 | K56: 5
A57: 5 | B57: 200M-1-6 | C57: 951 | E57: 1987-10-03 | F57: SERDAR ELMAS | G57: ANKARA | H57: 200M | J57: 1 | K57: 6
A58: 6 | B58: 200M-1-7 | C58: 957 | E58: 1995-01-01 | F58: AYKUT AY | G58: ANTALYA | H58: 200M | J58: 1 | K58: 7
A59: 7 | B59: 200M-2-2 | C59: 973 | E59: 1993-05-11 | F59: KAAN AKALP | G59: BURSA | H59: 200M | J59: 2 | K59: 2
A60: 8 | B60: 200M-2-3 | C60: 540 | E60: 07 07 1995 | F60: HASAN BİRİCİK | G60: KAHRAMANMARAŞ | H60: 200M | J60: 2 | K60: 3
A61: 9 | B61: 200M-2-4 | C61: 542 | E61: 08 02 1979 | F61: LEVENT YEK | G61: KAHRAMANMARAŞ | H61: 200M | J61: 2 | K61: 4
A62: 10 | B62: 200M-2-5 | C62: 601 | E62: 1995-02-11 | F62: EMRE BERK CAN | G62: MERSİN | H62: 200M | J62: 2 | K62: 5
A63: 11 | B63: 200M-2-6 | C63: 9 | E63: 1990-01-05 | F63: ABDURRAHMAN ORUÇ | G63: ŞANLIURFA | H63: 200M | J63: 2 | K63: 6
A64: 1 | B64: 800M-1-1 | C64: 924 | E64: 1987-04-05 | F64: ALİ EKBER KAYAŞ | G64: ANKARA | H64: 800M | J64: 1 | K64: 1
A65: 2 | B65: 800M-1-2 | C65: 942 | F65: MUSTAFA INCESU | G65: ANKARA | H65: 800M | J65: 1 | K65: 2
A66: 3 | B66: 800M-1-3 | C66: 978 | E66: 1997-01-19 | F66: SERCAN BASIM | G66: BURSA | H66: 800M | J66: 1 | K66: 3
A67: 4 | B67: 800M-1-4 | C67: 495 | E67: 1991-07-14 | F67: BUĞRAHAN KOCABEYOĞLU | G67: İSTANBUL | H67: 800M | J67: 1 | K67: 4
A68: 5 | B68: 800M-1-5 | C68: 501 | E68: 1992-03-01 | F68: HALİT KILIÇ | G68: İSTANBUL | H68: 800M | J68: 1 | K68: 5
A69: 6 | B69: 800M-1-6 | C69: 544 | E69: 10 01 1995 | F69: MUSTAFA BARLI | G69: KAHRAMANMARAŞ | H69: 800M | J69: 1 | K69: 6
A70: 7 | B70: 800M-1-7 | C70: 546 | E70: 19 08 1994 | F70: ZAFER GÖK | G70: KAHRAMANMARAŞ | H70: 800M | J70: 1 | K70: 7
A71: 8 | B71: 800M-1-8 | C71: 569 | E71: 1995-03-08 | F71: MEHMET ÇALKAR | G71: KONYA | H71: 800M | J71: 1 | K71: 8
A72: 9 | B72: 800M-1-9 | C72: 58 | E72: 1995-02-08 | F72: UTKU ÇOBANOĞLU | G72: MERSİN | H72: 800M | J72: 1 | K72: 9
A73: 10 | B73: 800M-1-10 | C73: 344 | E73: 1995-02-17 | F73: MEHMET CASIM BAKIR | G73: ŞANLIURFA | H73: 800M | J73: 1 | K73: 10
A74: 11 | B74: 800M-1-11 | C74: 345 | E74: 1995-04-20 | F74: BÜNYAMİN AKYÜREK | G74: TOKAT | H74: 800M | J74: 1 | K74: 11
A75: 12 | B75: 800M-1-12 | C75: 972 | D75: 35434 | E75: 1997-01-04 | F75: FERHAT ARGUN | G75: BURSA | H75: 800M | J75: 1 | K75: 12
A76: 8 | B76: 3000M.ENG-1-1 | C76: 334 | E76: 1995-08-30 | F76: ERSİN TEKAL | G76: İZMİR | H76: 3000M.ENG | J76: 1 | K76: 1
B77: 3000M.ENG-1-2 | C77: 554 | E77: 1985-01-25 | F77: KEMAL KOYUNCU | G77: KAYSERİ | H77: 3000M.ENG | J77: 1 | K77: 2
B78: 3000M.ENG-1-3 | C78: 558 | E78: 1995-06-15 | F78: TURGAY BAYRAM | G78: KAYSERİ | H78: 3000M.ENG | J78: 1 | K78: 3
B79: 3000M.ENG-- | H79: 3000M.ENG
B80: 3000M.ENG-- | H80: 3000M.ENG
B81: 3000M.ENG-- | H81: 3000M.ENG
B82: 3000M.ENG-- | H82: 3000M.ENG
B83: 3000M.ENG-- | H83: 3000M.ENG
B84: 3000M.ENG-- | H84: 3000M.ENG
A85: 10 | B85: 2000M.ENG-- | H85: 2000M.ENG
B86: 2000M.ENG-- | H86: 2000M.ENG
B87: 2000M.ENG-- | H87: 2000M.ENG
B88: 2000M.ENG-- | H88: 2000M.ENG
B89: 2000M.ENG-- | H89: 2000M.ENG
B90: 2000M.ENG-- | H90: 2000M.ENG
B91: 2000M.ENG-- | H91: 2000M.ENG
B92: 2000M.ENG-- | H92: 2000M.ENG
B93: 2000M.ENG-- | H93: 2000M.ENG
A94: 11 | B94: =CONCATENATE(H94,"-",L94) -> GÜLLE-1 | F94: KATILIM YOKTUR | H94: GÜLLE | L94: 1
B95: =CONCATENATE(H95,"-",L95) -> GÜLLE- | H95: GÜLLE
B96: GÜLLE- | H96: GÜLLE
B97: GÜLLE- | H97: GÜLLE
B98: GÜLLE- | H98: GÜLLE
B99: GÜLLE- | H99: GÜLLE
B100: GÜLLE- | H100: GÜLLE
B101: GÜLLE- | H101: GÜLLE
B102: GÜLLE- | H102: GÜLLE
A103: 12 | B103: ÇEKİÇ-1 | C103: 949 | E103: 1994-02-13 | F103: ÖZKAN BALTACI | G103: ANKARA | H103: ÇEKİÇ | L103: 1
B104: ÇEKİÇ-2 | C104: 59 | E104: 1991-05-10 | F104: Y.S.S. BARDAKÇI | G104: MERSİN | H104: ÇEKİÇ | L104: 2
B105: ÇEKİÇ- | H105: ÇEKİÇ
B106: ÇEKİÇ- | H106: ÇEKİÇ
B107: ÇEKİÇ- | H107: ÇEKİÇ
B108: ÇEKİÇ- | H108: ÇEKİÇ
B109: ÇEKİÇ- | H109: ÇEKİÇ
B110: ÇEKİÇ- | H110: ÇEKİÇ
B111: ÇEKİÇ- | H111: ÇEKİÇ
A112: 13 | B112: ÜÇADIM-1 | C112: 999 | E112: 1991-01-01 | F112: İVAN PUKİN | G112: MERSİN | H112: ÜÇADIM | L112: 1
B113: ÜÇADIM- | H113: ÜÇADIM
B114: ÜÇADIM- | H114: ÜÇADIM
B115: ÜÇADIM- | H115: ÜÇADIM
B116: ÜÇADIM- | H116: ÜÇADIM
B117: ÜÇADIM- | H117: ÜÇADIM
B118: ÜÇADIM- | H118: ÜÇADIM
B119: ÜÇADIM- | H119: ÜÇADIM
B120: ÜÇADIM- | H120: ÜÇADIM
A121: 14 | B121: SIRIK-1 | C121: 902 | E121: 1995-07-12 | F121: BURAK YILMAZ | G121: ADANA | H121: SIRIK | L121: 1
B122: SIRIK-2 | C122: 929 | E122: 1985-05-14 | F122: ESER ERKÜÇÜK | G122: ANKARA | H122: SIRIK | L122: 2
B123: SIRIK-3 | C123: 955 | E123: 28.02.1995 | F123: YUSUF KARAPINAR | G123: ANKARA | H123: SIRIK | L123: 3
B124: SIRIK-4 | C124: 518 | E124: 1991-03-05 | F124: EMRE GÜLERYÜZ | G124: İZMİR | H124: SIRIK | L124: 4
B125: SIRIK-5 | C125: 606 | E125: 1993-12-06 | F125: FIRAT GÜR | G125: MERSİN | H125: SIRIK | L125: 5
B126: SIRIK-6 | C126: 609 | E126: 1995-08-08 | F126: İSHAK TOK | G126: MERSİN | H126: SIRIK | L126: 6
B127: SIRIK-7 | C127: B478 | E127: 1994-02-26 | F127: ÜMİT SUNGUR | G127: ADANA | H127: SIRIK | L127: 7
B128: SIRIK-8 | C128: B472 | E128: 1997-01-02 | F128: MUSTAFA TİLKİ | G128: ADANA | H128: SIRIK | L128: 8
B129: SIRIK- | H129: SIRIK
A130: 15 | B130: DİSK- | H130: DİSK
B131: DİSK- | H131: DİSK
B132: DİSK- | H132: DİSK
B133: DİSK- | H133: DİSK
B134: DİSK- | H134: DİSK
B135: DİSK- | H135: DİSK
B136: DİSK- | H136: DİSK
B137: DİSK- | H137: DİSK
B138: DİSK- | H138: DİSK
B139: CİRİT-1 | C139: A520 | E139: 1990-01-01 | F139: MUSTAFA TAN | G139: MERSİN | H139: CİRİT | I139: 76 | L139: 1
B140: CİRİT- | H140: CİRİT
B141: CİRİT- | H141: CİRİT
B142: CİRİT- | H142: CİRİT
B143: CİRİT- | H143: CİRİT
B144: CİRİT- | H144: CİRİT
B145: CİRİT- | H145: CİRİT
B146: CİRİT- | H146: CİRİT
B147: CİRİT- | H147: CİRİT
B148: YÜKSEK-1 | C148: 521 | E148: 1992-01-01 | F148: FURKAN GÖKSOY | G148: İZMİR | H148: YÜKSEK | L148: 1
B149: YÜKSEK- | H149: YÜKSEK
B150: YÜKSEK- | H150: YÜKSEK
B151: YÜKSEK- | H151: YÜKSEK
B152: YÜKSEK- | H152: YÜKSEK
B153: YÜKSEK- | H153: YÜKSEK
B154: YÜKSEK- | H154: YÜKSEK
B155: YÜKSEK- | H155: YÜKSEK
B156: YÜKSEK- | H156: YÜKSEK
A157: 1 | B157: UZUN-1 | C157: 941 | E157: 1983-03-18 | F157: MUSA ALTIN | G157: ANKARA | H157: UZUN | L157: 1
A158: 2 | B158: UZUN-2 | C158: 945 | E158: 1995-01-01 | F158: OĞULCAN DÜZYURT | G158: ANKARA | H158: UZUN | L158: 2
A159: 3 | B159: =CONCATENATE(H159,"-",L159) -> UZUN-3 | C159: 945 | E159: 11.01.1995 | F159: OĞULCAN DÜZYURT | G159: ANKARA | H159: UZUN | L159: 3
A160: 4 | B160: UZUN-4 | C160: 494 | E160: 1992-04-06 | F160: ALPER KULAKSIZ | G160: İSTANBUL | H160: UZUN | L160: 4
A161: 5 | B161: UZUN-5 | C161: 333 | E161: 1995-01-01 | F161: MUHAMMER DEMİR | G161: İZMİR | H161: UZUN | L161: 5
A162: 6 | B162: UZUN-6 | C162: 999 | E162: 1991-01-01 | F162: İVAN PAKİN | G162: MERSİN | H162: UZUN | L162: 6
A163: 7 | B163: UZUN-7 | C163: 610 | E163: 1981-03-07 | F163: İSMAILASLAN | G163: MERSİN | H163: UZUN | L163: 7
B164: UZUN- | H164: UZUN
B165: UZUN- | H165: UZUN
B166: UZUN- | H166: UZUN
A167: 16 | B167: =CONCATENATE(H167,"-",J167,"-",K167) -> 4X100-1-3 | C167: 935 947 | E167: 29.09.1982 16.07.1985 | F167: HAKAN KARACAOĞLU OKAN KAMIŞ | G167: - | H167: 4X100 | J167: 1 | K167: 3
A168: 16 | B168: =CONCATENATE(H168,"-",J168,"-",K168) -> 4X800-1-3 | C168: 576 581 584 586 | E168: 10.06.1995 08.11.1995 01.03.1994 21.01.1997 | F168: BURAK ÇETİNKAYA EMRE ASLAN İSA YARDIMCI MUSTAFA BAHCIVAN | G168: MALATYA | H168: 4X800 | J168: 1 | K168: 3
A450: 2 | B450: =CONCATENATE(H450,"-",J450,"-",K450) -> 200M-- | H450: 200M
A451: 3 | B451: 400M-- | H451: 400M
A452: 4 | B452: 800M-- | H452: 800M
A453: 5 | B453: 1500M-- | H453: 1500M
A454: 6 | B454: 110M.ENG-- | H454: 110M.ENG
A455: 7 | B455: 300M.ENG-- | H455: 300M.ENG
A456: 8 | B456: 3000M-- | H456: 3000M
A457: 9 | B457: =CONCATENATE(H457,"-",L457) -> UZUN- | H457: UZUN
A458: 10 | B458: ÜÇADIM- | H458: ÜÇADIM
A459: 11 | B459: YÜKSEK- | H459: YÜKSEK
A460: 12 | B460: SIRIK- | H460: SIRIK
A461: 13 | B461: GÜLLE- | H461: GÜLLE
A462: 14 | B462: DİSK- | H462: DİSK
A463: 15 | B463: CİRİT- | H463: CİRİT
H464: İSVEÇ
H465: İSVEÇ
H466: İSVEÇ
H467: İSVEÇ
A468: 16 | B468: =CONCATENATE(H468,"-",J468,"-",K468) -> İSVEÇ-- | F468: =CONCATENATE(F464," ",F465," ",F466," ",F467) ->  | H468: İSVEÇ
A469: 1 | B469: 100M-- | H469: 100M
A470: 2 | B470: 200M-- | H470: 200M
A471: 3 | B471: 400M-- | H471: 400M
A472: 4 | B472: 800M-- | H472: 800M
A473: 5 | B473: 1500M-- | H473: 1500M
A474: 6 | B474: 110M.ENG-- | H474: 110M.ENG
A475: 7 | B475: 300M.ENG-- | H475: 300M.ENG
A476: 8 | B476: 3000M-- | H476: 3000M
A477: 9 | B477: =CONCATENATE(H477,"-",L477) -> UZUN- | H477: UZUN
A478: 10 | B478: ÜÇADIM- | H478: ÜÇADIM
A479: 11 | B479: YÜKSEK- | H479: YÜKSEK
A480: 12 | B480: SIRIK- | H480: SIRIK
A481: 13 | B481: GÜLLE- | H481: GÜLLE
... 251 more rows

Sheet 1.Gün Start Listesi (hidden)
A1: =('YARIŞMA BİLGİLERİ'!A2) -> Gençlik ve Spor Bakanlığı Spor Genel Müdürlüğü Spor Faaliyetleri Daire Başkanlığı
A2: ='YARIŞMA BİLGİLERİ'!F19 -> Olimpik Baraj Yarışmları
A3: 1.GÜN GENÇ ERKEKLER START LİSTELERİ
A4: 100 METRE | J4: 400 METRE
A5: 1. SERİ | I5: SIRA NO | J5: 1. SERİ
A6: Sıra No | B6: Formül | C6: Göğüs No | D6: Doğum Tarihi | E6: Adı ve Soyadı | F6: Okulu | G6: Start Kontrol | J6: Sıra No | K6: Formül | L6: Göğüs No | M6: Doğum Tarihi | N6: Adı ve Soyadı | O6: Okulu | P6: Start Kontrol
A7: 1 | B7: 100M-1-1 | C7: =IF(ISERROR(VLOOKUP(B7,'KAYIT LİSTESİ'!$B$4:$H$1280,2,0)),"",(VLOOKUP(B7,'KAYIT LİSTESİ'!$B$4:$H$1280,2,0))) ->  | D7: =IF(ISERROR(VLOOKUP(B7,'KAYIT LİSTESİ'!$B$4:$H$1280,4,0)),"",(VLOOKUP(B7,'KAYIT LİSTESİ'!$B$4:$H$1280,4,0))) ->  | E7: =IF(ISERROR(VLOOKUP(B7,'KAYIT LİSTESİ'!$B$4:$H$1280,5,0)),"",(VLOOKUP(B7,'KAYIT LİSTESİ'!$B$4:$H$1280,5,0))) ->  | F7: =IF(ISERROR(VLOOKUP(B7,'KAYIT LİSTESİ'!$B$4:$H$1280,6,0)),"",(VLOOKUP(B7,'KAYIT LİSTESİ'!$B$4:$H$1280,6,0))) ->  | I7: 1 | J7: 1 | K7: 400M-1-1 | L7: =IF(ISERROR(VLOOKUP(K7,'KAYIT LİSTESİ'!$B$4:$H$1280,2,0)),"",(VLOOKUP(K7,'KAYIT LİSTESİ'!$B$4:$H$1280,2,0))) ->  | M7: =IF(ISERROR(VLOOKUP(K7,'KAYIT LİSTESİ'!$B$4:$H$1280,4,0)),"",(VLOOKUP(K7,'KAYIT LİSTESİ'!$B$4:$H$1280,4,0))) ->  | N7: =IF(ISERROR(VLOOKUP(K7,'KAYIT LİSTESİ'!$B$4:$H$1280,5,0)),"",(VLOOKUP(K7,'KAYIT LİSTESİ'!$B$4:$H$1280,5,0))) ->  | O7: =IF(ISERROR(VLOOKUP(K7,'KAYIT LİSTESİ'!$B$4:$H$1280,6,0)),"",(VLOOKUP(K7,'KAYIT LİSTESİ'!$B$4:$H$1280,6,0))) -> 
A8: 2 | B8: 100M-1-2 | C8: =IF(ISERROR(VLOOKUP(B8,'KAYIT LİSTESİ'!$B$4:$H$1280,2,0)),"",(VLOOKUP(B8,'KAYIT LİSTESİ'!$B$4:$H$1280,2,0))) -> 919 | D8: =IF(ISERROR(VLOOKUP(B8,'KAYIT LİSTESİ'!$B$4:$H$1280,4,0)),"",(VLOOKUP(B8,'KAYIT LİSTESİ'!$B$4:$H$1280,4,0))) -> 08.02.1979 | E8: =IF(ISERROR(VLOOKUP(B8,'KAYIT LİSTESİ'!$B$4:$H$1280,5,0)),"",(VLOOKUP(B8,'KAYIT LİSTESİ'!$B$4:$H$1280,5,0))) -> MEHMET AKIF ÇELİK | F8: =IF(ISERROR(VLOOKUP(B8,'KAYIT LİSTESİ'!$B$4:$H$1280,6,0)),"",(VLOOKUP(B8,'KAYIT LİSTESİ'!$B$4:$H$1280,6,0))) -> AMASYA | I8: 2 | J8: 2 | K8: 400M-1-2 | L8: =IF(ISERROR(VLOOKUP(K8,'KAYIT LİSTESİ'!$B$4:$H$1280,2,0)),"",(VLOOKUP(K8,'KAYIT LİSTESİ'!$B$4:$H$1280,2,0))) -> 989 | M8: =IF(ISERROR(VLOOKUP(K8,'KAYIT LİSTESİ'!$B$4:$H$1280,4,0)),"",(VLOOKUP(K8,'KAYIT LİSTESİ'!$B$4:$H$1280,4,0))) -> 1995-03-05 | N8: =IF(ISERROR(VLOOKUP(K8,'KAYIT LİSTESİ'!$B$4:$H$1280,5,0)),"",(VLOOKUP(K8,'KAYIT LİSTESİ'!$B$4:$H$1280,5,0))) -> ARDA ERİŞ | O8: =IF(ISERROR(VLOOKUP(K8,'KAYIT LİSTESİ'!$B$4:$H$1280,6,0)),"",(VLOOKUP(K8,'KAYIT LİSTESİ'!$B$4:$H$1280,6,0))) -> GAZİANTEP
A9: 3 | B9: 100M-1-3 | C9: =IF(ISERROR(VLOOKUP(B9,'KAYIT LİSTESİ'!$B$4:$H$1280,2,0)),"",(VLOOKUP(B9,'KAYIT LİSTESİ'!$B$4:$H$1280,2,0))) -> 921 | D9: =IF(ISERROR(VLOOKUP(B9,'KAYIT LİSTESİ'!$B$4:$H$1280,4,0)),"",(VLOOKUP(B9,'KAYIT LİSTESİ'!$B$4:$H$1280,4,0))) -> 15.08.1993 | E9: =IF(ISERROR(VLOOKUP(B9,'KAYIT LİSTESİ'!$B$4:$H$1280,5,0)),"",(VLOOKUP(B9,'KAYIT LİSTESİ'!$B$4:$H$1280,5,0))) -> SAMET KESLER | F9: =IF(ISERROR(VLOOKUP(B9,'KAYIT LİSTESİ'!$B$4:$H$1280,6,0)),"",(VLOOKUP(B9,'KAYIT LİSTESİ'!$B$4:$H$1280,6,0))) -> AMASYA | I9: 3 | J9: 3 | K9: 400M-1-3 | L9: =IF(ISERROR(VLOOKUP(K9,'KAYIT LİSTESİ'!$B$4:$H$1280,2,0)),"",(VLOOKUP(K9,'KAYIT LİSTESİ'!$B$4:$H$1280,2,0))) -> A346 | M9: =IF(ISERROR(VLOOKUP(K9,'KAYIT LİSTESİ'!$B$4:$H$1280,4,0)),"",(VLOOKUP(K9,'KAYIT LİSTESİ'!$B$4:$H$1280,4,0))) -> 1989-01-01 | N9: =IF(ISERROR(VLOOKUP(K9,'KAYIT LİSTESİ'!$B$4:$H$1280,5,0)),"",(VLOOKUP(K9,'KAYIT LİSTESİ'!$B$4:$H$1280,5,0))) -> HÜSEYİN TOK | O9: =IF(ISERROR(VLOOKUP(K9,'KAYIT LİSTESİ'!$B$4:$H$1280,6,0)),"",(VLOOKUP(K9,'KAYIT LİSTESİ'!$B$4:$H$1280,6,0))) -> ANKARA
A10: 4 | B10: 100M-1-4 | C10: =IF(ISERROR(VLOOKUP(B10,'KAYIT LİSTESİ'!$B$4:$H$1280,2,0)),"",(VLOOKUP(B10,'KAYIT LİSTESİ'!$B$4:$H$1280,2,0))) -> 935 | D10: =IF(ISERROR(VLOOKUP(B10,'KAYIT LİSTESİ'!$B$4:$H$1280,4,0)),"",(VLOOKUP(B10,'KAYIT LİSTESİ'!$B$4:$H$1280,4,0))) -> 1982-09-29 | E10: =IF(ISERROR(VLOOKUP(B10,'KAYIT LİSTESİ'!$B$4:$H$1280,5,0)),"",(VLOOKUP(B10,'KAYIT LİSTESİ'!$B$4:$H$1280,5,0))) -> HAKAN KARACAOĞLU | F10: =IF(ISERROR(VLOOKUP(B10,'KAYIT LİSTESİ'!$B$4:$H$1280,6,0)),"",(VLOOKUP(B10,'KAYIT LİSTESİ'!$B$4:$H$1280,6,0))) -> ANKARA | I10: 4 | J10: 4 | K10: 400M-1-4 | L10: =IF(ISERROR(VLOOKUP(K10,'KAYIT LİSTESİ'!$B$4:$H$1280,2,0)),"",(VLOOKUP(K10,'KAYIT LİSTESİ'!$B$4:$H$1280,2,0))) -> 973 | M10: =IF(ISERROR(VLOOKUP(K10,'KAYIT LİSTESİ'!$B$4:$H$1280,4,0)),"",(VLOOKUP(K10,'KAYIT LİSTESİ'!$B$4:$H$1280,4,0))) -> 1993-05-11 | N10: =IF(ISERROR(VLOOKUP(K10,'KAYIT LİSTESİ'!$B$4:$H$1280,5,0)),"",(VLOOKUP(K10,'KAYIT LİSTESİ'!$B$4:$H$1280,5,0))) -> KAAN AKALP | O10: =IF(ISERROR(VLOOKUP(K10,'KAYIT LİSTESİ'!$B$4:$H$1280,6,0)),"",(VLOOKUP(K10,'KAYIT LİSTESİ'!$B$4:$H$1280,6,0))) -> BURSA
A11: 5 | B11: 100M-1-5 | C11: =IF(ISERROR(VLOOKUP(B11,'KAYIT LİSTESİ'!$B$4:$H$1280,2,0)),"",(VLOOKUP(B11,'KAYIT LİSTESİ'!$B$4:$H$1280,2,0))) -> 941 | D11: =IF(ISERROR(VLOOKUP(B11,'KAYIT LİSTESİ'!$B$4:$H$1280,4,0)),"",(VLOOKUP(B11,'KAYIT LİSTESİ'!$B$4:$H$1280,4,0))) -> 1983-03-18 | E11: =IF(ISERROR(VLOOKUP(B11,'KAYIT LİSTESİ'!$B$4:$H$1280,5,0)),"",(VLOOKUP(B11,'KAYIT LİSTESİ'!$B$4:$H$1280,5,0))) -> MUSA ALTIN | F11: =IF(ISERROR(VLOOKUP(B11,'KAYIT LİSTESİ'!$B$4:$H$1280,6,0)),"",(VLOOKUP(B11,'KAYIT LİSTESİ'!$B$4:$H$1280,6,0))) -> ANKARA | I11: 5 | J11: 5 | K11: 400M-1-5 | L11: =IF(ISERROR(VLOOKUP(K11,'KAYIT LİSTESİ'!$B$4:$H$1280,2,0)),"",(VLOOKUP(K11,'KAYIT LİSTESİ'!$B$4:$H$1280,2,0))) -> 924 | M11: =IF(ISERROR(VLOOKUP(K11,'KAYIT LİSTESİ'!$B$4:$H$1280,4,0)),"",(VLOOKUP(K11,'KAYIT LİSTESİ'!$B$4:$H$1280,4,0))) -> 1987-04-05 | N11: =IF(ISERROR(VLOOKUP(K11,'KAYIT LİSTESİ'!$B$4:$H$1280,5,0)),"",(VLOOKUP(K11,'KAYIT LİSTESİ'!$B$4:$H$1280,5,0))) -> ALİ EKBER KAYAŞ | O11: =IF(ISERROR(VLOOKUP(K11,'KAYIT LİSTESİ'!$B$4:$H$1280,6,0)),"",(VLOOKUP(K11,'KAYIT LİSTESİ'!$B$4:$H$1280,6,0))) -> ANKARA
A12: 6 | B12: 100M-1-6 | C12: =IF(ISERROR(VLOOKUP(B12,'KAYIT LİSTESİ'!$B$4:$H$1280,2,0)),"",(VLOOKUP(B12,'KAYIT LİSTESİ'!$B$4:$H$1280,2,0))) -> 944 | D12: =IF(ISERROR(VLOOKUP(B12,'KAYIT LİSTESİ'!$B$4:$H$1280,4,0)),"",(VLOOKUP(B12,'KAYIT LİSTESİ'!$B$4:$H$1280,4,0))) -> 1990-08-07 | E12: =IF(ISERROR(VLOOKUP(B12,'KAYIT LİSTESİ'!$B$4:$H$1280,5,0)),"",(VLOOKUP(B12,'KAYIT LİSTESİ'!$B$4:$H$1280,5,0))) -> MUSTAFA YAĞMURLU | F12: =IF(ISERROR(VLOOKUP(B12,'KAYIT LİSTESİ'!$B$4:$H$1280,6,0)),"",(VLOOKUP(B12,'KAYIT LİSTESİ'!$B$4:$H$1280,6,0))) -> ANKARA | I12: 6 | J12: 6 | K12: 400M-1-6 | L12: =IF(ISERROR(VLOOKUP(K12,'KAYIT LİSTESİ'!$B$4:$H$1280,2,0)),"",(VLOOKUP(K12,'KAYIT LİSTESİ'!$B$4:$H$1280,2,0))) -> 495 | M12: =IF(ISERROR(VLOOKUP(K12,'KAYIT LİSTESİ'!$B$4:$H$1280,4,0)),"",(VLOOKUP(K12,'KAYIT LİSTESİ'!$B$4:$H$1280,4,0))) -> 1991-07-14 | N12: =IF(ISERROR(VLOOKUP(K12,'KAYIT LİSTESİ'!$B$4:$H$1280,5,0)),"",(VLOOKUP(K12,'KAYIT LİSTESİ'!$B$4:$H$1280,5,0))) -> BUĞRAHAN KOCABEYOĞLU | O12: =IF(ISERROR(VLOOKUP(K12,'KAYIT LİSTESİ'!$B$4:$H$1280,6,0)),"",(VLOOKUP(K12,'KAYIT LİSTESİ'!$B$4:$H$1280,6,0))) -> İSTANBUL
A13: 7 | B13: 100M-1-7 | C13: =IF(ISERROR(VLOOKUP(B13,'KAYIT LİSTESİ'!$B$4:$H$1280,2,0)),"",(VLOOKUP(B13,'KAYIT LİSTESİ'!$B$4:$H$1280,2,0))) -> 947 | D13: =IF(ISERROR(VLOOKUP(B13,'KAYIT LİSTESİ'!$B$4:$H$1280,4,0)),"",(VLOOKUP(B13,'KAYIT LİSTESİ'!$B$4:$H$1280,4,0))) -> 1985-07-16 | E13: =IF(ISERROR(VLOOKUP(B13,'KAYIT LİSTESİ'!$B$4:$H$1280,5,0)),"",(VLOOKUP(B13,'KAYIT LİSTESİ'!$B$4:$H$1280,5,0))) -> OKAN KAMIŞ | F13: =IF(ISERROR(VLOOKUP(B13,'KAYIT LİSTESİ'!$B$4:$H$1280,6,0)),"",(VLOOKUP(B13,'KAYIT LİSTESİ'!$B$4:$H$1280,6,0))) -> ANKARA | I13: 7 | J13: 7 | K13: 400M-1-7 | L13: =IF(ISERROR(VLOOKUP(K13,'KAYIT LİSTESİ'!$B$4:$H$1280,2,0)),"",(VLOOKUP(K13,'KAYIT LİSTESİ'!$B$4:$H$1280,2,0))) ->  | M13: =IF(ISERROR(VLOOKUP(K13,'KAYIT LİSTESİ'!$B$4:$H$1280,4,0)),"",(VLOOKUP(K13,'KAYIT LİSTESİ'!$B$4:$H$1280,4,0))) ->  | N13: =IF(ISERROR(VLOOKUP(K13,'KAYIT LİSTESİ'!$B$4:$H$1280,5,0)),"",(VLOOKUP(K13,'KAYIT LİSTESİ'!$B$4:$H$1280,5,0))) ->  | O13: =IF(ISERROR(VLOOKUP(K13,'KAYIT LİSTESİ'!$B$4:$H$1280,6,0)),"",(VLOOKUP(K13,'KAYIT LİSTESİ'!$B$4:$H$1280,6,0))) -> 
A14: 8 | B14: 100M-1-8 | C14: =IF(ISERROR(VLOOKUP(B14,'KAYIT LİSTESİ'!$B$4:$H$1280,2,0)),"",(VLOOKUP(B14,'KAYIT LİSTESİ'!$B$4:$H$1280,2,0))) -> 951 | D14: =IF(ISERROR(VLOOKUP(B14,'KAYIT LİSTESİ'!$B$4:$H$1280,4,0)),"",(VLOOKUP(B14,'KAYIT LİSTESİ'!$B$4:$H$1280,4,0))) -> 1987-10-03 | E14: =IF(ISERROR(VLOOKUP(B14,'KAYIT LİSTESİ'!$B$4:$H$1280,5,0)),"",(VLOOKUP(B14,'KAYIT LİSTESİ'!$B$4:$H$1280,5,0))) -> SERDAR ELMAS | F14: =IF(ISERROR(VLOOKUP(B14,'KAYIT LİSTESİ'!$B$4:$H$1280,6,0)),"",(VLOOKUP(B14,'KAYIT LİSTESİ'!$B$4:$H$1280,6,0))) -> ANKARA | I14: 8 | J14: 8 | K14: 400M-1-8 | L14: =IF(ISERROR(VLOOKUP(K14,'KAYIT LİSTESİ'!$B$4:$H$1280,2,0)),"",(VLOOKUP(K14,'KAYIT LİSTESİ'!$B$4:$H$1280,2,0))) ->  | M14: =IF(ISERROR(VLOOKUP(K14,'KAYIT LİSTESİ'!$B$4:$H$1280,4,0)),"",(VLOOKUP(K14,'KAYIT LİSTESİ'!$B$4:$H$1280,4,0))) ->  | N14: =IF(ISERROR(VLOOKUP(K14,'KAYIT LİSTESİ'!$B$4:$H$1280,5,0)),"",(VLOOKUP(K14,'KAYIT LİSTESİ'!$B$4:$H$1280,5,0))) ->  | O14: =IF(ISERROR(VLOOKUP(K14,'KAYIT LİSTESİ'!$B$4:$H$1280,6,0)),"",(VLOOKUP(K14,'KAYIT LİSTESİ'!$B$4:$H$1280,6,0))) -> 
A15: 2. SERİ | I15: 9 | J15: 2. SERİ
A16: Sıra No | B16: Formül | C16: Göğüs No | D16: Doğum Tarihi | E16: Adı ve Soyadı | F16: Okulu | G16: Start Kontrol | I16: 10 | J16: Sıra No | K16: Formül | L16: Göğüs No | M16: Doğum Tarihi | N16: Adı ve Soyadı | O16: Okulu | P16: Start Kontrol
A17: 1 | B17: 100M-2-1 | C17: =IF(ISERROR(VLOOKUP(B17,'KAYIT LİSTESİ'!$B$4:$H$1280,2,0)),"",(VLOOKUP(B17,'KAYIT LİSTESİ'!$B$4:$H$1280,2,0))) -> 957 | D17: =IF(ISERROR(VLOOKUP(B17,'KAYIT LİSTESİ'!$B$4:$H$1280,4,0)),"",(VLOOKUP(B17,'KAYIT LİSTESİ'!$B$4:$H$1280,4,0))) -> 1995-01-01 | E17: =IF(ISERROR(VLOOKUP(B17,'KAYIT LİSTESİ'!$B$4:$H$1280,5,0)),"",(VLOOKUP(B17,'KAYIT LİSTESİ'!$B$4:$H$1280,5,0))) -> AYKUT AY | F17: =IF(ISERROR(VLOOKUP(B17,'KAYIT LİSTESİ'!$B$4:$H$1280,6,0)),"",(VLOOKUP(B17,'KAYIT LİSTESİ'!$B$4:$H$1280,6,0))) -> ANTALYA | I17: 11 | J17: 1 | K17: 400M-2-1 | L17: =IF(ISERROR(VLOOKUP(K17,'KAYIT LİSTESİ'!$B$4:$H$1280,2,0)),"",(VLOOKUP(K17,'KAYIT LİSTESİ'!$B$4:$H$1280,2,0))) ->  | M17: =IF(ISERROR(VLOOKUP(K17,'KAYIT LİSTESİ'!$B$4:$H$1280,4,0)),"",(VLOOKUP(K17,'KAYIT LİSTESİ'!$B$4:$H$1280,4,0))) ->  | N17: =IF(ISERROR(VLOOKUP(K17,'KAYIT LİSTESİ'!$B$4:$H$1280,5,0)),"",(VLOOKUP(K17,'KAYIT LİSTESİ'!$B$4:$H$1280,5,0))) ->  | O17: =IF(ISERROR(VLOOKUP(K17,'KAYIT LİSTESİ'!$B$4:$H$1280,6,0)),"",(VLOOKUP(K17,'KAYIT LİSTESİ'!$B$4:$H$1280,6,0))) -> 
A18: 2 | B18: 100M-2-2 | C18: =IF(ISERROR(VLOOKUP(B18,'KAYIT LİSTESİ'!$B$4:$H$1280,2,0)),"",(VLOOKUP(B18,'KAYIT LİSTESİ'!$B$4:$H$1280,2,0))) -> A89 | D18: =IF(ISERROR(VLOOKUP(B18,'KAYIT LİSTESİ'!$B$4:$H$1280,4,0)),"",(VLOOKUP(B18,'KAYIT LİSTESİ'!$B$4:$H$1280,4,0))) -> 00:00:00 | E18: =IF(ISERROR(VLOOKUP(B18,'KAYIT LİSTESİ'!$B$4:$H$1280,5,0)),"",(VLOOKUP(B18,'KAYIT LİSTESİ'!$B$4:$H$1280,5,0))) -> CUMALI U. EMEKTAŞ | F18: =IF(ISERROR(VLOOKUP(B18,'KAYIT LİSTESİ'!$B$4:$H$1280,6,0)),"",(VLOOKUP(B18,'KAYIT LİSTESİ'!$B$4:$H$1280,6,0))) -> BURSA | I18: 12 | J18: 2 | K18: 400M-2-2 | L18: =IF(ISERROR(VLOOKUP(K18,'KAYIT LİSTESİ'!$B$4:$H$1280,2,0)),"",(VLOOKUP(K18,'KAYIT LİSTESİ'!$B$4:$H$1280,2,0))) -> 501 | M18: =IF(ISERROR(VLOOKUP(K18,'KAYIT LİSTESİ'!$B$4:$H$1280,4,0)),"",(VLOOKUP(K18,'KAYIT LİSTESİ'!$B$4:$H$1280,4,0))) -> 1992-03-01 | N18: =IF(ISERROR(VLOOKUP(K18,'KAYIT LİSTESİ'!$B$4:$H$1280,5,0)),"",(VLOOKUP(K18,'KAYIT LİSTESİ'!$B$4:$H$1280,5,0))) -> HALİT KILIÇ | O18: =IF(ISERROR(VLOOKUP(K18,'KAYIT LİSTESİ'!$B$4:$H$1280,6,0)),"",(VLOOKUP(K18,'KAYIT LİSTESİ'!$B$4:$H$1280,6,0))) -> İSTANBUL
A19: 3 | B19: 100M-2-3 | C19: =IF(ISERROR(VLOOKUP(B19,'KAYIT LİSTESİ'!$B$4:$H$1280,2,0)),"",(VLOOKUP(B19,'KAYIT LİSTESİ'!$B$4:$H$1280,2,0))) -> A528 | D19: =IF(ISERROR(VLOOKUP(B19,'KAYIT LİSTESİ'!$B$4:$H$1280,4,0)),"",(VLOOKUP(B19,'KAYIT LİSTESİ'!$B$4:$H$1280,4,0))) -> 1991-06-11 | E19: =IF(ISERROR(VLOOKUP(B19,'KAYIT LİSTESİ'!$B$4:$H$1280,5,0)),"",(VLOOKUP(B19,'KAYIT LİSTESİ'!$B$4:$H$1280,5,0))) -> VOLKAN ÇAKAN | F19: =IF(ISERROR(VLOOKUP(B19,'KAYIT LİSTESİ'!$B$4:$H$1280,6,0)),"",(VLOOKUP(B19,'KAYIT LİSTESİ'!$B$4:$H$1280,6,0))) -> İSTANBUL | I19: 13 | J19: 3 | K19: 400M-2-3 | L19: =IF(ISERROR(VLOOKUP(K19,'KAYIT LİSTESİ'!$B$4:$H$1280,2,0)),"",(VLOOKUP(K19,'KAYIT LİSTESİ'!$B$4:$H$1280,2,0))) -> 540 | M19: =IF(ISERROR(VLOOKUP(K19,'KAYIT LİSTESİ'!$B$4:$H$1280,4,0)),"",(VLOOKUP(K19,'KAYIT LİSTESİ'!$B$4:$H$1280,4,0))) -> 07 07 1995 | N19: =IF(ISERROR(VLOOKUP(K19,'KAYIT LİSTESİ'!$B$4:$H$1280,5,0)),"",(VLOOKUP(K19,'KAYIT LİSTESİ'!$B$4:$H$1280,5,0))) -> HASAN BİRİCİK | O19: =IF(ISERROR(VLOOKUP(K19,'KAYIT LİSTESİ'!$B$4:$H$1280,6,0)),"",(VLOOKUP(K19,'KAYIT LİSTESİ'!$B$4:$H$1280,6,0))) -> KAHRAMANMARAŞ
A20: 4 | B20: 100M-2-4 | C20: =IF(ISERROR(VLOOKUP(B20,'KAYIT LİSTESİ'!$B$4:$H$1280,2,0)),"",(VLOOKUP(B20,'KAYIT LİSTESİ'!$B$4:$H$1280,2,0))) -> 542 | D20: =IF(ISERROR(VLOOKUP(B20,'KAYIT LİSTESİ'!$B$4:$H$1280,4,0)),"",(VLOOKUP(B20,'KAYIT LİSTESİ'!$B$4:$H$1280,4,0))) -> 08 02 1979 | E20: =IF(ISERROR(VLOOKUP(B20,'KAYIT LİSTESİ'!$B$4:$H$1280,5,0)),"",(VLOOKUP(B20,'KAYIT LİSTESİ'!$B$4:$H$1280,5,0))) -> LEVENT YEK | F20: =IF(ISERROR(VLOOKUP(B20,'KAYIT LİSTESİ'!$B$4:$H$1280,6,0)),"",(VLOOKUP(B20,'KAYIT LİSTESİ'!$B$4:$H$1280,6,0))) -> KAHRAMANMARAŞ | I20: 14 | J20: 4 | K20: 400M-2-4 | L20: =IF(ISERROR(VLOOKUP(K20,'KAYIT LİSTESİ'!$B$4:$H$1280,2,0)),"",(VLOOKUP(K20,'KAYIT LİSTESİ'!$B$4:$H$1280,2,0))) -> 546 | M20: =IF(ISERROR(VLOOKUP(K20,'KAYIT LİSTESİ'!$B$4:$H$1280,4,0)),"",(VLOOKUP(K20,'KAYIT LİSTESİ'!$B$4:$H$1280,4,0))) -> 19 08 1994 | N20: =IF(ISERROR(VLOOKUP(K20,'KAYIT LİSTESİ'!$B$4:$H$1280,5,0)),"",(VLOOKUP(K20,'KAYIT LİSTESİ'!$B$4:$H$1280,5,0))) -> ZAFER GÖK | O20: =IF(ISERROR(VLOOKUP(K20,'KAYIT LİSTESİ'!$B$4:$H$1280,6,0)),"",(VLOOKUP(K20,'KAYIT LİSTESİ'!$B$4:$H$1280,6,0))) -> KAHRAMANMARAŞ
A21: 5 | B21: 100M-2-5 | C21: =IF(ISERROR(VLOOKUP(B21,'KAYIT LİSTESİ'!$B$4:$H$1280,2,0)),"",(VLOOKUP(B21,'KAYIT LİSTESİ'!$B$4:$H$1280,2,0))) -> 601 | D21: =IF(ISERROR(VLOOKUP(B21,'KAYIT LİSTESİ'!$B$4:$H$1280,4,0)),"",(VLOOKUP(B21,'KAYIT LİSTESİ'!$B$4:$H$1280,4,0))) -> 1995-02-11 | E21: =IF(ISERROR(VLOOKUP(B21,'KAYIT LİSTESİ'!$B$4:$H$1280,5,0)),"",(VLOOKUP(B21,'KAYIT LİSTESİ'!$B$4:$H$1280,5,0))) -> EMRE BERK CAN | F21: =IF(ISERROR(VLOOKUP(B21,'KAYIT LİSTESİ'!$B$4:$H$1280,6,0)),"",(VLOOKUP(B21,'KAYIT LİSTESİ'!$B$4:$H$1280,6,0))) -> MERSİN | I21: 15 | J21: 5 | K21: 400M-2-5 | L21: =IF(ISERROR(VLOOKUP(K21,'KAYIT LİSTESİ'!$B$4:$H$1280,2,0)),"",(VLOOKUP(K21,'KAYIT LİSTESİ'!$B$4:$H$1280,2,0))) -> 58 | M21: =IF(ISERROR(VLOOKUP(K21,'KAYIT LİSTESİ'!$B$4:$H$1280,4,0)),"",(VLOOKUP(K21,'KAYIT LİSTESİ'!$B$4:$H$1280,4,0))) -> 1995-02-08 | N21: =IF(ISERROR(VLOOKUP(K21,'KAYIT LİSTESİ'!$B$4:$H$1280,5,0)),"",(VLOOKUP(K21,'KAYIT LİSTESİ'!$B$4:$H$1280,5,0))) -> UTKU ÇOBANOĞLU | O21: =IF(ISERROR(VLOOKUP(K21,'KAYIT LİSTESİ'!$B$4:$H$1280,6,0)),"",(VLOOKUP(K21,'KAYIT LİSTESİ'!$B$4:$H$1280,6,0))) -> MERSİN
A22: 6 | B22: 100M-2-6 | C22: =IF(ISERROR(VLOOKUP(B22,'KAYIT LİSTESİ'!$B$4:$H$1280,2,0)),"",(VLOOKUP(B22,'KAYIT LİSTESİ'!$B$4:$H$1280,2,0))) -> 610 | D22: =IF(ISERROR(VLOOKUP(B22,'KAYIT LİSTESİ'!$B$4:$H$1280,4,0)),"",(VLOOKUP(B22,'KAYIT LİSTESİ'!$B$4:$H$1280,4,0))) -> 1981-03-07 | E22: =IF(ISERROR(VLOOKUP(B22,'KAYIT LİSTESİ'!$B$4:$H$1280,5,0)),"",(VLOOKUP(B22,'KAYIT LİSTESİ'!$B$4:$H$1280,5,0))) -> İSMAILASLAN | F22: =IF(ISERROR(VLOOKUP(B22,'KAYIT LİSTESİ'!$B$4:$H$1280,6,0)),"",(VLOOKUP(B22,'KAYIT LİSTESİ'!$B$4:$H$1280,6,0))) -> MERSİN | I22: 16 | J22: 6 | K22: 400M-2-6 | L22: =IF(ISERROR(VLOOKUP(K22,'KAYIT LİSTESİ'!$B$4:$H$1280,2,0)),"",(VLOOKUP(K22,'KAYIT LİSTESİ'!$B$4:$H$1280,2,0))) -> 344 | M22: =IF(ISERROR(VLOOKUP(K22,'KAYIT LİSTESİ'!$B$4:$H$1280,4,0)),"",(VLOOKUP(K22,'KAYIT LİSTESİ'!$B$4:$H$1280,4,0))) -> 1995-02-17 | N22: =IF(ISERROR(VLOOKUP(K22,'KAYIT LİSTESİ'!$B$4:$H$1280,5,0)),"",(VLOOKUP(K22,'KAYIT LİSTESİ'!$B$4:$H$1280,5,0))) -> MEHMET CASIM BAKIR | O22: =IF(ISERROR(VLOOKUP(K22,'KAYIT LİSTESİ'!$B$4:$H$1280,6,0)),"",(VLOOKUP(K22,'KAYIT LİSTESİ'!$B$4:$H$1280,6,0))) -> ŞANLIURFA
A23: 7 | B23: 100M-2-7 | C23: =IF(ISERROR(VLOOKUP(B23,'KAYIT LİSTESİ'!$B$4:$H$1280,2,0)),"",(VLOOKUP(B23,'KAYIT LİSTESİ'!$B$4:$H$1280,2,0))) -> 9 | D23: =IF(ISERROR(VLOOKUP(B23,'KAYIT LİSTESİ'!$B$4:$H$1280,4,0)),"",(VLOOKUP(B23,'KAYIT LİSTESİ'!$B$4:$H$1280,4,0))) -> 1990-01-05 | E23: =IF(ISERROR(VLOOKUP(B23,'KAYIT LİSTESİ'!$B$4:$H$1280,5,0)),"",(VLOOKUP(B23,'KAYIT LİSTESİ'!$B$4:$H$1280,5,0))) -> ABDURRAHMAN ORUÇ | F23: =IF(ISERROR(VLOOKUP(B23,'KAYIT LİSTESİ'!$B$4:$H$1280,6,0)),"",(VLOOKUP(B23,'KAYIT LİSTESİ'!$B$4:$H$1280,6,0))) -> ŞANLIURFA | I23: 17 | J23: 7 | K23: 400M-2-7 | L23: =IF(ISERROR(VLOOKUP(K23,'KAYIT LİSTESİ'!$B$4:$H$1280,2,0)),"",(VLOOKUP(K23,'KAYIT LİSTESİ'!$B$4:$H$1280,2,0))) ->  | M23: =IF(ISERROR(VLOOKUP(K23,'KAYIT LİSTESİ'!$B$4:$H$1280,4,0)),"",(VLOOKUP(K23,'KAYIT LİSTESİ'!$B$4:$H$1280,4,0))) ->  | N23: =IF(ISERROR(VLOOKUP(K23,'KAYIT LİSTESİ'!$B$4:$H$1280,5,0)),"",(VLOOKUP(K23,'KAYIT LİSTESİ'!$B$4:$H$1280,5,0))) ->  | O23: =IF(ISERROR(VLOOKUP(K23,'KAYIT LİSTESİ'!$B$4:$H$1280,6,0)),"",(VLOOKUP(K23,'KAYIT LİSTESİ'!$B$4:$H$1280,6,0))) -> 
A24: 8 | B24: 100M-2-8 | C24: =IF(ISERROR(VLOOKUP(B24,'KAYIT LİSTESİ'!$B$4:$H$1280,2,0)),"",(VLOOKUP(B24,'KAYIT LİSTESİ'!$B$4:$H$1280,2,0))) -> 343 | D24: =IF(ISERROR(VLOOKUP(B24,'KAYIT LİSTESİ'!$B$4:$H$1280,4,0)),"",(VLOOKUP(B24,'KAYIT LİSTESİ'!$B$4:$H$1280,4,0))) -> 1993-01-02 | E24: =IF(ISERROR(VLOOKUP(B24,'KAYIT LİSTESİ'!$B$4:$H$1280,5,0)),"",(VLOOKUP(B24,'KAYIT LİSTESİ'!$B$4:$H$1280,5,0))) -> MAHMUT ÇİFTÇİ | F24: =IF(ISERROR(VLOOKUP(B24,'KAYIT LİSTESİ'!$B$4:$H$1280,6,0)),"",(VLOOKUP(B24,'KAYIT LİSTESİ'!$B$4:$H$1280,6,0))) -> ŞANLIURFA | I24: 18 | J24: 8 | K24: 400M-2-8 | L24: =IF(ISERROR(VLOOKUP(K24,'KAYIT LİSTESİ'!$B$4:$H$1280,2,0)),"",(VLOOKUP(K24,'KAYIT LİSTESİ'!$B$4:$H$1280,2,0))) ->  | M24: =IF(ISERROR(VLOOKUP(K24,'KAYIT LİSTESİ'!$B$4:$H$1280,4,0)),"",(VLOOKUP(K24,'KAYIT LİSTESİ'!$B$4:$H$1280,4,0))) ->  | N24: =IF(ISERROR(VLOOKUP(K24,'KAYIT LİSTESİ'!$B$4:$H$1280,5,0)),"",(VLOOKUP(K24,'KAYIT LİSTESİ'!$B$4:$H$1280,5,0))) ->  | O24: =IF(ISERROR(VLOOKUP(K24,'KAYIT LİSTESİ'!$B$4:$H$1280,6,0)),"",(VLOOKUP(K24,'KAYIT LİSTESİ'!$B$4:$H$1280,6,0))) -> 
A25: 3. SERİ | I25: 19 | J25: 3. SERİ
A26: Sıra No | B26: Formül | C26: Göğüs No | D26: Doğum Tarihi | E26: Adı ve Soyadı | F26: Okulu | G26: Start Kontrol | I26: 20 | J26: Sıra No | K26: Formül | L26: Göğüs No | M26: Doğum Tarihi | N26: Adı ve Soyadı | O26: Okulu | P26: Start Kontrol
A27: 1 | B27: 100M-3-1 | C27: =IF(ISERROR(VLOOKUP(B27,'KAYIT LİSTESİ'!$B$4:$H$1280,2,0)),"",(VLOOKUP(B27,'KAYIT LİSTESİ'!$B$4:$H$1280,2,0))) ->  | D27: =IF(ISERROR(VLOOKUP(B27,'KAYIT LİSTESİ'!$B$4:$H$1280,4,0)),"",(VLOOKUP(B27,'KAYIT LİSTESİ'!$B$4:$H$1280,4,0))) ->  | E27: =IF(ISERROR(VLOOKUP(B27,'KAYIT LİSTESİ'!$B$4:$H$1280,5,0)),"",(VLOOKUP(B27,'KAYIT LİSTESİ'!$B$4:$H$1280,5,0))) ->  | F27: =IF(ISERROR(VLOOKUP(B27,'KAYIT LİSTESİ'!$B$4:$H$1280,6,0)),"",(VLOOKUP(B27,'KAYIT LİSTESİ'!$B$4:$H$1280,6,0))) ->  | I27: 21 | J27: 1 | K27: 400M-3-1 | L27: =IF(ISERROR(VLOOKUP(K27,'KAYIT LİSTESİ'!$B$4:$H$1280,2,0)),"",(VLOOKUP(K27,'KAYIT LİSTESİ'!$B$4:$H$1280,2,0))) ->  | M27: =IF(ISERROR(VLOOKUP(K27,'KAYIT LİSTESİ'!$B$4:$H$1280,4,0)),"",(VLOOKUP(K27,'KAYIT LİSTESİ'!$B$4:$H$1280,4,0))) ->  | N27: =IF(ISERROR(VLOOKUP(K27,'KAYIT LİSTESİ'!$B$4:$H$1280,5,0)),"",(VLOOKUP(K27,'KAYIT LİSTESİ'!$B$4:$H$1280,5,0))) ->  | O27: =IF(ISERROR(VLOOKUP(K27,'KAYIT LİSTESİ'!$B$4:$H$1280,6,0)),"",(VLOOKUP(K27,'KAYIT LİSTESİ'!$B$4:$H$1280,6,0))) -> 
A28: 2 | B28: 100M-3-2 | C28: =IF(ISERROR(VLOOKUP(B28,'KAYIT LİSTESİ'!$B$4:$H$1280,2,0)),"",(VLOOKUP(B28,'KAYIT LİSTESİ'!$B$4:$H$1280,2,0))) ->  | D28: =IF(ISERROR(VLOOKUP(B28,'KAYIT LİSTESİ'!$B$4:$H$1280,4,0)),"",(VLOOKUP(B28,'KAYIT LİSTESİ'!$B$4:$H$1280,4,0))) ->  | E28: =IF(ISERROR(VLOOKUP(B28,'KAYIT LİSTESİ'!$B$4:$H$1280,5,0)),"",(VLOOKUP(B28,'KAYIT LİSTESİ'!$B$4:$H$1280,5,0))) ->  | F28: =IF(ISERROR(VLOOKUP(B28,'KAYIT LİSTESİ'!$B$4:$H$1280,6,0)),"",(VLOOKUP(B28,'KAYIT LİSTESİ'!$B$4:$H$1280,6,0))) ->  | I28: 22 | J28: 2 | K28: 400M-3-2 | L28: =IF(ISERROR(VLOOKUP(K28,'KAYIT LİSTESİ'!$B$4:$H$1280,2,0)),"",(VLOOKUP(K28,'KAYIT LİSTESİ'!$B$4:$H$1280,2,0))) ->  | M28: =IF(ISERROR(VLOOKUP(K28,'KAYIT LİSTESİ'!$B$4:$H$1280,4,0)),"",(VLOOKUP(K28,'KAYIT LİSTESİ'!$B$4:$H$1280,4,0))) ->  | N28: =IF(ISERROR(VLOOKUP(K28,'KAYIT LİSTESİ'!$B$4:$H$1280,5,0)),"",(VLOOKUP(K28,'KAYIT LİSTESİ'!$B$4:$H$1280,5,0))) ->  | O28: =IF(ISERROR(VLOOKUP(K28,'KAYIT LİSTESİ'!$B$4:$H$1280,6,0)),"",(VLOOKUP(K28,'KAYIT LİSTESİ'!$B$4:$H$1280,6,0))) -> 
A29: 3 | B29: 100M-3-3 | C29: =IF(ISERROR(VLOOKUP(B29,'KAYIT LİSTESİ'!$B$4:$H$1280,2,0)),"",(VLOOKUP(B29,'KAYIT LİSTESİ'!$B$4:$H$1280,2,0))) ->  | D29: =IF(ISERROR(VLOOKUP(B29,'KAYIT LİSTESİ'!$B$4:$H$1280,4,0)),"",(VLOOKUP(B29,'KAYIT LİSTESİ'!$B$4:$H$1280,4,0))) ->  | E29: =IF(ISERROR(VLOOKUP(B29,'KAYIT LİSTESİ'!$B$4:$H$1280,5,0)),"",(VLOOKUP(B29,'KAYIT LİSTESİ'!$B$4:$H$1280,5,0))) ->  | F29: =IF(ISERROR(VLOOKUP(B29,'KAYIT LİSTESİ'!$B$4:$H$1280,6,0)),"",(VLOOKUP(B29,'KAYIT LİSTESİ'!$B$4:$H$1280,6,0))) ->  | I29: 23 | J29: 3 | K29: 400M-3-3 | L29: =IF(ISERROR(VLOOKUP(K29,'KAYIT LİSTESİ'!$B$4:$H$1280,2,0)),"",(VLOOKUP(K29,'KAYIT LİSTESİ'!$B$4:$H$1280,2,0))) ->  | M29: =IF(ISERROR(VLOOKUP(K29,'KAYIT LİSTESİ'!$B$4:$H$1280,4,0)),"",(VLOOKUP(K29,'KAYIT LİSTESİ'!$B$4:$H$1280,4,0))) ->  | N29: =IF(ISERROR(VLOOKUP(K29,'KAYIT LİSTESİ'!$B$4:$H$1280,5,0)),"",(VLOOKUP(K29,'KAYIT LİSTESİ'!$B$4:$H$1280,5,0))) ->  | O29: =IF(ISERROR(VLOOKUP(K29,'KAYIT LİSTESİ'!$B$4:$H$1280,6,0)),"",(VLOOKUP(K29,'KAYIT LİSTESİ'!$B$4:$H$1280,6,0))) -> 
A30: 4 | B30: 100M-3-4 | C30: =IF(ISERROR(VLOOKUP(B30,'KAYIT LİSTESİ'!$B$4:$H$1280,2,0)),"",(VLOOKUP(B30,'KAYIT LİSTESİ'!$B$4:$H$1280,2,0))) ->  | D30: =IF(ISERROR(VLOOKUP(B30,'KAYIT LİSTESİ'!$B$4:$H$1280,4,0)),"",(VLOOKUP(B30,'KAYIT LİSTESİ'!$B$4:$H$1280,4,0))) ->  | E30: =IF(ISERROR(VLOOKUP(B30,'KAYIT LİSTESİ'!$B$4:$H$1280,5,0)),"",(VLOOKUP(B30,'KAYIT LİSTESİ'!$B$4:$H$1280,5,0))) ->  | F30: =IF(ISERROR(VLOOKUP(B30,'KAYIT LİSTESİ'!$B$4:$H$1280,6,0)),"",(VLOOKUP(B30,'KAYIT LİSTESİ'!$B$4:$H$1280,6,0))) ->  | I30: 24 | J30: 4 | K30: 400M-3-4 | L30: =IF(ISERROR(VLOOKUP(K30,'KAYIT LİSTESİ'!$B$4:$H$1280,2,0)),"",(VLOOKUP(K30,'KAYIT LİSTESİ'!$B$4:$H$1280,2,0))) ->  | M30: =IF(ISERROR(VLOOKUP(K30,'KAYIT LİSTESİ'!$B$4:$H$1280,4,0)),"",(VLOOKUP(K30,'KAYIT LİSTESİ'!$B$4:$H$1280,4,0))) ->  | N30: =IF(ISERROR(VLOOKUP(K30,'KAYIT LİSTESİ'!$B$4:$H$1280,5,0)),"",(VLOOKUP(K30,'KAYIT LİSTESİ'!$B$4:$H$1280,5,0))) ->  | O30: =IF(ISERROR(VLOOKUP(K30,'KAYIT LİSTESİ'!$B$4:$H$1280,6,0)),"",(VLOOKUP(K30,'KAYIT LİSTESİ'!$B$4:$H$1280,6,0))) -> 
A31: 5 | B31: 100M-3-5 | C31: =IF(ISERROR(VLOOKUP(B31,'KAYIT LİSTESİ'!$B$4:$H$1280,2,0)),"",(VLOOKUP(B31,'KAYIT LİSTESİ'!$B$4:$H$1280,2,0))) ->  | D31: =IF(ISERROR(VLOOKUP(B31,'KAYIT LİSTESİ'!$B$4:$H$1280,4,0)),"",(VLOOKUP(B31,'KAYIT LİSTESİ'!$B$4:$H$1280,4,0))) ->  | E31: =IF(ISERROR(VLOOKUP(B31,'KAYIT LİSTESİ'!$B$4:$H$1280,5,0)),"",(VLOOKUP(B31,'KAYIT LİSTESİ'!$B$4:$H$1280,5,0))) ->  | F31: =IF(ISERROR(VLOOKUP(B31,'KAYIT LİSTESİ'!$B$4:$H$1280,6,0)),"",(VLOOKUP(B31,'KAYIT LİSTESİ'!$B$4:$H$1280,6,0))) ->  | I31: 25 | J31: 5 | K31: 400M-3-5 | L31: =IF(ISERROR(VLOOKUP(K31,'KAYIT LİSTESİ'!$B$4:$H$1280,2,0)),"",(VLOOKUP(K31,'KAYIT LİSTESİ'!$B$4:$H$1280,2,0))) ->  | M31: =IF(ISERROR(VLOOKUP(K31,'KAYIT LİSTESİ'!$B$4:$H$1280,4,0)),"",(VLOOKUP(K31,'KAYIT LİSTESİ'!$B$4:$H$1280,4,0))) ->  | N31: =IF(ISERROR(VLOOKUP(K31,'KAYIT LİSTESİ'!$B$4:$H$1280,5,0)),"",(VLOOKUP(K31,'KAYIT LİSTESİ'!$B$4:$H$1280,5,0))) ->  | O31: =IF(ISERROR(VLOOKUP(K31,'KAYIT LİSTESİ'!$B$4:$H$1280,6,0)),"",(VLOOKUP(K31,'KAYIT LİSTESİ'!$B$4:$H$1280,6,0))) -> 
A32: 6 | B32: 100M-3-6 | C32: =IF(ISERROR(VLOOKUP(B32,'KAYIT LİSTESİ'!$B$4:$H$1280,2,0)),"",(VLOOKUP(B32,'KAYIT LİSTESİ'!$B$4:$H$1280,2,0))) ->  | D32: =IF(ISERROR(VLOOKUP(B32,'KAYIT LİSTESİ'!$B$4:$H$1280,4,0)),"",(VLOOKUP(B32,'KAYIT LİSTESİ'!$B$4:$H$1280,4,0))) ->  | E32: =IF(ISERROR(VLOOKUP(B32,'KAYIT LİSTESİ'!$B$4:$H$1280,5,0)),"",(VLOOKUP(B32,'KAYIT LİSTESİ'!$B$4:$H$1280,5,0))) ->  | F32: =IF(ISERROR(VLOOKUP(B32,'KAYIT LİSTESİ'!$B$4:$H$1280,6,0)),"",(VLOOKUP(B32,'KAYIT LİSTESİ'!$B$4:$H$1280,6,0))) ->  | J32: 6 | K32: 400M-3-6 | L32: =IF(ISERROR(VLOOKUP(K32,'KAYIT LİSTESİ'!$B$4:$H$1280,2,0)),"",(VLOOKUP(K32,'KAYIT LİSTESİ'!$B$4:$H$1280,2,0))) ->  | M32: =IF(ISERROR(VLOOKUP(K32,'KAYIT LİSTESİ'!$B$4:$H$1280,4,0)),"",(VLOOKUP(K32,'KAYIT LİSTESİ'!$B$4:$H$1280,4,0))) ->  | N32: =IF(ISERROR(VLOOKUP(K32,'KAYIT LİSTESİ'!$B$4:$H$1280,5,0)),"",(VLOOKUP(K32,'KAYIT LİSTESİ'!$B$4:$H$1280,5,0))) ->  | O32: =IF(ISERROR(VLOOKUP(K32,'KAYIT LİSTESİ'!$B$4:$H$1280,6,0)),"",(VLOOKUP(K32,'KAYIT LİSTESİ'!$B$4:$H$1280,6,0))) -> 
A33: 7 | B33: 100M-3-7 | C33: =IF(ISERROR(VLOOKUP(B33,'KAYIT LİSTESİ'!$B$4:$H$1280,2,0)),"",(VLOOKUP(B33,'KAYIT LİSTESİ'!$B$4:$H$1280,2,0))) ->  | D33: =IF(ISERROR(VLOOKUP(B33,'KAYIT LİSTESİ'!$B$4:$H$1280,4,0)),"",(VLOOKUP(B33,'KAYIT LİSTESİ'!$B$4:$H$1280,4,0))) ->  | E33: =IF(ISERROR(VLOOKUP(B33,'KAYIT LİSTESİ'!$B$4:$H$1280,5,0)),"",(VLOOKUP(B33,'KAYIT LİSTESİ'!$B$4:$H$1280,5,0))) ->  | F33: =IF(ISERROR(VLOOKUP(B33,'KAYIT LİSTESİ'!$B$4:$H$1280,6,0)),"",(VLOOKUP(B33,'KAYIT LİSTESİ'!$B$4:$H$1280,6,0))) ->  | J33: 7 | K33: 400M-3-7 | L33: =IF(ISERROR(VLOOKUP(K33,'KAYIT LİSTESİ'!$B$4:$H$1280,2,0)),"",(VLOOKUP(K33,'KAYIT LİSTESİ'!$B$4:$H$1280,2,0))) ->  | M33: =IF(ISERROR(VLOOKUP(K33,'KAYIT LİSTESİ'!$B$4:$H$1280,4,0)),"",(VLOOKUP(K33,'KAYIT LİSTESİ'!$B$4:$H$1280,4,0))) ->  | N33: =IF(ISERROR(VLOOKUP(K33,'KAYIT LİSTESİ'!$B$4:$H$1280,5,0)),"",(VLOOKUP(K33,'KAYIT LİSTESİ'!$B$4:$H$1280,5,0))) ->  | O33: =IF(ISERROR(VLOOKUP(K33,'KAYIT LİSTESİ'!$B$4:$H$1280,6,0)),"",(VLOOKUP(K33,'KAYIT LİSTESİ'!$B$4:$H$1280,6,0))) -> 
A34: 8 | B34: 100M-3-8 | C34: =IF(ISERROR(VLOOKUP(B34,'KAYIT LİSTESİ'!$B$4:$H$1280,2,0)),"",(VLOOKUP(B34,'KAYIT LİSTESİ'!$B$4:$H$1280,2,0))) ->  | D34: =IF(ISERROR(VLOOKUP(B34,'KAYIT LİSTESİ'!$B$4:$H$1280,4,0)),"",(VLOOKUP(B34,'KAYIT LİSTESİ'!$B$4:$H$1280,4,0))) ->  | E34: =IF(ISERROR(VLOOKUP(B34,'KAYIT LİSTESİ'!$B$4:$H$1280,5,0)),"",(VLOOKUP(B34,'KAYIT LİSTESİ'!$B$4:$H$1280,5,0))) ->  | F34: =IF(ISERROR(VLOOKUP(B34,'KAYIT LİSTESİ'!$B$4:$H$1280,6,0)),"",(VLOOKUP(B34,'KAYIT LİSTESİ'!$B$4:$H$1280,6,0))) ->  | J34: 8 | K34: 400M-3-8 | L34: =IF(ISERROR(VLOOKUP(K34,'KAYIT LİSTESİ'!$B$4:$H$1280,2,0)),"",(VLOOKUP(K34,'KAYIT LİSTESİ'!$B$4:$H$1280,2,0))) ->  | M34: =IF(ISERROR(VLOOKUP(K34,'KAYIT LİSTESİ'!$B$4:$H$1280,4,0)),"",(VLOOKUP(K34,'KAYIT LİSTESİ'!$B$4:$H$1280,4,0))) ->  | N34: =IF(ISERROR(VLOOKUP(K34,'KAYIT LİSTESİ'!$B$4:$H$1280,5,0)),"",(VLOOKUP(K34,'KAYIT LİSTESİ'!$B$4:$H$1280,5,0))) ->  | O34: =IF(ISERROR(VLOOKUP(K34,'KAYIT LİSTESİ'!$B$4:$H$1280,6,0)),"",(VLOOKUP(K34,'KAYIT LİSTESİ'!$B$4:$H$1280,6,0))) -> 
A35: 4. SERİ | J35: 4. SERİ
A36: Sıra No | B36: Formül | C36: Göğüs No | D36: Doğum Tarihi | E36: Adı ve Soyadı | F36: Okulu | G36: Start Kontrol | J36: Sıra No | K36: Formül | L36: Göğüs No | M36: Doğum Tarihi | N36: Adı ve Soyadı | O36: Okulu | P36: Start Kontrol
A37: 1 | B37: 100M-4-1 | C37: =IF(ISERROR(VLOOKUP(B37,'KAYIT LİSTESİ'!$B$4:$H$1280,2,0)),"",(VLOOKUP(B37,'KAYIT LİSTESİ'!$B$4:$H$1280,2,0))) ->  | D37: =IF(ISERROR(VLOOKUP(B37,'KAYIT LİSTESİ'!$B$4:$H$1280,4,0)),"",(VLOOKUP(B37,'KAYIT LİSTESİ'!$B$4:$H$1280,4,0))) ->  | E37: =IF(ISERROR(VLOOKUP(B37,'KAYIT LİSTESİ'!$B$4:$H$1280,5,0)),"",(VLOOKUP(B37,'KAYIT LİSTESİ'!$B$4:$H$1280,5,0))) ->  | F37: =IF(ISERROR(VLOOKUP(B37,'KAYIT LİSTESİ'!$B$4:$H$1280,6,0)),"",(VLOOKUP(B37,'KAYIT LİSTESİ'!$B$4:$H$1280,6,0))) ->  | J37: 1 | K37: 400M-4-1 | L37: =IF(ISERROR(VLOOKUP(K37,'KAYIT LİSTESİ'!$B$4:$H$1280,2,0)),"",(VLOOKUP(K37,'KAYIT LİSTESİ'!$B$4:$H$1280,2,0))) ->  | M37: =IF(ISERROR(VLOOKUP(K37,'KAYIT LİSTESİ'!$B$4:$H$1280,4,0)),"",(VLOOKUP(K37,'KAYIT LİSTESİ'!$B$4:$H$1280,4,0))) ->  | N37: =IF(ISERROR(VLOOKUP(K37,'KAYIT LİSTESİ'!$B$4:$H$1280,5,0)),"",(VLOOKUP(K37,'KAYIT LİSTESİ'!$B$4:$H$1280,5,0))) ->  | O37: =IF(ISERROR(VLOOKUP(K37,'KAYIT LİSTESİ'!$B$4:$H$1280,6,0)),"",(VLOOKUP(K37,'KAYIT LİSTESİ'!$B$4:$H$1280,6,0))) -> 
A38: 2 | B38: 100M-4-2 | C38: =IF(ISERROR(VLOOKUP(B38,'KAYIT LİSTESİ'!$B$4:$H$1280,2,0)),"",(VLOOKUP(B38,'KAYIT LİSTESİ'!$B$4:$H$1280,2,0))) ->  | D38: =IF(ISERROR(VLOOKUP(B38,'KAYIT LİSTESİ'!$B$4:$H$1280,4,0)),"",(VLOOKUP(B38,'KAYIT LİSTESİ'!$B$4:$H$1280,4,0))) ->  | E38: =IF(ISERROR(VLOOKUP(B38,'KAYIT LİSTESİ'!$B$4:$H$1280,5,0)),"",(VLOOKUP(B38,'KAYIT LİSTESİ'!$B$4:$H$1280,5,0))) ->  | F38: =IF(ISERROR(VLOOKUP(B38,'KAYIT LİSTESİ'!$B$4:$H$1280,6,0)),"",(VLOOKUP(B38,'KAYIT LİSTESİ'!$B$4:$H$1280,6,0))) ->  | J38: 2 | K38: 400M-4-2 | L38: =IF(ISERROR(VLOOKUP(K38,'KAYIT LİSTESİ'!$B$4:$H$1280,2,0)),"",(VLOOKUP(K38,'KAYIT LİSTESİ'!$B$4:$H$1280,2,0))) ->  | M38: =IF(ISERROR(VLOOKUP(K38,'KAYIT LİSTESİ'!$B$4:$H$1280,4,0)),"",(VLOOKUP(K38,'KAYIT LİSTESİ'!$B$4:$H$1280,4,0))) ->  | N38: =IF(ISERROR(VLOOKUP(K38,'KAYIT LİSTESİ'!$B$4:$H$1280,5,0)),"",(VLOOKUP(K38,'KAYIT LİSTESİ'!$B$4:$H$1280,5,0))) ->  | O38: =IF(ISERROR(VLOOKUP(K38,'KAYIT LİSTESİ'!$B$4:$H$1280,6,0)),"",(VLOOKUP(K38,'KAYIT LİSTESİ'!$B$4:$H$1280,6,0))) -> 
A39: 3 | B39: 100M-4-3 | C39: =IF(ISERROR(VLOOKUP(B39,'KAYIT LİSTESİ'!$B$4:$H$1280,2,0)),"",(VLOOKUP(B39,'KAYIT LİSTESİ'!$B$4:$H$1280,2,0))) ->  | D39: =IF(ISERROR(VLOOKUP(B39,'KAYIT LİSTESİ'!$B$4:$H$1280,4,0)),"",(VLOOKUP(B39,'KAYIT LİSTESİ'!$B$4:$H$1280,4,0))) ->  | E39: =IF(ISERROR(VLOOKUP(B39,'KAYIT LİSTESİ'!$B$4:$H$1280,5,0)),"",(VLOOKUP(B39,'KAYIT LİSTESİ'!$B$4:$H$1280,5,0))) ->  | F39: =IF(ISERROR(VLOOKUP(B39,'KAYIT LİSTESİ'!$B$4:$H$1280,6,0)),"",(VLOOKUP(B39,'KAYIT LİSTESİ'!$B$4:$H$1280,6,0))) ->  | J39: 3 | K39: 400M-4-3 | L39: =IF(ISERROR(VLOOKUP(K39,'KAYIT LİSTESİ'!$B$4:$H$1280,2,0)),"",(VLOOKUP(K39,'KAYIT LİSTESİ'!$B$4:$H$1280,2,0))) ->  | M39: =IF(ISERROR(VLOOKUP(K39,'KAYIT LİSTESİ'!$B$4:$H$1280,4,0)),"",(VLOOKUP(K39,'KAYIT LİSTESİ'!$B$4:$H$1280,4,0))) ->  | N39: =IF(ISERROR(VLOOKUP(K39,'KAYIT LİSTESİ'!$B$4:$H$1280,5,0)),"",(VLOOKUP(K39,'KAYIT LİSTESİ'!$B$4:$H$1280,5,0))) ->  | O39: =IF(ISERROR(VLOOKUP(K39,'KAYIT LİSTESİ'!$B$4:$H$1280,6,0)),"",(VLOOKUP(K39,'KAYIT LİSTESİ'!$B$4:$H$1280,6,0))) -> 
A40: 4 | B40: 100M-4-4 | C40: =IF(ISERROR(VLOOKUP(B40,'KAYIT LİSTESİ'!$B$4:$H$1280,2,0)),"",(VLOOKUP(B40,'KAYIT LİSTESİ'!$B$4:$H$1280,2,0))) ->  | D40: =IF(ISERROR(VLOOKUP(B40,'KAYIT LİSTESİ'!$B$4:$H$1280,4,0)),"",(VLOOKUP(B40,'KAYIT LİSTESİ'!$B$4:$H$1280,4,0))) ->  | E40: =IF(ISERROR(VLOOKUP(B40,'KAYIT LİSTESİ'!$B$4:$H$1280,5,0)),"",(VLOOKUP(B40,'KAYIT LİSTESİ'!$B$4:$H$1280,5,0))) ->  | F40: =IF(ISERROR(VLOOKUP(B40,'KAYIT LİSTESİ'!$B$4:$H$1280,6,0)),"",(VLOOKUP(B40,'KAYIT LİSTESİ'!$B$4:$H$1280,6,0))) ->  | J40: 4 | K40: 400M-4-4 | L40: =IF(ISERROR(VLOOKUP(K40,'KAYIT LİSTESİ'!$B$4:$H$1280,2,0)),"",(VLOOKUP(K40,'KAYIT LİSTESİ'!$B$4:$H$1280,2,0))) ->  | M40: =IF(ISERROR(VLOOKUP(K40,'KAYIT LİSTESİ'!$B$4:$H$1280,4,0)),"",(VLOOKUP(K40,'KAYIT LİSTESİ'!$B$4:$H$1280,4,0))) ->  | N40: =IF(ISERROR(VLOOKUP(K40,'KAYIT LİSTESİ'!$B$4:$H$1280,5,0)),"",(VLOOKUP(K40,'KAYIT LİSTESİ'!$B$4:$H$1280,5,0))) ->  | O40: =IF(ISERROR(VLOOKUP(K40,'KAYIT LİSTESİ'!$B$4:$H$1280,6,0)),"",(VLOOKUP(K40,'KAYIT LİSTESİ'!$B$4:$H$1280,6,0))) -> 
A41: 5 | B41: 100M-4-5 | C41: =IF(ISERROR(VLOOKUP(B41,'KAYIT LİSTESİ'!$B$4:$H$1280,2,0)),"",(VLOOKUP(B41,'KAYIT LİSTESİ'!$B$4:$H$1280,2,0))) ->  | D41: =IF(ISERROR(VLOOKUP(B41,'KAYIT LİSTESİ'!$B$4:$H$1280,4,0)),"",(VLOOKUP(B41,'KAYIT LİSTESİ'!$B$4:$H$1280,4,0))) ->  | E41: =IF(ISERROR(VLOOKUP(B41,'KAYIT LİSTESİ'!$B$4:$H$1280,5,0)),"",(VLOOKUP(B41,'KAYIT LİSTESİ'!$B$4:$H$1280,5,0))) ->  | F41: =IF(ISERROR(VLOOKUP(B41,'KAYIT LİSTESİ'!$B$4:$H$1280,6,0)),"",(VLOOKUP(B41,'KAYIT LİSTESİ'!$B$4:$H$1280,6,0))) ->  | J41: 5 | K41: 400M-4-5 | L41: =IF(ISERROR(VLOOKUP(K41,'KAYIT LİSTESİ'!$B$4:$H$1280,2,0)),"",(VLOOKUP(K41,'KAYIT LİSTESİ'!$B$4:$H$1280,2,0))) ->  | M41: =IF(ISERROR(VLOOKUP(K41,'KAYIT LİSTESİ'!$B$4:$H$1280,4,0)),"",(VLOOKUP(K41,'KAYIT LİSTESİ'!$B$4:$H$1280,4,0))) ->  | N41: =IF(ISERROR(VLOOKUP(K41,'KAYIT LİSTESİ'!$B$4:$H$1280,5,0)),"",(VLOOKUP(K41,'KAYIT LİSTESİ'!$B$4:$H$1280,5,0))) ->  | O41: =IF(ISERROR(VLOOKUP(K41,'KAYIT LİSTESİ'!$B$4:$H$1280,6,0)),"",(VLOOKUP(K41,'KAYIT LİSTESİ'!$B$4:$H$1280,6,0))) -> 
A42: 6 | B42: 100M-4-6 | C42: =IF(ISERROR(VLOOKUP(B42,'KAYIT LİSTESİ'!$B$4:$H$1280,2,0)),"",(VLOOKUP(B42,'KAYIT LİSTESİ'!$B$4:$H$1280,2,0))) ->  | D42: =IF(ISERROR(VLOOKUP(B42,'KAYIT LİSTESİ'!$B$4:$H$1280,4,0)),"",(VLOOKUP(B42,'KAYIT LİSTESİ'!$B$4:$H$1280,4,0))) ->  | E42: =IF(ISERROR(VLOOKUP(B42,'KAYIT LİSTESİ'!$B$4:$H$1280,5,0)),"",(VLOOKUP(B42,'KAYIT LİSTESİ'!$B$4:$H$1280,5,0))) ->  | F42: =IF(ISERROR(VLOOKUP(B42,'KAYIT LİSTESİ'!$B$4:$H$1280,6,0)),"",(VLOOKUP(B42,'KAYIT LİSTESİ'!$B$4:$H$1280,6,0))) ->  | J42: 6 | K42: 400M-4-6 | L42: =IF(ISERROR(VLOOKUP(K42,'KAYIT LİSTESİ'!$B$4:$H$1280,2,0)),"",(VLOOKUP(K42,'KAYIT LİSTESİ'!$B$4:$H$1280,2,0))) ->  | M42: =IF(ISERROR(VLOOKUP(K42,'KAYIT LİSTESİ'!$B$4:$H$1280,4,0)),"",(VLOOKUP(K42,'KAYIT LİSTESİ'!$B$4:$H$1280,4,0))) ->  | N42: =IF(ISERROR(VLOOKUP(K42,'KAYIT LİSTESİ'!$B$4:$H$1280,5,0)),"",(VLOOKUP(K42,'KAYIT LİSTESİ'!$B$4:$H$1280,5,0))) ->  | O42: =IF(ISERROR(VLOOKUP(K42,'KAYIT LİSTESİ'!$B$4:$H$1280,6,0)),"",(VLOOKUP(K42,'KAYIT LİSTESİ'!$B$4:$H$1280,6,0))) -> 
A43: 7 | B43: 100M-4-7 | C43: =IF(ISERROR(VLOOKUP(B43,'KAYIT LİSTESİ'!$B$4:$H$1280,2,0)),"",(VLOOKUP(B43,'KAYIT LİSTESİ'!$B$4:$H$1280,2,0))) ->  | D43: =IF(ISERROR(VLOOKUP(B43,'KAYIT LİSTESİ'!$B$4:$H$1280,4,0)),"",(VLOOKUP(B43,'KAYIT LİSTESİ'!$B$4:$H$1280,4,0))) ->  | E43: =IF(ISERROR(VLOOKUP(B43,'KAYIT LİSTESİ'!$B$4:$H$1280,5,0)),"",(VLOOKUP(B43,'KAYIT LİSTESİ'!$B$4:$H$1280,5,0))) ->  | F43: =IF(ISERROR(VLOOKUP(B43,'KAYIT LİSTESİ'!$B$4:$H$1280,6,0)),"",(VLOOKUP(B43,'KAYIT LİSTESİ'!$B$4:$H$1280,6,0))) ->  | J43: 7 | K43: 400M-4-7 | L43: =IF(ISERROR(VLOOKUP(K43,'KAYIT LİSTESİ'!$B$4:$H$1280,2,0)),"",(VLOOKUP(K43,'KAYIT LİSTESİ'!$B$4:$H$1280,2,0))) ->  | M43: =IF(ISERROR(VLOOKUP(K43,'KAYIT LİSTESİ'!$B$4:$H$1280,4,0)),"",(VLOOKUP(K43,'KAYIT LİSTESİ'!$B$4:$H$1280,4,0))) ->  | N43: =IF(ISERROR(VLOOKUP(K43,'KAYIT LİSTESİ'!$B$4:$H$1280,5,0)),"",(VLOOKUP(K43,'KAYIT LİSTESİ'!$B$4:$H$1280,5,0))) ->  | O43: =IF(ISERROR(VLOOKUP(K43,'KAYIT LİSTESİ'!$B$4:$H$1280,6,0)),"",(VLOOKUP(K43,'KAYIT LİSTESİ'!$B$4:$H$1280,6,0))) -> 
A44: 8 | B44: 100M-4-8 | C44: =IF(ISERROR(VLOOKUP(B44,'KAYIT LİSTESİ'!$B$4:$H$1280,2,0)),"",(VLOOKUP(B44,'KAYIT LİSTESİ'!$B$4:$H$1280,2,0))) ->  | D44: =IF(ISERROR(VLOOKUP(B44,'KAYIT LİSTESİ'!$B$4:$H$1280,4,0)),"",(VLOOKUP(B44,'KAYIT LİSTESİ'!$B$4:$H$1280,4,0))) ->  | E44: =IF(ISERROR(VLOOKUP(B44,'KAYIT LİSTESİ'!$B$4:$H$1280,5,0)),"",(VLOOKUP(B44,'KAYIT LİSTESİ'!$B$4:$H$1280,5,0))) ->  | F44: =IF(ISERROR(VLOOKUP(B44,'KAYIT LİSTESİ'!$B$4:$H$1280,6,0)),"",(VLOOKUP(B44,'KAYIT LİSTESİ'!$B$4:$H$1280,6,0))) ->  | J44: 8 | K44: 400M-4-8 | L44: =IF(ISERROR(VLOOKUP(K44,'KAYIT LİSTESİ'!$B$4:$H$1280,2,0)),"",(VLOOKUP(K44,'KAYIT LİSTESİ'!$B$4:$H$1280,2,0))) ->  | M44: =IF(ISERROR(VLOOKUP(K44,'KAYIT LİSTESİ'!$B$4:$H$1280,4,0)),"",(VLOOKUP(K44,'KAYIT LİSTESİ'!$B$4:$H$1280,4,0))) ->  | N44: =IF(ISERROR(VLOOKUP(K44,'KAYIT LİSTESİ'!$B$4:$H$1280,5,0)),"",(VLOOKUP(K44,'KAYIT LİSTESİ'!$B$4:$H$1280,5,0))) ->  | O44: =IF(ISERROR(VLOOKUP(K44,'KAYIT LİSTESİ'!$B$4:$H$1280,6,0)),"",(VLOOKUP(K44,'KAYIT LİSTESİ'!$B$4:$H$1280,6,0))) -> 
A45: 110 METRE ENGELLİ | J45: YÜKSEK ATLAMA
A46: 1. SERİ | J46: SIRA NO | L46: GÖĞÜS NO | M46: DOĞUM TARİHİ | N46: ADI VE SOYADI | O46: OKULU | P46: Start Kontrol
A47: Sıra No | B47: Formül | C47: Göğüs No | D47: Doğum Tarihi | E47: Adı ve Soyadı | F47: Okulu | G47: Start Kontrol
A48: 1 | B48: 110M.ENG-1-1 | C48: =IF(ISERROR(VLOOKUP(B48,'KAYIT LİSTESİ'!$B$4:$H$1280,2,0)),"",(VLOOKUP(B48,'KAYIT LİSTESİ'!$B$4:$H$1280,2,0))) ->  | D48: =IF(ISERROR(VLOOKUP(B48,'KAYIT LİSTESİ'!$B$4:$H$1280,4,0)),"",(VLOOKUP(B48,'KAYIT LİSTESİ'!$B$4:$H$1280,4,0))) ->  | E48: =IF(ISERROR(VLOOKUP(B48,'KAYIT LİSTESİ'!$B$4:$H$1280,5,0)),"",(VLOOKUP(B48,'KAYIT LİSTESİ'!$B$4:$H$1280,5,0))) ->  | F48: =IF(ISERROR(VLOOKUP(B48,'KAYIT LİSTESİ'!$B$4:$H$1280,6,0)),"",(VLOOKUP(B48,'KAYIT LİSTESİ'!$B$4:$H$1280,6,0))) ->  | J48: 1 | K48: YÜKSEK-1 | L48: =IF(ISERROR(VLOOKUP(K48,'KAYIT LİSTESİ'!$B$4:$H$1280,2,0)),"",(VLOOKUP(K48,'KAYIT LİSTESİ'!$B$4:$H$1280,2,0))) -> 521 | M48: =IF(ISERROR(VLOOKUP(K48,'KAYIT LİSTESİ'!$B$4:$H$1280,4,0)),"",(VLOOKUP(K48,'KAYIT LİSTESİ'!$B$4:$H$1280,4,0))) -> 1992-01-01 | N48: =IF(ISERROR(VLOOKUP(K48,'KAYIT LİSTESİ'!$B$4:$H$1280,5,0)),"",(VLOOKUP(K48,'KAYIT LİSTESİ'!$B$4:$H$1280,5,0))) -> FURKAN GÖKSOY | O48: =IF(ISERROR(VLOOKUP(K48,'KAYIT LİSTESİ'!$B$4:$H$1280,6,0)),"",(VLOOKUP(K48,'KAYIT LİSTESİ'!$B$4:$H$1280,6,0))) -> İZMİR
A49: 2 | B49: 110M.ENG-1-2 | C49: =IF(ISERROR(VLOOKUP(B49,'KAYIT LİSTESİ'!$B$4:$H$1280,2,0)),"",(VLOOKUP(B49,'KAYIT LİSTESİ'!$B$4:$H$1280,2,0))) -> 6 | D49: =IF(ISERROR(VLOOKUP(B49,'KAYIT LİSTESİ'!$B$4:$H$1280,4,0)),"",(VLOOKUP(B49,'KAYIT LİSTESİ'!$B$4:$H$1280,4,0))) -> 1994-08-08 | E49: =IF(ISERROR(VLOOKUP(B49,'KAYIT LİSTESİ'!$B$4:$H$1280,5,0)),"",(VLOOKUP(B49,'KAYIT LİSTESİ'!$B$4:$H$1280,5,0))) -> TOLGA YILMAZ | F49: =IF(ISERROR(VLOOKUP(B49,'KAYIT LİSTESİ'!$B$4:$H$1280,6,0)),"",(VLOOKUP(B49,'KAYIT LİSTESİ'!$B$4:$H$1280,6,0))) -> SAMSUN | J49: 2 | K49: YÜKSEK-2 | L49: =IF(ISERROR(VLOOKUP(K49,'KAYIT LİSTESİ'!$B$4:$H$1280,2,0)),"",(VLOOKUP(K49,'KAYIT LİSTESİ'!$B$4:$H$1280,2,0))) ->  | M49: =IF(ISERROR(VLOOKUP(K49,'KAYIT LİSTESİ'!$B$4:$H$1280,4,0)),"",(VLOOKUP(K49,'KAYIT LİSTESİ'!$B$4:$H$1280,4,0))) ->  | N49: =IF(ISERROR(VLOOKUP(K49,'KAYIT LİSTESİ'!$B$4:$H$1280,5,0)),"",(VLOOKUP(K49,'KAYIT LİSTESİ'!$B$4:$H$1280,5,0))) ->  | O49: =IF(ISERROR(VLOOKUP(K49,'KAYIT LİSTESİ'!$B$4:$H$1280,6,0)),"",(VLOOKUP(K49,'KAYIT LİSTESİ'!$B$4:$H$1280,6,0))) -> 
A50: 3 | B50: 110M.ENG-1-3 | C50: =IF(ISERROR(VLOOKUP(B50,'KAYIT LİSTESİ'!$B$4:$H$1280,2,0)),"",(VLOOKUP(B50,'KAYIT LİSTESİ'!$B$4:$H$1280,2,0))) ->  | D50: =IF(ISERROR(VLOOKUP(B50,'KAYIT LİSTESİ'!$B$4:$H$1280,4,0)),"",(VLOOKUP(B50,'KAYIT LİSTESİ'!$B$4:$H$1280,4,0))) ->  | E50: =IF(ISERROR(VLOOKUP(B50,'KAYIT LİSTESİ'!$B$4:$H$1280,5,0)),"",(VLOOKUP(B50,'KAYIT LİSTESİ'!$B$4:$H$1280,5,0))) ->  | F50: =IF(ISERROR(VLOOKUP(B50,'KAYIT LİSTESİ'!$B$4:$H$1280,6,0)),"",(VLOOKUP(B50,'KAYIT LİSTESİ'!$B$4:$H$1280,6,0))) ->  | J50: 3 | K50: YÜKSEK-3 | L50: =IF(ISERROR(VLOOKUP(K50,'KAYIT LİSTESİ'!$B$4:$H$1280,2,0)),"",(VLOOKUP(K50,'KAYIT LİSTESİ'!$B$4:$H$1280,2,0))) ->  | M50: =IF(ISERROR(VLOOKUP(K50,'KAYIT LİSTESİ'!$B$4:$H$1280,4,0)),"",(VLOOKUP(K50,'KAYIT LİSTESİ'!$B$4:$H$1280,4,0))) ->  | N50: =IF(ISERROR(VLOOKUP(K50,'KAYIT LİSTESİ'!$B$4:$H$1280,5,0)),"",(VLOOKUP(K50,'KAYIT LİSTESİ'!$B$4:$H$1280,5,0))) ->  | O50: =IF(ISERROR(VLOOKUP(K50,'KAYIT LİSTESİ'!$B$4:$H$1280,6,0)),"",(VLOOKUP(K50,'KAYIT LİSTESİ'!$B$4:$H$1280,6,0))) -> 
A51: 4 | B51: 110M.ENG-1-4 | C51: =IF(ISERROR(VLOOKUP(B51,'KAYIT LİSTESİ'!$B$4:$H$1280,2,0)),"",(VLOOKUP(B51,'KAYIT LİSTESİ'!$B$4:$H$1280,2,0))) ->  | D51: =IF(ISERROR(VLOOKUP(B51,'KAYIT LİSTESİ'!$B$4:$H$1280,4,0)),"",(VLOOKUP(B51,'KAYIT LİSTESİ'!$B$4:$H$1280,4,0))) ->  | E51: =IF(ISERROR(VLOOKUP(B51,'KAYIT LİSTESİ'!$B$4:$H$1280,5,0)),"",(VLOOKUP(B51,'KAYIT LİSTESİ'!$B$4:$H$1280,5,0))) ->  | F51: =IF(ISERROR(VLOOKUP(B51,'KAYIT LİSTESİ'!$B$4:$H$1280,6,0)),"",(VLOOKUP(B51,'KAYIT LİSTESİ'!$B$4:$H$1280,6,0))) ->  | J51: 4 | K51: YÜKSEK-4 | L51: =IF(ISERROR(VLOOKUP(K51,'KAYIT LİSTESİ'!$B$4:$H$1280,2,0)),"",(VLOOKUP(K51,'KAYIT LİSTESİ'!$B$4:$H$1280,2,0))) ->  | M51: =IF(ISERROR(VLOOKUP(K51,'KAYIT LİSTESİ'!$B$4:$H$1280,4,0)),"",(VLOOKUP(K51,'KAYIT LİSTESİ'!$B$4:$H$1280,4,0))) ->  | N51: =IF(ISERROR(VLOOKUP(K51,'KAYIT LİSTESİ'!$B$4:$H$1280,5,0)),"",(VLOOKUP(K51,'KAYIT LİSTESİ'!$B$4:$H$1280,5,0))) ->  | O51: =IF(ISERROR(VLOOKUP(K51,'KAYIT LİSTESİ'!$B$4:$H$1280,6,0)),"",(VLOOKUP(K51,'KAYIT LİSTESİ'!$B$4:$H$1280,6,0))) -> 
A52: 5 | B52: 110M.ENG-1-5 | C52: =IF(ISERROR(VLOOKUP(B52,'KAYIT LİSTESİ'!$B$4:$H$1280,2,0)),"",(VLOOKUP(B52,'KAYIT LİSTESİ'!$B$4:$H$1280,2,0))) ->  | D52: =IF(ISERROR(VLOOKUP(B52,'KAYIT LİSTESİ'!$B$4:$H$1280,4,0)),"",(VLOOKUP(B52,'KAYIT LİSTESİ'!$B$4:$H$1280,4,0))) ->  | E52: =IF(ISERROR(VLOOKUP(B52,'KAYIT LİSTESİ'!$B$4:$H$1280,5,0)),"",(VLOOKUP(B52,'KAYIT LİSTESİ'!$B$4:$H$1280,5,0))) ->  | F52: =IF(ISERROR(VLOOKUP(B52,'KAYIT LİSTESİ'!$B$4:$H$1280,6,0)),"",(VLOOKUP(B52,'KAYIT LİSTESİ'!$B$4:$H$1280,6,0))) ->  | J52: 5 | K52: YÜKSEK-5 | L52: =IF(ISERROR(VLOOKUP(K52,'KAYIT LİSTESİ'!$B$4:$H$1280,2,0)),"",(VLOOKUP(K52,'KAYIT LİSTESİ'!$B$4:$H$1280,2,0))) ->  | M52: =IF(ISERROR(VLOOKUP(K52,'KAYIT LİSTESİ'!$B$4:$H$1280,4,0)),"",(VLOOKUP(K52,'KAYIT LİSTESİ'!$B$4:$H$1280,4,0))) ->  | N52: =IF(ISERROR(VLOOKUP(K52,'KAYIT LİSTESİ'!$B$4:$H$1280,5,0)),"",(VLOOKUP(K52,'KAYIT LİSTESİ'!$B$4:$H$1280,5,0))) ->  | O52: =IF(ISERROR(VLOOKUP(K52,'KAYIT LİSTESİ'!$B$4:$H$1280,6,0)),"",(VLOOKUP(K52,'KAYIT LİSTESİ'!$B$4:$H$1280,6,0))) -> 
A53: 6 | B53: 110M.ENG-1-6 | C53: =IF(ISERROR(VLOOKUP(B53,'KAYIT LİSTESİ'!$B$4:$H$1280,2,0)),"",(VLOOKUP(B53,'KAYIT LİSTESİ'!$B$4:$H$1280,2,0))) ->  | D53: =IF(ISERROR(VLOOKUP(B53,'KAYIT LİSTESİ'!$B$4:$H$1280,4,0)),"",(VLOOKUP(B53,'KAYIT LİSTESİ'!$B$4:$H$1280,4,0))) ->  | E53: =IF(ISERROR(VLOOKUP(B53,'KAYIT LİSTESİ'!$B$4:$H$1280,5,0)),"",(VLOOKUP(B53,'KAYIT LİSTESİ'!$B$4:$H$1280,5,0))) ->  | F53: =IF(ISERROR(VLOOKUP(B53,'KAYIT LİSTESİ'!$B$4:$H$1280,6,0)),"",(VLOOKUP(B53,'KAYIT LİSTESİ'!$B$4:$H$1280,6,0))) ->  | J53: 6 | K53: YÜKSEK-6 | L53: =IF(ISERROR(VLOOKUP(K53,'KAYIT LİSTESİ'!$B$4:$H$1280,2,0)),"",(VLOOKUP(K53,'KAYIT LİSTESİ'!$B$4:$H$1280,2,0))) ->  | M53: =IF(ISERROR(VLOOKUP(K53,'KAYIT LİSTESİ'!$B$4:$H$1280,4,0)),"",(VLOOKUP(K53,'KAYIT LİSTESİ'!$B$4:$H$1280,4,0))) ->  | N53: =IF(ISERROR(VLOOKUP(K53,'KAYIT LİSTESİ'!$B$4:$H$1280,5,0)),"",(VLOOKUP(K53,'KAYIT LİSTESİ'!$B$4:$H$1280,5,0))) ->  | O53: =IF(ISERROR(VLOOKUP(K53,'KAYIT LİSTESİ'!$B$4:$H$1280,6,0)),"",(VLOOKUP(K53,'KAYIT LİSTESİ'!$B$4:$H$1280,6,0))) -> 
A54: 7 | B54: 110M.ENG-1-7 | C54: =IF(ISERROR(VLOOKUP(B54,'KAYIT LİSTESİ'!$B$4:$H$1280,2,0)),"",(VLOOKUP(B54,'KAYIT LİSTESİ'!$B$4:$H$1280,2,0))) ->  | D54: =IF(ISERROR(VLOOKUP(B54,'KAYIT LİSTESİ'!$B$4:$H$1280,4,0)),"",(VLOOKUP(B54,'KAYIT LİSTESİ'!$B$4:$H$1280,4,0))) ->  | E54: =IF(ISERROR(VLOOKUP(B54,'KAYIT LİSTESİ'!$B$4:$H$1280,5,0)),"",(VLOOKUP(B54,'KAYIT LİSTESİ'!$B$4:$H$1280,5,0))) ->  | F54: =IF(ISERROR(VLOOKUP(B54,'KAYIT LİSTESİ'!$B$4:$H$1280,6,0)),"",(VLOOKUP(B54,'KAYIT LİSTESİ'!$B$4:$H$1280,6,0))) ->  | J54: 7 | K54: YÜKSEK-7 | L54: =IF(ISERROR(VLOOKUP(K54,'KAYIT LİSTESİ'!$B$4:$H$1280,2,0)),"",(VLOOKUP(K54,'KAYIT LİSTESİ'!$B$4:$H$1280,2,0))) ->  | M54: =IF(ISERROR(VLOOKUP(K54,'KAYIT LİSTESİ'!$B$4:$H$1280,4,0)),"",(VLOOKUP(K54,'KAYIT LİSTESİ'!$B$4:$H$1280,4,0))) ->  | N54: =IF(ISERROR(VLOOKUP(K54,'KAYIT LİSTESİ'!$B$4:$H$1280,5,0)),"",(VLOOKUP(K54,'KAYIT LİSTESİ'!$B$4:$H$1280,5,0))) ->  | O54: =IF(ISERROR(VLOOKUP(K54,'KAYIT LİSTESİ'!$B$4:$H$1280,6,0)),"",(VLOOKUP(K54,'KAYIT LİSTESİ'!$B$4:$H$1280,6,0))) -> 
A55: 8 | B55: 110M.ENG-1-8 | C55: =IF(ISERROR(VLOOKUP(B55,'KAYIT LİSTESİ'!$B$4:$H$1280,2,0)),"",(VLOOKUP(B55,'KAYIT LİSTESİ'!$B$4:$H$1280,2,0))) ->  | D55: =IF(ISERROR(VLOOKUP(B55,'KAYIT LİSTESİ'!$B$4:$H$1280,4,0)),"",(VLOOKUP(B55,'KAYIT LİSTESİ'!$B$4:$H$1280,4,0))) ->  | E55: =IF(ISERROR(VLOOKUP(B55,'KAYIT LİSTESİ'!$B$4:$H$1280,5,0)),"",(VLOOKUP(B55,'KAYIT LİSTESİ'!$B$4:$H$1280,5,0))) ->  | F55: =IF(ISERROR(VLOOKUP(B55,'KAYIT LİSTESİ'!$B$4:$H$1280,6,0)),"",(VLOOKUP(B55,'KAYIT LİSTESİ'!$B$4:$H$1280,6,0))) ->  | J55: 8 | K55: YÜKSEK-8 | L55: =IF(ISERROR(VLOOKUP(K55,'KAYIT LİSTESİ'!$B$4:$H$1280,2,0)),"",(VLOOKUP(K55,'KAYIT LİSTESİ'!$B$4:$H$1280,2,0))) ->  | M55: =IF(ISERROR(VLOOKUP(K55,'KAYIT LİSTESİ'!$B$4:$H$1280,4,0)),"",(VLOOKUP(K55,'KAYIT LİSTESİ'!$B$4:$H$1280,4,0))) ->  | N55: =IF(ISERROR(VLOOKUP(K55,'KAYIT LİSTESİ'!$B$4:$H$1280,5,0)),"",(VLOOKUP(K55,'KAYIT LİSTESİ'!$B$4:$H$1280,5,0))) ->  | O55: =IF(ISERROR(VLOOKUP(K55,'KAYIT LİSTESİ'!$B$4:$H$1280,6,0)),"",(VLOOKUP(K55,'KAYIT LİSTESİ'!$B$4:$H$1280,6,0))) -> 
A56: 2. SERİ | J56: 9 | K56: YÜKSEK-9 | L56: =IF(ISERROR(VLOOKUP(K56,'KAYIT LİSTESİ'!$B$4:$H$1280,2,0)),"",(VLOOKUP(K56,'KAYIT LİSTESİ'!$B$4:$H$1280,2,0))) ->  | M56: =IF(ISERROR(VLOOKUP(K56,'KAYIT LİSTESİ'!$B$4:$H$1280,4,0)),"",(VLOOKUP(K56,'KAYIT LİSTESİ'!$B$4:$H$1280,4,0))) ->  | N56: =IF(ISERROR(VLOOKUP(K56,'KAYIT LİSTESİ'!$B$4:$H$1280,5,0)),"",(VLOOKUP(K56,'KAYIT LİSTESİ'!$B$4:$H$1280,5,0))) ->  | O56: =IF(ISERROR(VLOOKUP(K56,'KAYIT LİSTESİ'!$B$4:$H$1280,6,0)),"",(VLOOKUP(K56,'KAYIT LİSTESİ'!$B$4:$H$1280,6,0))) -> 
A57: Sıra No | B57: Formül | C57: Göğüs No | D57: Doğum Tarihi | E57: Adı ve Soyadı | F57: Okulu | G57: Start Kontrol | J57: 10 | K57: YÜKSEK-10 | L57: =IF(ISERROR(VLOOKUP(K57,'KAYIT LİSTESİ'!$B$4:$H$1280,2,0)),"",(VLOOKUP(K57,'KAYIT LİSTESİ'!$B$4:$H$1280,2,0))) ->  | M57: =IF(ISERROR(VLOOKUP(K57,'KAYIT LİSTESİ'!$B$4:$H$1280,4,0)),"",(VLOOKUP(K57,'KAYIT LİSTESİ'!$B$4:$H$1280,4,0))) ->  | N57: =IF(ISERROR(VLOOKUP(K57,'KAYIT LİSTESİ'!$B$4:$H$1280,5,0)),"",(VLOOKUP(K57,'KAYIT LİSTESİ'!$B$4:$H$1280,5,0))) ->  | O57: =IF(ISERROR(VLOOKUP(K57,'KAYIT LİSTESİ'!$B$4:$H$1280,6,0)),"",(VLOOKUP(K57,'KAYIT LİSTESİ'!$B$4:$H$1280,6,0))) -> 
A58: 1 | B58: 110M.ENG-2-1 | C58: =IF(ISERROR(VLOOKUP(B58,'KAYIT LİSTESİ'!$B$4:$H$1280,2,0)),"",(VLOOKUP(B58,'KAYIT LİSTESİ'!$B$4:$H$1280,2,0))) ->  | D58: =IF(ISERROR(VLOOKUP(B58,'KAYIT LİSTESİ'!$B$4:$H$1280,4,0)),"",(VLOOKUP(B58,'KAYIT LİSTESİ'!$B$4:$H$1280,4,0))) ->  | E58: =IF(ISERROR(VLOOKUP(B58,'KAYIT LİSTESİ'!$B$4:$H$1280,5,0)),"",(VLOOKUP(B58,'KAYIT LİSTESİ'!$B$4:$H$1280,5,0))) ->  | F58: =IF(ISERROR(VLOOKUP(B58,'KAYIT LİSTESİ'!$B$4:$H$1280,6,0)),"",(VLOOKUP(B58,'KAYIT LİSTESİ'!$B$4:$H$1280,6,0))) ->  | J58: 11 | K58: YÜKSEK-11 | L58: =IF(ISERROR(VLOOKUP(K58,'KAYIT LİSTESİ'!$B$4:$H$1280,2,0)),"",(VLOOKUP(K58,'KAYIT LİSTESİ'!$B$4:$H$1280,2,0))) ->  | M58: =IF(ISERROR(VLOOKUP(K58,'KAYIT LİSTESİ'!$B$4:$H$1280,4,0)),"",(VLOOKUP(K58,'KAYIT LİSTESİ'!$B$4:$H$1280,4,0))) ->  | N58: =IF(ISERROR(VLOOKUP(K58,'KAYIT LİSTESİ'!$B$4:$H$1280,5,0)),"",(VLOOKUP(K58,'KAYIT LİSTESİ'!$B$4:$H$1280,5,0))) ->  | O58: =IF(ISERROR(VLOOKUP(K58,'KAYIT LİSTESİ'!$B$4:$H$1280,6,0)),"",(VLOOKUP(K58,'KAYIT LİSTESİ'!$B$4:$H$1280,6,0))) -> 
A59: 2 | B59: 110M.ENG-2-2 | C59: =IF(ISERROR(VLOOKUP(B59,'KAYIT LİSTESİ'!$B$4:$H$1280,2,0)),"",(VLOOKUP(B59,'KAYIT LİSTESİ'!$B$4:$H$1280,2,0))) ->  | D59: =IF(ISERROR(VLOOKUP(B59,'KAYIT LİSTESİ'!$B$4:$H$1280,4,0)),"",(VLOOKUP(B59,'KAYIT LİSTESİ'!$B$4:$H$1280,4,0))) ->  | E59: =IF(ISERROR(VLOOKUP(B59,'KAYIT LİSTESİ'!$B$4:$H$1280,5,0)),"",(VLOOKUP(B59,'KAYIT LİSTESİ'!$B$4:$H$1280,5,0))) ->  | F59: =IF(ISERROR(VLOOKUP(B59,'KAYIT LİSTESİ'!$B$4:$H$1280,6,0)),"",(VLOOKUP(B59,'KAYIT LİSTESİ'!$B$4:$H$1280,6,0))) ->  | J59: 12 | K59: YÜKSEK-12 | L59: =IF(ISERROR(VLOOKUP(K59,'KAYIT LİSTESİ'!$B$4:$H$1280,2,0)),"",(VLOOKUP(K59,'KAYIT LİSTESİ'!$B$4:$H$1280,2,0))) ->  | M59: =IF(ISERROR(VLOOKUP(K59,'KAYIT LİSTESİ'!$B$4:$H$1280,4,0)),"",(VLOOKUP(K59,'KAYIT LİSTESİ'!$B$4:$H$1280,4,0))) ->  | N59: =IF(ISERROR(VLOOKUP(K59,'KAYIT LİSTESİ'!$B$4:$H$1280,5,0)),"",(VLOOKUP(K59,'KAYIT LİSTESİ'!$B$4:$H$1280,5,0))) ->  | O59: =IF(ISERROR(VLOOKUP(K59,'KAYIT LİSTESİ'!$B$4:$H$1280,6,0)),"",(VLOOKUP(K59,'KAYIT LİSTESİ'!$B$4:$H$1280,6,0))) -> 
A60: 3 | B60: 110M.ENG-2-3 | C60: =IF(ISERROR(VLOOKUP(B60,'KAYIT LİSTESİ'!$B$4:$H$1280,2,0)),"",(VLOOKUP(B60,'KAYIT LİSTESİ'!$B$4:$H$1280,2,0))) ->  | D60: =IF(ISERROR(VLOOKUP(B60,'KAYIT LİSTESİ'!$B$4:$H$1280,4,0)),"",(VLOOKUP(B60,'KAYIT LİSTESİ'!$B$4:$H$1280,4,0))) ->  | E60: =IF(ISERROR(VLOOKUP(B60,'KAYIT LİSTESİ'!$B$4:$H$1280,5,0)),"",(VLOOKUP(B60,'KAYIT LİSTESİ'!$B$4:$H$1280,5,0))) ->  | F60: =IF(ISERROR(VLOOKUP(B60,'KAYIT LİSTESİ'!$B$4:$H$1280,6,0)),"",(VLOOKUP(B60,'KAYIT LİSTESİ'!$B$4:$H$1280,6,0))) ->  | J60: 13 | K60: YÜKSEK-13 | L60: =IF(ISERROR(VLOOKUP(K60,'KAYIT LİSTESİ'!$B$4:$H$1280,2,0)),"",(VLOOKUP(K60,'KAYIT LİSTESİ'!$B$4:$H$1280,2,0))) ->  | M60: =IF(ISERROR(VLOOKUP(K60,'KAYIT LİSTESİ'!$B$4:$H$1280,4,0)),"",(VLOOKUP(K60,'KAYIT LİSTESİ'!$B$4:$H$1280,4,0))) ->  | N60: =IF(ISERROR(VLOOKUP(K60,'KAYIT LİSTESİ'!$B$4:$H$1280,5,0)),"",(VLOOKUP(K60,'KAYIT LİSTESİ'!$B$4:$H$1280,5,0))) ->  | O60: =IF(ISERROR(VLOOKUP(K60,'KAYIT LİSTESİ'!$B$4:$H$1280,6,0)),"",(VLOOKUP(K60,'KAYIT LİSTESİ'!$B$4:$H$1280,6,0))) -> 
A61: 4 | B61: 110M.ENG-2-4 | C61: =IF(ISERROR(VLOOKUP(B61,'KAYIT LİSTESİ'!$B$4:$H$1280,2,0)),"",(VLOOKUP(B61,'KAYIT LİSTESİ'!$B$4:$H$1280,2,0))) ->  | D61: =IF(ISERROR(VLOOKUP(B61,'KAYIT LİSTESİ'!$B$4:$H$1280,4,0)),"",(VLOOKUP(B61,'KAYIT LİSTESİ'!$B$4:$H$1280,4,0))) ->  | E61: =IF(ISERROR(VLOOKUP(B61,'KAYIT LİSTESİ'!$B$4:$H$1280,5,0)),"",(VLOOKUP(B61,'KAYIT LİSTESİ'!$B$4:$H$1280,5,0))) ->  | F61: =IF(ISERROR(VLOOKUP(B61,'KAYIT LİSTESİ'!$B$4:$H$1280,6,0)),"",(VLOOKUP(B61,'KAYIT LİSTESİ'!$B$4:$H$1280,6,0))) ->  | J61: 14 | K61: YÜKSEK-14 | L61: =IF(ISERROR(VLOOKUP(K61,'KAYIT LİSTESİ'!$B$4:$H$1280,2,0)),"",(VLOOKUP(K61,'KAYIT LİSTESİ'!$B$4:$H$1280,2,0))) ->  | M61: =IF(ISERROR(VLOOKUP(K61,'KAYIT LİSTESİ'!$B$4:$H$1280,4,0)),"",(VLOOKUP(K61,'KAYIT LİSTESİ'!$B$4:$H$1280,4,0))) ->  | N61: =IF(ISERROR(VLOOKUP(K61,'KAYIT LİSTESİ'!$B$4:$H$1280,5,0)),"",(VLOOKUP(K61,'KAYIT LİSTESİ'!$B$4:$H$1280,5,0))) ->  | O61: =IF(ISERROR(VLOOKUP(K61,'KAYIT LİSTESİ'!$B$4:$H$1280,6,0)),"",(VLOOKUP(K61,'KAYIT LİSTESİ'!$B$4:$H$1280,6,0))) -> 
A62: 5 | B62: 110M.ENG-2-5 | C62: =IF(ISERROR(VLOOKUP(B62,'KAYIT LİSTESİ'!$B$4:$H$1280,2,0)),"",(VLOOKUP(B62,'KAYIT LİSTESİ'!$B$4:$H$1280,2,0))) ->  | D62: =IF(ISERROR(VLOOKUP(B62,'KAYIT LİSTESİ'!$B$4:$H$1280,4,0)),"",(VLOOKUP(B62,'KAYIT LİSTESİ'!$B$4:$H$1280,4,0))) ->  | E62: =IF(ISERROR(VLOOKUP(B62,'KAYIT LİSTESİ'!$B$4:$H$1280,5,0)),"",(VLOOKUP(B62,'KAYIT LİSTESİ'!$B$4:$H$1280,5,0))) ->  | F62: =IF(ISERROR(VLOOKUP(B62,'KAYIT LİSTESİ'!$B$4:$H$1280,6,0)),"",(VLOOKUP(B62,'KAYIT LİSTESİ'!$B$4:$H$1280,6,0))) ->  | J62: 15 | K62: YÜKSEK-15 | L62: =IF(ISERROR(VLOOKUP(K62,'KAYIT LİSTESİ'!$B$4:$H$1280,2,0)),"",(VLOOKUP(K62,'KAYIT LİSTESİ'!$B$4:$H$1280,2,0))) ->  | M62: =IF(ISERROR(VLOOKUP(K62,'KAYIT LİSTESİ'!$B$4:$H$1280,4,0)),"",(VLOOKUP(K62,'KAYIT LİSTESİ'!$B$4:$H$1280,4,0))) ->  | N62: =IF(ISERROR(VLOOKUP(K62,'KAYIT LİSTESİ'!$B$4:$H$1280,5,0)),"",(VLOOKUP(K62,'KAYIT LİSTESİ'!$B$4:$H$1280,5,0))) ->  | O62: =IF(ISERROR(VLOOKUP(K62,'KAYIT LİSTESİ'!$B$4:$H$1280,6,0)),"",(VLOOKUP(K62,'KAYIT LİSTESİ'!$B$4:$H$1280,6,0))) -> 
A63: 6 | B63: 110M.ENG-2-6 | C63: =IF(ISERROR(VLOOKUP(B63,'KAYIT LİSTESİ'!$B$4:$H$1280,2,0)),"",(VLOOKUP(B63,'KAYIT LİSTESİ'!$B$4:$H$1280,2,0))) ->  | D63: =IF(ISERROR(VLOOKUP(B63,'KAYIT LİSTESİ'!$B$4:$H$1280,4,0)),"",(VLOOKUP(B63,'KAYIT LİSTESİ'!$B$4:$H$1280,4,0))) ->  | E63: =IF(ISERROR(VLOOKUP(B63,'KAYIT LİSTESİ'!$B$4:$H$1280,5,0)),"",(VLOOKUP(B63,'KAYIT LİSTESİ'!$B$4:$H$1280,5,0))) ->  | F63: =IF(ISERROR(VLOOKUP(B63,'KAYIT LİSTESİ'!$B$4:$H$1280,6,0)),"",(VLOOKUP(B63,'KAYIT LİSTESİ'!$B$4:$H$1280,6,0))) ->  | J63: 16 | K63: YÜKSEK-16 | L63: =IF(ISERROR(VLOOKUP(K63,'KAYIT LİSTESİ'!$B$4:$H$1280,2,0)),"",(VLOOKUP(K63,'KAYIT LİSTESİ'!$B$4:$H$1280,2,0))) ->  | M63: =IF(ISERROR(VLOOKUP(K63,'KAYIT LİSTESİ'!$B$4:$H$1280,4,0)),"",(VLOOKUP(K63,'KAYIT LİSTESİ'!$B$4:$H$1280,4,0))) ->  | N63: =IF(ISERROR(VLOOKUP(K63,'KAYIT LİSTESİ'!$B$4:$H$1280,5,0)),"",(VLOOKUP(K63,'KAYIT LİSTESİ'!$B$4:$H$1280,5,0))) ->  | O63: =IF(ISERROR(VLOOKUP(K63,'KAYIT LİSTESİ'!$B$4:$H$1280,6,0)),"",(VLOOKUP(K63,'KAYIT LİSTESİ'!$B$4:$H$1280,6,0))) -> 
A64: 7 | B64: 110M.ENG-2-7 | C64: =IF(ISERROR(VLOOKUP(B64,'KAYIT LİSTESİ'!$B$4:$H$1280,2,0)),"",(VLOOKUP(B64,'KAYIT LİSTESİ'!$B$4:$H$1280,2,0))) ->  | D64: =IF(ISERROR(VLOOKUP(B64,'KAYIT LİSTESİ'!$B$4:$H$1280,4,0)),"",(VLOOKUP(B64,'KAYIT LİSTESİ'!$B$4:$H$1280,4,0))) ->  | E64: =IF(ISERROR(VLOOKUP(B64,'KAYIT LİSTESİ'!$B$4:$H$1280,5,0)),"",(VLOOKUP(B64,'KAYIT LİSTESİ'!$B$4:$H$1280,5,0))) ->  | F64: =IF(ISERROR(VLOOKUP(B64,'KAYIT LİSTESİ'!$B$4:$H$1280,6,0)),"",(VLOOKUP(B64,'KAYIT LİSTESİ'!$B$4:$H$1280,6,0))) ->  | J64: 17 | K64: YÜKSEK-17 | L64: =IF(ISERROR(VLOOKUP(K64,'KAYIT LİSTESİ'!$B$4:$H$1280,2,0)),"",(VLOOKUP(K64,'KAYIT LİSTESİ'!$B$4:$H$1280,2,0))) ->  | M64: =IF(ISERROR(VLOOKUP(K64,'KAYIT LİSTESİ'!$B$4:$H$1280,4,0)),"",(VLOOKUP(K64,'KAYIT LİSTESİ'!$B$4:$H$1280,4,0))) ->  | N64: =IF(ISERROR(VLOOKUP(K64,'KAYIT LİSTESİ'!$B$4:$H$1280,5,0)),"",(VLOOKUP(K64,'KAYIT LİSTESİ'!$B$4:$H$1280,5,0))) ->  | O64: =IF(ISERROR(VLOOKUP(K64,'KAYIT LİSTESİ'!$B$4:$H$1280,6,0)),"",(VLOOKUP(K64,'KAYIT LİSTESİ'!$B$4:$H$1280,6,0))) -> 
A65: 8 | B65: 110M.ENG-2-8 | C65: =IF(ISERROR(VLOOKUP(B65,'KAYIT LİSTESİ'!$B$4:$H$1280,2,0)),"",(VLOOKUP(B65,'KAYIT LİSTESİ'!$B$4:$H$1280,2,0))) ->  | D65: =IF(ISERROR(VLOOKUP(B65,'KAYIT LİSTESİ'!$B$4:$H$1280,4,0)),"",(VLOOKUP(B65,'KAYIT LİSTESİ'!$B$4:$H$1280,4,0))) ->  | E65: =IF(ISERROR(VLOOKUP(B65,'KAYIT LİSTESİ'!$B$4:$H$1280,5,0)),"",(VLOOKUP(B65,'KAYIT LİSTESİ'!$B$4:$H$1280,5,0))) ->  | F65: =IF(ISERROR(VLOOKUP(B65,'KAYIT LİSTESİ'!$B$4:$H$1280,6,0)),"",(VLOOKUP(B65,'KAYIT LİSTESİ'!$B$4:$H$1280,6,0))) ->  | J65: 18 | K65: YÜKSEK-18 | L65: =IF(ISERROR(VLOOKUP(K65,'KAYIT LİSTESİ'!$B$4:$H$1280,2,0)),"",(VLOOKUP(K65,'KAYIT LİSTESİ'!$B$4:$H$1280,2,0))) ->  | M65: =IF(ISERROR(VLOOKUP(K65,'KAYIT LİSTESİ'!$B$4:$H$1280,4,0)),"",(VLOOKUP(K65,'KAYIT LİSTESİ'!$B$4:$H$1280,4,0))) ->  | N65: =IF(ISERROR(VLOOKUP(K65,'KAYIT LİSTESİ'!$B$4:$H$1280,5,0)),"",(VLOOKUP(K65,'KAYIT LİSTESİ'!$B$4:$H$1280,5,0))) ->  | O65: =IF(ISERROR(VLOOKUP(K65,'KAYIT LİSTESİ'!$B$4:$H$1280,6,0)),"",(VLOOKUP(K65,'KAYIT LİSTESİ'!$B$4:$H$1280,6,0))) -> 
A66: 3. SERİ | J66: 19 | K66: YÜKSEK-19 | L66: =IF(ISERROR(VLOOKUP(K66,'KAYIT LİSTESİ'!$B$4:$H$1280,2,0)),"",(VLOOKUP(K66,'KAYIT LİSTESİ'!$B$4:$H$1280,2,0))) ->  | M66: =IF(ISERROR(VLOOKUP(K66,'KAYIT LİSTESİ'!$B$4:$H$1280,4,0)),"",(VLOOKUP(K66,'KAYIT LİSTESİ'!$B$4:$H$1280,4,0))) ->  | N66: =IF(ISERROR(VLOOKUP(K66,'KAYIT LİSTESİ'!$B$4:$H$1280,5,0)),"",(VLOOKUP(K66,'KAYIT LİSTESİ'!$B$4:$H$1280,5,0))) ->  | O66: =IF(ISERROR(VLOOKUP(K66,'KAYIT LİSTESİ'!$B$4:$H$1280,6,0)),"",(VLOOKUP(K66,'KAYIT LİSTESİ'!$B$4:$H$1280,6,0))) -> 
A67: Sıra No | B67: Formül | C67: Göğüs No | D67: Doğum Tarihi | E67: Adı ve Soyadı | F67: Okulu | G67: Start Kontrol | J67: 20 | K67: YÜKSEK-20 | L67: =IF(ISERROR(VLOOKUP(K67,'KAYIT LİSTESİ'!$B$4:$H$1280,2,0)),"",(VLOOKUP(K67,'KAYIT LİSTESİ'!$B$4:$H$1280,2,0))) ->  | M67: =IF(ISERROR(VLOOKUP(K67,'KAYIT LİSTESİ'!$B$4:$H$1280,4,0)),"",(VLOOKUP(K67,'KAYIT LİSTESİ'!$B$4:$H$1280,4,0))) ->  | N67: =IF(ISERROR(VLOOKUP(K67,'KAYIT LİSTESİ'!$B$4:$H$1280,5,0)),"",(VLOOKUP(K67,'KAYIT LİSTESİ'!$B$4:$H$1280,5,0))) ->  | O67: =IF(ISERROR(VLOOKUP(K67,'KAYIT LİSTESİ'!$B$4:$H$1280,6,0)),"",(VLOOKUP(K67,'KAYIT LİSTESİ'!$B$4:$H$1280,6,0))) -> 
A68: 1 | B68: 110M.ENG-3-1 | C68: =IF(ISERROR(VLOOKUP(B68,'KAYIT LİSTESİ'!$B$4:$H$1280,2,0)),"",(VLOOKUP(B68,'KAYIT LİSTESİ'!$B$4:$H$1280,2,0))) ->  | D68: =IF(ISERROR(VLOOKUP(B68,'KAYIT LİSTESİ'!$B$4:$H$1280,4,0)),"",(VLOOKUP(B68,'KAYIT LİSTESİ'!$B$4:$H$1280,4,0))) ->  | E68: =IF(ISERROR(VLOOKUP(B68,'KAYIT LİSTESİ'!$B$4:$H$1280,5,0)),"",(VLOOKUP(B68,'KAYIT LİSTESİ'!$B$4:$H$1280,5,0))) ->  | F68: =IF(ISERROR(VLOOKUP(B68,'KAYIT LİSTESİ'!$B$4:$H$1280,6,0)),"",(VLOOKUP(B68,'KAYIT LİSTESİ'!$B$4:$H$1280,6,0))) ->  | J68: 21 | K68: YÜKSEK-21 | L68: =IF(ISERROR(VLOOKUP(K68,'KAYIT LİSTESİ'!$B$4:$H$1280,2,0)),"",(VLOOKUP(K68,'KAYIT LİSTESİ'!$B$4:$H$1280,2,0))) ->  | M68: =IF(ISERROR(VLOOKUP(K68,'KAYIT LİSTESİ'!$B$4:$H$1280,4,0)),"",(VLOOKUP(K68,'KAYIT LİSTESİ'!$B$4:$H$1280,4,0))) ->  | N68: =IF(ISERROR(VLOOKUP(K68,'KAYIT LİSTESİ'!$B$4:$H$1280,5,0)),"",(VLOOKUP(K68,'KAYIT LİSTESİ'!$B$4:$H$1280,5,0))) ->  | O68: =IF(ISERROR(VLOOKUP(K68,'KAYIT LİSTESİ'!$B$4:$H$1280,6,0)),"",(VLOOKUP(K68,'KAYIT LİSTESİ'!$B$4:$H$1280,6,0))) -> 
A69: 2 | B69: 110M.ENG-3-2 | C69: =IF(ISERROR(VLOOKUP(B69,'KAYIT LİSTESİ'!$B$4:$H$1280,2,0)),"",(VLOOKUP(B69,'KAYIT LİSTESİ'!$B$4:$H$1280,2,0))) ->  | D69: =IF(ISERROR(VLOOKUP(B69,'KAYIT LİSTESİ'!$B$4:$H$1280,4,0)),"",(VLOOKUP(B69,'KAYIT LİSTESİ'!$B$4:$H$1280,4,0))) ->  | E69: =IF(ISERROR(VLOOKUP(B69,'KAYIT LİSTESİ'!$B$4:$H$1280,5,0)),"",(VLOOKUP(B69,'KAYIT LİSTESİ'!$B$4:$H$1280,5,0))) ->  | F69: =IF(ISERROR(VLOOKUP(B69,'KAYIT LİSTESİ'!$B$4:$H$1280,6,0)),"",(VLOOKUP(B69,'KAYIT LİSTESİ'!$B$4:$H$1280,6,0))) ->  | J69: 22 | K69: YÜKSEK-22 | L69: =IF(ISERROR(VLOOKUP(K69,'KAYIT LİSTESİ'!$B$4:$H$1280,2,0)),"",(VLOOKUP(K69,'KAYIT LİSTESİ'!$B$4:$H$1280,2,0))) ->  | M69: =IF(ISERROR(VLOOKUP(K69,'KAYIT LİSTESİ'!$B$4:$H$1280,4,0)),"",(VLOOKUP(K69,'KAYIT LİSTESİ'!$B$4:$H$1280,4,0))) ->  | N69: =IF(ISERROR(VLOOKUP(K69,'KAYIT LİSTESİ'!$B$4:$H$1280,5,0)),"",(VLOOKUP(K69,'KAYIT LİSTESİ'!$B$4:$H$1280,5,0))) ->  | O69: =IF(ISERROR(VLOOKUP(K69,'KAYIT LİSTESİ'!$B$4:$H$1280,6,0)),"",(VLOOKUP(K69,'KAYIT LİSTESİ'!$B$4:$H$1280,6,0))) -> 
A70: 3 | B70: 110M.ENG-3-3 | C70: =IF(ISERROR(VLOOKUP(B70,'KAYIT LİSTESİ'!$B$4:$H$1280,2,0)),"",(VLOOKUP(B70,'KAYIT LİSTESİ'!$B$4:$H$1280,2,0))) ->  | D70: =IF(ISERROR(VLOOKUP(B70,'KAYIT LİSTESİ'!$B$4:$H$1280,4,0)),"",(VLOOKUP(B70,'KAYIT LİSTESİ'!$B$4:$H$1280,4,0))) ->  | E70: =IF(ISERROR(VLOOKUP(B70,'KAYIT LİSTESİ'!$B$4:$H$1280,5,0)),"",(VLOOKUP(B70,'KAYIT LİSTESİ'!$B$4:$H$1280,5,0))) ->  | F70: =IF(ISERROR(VLOOKUP(B70,'KAYIT LİSTESİ'!$B$4:$H$1280,6,0)),"",(VLOOKUP(B70,'KAYIT LİSTESİ'!$B$4:$H$1280,6,0))) ->  | J70: 23 | K70: YÜKSEK-23 | L70: =IF(ISERROR(VLOOKUP(K70,'KAYIT LİSTESİ'!$B$4:$H$1280,2,0)),"",(VLOOKUP(K70,'KAYIT LİSTESİ'!$B$4:$H$1280,2,0))) ->  | M70: =IF(ISERROR(VLOOKUP(K70,'KAYIT LİSTESİ'!$B$4:$H$1280,4,0)),"",(VLOOKUP(K70,'KAYIT LİSTESİ'!$B$4:$H$1280,4,0))) ->  | N70: =IF(ISERROR(VLOOKUP(K70,'KAYIT LİSTESİ'!$B$4:$H$1280,5,0)),"",(VLOOKUP(K70,'KAYIT LİSTESİ'!$B$4:$H$1280,5,0))) ->  | O70: =IF(ISERROR(VLOOKUP(K70,'KAYIT LİSTESİ'!$B$4:$H$1280,6,0)),"",(VLOOKUP(K70,'KAYIT LİSTESİ'!$B$4:$H$1280,6,0))) -> 
A71: 4 | B71: 110M.ENG-3-4 | C71: =IF(ISERROR(VLOOKUP(B71,'KAYIT LİSTESİ'!$B$4:$H$1280,2,0)),"",(VLOOKUP(B71,'KAYIT LİSTESİ'!$B$4:$H$1280,2,0))) ->  | D71: =IF(ISERROR(VLOOKUP(B71,'KAYIT LİSTESİ'!$B$4:$H$1280,4,0)),"",(VLOOKUP(B71,'KAYIT LİSTESİ'!$B$4:$H$1280,4,0))) ->  | E71: =IF(ISERROR(VLOOKUP(B71,'KAYIT LİSTESİ'!$B$4:$H$1280,5,0)),"",(VLOOKUP(B71,'KAYIT LİSTESİ'!$B$4:$H$1280,5,0))) ->  | F71: =IF(ISERROR(VLOOKUP(B71,'KAYIT LİSTESİ'!$B$4:$H$1280,6,0)),"",(VLOOKUP(B71,'KAYIT LİSTESİ'!$B$4:$H$1280,6,0))) ->  | J71: 24 | K71: YÜKSEK-24 | L71: =IF(ISERROR(VLOOKUP(K71,'KAYIT LİSTESİ'!$B$4:$H$1280,2,0)),"",(VLOOKUP(K71,'KAYIT LİSTESİ'!$B$4:$H$1280,2,0))) ->  | M71: =IF(ISERROR(VLOOKUP(K71,'KAYIT LİSTESİ'!$B$4:$H$1280,4,0)),"",(VLOOKUP(K71,'KAYIT LİSTESİ'!$B$4:$H$1280,4,0))) ->  | N71: =IF(ISERROR(VLOOKUP(K71,'KAYIT LİSTESİ'!$B$4:$H$1280,5,0)),"",(VLOOKUP(K71,'KAYIT LİSTESİ'!$B$4:$H$1280,5,0))) ->  | O71: =IF(ISERROR(VLOOKUP(K71,'KAYIT LİSTESİ'!$B$4:$H$1280,6,0)),"",(VLOOKUP(K71,'KAYIT LİSTESİ'!$B$4:$H$1280,6,0))) -> 
A72: 5 | B72: 110M.ENG-3-5 | C72: =IF(ISERROR(VLOOKUP(B72,'KAYIT LİSTESİ'!$B$4:$H$1280,2,0)),"",(VLOOKUP(B72,'KAYIT LİSTESİ'!$B$4:$H$1280,2,0))) ->  | D72: =IF(ISERROR(VLOOKUP(B72,'KAYIT LİSTESİ'!$B$4:$H$1280,4,0)),"",(VLOOKUP(B72,'KAYIT LİSTESİ'!$B$4:$H$1280,4,0))) ->  | E72: =IF(ISERROR(VLOOKUP(B72,'KAYIT LİSTESİ'!$B$4:$H$1280,5,0)),"",(VLOOKUP(B72,'KAYIT LİSTESİ'!$B$4:$H$1280,5,0))) ->  | F72: =IF(ISERROR(VLOOKUP(B72,'KAYIT LİSTESİ'!$B$4:$H$1280,6,0)),"",(VLOOKUP(B72,'KAYIT LİSTESİ'!$B$4:$H$1280,6,0))) ->  | J72: 25 | K72: YÜKSEK-25 | L72: =IF(ISERROR(VLOOKUP(K72,'KAYIT LİSTESİ'!$B$4:$H$1280,2,0)),"",(VLOOKUP(K72,'KAYIT LİSTESİ'!$B$4:$H$1280,2,0))) ->  | M72: =IF(ISERROR(VLOOKUP(K72,'KAYIT LİSTESİ'!$B$4:$H$1280,4,0)),"",(VLOOKUP(K72,'KAYIT LİSTESİ'!$B$4:$H$1280,4,0))) ->  | N72: =IF(ISERROR(VLOOKUP(K72,'KAYIT LİSTESİ'!$B$4:$H$1280,5,0)),"",(VLOOKUP(K72,'KAYIT LİSTESİ'!$B$4:$H$1280,5,0))) ->  | O72: =IF(ISERROR(VLOOKUP(K72,'KAYIT LİSTESİ'!$B$4:$H$1280,6,0)),"",(VLOOKUP(K72,'KAYIT LİSTESİ'!$B$4:$H$1280,6,0))) -> 
A73: 6 | B73: 110M.ENG-3-6 | C73: =IF(ISERROR(VLOOKUP(B73,'KAYIT LİSTESİ'!$B$4:$H$1280,2,0)),"",(VLOOKUP(B73,'KAYIT LİSTESİ'!$B$4:$H$1280,2,0))) ->  | D73: =IF(ISERROR(VLOOKUP(B73,'KAYIT LİSTESİ'!$B$4:$H$1280,4,0)),"",(VLOOKUP(B73,'KAYIT LİSTESİ'!$B$4:$H$1280,4,0))) ->  | E73: =IF(ISERROR(VLOOKUP(B73,'KAYIT LİSTESİ'!$B$4:$H$1280,5,0)),"",(VLOOKUP(B73,'KAYIT LİSTESİ'!$B$4:$H$1280,5,0))) ->  | F73: =IF(ISERROR(VLOOKUP(B73,'KAYIT LİSTESİ'!$B$4:$H$1280,6,0)),"",(VLOOKUP(B73,'KAYIT LİSTESİ'!$B$4:$H$1280,6,0))) ->  | J73: GÜLLE ATMA
A74: 7 | B74: 110M.ENG-3-7 | C74: =IF(ISERROR(VLOOKUP(B74,'KAYIT LİSTESİ'!$B$4:$H$1280,2,0)),"",(VLOOKUP(B74,'KAYIT LİSTESİ'!$B$4:$H$1280,2,0))) ->  | D74: =IF(ISERROR(VLOOKUP(B74,'KAYIT LİSTESİ'!$B$4:$H$1280,4,0)),"",(VLOOKUP(B74,'KAYIT LİSTESİ'!$B$4:$H$1280,4,0))) ->  | E74: =IF(ISERROR(VLOOKUP(B74,'KAYIT LİSTESİ'!$B$4:$H$1280,5,0)),"",(VLOOKUP(B74,'KAYIT LİSTESİ'!$B$4:$H$1280,5,0))) ->  | F74: =IF(ISERROR(VLOOKUP(B74,'KAYIT LİSTESİ'!$B$4:$H$1280,6,0)),"",(VLOOKUP(B74,'KAYIT LİSTESİ'!$B$4:$H$1280,6,0))) ->  | J74: SIRA NO | L74: GÖĞÜS NO | M74: DOĞUM TARİHİ | N74: ADI VE SOYADI | O74: OKULU | P74: Start Kontrol
A75: 8 | B75: 110M.ENG-3-8 | C75: =IF(ISERROR(VLOOKUP(B75,'KAYIT LİSTESİ'!$B$4:$H$1280,2,0)),"",(VLOOKUP(B75,'KAYIT LİSTESİ'!$B$4:$H$1280,2,0))) ->  | D75: =IF(ISERROR(VLOOKUP(B75,'KAYIT LİSTESİ'!$B$4:$H$1280,4,0)),"",(VLOOKUP(B75,'KAYIT LİSTESİ'!$B$4:$H$1280,4,0))) ->  | E75: =IF(ISERROR(VLOOKUP(B75,'KAYIT LİSTESİ'!$B$4:$H$1280,5,0)),"",(VLOOKUP(B75,'KAYIT LİSTESİ'!$B$4:$H$1280,5,0))) ->  | F75: =IF(ISERROR(VLOOKUP(B75,'KAYIT LİSTESİ'!$B$4:$H$1280,6,0)),"",(VLOOKUP(B75,'KAYIT LİSTESİ'!$B$4:$H$1280,6,0))) -> 
A76: 4. SERİ | J76: 1 | K76: GÜLLE-1 | L76: =IF(ISERROR(VLOOKUP(K76,'KAYIT LİSTESİ'!$B$4:$H$1280,2,0)),"",(VLOOKUP(K76,'KAYIT LİSTESİ'!$B$4:$H$1280,2,0))) ->  | M76: =IF(ISERROR(VLOOKUP(K76,'KAYIT LİSTESİ'!$B$4:$H$1280,4,0)),"",(VLOOKUP(K76,'KAYIT LİSTESİ'!$B$4:$H$1280,4,0))) ->  | N76: =IF(ISERROR(VLOOKUP(K76,'KAYIT LİSTESİ'!$B$4:$H$1280,5,0)),"",(VLOOKUP(K76,'KAYIT LİSTESİ'!$B$4:$H$1280,5,0))) -> KATILIM YOKTUR | O76: =IF(ISERROR(VLOOKUP(K76,'KAYIT LİSTESİ'!$B$4:$H$1280,6,0)),"",(VLOOKUP(K76,'KAYIT LİSTESİ'!$B$4:$H$1280,6,0))) -> 0
A77: Sıra No | B77: Formül | C77: Göğüs No | D77: Doğum Tarihi | E77: Adı ve Soyadı | F77: Okulu | G77: Start Kontrol | J77: 2 | K77: GÜLLE-2 | L77: =IF(ISERROR(VLOOKUP(K77,'KAYIT LİSTESİ'!$B$4:$H$1280,2,0)),"",(VLOOKUP(K77,'KAYIT LİSTESİ'!$B$4:$H$1280,2,0))) ->  | M77: =IF(ISERROR(VLOOKUP(K77,'KAYIT LİSTESİ'!$B$4:$H$1280,4,0)),"",(VLOOKUP(K77,'KAYIT LİSTESİ'!$B$4:$H$1280,4,0))) ->  | N77: =IF(ISERROR(VLOOKUP(K77,'KAYIT LİSTESİ'!$B$4:$H$1280,5,0)),"",(VLOOKUP(K77,'KAYIT LİSTESİ'!$B$4:$H$1280,5,0))) ->  | O77: =IF(ISERROR(VLOOKUP(K77,'KAYIT LİSTESİ'!$B$4:$H$1280,6,0)),"",(VLOOKUP(K77,'KAYIT LİSTESİ'!$B$4:$H$1280,6,0))) -> 
A78: 1 | B78: 110M.ENG-4-1 | C78: =IF(ISERROR(VLOOKUP(B78,'KAYIT LİSTESİ'!$B$4:$H$1280,2,0)),"",(VLOOKUP(B78,'KAYIT LİSTESİ'!$B$4:$H$1280,2,0))) ->  | D78: =IF(ISERROR(VLOOKUP(B78,'KAYIT LİSTESİ'!$B$4:$H$1280,4,0)),"",(VLOOKUP(B78,'KAYIT LİSTESİ'!$B$4:$H$1280,4,0))) ->  | E78: =IF(ISERROR(VLOOKUP(B78,'KAYIT LİSTESİ'!$B$4:$H$1280,5,0)),"",(VLOOKUP(B78,'KAYIT LİSTESİ'!$B$4:$H$1280,5,0))) ->  | F78: =IF(ISERROR(VLOOKUP(B78,'KAYIT LİSTESİ'!$B$4:$H$1280,6,0)),"",(VLOOKUP(B78,'KAYIT LİSTESİ'!$B$4:$H$1280,6,0))) ->  | J78: 3 | K78: GÜLLE-3 | L78: =IF(ISERROR(VLOOKUP(K78,'KAYIT LİSTESİ'!$B$4:$H$1280,2,0)),"",(VLOOKUP(K78,'KAYIT LİSTESİ'!$B$4:$H$1280,2,0))) ->  | M78: =IF(ISERROR(VLOOKUP(K78,'KAYIT LİSTESİ'!$B$4:$H$1280,4,0)),"",(VLOOKUP(K78,'KAYIT LİSTESİ'!$B$4:$H$1280,4,0))) ->  | N78: =IF(ISERROR(VLOOKUP(K78,'KAYIT LİSTESİ'!$B$4:$H$1280,5,0)),"",(VLOOKUP(K78,'KAYIT LİSTESİ'!$B$4:$H$1280,5,0))) ->  | O78: =IF(ISERROR(VLOOKUP(K78,'KAYIT LİSTESİ'!$B$4:$H$1280,6,0)),"",(VLOOKUP(K78,'KAYIT LİSTESİ'!$B$4:$H$1280,6,0))) -> 
A79: 2 | B79: 110M.ENG-4-2 | C79: =IF(ISERROR(VLOOKUP(B79,'KAYIT LİSTESİ'!$B$4:$H$1280,2,0)),"",(VLOOKUP(B79,'KAYIT LİSTESİ'!$B$4:$H$1280,2,0))) ->  | D79: =IF(ISERROR(VLOOKUP(B79,'KAYIT LİSTESİ'!$B$4:$H$1280,4,0)),"",(VLOOKUP(B79,'KAYIT LİSTESİ'!$B$4:$H$1280,4,0))) ->  | E79: =IF(ISERROR(VLOOKUP(B79,'KAYIT LİSTESİ'!$B$4:$H$1280,5,0)),"",(VLOOKUP(B79,'KAYIT LİSTESİ'!$B$4:$H$1280,5,0))) ->  | F79: =IF(ISERROR(VLOOKUP(B79,'KAYIT LİSTESİ'!$B$4:$H$1280,6,0)),"",(VLOOKUP(B79,'KAYIT LİSTESİ'!$B$4:$H$1280,6,0))) ->  | J79: 4 | K79: GÜLLE-4 | L79: =IF(ISERROR(VLOOKUP(K79,'KAYIT LİSTESİ'!$B$4:$H$1280,2,0)),"",(VLOOKUP(K79,'KAYIT LİSTESİ'!$B$4:$H$1280,2,0))) ->  | M79: =IF(ISERROR(VLOOKUP(K79,'KAYIT LİSTESİ'!$B$4:$H$1280,4,0)),"",(VLOOKUP(K79,'KAYIT LİSTESİ'!$B$4:$H$1280,4,0))) ->  | N79: =IF(ISERROR(VLOOKUP(K79,'KAYIT LİSTESİ'!$B$4:$H$1280,5,0)),"",(VLOOKUP(K79,'KAYIT LİSTESİ'!$B$4:$H$1280,5,0))) ->  | O79: =IF(ISERROR(VLOOKUP(K79,'KAYIT LİSTESİ'!$B$4:$H$1280,6,0)),"",(VLOOKUP(K79,'KAYIT LİSTESİ'!$B$4:$H$1280,6,0))) -> 
A80: 3 | B80: 110M.ENG-4-3 | C80: =IF(ISERROR(VLOOKUP(B80,'KAYIT LİSTESİ'!$B$4:$H$1280,2,0)),"",(VLOOKUP(B80,'KAYIT LİSTESİ'!$B$4:$H$1280,2,0))) ->  | D80: =IF(ISERROR(VLOOKUP(B80,'KAYIT LİSTESİ'!$B$4:$H$1280,4,0)),"",(VLOOKUP(B80,'KAYIT LİSTESİ'!$B$4:$H$1280,4,0))) ->  | E80: =IF(ISERROR(VLOOKUP(B80,'KAYIT LİSTESİ'!$B$4:$H$1280,5,0)),"",(VLOOKUP(B80,'KAYIT LİSTESİ'!$B$4:$H$1280,5,0))) ->  | F80: =IF(ISERROR(VLOOKUP(B80,'KAYIT LİSTESİ'!$B$4:$H$1280,6,0)),"",(VLOOKUP(B80,'KAYIT LİSTESİ'!$B$4:$H$1280,6,0))) ->  | J80: 5 | K80: GÜLLE-5 | L80: =IF(ISERROR(VLOOKUP(K80,'KAYIT LİSTESİ'!$B$4:$H$1280,2,0)),"",(VLOOKUP(K80,'KAYIT LİSTESİ'!$B$4:$H$1280,2,0))) ->  | M80: =IF(ISERROR(VLOOKUP(K80,'KAYIT LİSTESİ'!$B$4:$H$1280,4,0)),"",(VLOOKUP(K80,'KAYIT LİSTESİ'!$B$4:$H$1280,4,0))) ->  | N80: =IF(ISERROR(VLOOKUP(K80,'KAYIT LİSTESİ'!$B$4:$H$1280,5,0)),"",(VLOOKUP(K80,'KAYIT LİSTESİ'!$B$4:$H$1280,5,0))) ->  | O80: =IF(ISERROR(VLOOKUP(K80,'KAYIT LİSTESİ'!$B$4:$H$1280,6,0)),"",(VLOOKUP(K80,'KAYIT LİSTESİ'!$B$4:$H$1280,6,0))) -> 
A81: 4 | B81: 110M.ENG-4-4 | C81: =IF(ISERROR(VLOOKUP(B81,'KAYIT LİSTESİ'!$B$4:$H$1280,2,0)),"",(VLOOKUP(B81,'KAYIT LİSTESİ'!$B$4:$H$1280,2,0))) ->  | D81: =IF(ISERROR(VLOOKUP(B81,'KAYIT LİSTESİ'!$B$4:$H$1280,4,0)),"",(VLOOKUP(B81,'KAYIT LİSTESİ'!$B$4:$H$1280,4,0))) ->  | E81: =IF(ISERROR(VLOOKUP(B81,'KAYIT LİSTESİ'!$B$4:$H$1280,5,0)),"",(VLOOKUP(B81,'KAYIT LİSTESİ'!$B$4:$H$1280,5,0))) ->  | F81: =IF(ISERROR(VLOOKUP(B81,'KAYIT LİSTESİ'!$B$4:$H$1280,6,0)),"",(VLOOKUP(B81,'KAYIT LİSTESİ'!$B$4:$H$1280,6,0))) ->  | J81: 6 | K81: GÜLLE-6 | L81: =IF(ISERROR(VLOOKUP(K81,'KAYIT LİSTESİ'!$B$4:$H$1280,2,0)),"",(VLOOKUP(K81,'KAYIT LİSTESİ'!$B$4:$H$1280,2,0))) ->  | M81: =IF(ISERROR(VLOOKUP(K81,'KAYIT LİSTESİ'!$B$4:$H$1280,4,0)),"",(VLOOKUP(K81,'KAYIT LİSTESİ'!$B$4:$H$1280,4,0))) ->  | N81: =IF(ISERROR(VLOOKUP(K81,'KAYIT LİSTESİ'!$B$4:$H$1280,5,0)),"",(VLOOKUP(K81,'KAYIT LİSTESİ'!$B$4:$H$1280,5,0))) ->  | O81: =IF(ISERROR(VLOOKUP(K81,'KAYIT LİSTESİ'!$B$4:$H$1280,6,0)),"",(VLOOKUP(K81,'KAYIT LİSTESİ'!$B$4:$H$1280,6,0))) -> 
A82: 5 | B82: 110M.ENG-4-5 | C82: =IF(ISERROR(VLOOKUP(B82,'KAYIT LİSTESİ'!$B$4:$H$1280,2,0)),"",(VLOOKUP(B82,'KAYIT LİSTESİ'!$B$4:$H$1280,2,0))) ->  | D82: =IF(ISERROR(VLOOKUP(B82,'KAYIT LİSTESİ'!$B$4:$H$1280,4,0)),"",(VLOOKUP(B82,'KAYIT LİSTESİ'!$B$4:$H$1280,4,0))) ->  | E82: =IF(ISERROR(VLOOKUP(B82,'KAYIT LİSTESİ'!$B$4:$H$1280,5,0)),"",(VLOOKUP(B82,'KAYIT LİSTESİ'!$B$4:$H$1280,5,0))) ->  | F82: =IF(ISERROR(VLOOKUP(B82,'KAYIT LİSTESİ'!$B$4:$H$1280,6,0)),"",(VLOOKUP(B82,'KAYIT LİSTESİ'!$B$4:$H$1280,6,0))) ->  | J82: 7 | K82: GÜLLE-7 | L82: =IF(ISERROR(VLOOKUP(K82,'KAYIT LİSTESİ'!$B$4:$H$1280,2,0)),"",(VLOOKUP(K82,'KAYIT LİSTESİ'!$B$4:$H$1280,2,0))) ->  | M82: =IF(ISERROR(VLOOKUP(K82,'KAYIT LİSTESİ'!$B$4:$H$1280,4,0)),"",(VLOOKUP(K82,'KAYIT LİSTESİ'!$B$4:$H$1280,4,0))) ->  | N82: =IF(ISERROR(VLOOKUP(K82,'KAYIT LİSTESİ'!$B$4:$H$1280,5,0)),"",(VLOOKUP(K82,'KAYIT LİSTESİ'!$B$4:$H$1280,5,0))) ->  | O82: =IF(ISERROR(VLOOKUP(K82,'KAYIT LİSTESİ'!$B$4:$H$1280,6,0)),"",(VLOOKUP(K82,'KAYIT LİSTESİ'!$B$4:$H$1280,6,0))) -> 
A83: 6 | B83: 110M.ENG-4-6 | C83: =IF(ISERROR(VLOOKUP(B83,'KAYIT LİSTESİ'!$B$4:$H$1280,2,0)),"",(VLOOKUP(B83,'KAYIT LİSTESİ'!$B$4:$H$1280,2,0))) ->  | D83: =IF(ISERROR(VLOOKUP(B83,'KAYIT LİSTESİ'!$B$4:$H$1280,4,0)),"",(VLOOKUP(B83,'KAYIT LİSTESİ'!$B$4:$H$1280,4,0))) ->  | E83: =IF(ISERROR(VLOOKUP(B83,'KAYIT LİSTESİ'!$B$4:$H$1280,5,0)),"",(VLOOKUP(B83,'KAYIT LİSTESİ'!$B$4:$H$1280,5,0))) ->  | F83: =IF(ISERROR(VLOOKUP(B83,'KAYIT LİSTESİ'!$B$4:$H$1280,6,0)),"",(VLOOKUP(B83,'KAYIT LİSTESİ'!$B$4:$H$1280,6,0))) ->  | J83: 8 | K83: GÜLLE-8 | L83: =IF(ISERROR(VLOOKUP(K83,'KAYIT LİSTESİ'!$B$4:$H$1280,2,0)),"",(VLOOKUP(K83,'KAYIT LİSTESİ'!$B$4:$H$1280,2,0))) ->  | M83: =IF(ISERROR(VLOOKUP(K83,'KAYIT LİSTESİ'!$B$4:$H$1280,4,0)),"",(VLOOKUP(K83,'KAYIT LİSTESİ'!$B$4:$H$1280,4,0))) ->  | N83: =IF(ISERROR(VLOOKUP(K83,'KAYIT LİSTESİ'!$B$4:$H$1280,5,0)),"",(VLOOKUP(K83,'KAYIT LİSTESİ'!$B$4:$H$1280,5,0))) ->  | O83: =IF(ISERROR(VLOOKUP(K83,'KAYIT LİSTESİ'!$B$4:$H$1280,6,0)),"",(VLOOKUP(K83,'KAYIT LİSTESİ'!$B$4:$H$1280,6,0))) -> 
A84: 7 | B84: 110M.ENG-4-7 | C84: =IF(ISERROR(VLOOKUP(B84,'KAYIT LİSTESİ'!$B$4:$H$1280,2,0)),"",(VLOOKUP(B84,'KAYIT LİSTESİ'!$B$4:$H$1280,2,0))) ->  | D84: =IF(ISERROR(VLOOKUP(B84,'KAYIT LİSTESİ'!$B$4:$H$1280,4,0)),"",(VLOOKUP(B84,'KAYIT LİSTESİ'!$B$4:$H$1280,4,0))) ->  | E84: =IF(ISERROR(VLOOKUP(B84,'KAYIT LİSTESİ'!$B$4:$H$1280,5,0)),"",(VLOOKUP(B84,'KAYIT LİSTESİ'!$B$4:$H$1280,5,0))) ->  | F84: =IF(ISERROR(VLOOKUP(B84,'KAYIT LİSTESİ'!$B$4:$H$1280,6,0)),"",(VLOOKUP(B84,'KAYIT LİSTESİ'!$B$4:$H$1280,6,0))) ->  | J84: 9 | K84: GÜLLE-9 | L84: =IF(ISERROR(VLOOKUP(K84,'KAYIT LİSTESİ'!$B$4:$H$1280,2,0)),"",(VLOOKUP(K84,'KAYIT LİSTESİ'!$B$4:$H$1280,2,0))) ->  | M84: =IF(ISERROR(VLOOKUP(K84,'KAYIT LİSTESİ'!$B$4:$H$1280,4,0)),"",(VLOOKUP(K84,'KAYIT LİSTESİ'!$B$4:$H$1280,4,0))) ->  | N84: =IF(ISERROR(VLOOKUP(K84,'KAYIT LİSTESİ'!$B$4:$H$1280,5,0)),"",(VLOOKUP(K84,'KAYIT LİSTESİ'!$B$4:$H$1280,5,0))) ->  | O84: =IF(ISERROR(VLOOKUP(K84,'KAYIT LİSTESİ'!$B$4:$H$1280,6,0)),"",(VLOOKUP(K84,'KAYIT LİSTESİ'!$B$4:$H$1280,6,0))) -> 
A85: 8 | B85: 110M.ENG-4-8 | C85: =IF(ISERROR(VLOOKUP(B85,'KAYIT LİSTESİ'!$B$4:$H$1280,2,0)),"",(VLOOKUP(B85,'KAYIT LİSTESİ'!$B$4:$H$1280,2,0))) ->  | D85: =IF(ISERROR(VLOOKUP(B85,'KAYIT LİSTESİ'!$B$4:$H$1280,4,0)),"",(VLOOKUP(B85,'KAYIT LİSTESİ'!$B$4:$H$1280,4,0))) ->  | E85: =IF(ISERROR(VLOOKUP(B85,'KAYIT LİSTESİ'!$B$4:$H$1280,5,0)),"",(VLOOKUP(B85,'KAYIT LİSTESİ'!$B$4:$H$1280,5,0))) ->  | F85: =IF(ISERROR(VLOOKUP(B85,'KAYIT LİSTESİ'!$B$4:$H$1280,6,0)),"",(VLOOKUP(B85,'KAYIT LİSTESİ'!$B$4:$H$1280,6,0))) ->  | J85: 10 | K85: GÜLLE-10 | L85: =IF(ISERROR(VLOOKUP(K85,'KAYIT LİSTESİ'!$B$4:$H$1280,2,0)),"",(VLOOKUP(K85,'KAYIT LİSTESİ'!$B$4:$H$1280,2,0))) ->  | M85: =IF(ISERROR(VLOOKUP(K85,'KAYIT LİSTESİ'!$B$4:$H$1280,4,0)),"",(VLOOKUP(K85,'KAYIT LİSTESİ'!$B$4:$H$1280,4,0))) ->  | N85: =IF(ISERROR(VLOOKUP(K85,'KAYIT LİSTESİ'!$B$4:$H$1280,5,0)),"",(VLOOKUP(K85,'KAYIT LİSTESİ'!$B$4:$H$1280,5,0))) ->  | O85: =IF(ISERROR(VLOOKUP(K85,'KAYIT LİSTESİ'!$B$4:$H$1280,6,0)),"",(VLOOKUP(K85,'KAYIT LİSTESİ'!$B$4:$H$1280,6,0))) -> 
A86: 1500 METRE | J86: 11 | K86: GÜLLE-11 | L86: =IF(ISERROR(VLOOKUP(K86,'KAYIT LİSTESİ'!$B$4:$H$1280,2,0)),"",(VLOOKUP(K86,'KAYIT LİSTESİ'!$B$4:$H$1280,2,0))) ->  | M86: =IF(ISERROR(VLOOKUP(K86,'KAYIT LİSTESİ'!$B$4:$H$1280,4,0)),"",(VLOOKUP(K86,'KAYIT LİSTESİ'!$B$4:$H$1280,4,0))) ->  | N86: =IF(ISERROR(VLOOKUP(K86,'KAYIT LİSTESİ'!$B$4:$H$1280,5,0)),"",(VLOOKUP(K86,'KAYIT LİSTESİ'!$B$4:$H$1280,5,0))) ->  | O86: =IF(ISERROR(VLOOKUP(K86,'KAYIT LİSTESİ'!$B$4:$H$1280,6,0)),"",(VLOOKUP(K86,'KAYIT LİSTESİ'!$B$4:$H$1280,6,0))) -> 
A87: 1. SERİ | J87: 12 | K87: GÜLLE-12 | L87: =IF(ISERROR(VLOOKUP(K87,'KAYIT LİSTESİ'!$B$4:$H$1280,2,0)),"",(VLOOKUP(K87,'KAYIT LİSTESİ'!$B$4:$H$1280,2,0))) ->  | M87: =IF(ISERROR(VLOOKUP(K87,'KAYIT LİSTESİ'!$B$4:$H$1280,4,0)),"",(VLOOKUP(K87,'KAYIT LİSTESİ'!$B$4:$H$1280,4,0))) ->  | N87: =IF(ISERROR(VLOOKUP(K87,'KAYIT LİSTESİ'!$B$4:$H$1280,5,0)),"",(VLOOKUP(K87,'KAYIT LİSTESİ'!$B$4:$H$1280,5,0))) ->  | O87: =IF(ISERROR(VLOOKUP(K87,'KAYIT LİSTESİ'!$B$4:$H$1280,6,0)),"",(VLOOKUP(K87,'KAYIT LİSTESİ'!$B$4:$H$1280,6,0))) -> 
A88: Sıra No | B88: Formül | C88: Göğüs No | D88: Doğum Tarihi | E88: Adı ve Soyadı | F88: Okulu | G88: Start Kontrol | J88: 13 | K88: GÜLLE-13 | L88: =IF(ISERROR(VLOOKUP(K88,'KAYIT LİSTESİ'!$B$4:$H$1280,2,0)),"",(VLOOKUP(K88,'KAYIT LİSTESİ'!$B$4:$H$1280,2,0))) ->  | M88: =IF(ISERROR(VLOOKUP(K88,'KAYIT LİSTESİ'!$B$4:$H$1280,4,0)),"",(VLOOKUP(K88,'KAYIT LİSTESİ'!$B$4:$H$1280,4,0))) ->  | N88: =IF(ISERROR(VLOOKUP(K88,'KAYIT LİSTESİ'!$B$4:$H$1280,5,0)),"",(VLOOKUP(K88,'KAYIT LİSTESİ'!$B$4:$H$1280,5,0))) ->  | O88: =IF(ISERROR(VLOOKUP(K88,'KAYIT LİSTESİ'!$B$4:$H$1280,6,0)),"",(VLOOKUP(K88,'KAYIT LİSTESİ'!$B$4:$H$1280,6,0))) -> 
A89: 1 | B89: 1500M-1-1 | C89: =IF(ISERROR(VLOOKUP(B89,'KAYIT LİSTESİ'!$B$4:$H$1280,2,0)),"",(VLOOKUP(B89,'KAYIT LİSTESİ'!$B$4:$H$1280,2,0))) -> 942 | D89: =IF(ISERROR(VLOOKUP(B89,'KAYIT LİSTESİ'!$B$4:$H$1280,4,0)),"",(VLOOKUP(B89,'KAYIT LİSTESİ'!$B$4:$H$1280,4,0))) -> 00:00:00 | E89: =IF(ISERROR(VLOOKUP(B89,'KAYIT LİSTESİ'!$B$4:$H$1280,5,0)),"",(VLOOKUP(B89,'KAYIT LİSTESİ'!$B$4:$H$1280,5,0))) -> MUSTAFA INCESU | F89: =IF(ISERROR(VLOOKUP(B89,'KAYIT LİSTESİ'!$B$4:$H$1280,6,0)),"",(VLOOKUP(B89,'KAYIT LİSTESİ'!$B$4:$H$1280,6,0))) -> ANKARA | J89: 14 | K89: GÜLLE-14 | L89: =IF(ISERROR(VLOOKUP(K89,'KAYIT LİSTESİ'!$B$4:$H$1280,2,0)),"",(VLOOKUP(K89,'KAYIT LİSTESİ'!$B$4:$H$1280,2,0))) ->  | M89: =IF(ISERROR(VLOOKUP(K89,'KAYIT LİSTESİ'!$B$4:$H$1280,4,0)),"",(VLOOKUP(K89,'KAYIT LİSTESİ'!$B$4:$H$1280,4,0))) ->  | N89: =IF(ISERROR(VLOOKUP(K89,'KAYIT LİSTESİ'!$B$4:$H$1280,5,0)),"",(VLOOKUP(K89,'KAYIT LİSTESİ'!$B$4:$H$1280,5,0))) ->  | O89: =IF(ISERROR(VLOOKUP(K89,'KAYIT LİSTESİ'!$B$4:$H$1280,6,0)),"",(VLOOKUP(K89,'KAYIT LİSTESİ'!$B$4:$H$1280,6,0))) -> 
A90: 2 | B90: 1500M-1-2 | C90: =IF(ISERROR(VLOOKUP(B90,'KAYIT LİSTESİ'!$B$4:$H$1280,2,0)),"",(VLOOKUP(B90,'KAYIT LİSTESİ'!$B$4:$H$1280,2,0))) -> 943 | D90: =IF(ISERROR(VLOOKUP(B90,'KAYIT LİSTESİ'!$B$4:$H$1280,4,0)),"",(VLOOKUP(B90,'KAYIT LİSTESİ'!$B$4:$H$1280,4,0))) -> 00:00:00 | E90: =IF(ISERROR(VLOOKUP(B90,'KAYIT LİSTESİ'!$B$4:$H$1280,5,0)),"",(VLOOKUP(B90,'KAYIT LİSTESİ'!$B$4:$H$1280,5,0))) -> MUSTAFA MAVİLİ | F90: =IF(ISERROR(VLOOKUP(B90,'KAYIT LİSTESİ'!$B$4:$H$1280,6,0)),"",(VLOOKUP(B90,'KAYIT LİSTESİ'!$B$4:$H$1280,6,0))) -> ANKARA | J90: 15 | K90: GÜLLE-15 | L90: =IF(ISERROR(VLOOKUP(K90,'KAYIT LİSTESİ'!$B$4:$H$1280,2,0)),"",(VLOOKUP(K90,'KAYIT LİSTESİ'!$B$4:$H$1280,2,0))) ->  | M90: =IF(ISERROR(VLOOKUP(K90,'KAYIT LİSTESİ'!$B$4:$H$1280,4,0)),"",(VLOOKUP(K90,'KAYIT LİSTESİ'!$B$4:$H$1280,4,0))) ->  | N90: =IF(ISERROR(VLOOKUP(K90,'KAYIT LİSTESİ'!$B$4:$H$1280,5,0)),"",(VLOOKUP(K90,'KAYIT LİSTESİ'!$B$4:$H$1280,5,0))) ->  | O90: =IF(ISERROR(VLOOKUP(K90,'KAYIT LİSTESİ'!$B$4:$H$1280,6,0)),"",(VLOOKUP(K90,'KAYIT LİSTESİ'!$B$4:$H$1280,6,0))) -> 
A91: 3 | B91: 1500M-1-3 | C91: =IF(ISERROR(VLOOKUP(B91,'KAYIT LİSTESİ'!$B$4:$H$1280,2,0)),"",(VLOOKUP(B91,'KAYIT LİSTESİ'!$B$4:$H$1280,2,0))) -> 972 | D91: =IF(ISERROR(VLOOKUP(B91,'KAYIT LİSTESİ'!$B$4:$H$1280,4,0)),"",(VLOOKUP(B91,'KAYIT LİSTESİ'!$B$4:$H$1280,4,0))) -> 1997-01-04 | E91: =IF(ISERROR(VLOOKUP(B91,'KAYIT LİSTESİ'!$B$4:$H$1280,5,0)),"",(VLOOKUP(B91,'KAYIT LİSTESİ'!$B$4:$H$1280,5,0))) -> FERHAT ARGUN | F91: =IF(ISERROR(VLOOKUP(B91,'KAYIT LİSTESİ'!$B$4:$H$1280,6,0)),"",(VLOOKUP(B91,'KAYIT LİSTESİ'!$B$4:$H$1280,6,0))) -> BURSA | J91: 16 | K91: GÜLLE-16 | L91: =IF(ISERROR(VLOOKUP(K91,'KAYIT LİSTESİ'!$B$4:$H$1280,2,0)),"",(VLOOKUP(K91,'KAYIT LİSTESİ'!$B$4:$H$1280,2,0))) ->  | M91: =IF(ISERROR(VLOOKUP(K91,'KAYIT LİSTESİ'!$B$4:$H$1280,4,0)),"",(VLOOKUP(K91,'KAYIT LİSTESİ'!$B$4:$H$1280,4,0))) ->  | N91: =IF(ISERROR(VLOOKUP(K91,'KAYIT LİSTESİ'!$B$4:$H$1280,5,0)),"",(VLOOKUP(K91,'KAYIT LİSTESİ'!$B$4:$H$1280,5,0))) ->  | O91: =IF(ISERROR(VLOOKUP(K91,'KAYIT LİSTESİ'!$B$4:$H$1280,6,0)),"",(VLOOKUP(K91,'KAYIT LİSTESİ'!$B$4:$H$1280,6,0))) -> 
A92: 4 | B92: 1500M-1-4 | C92: =IF(ISERROR(VLOOKUP(B92,'KAYIT LİSTESİ'!$B$4:$H$1280,2,0)),"",(VLOOKUP(B92,'KAYIT LİSTESİ'!$B$4:$H$1280,2,0))) -> 544 | D92: =IF(ISERROR(VLOOKUP(B92,'KAYIT LİSTESİ'!$B$4:$H$1280,4,0)),"",(VLOOKUP(B92,'KAYIT LİSTESİ'!$B$4:$H$1280,4,0))) -> 1995-01-10 | E92: =IF(ISERROR(VLOOKUP(B92,'KAYIT LİSTESİ'!$B$4:$H$1280,5,0)),"",(VLOOKUP(B92,'KAYIT LİSTESİ'!$B$4:$H$1280,5,0))) -> MUSTAFA BARLI | F92: =IF(ISERROR(VLOOKUP(B92,'KAYIT LİSTESİ'!$B$4:$H$1280,6,0)),"",(VLOOKUP(B92,'KAYIT LİSTESİ'!$B$4:$H$1280,6,0))) -> KAHRAMANMARAŞ | J92: 17 | K92: GÜLLE-17 | L92: =IF(ISERROR(VLOOKUP(K92,'KAYIT LİSTESİ'!$B$4:$H$1280,2,0)),"",(VLOOKUP(K92,'KAYIT LİSTESİ'!$B$4:$H$1280,2,0))) ->  | M92: =IF(ISERROR(VLOOKUP(K92,'KAYIT LİSTESİ'!$B$4:$H$1280,4,0)),"",(VLOOKUP(K92,'KAYIT LİSTESİ'!$B$4:$H$1280,4,0))) ->  | N92: =IF(ISERROR(VLOOKUP(K92,'KAYIT LİSTESİ'!$B$4:$H$1280,5,0)),"",(VLOOKUP(K92,'KAYIT LİSTESİ'!$B$4:$H$1280,5,0))) ->  | O92: =IF(ISERROR(VLOOKUP(K92,'KAYIT LİSTESİ'!$B$4:$H$1280,6,0)),"",(VLOOKUP(K92,'KAYIT LİSTESİ'!$B$4:$H$1280,6,0))) -> 
A93: 5 | B93: 1500M-1-5 | C93: =IF(ISERROR(VLOOKUP(B93,'KAYIT LİSTESİ'!$B$4:$H$1280,2,0)),"",(VLOOKUP(B93,'KAYIT LİSTESİ'!$B$4:$H$1280,2,0))) -> 554 | D93: =IF(ISERROR(VLOOKUP(B93,'KAYIT LİSTESİ'!$B$4:$H$1280,4,0)),"",(VLOOKUP(B93,'KAYIT LİSTESİ'!$B$4:$H$1280,4,0))) -> 1985-01-25 | E93: =IF(ISERROR(VLOOKUP(B93,'KAYIT LİSTESİ'!$B$4:$H$1280,5,0)),"",(VLOOKUP(B93,'KAYIT LİSTESİ'!$B$4:$H$1280,5,0))) -> KEMAL KOYUNCU | F93: =IF(ISERROR(VLOOKUP(B93,'KAYIT LİSTESİ'!$B$4:$H$1280,6,0)),"",(VLOOKUP(B93,'KAYIT LİSTESİ'!$B$4:$H$1280,6,0))) -> KAYSERİ | J93: 18 | K93: GÜLLE-18 | L93: =IF(ISERROR(VLOOKUP(K93,'KAYIT LİSTESİ'!$B$4:$H$1280,2,0)),"",(VLOOKUP(K93,'KAYIT LİSTESİ'!$B$4:$H$1280,2,0))) ->  | M93: =IF(ISERROR(VLOOKUP(K93,'KAYIT LİSTESİ'!$B$4:$H$1280,4,0)),"",(VLOOKUP(K93,'KAYIT LİSTESİ'!$B$4:$H$1280,4,0))) ->  | N93: =IF(ISERROR(VLOOKUP(K93,'KAYIT LİSTESİ'!$B$4:$H$1280,5,0)),"",(VLOOKUP(K93,'KAYIT LİSTESİ'!$B$4:$H$1280,5,0))) ->  | O93: =IF(ISERROR(VLOOKUP(K93,'KAYIT LİSTESİ'!$B$4:$H$1280,6,0)),"",(VLOOKUP(K93,'KAYIT LİSTESİ'!$B$4:$H$1280,6,0))) -> 
A94: 6 | B94: 1500M-1-6 | C94: =IF(ISERROR(VLOOKUP(B94,'KAYIT LİSTESİ'!$B$4:$H$1280,2,0)),"",(VLOOKUP(B94,'KAYIT LİSTESİ'!$B$4:$H$1280,2,0))) -> 558 | D94: =IF(ISERROR(VLOOKUP(B94,'KAYIT LİSTESİ'!$B$4:$H$1280,4,0)),"",(VLOOKUP(B94,'KAYIT LİSTESİ'!$B$4:$H$1280,4,0))) -> 1995-06-15 | E94: =IF(ISERROR(VLOOKUP(B94,'KAYIT LİSTESİ'!$B$4:$H$1280,5,0)),"",(VLOOKUP(B94,'KAYIT LİSTESİ'!$B$4:$H$1280,5,0))) -> TURGAY BAYRAM | F94: =IF(ISERROR(VLOOKUP(B94,'KAYIT LİSTESİ'!$B$4:$H$1280,6,0)),"",(VLOOKUP(B94,'KAYIT LİSTESİ'!$B$4:$H$1280,6,0))) -> KAYSERİ | J94: 19 | K94: GÜLLE-19 | L94: =IF(ISERROR(VLOOKUP(K94,'KAYIT LİSTESİ'!$B$4:$H$1280,2,0)),"",(VLOOKUP(K94,'KAYIT LİSTESİ'!$B$4:$H$1280,2,0))) ->  | M94: =IF(ISERROR(VLOOKUP(K94,'KAYIT LİSTESİ'!$B$4:$H$1280,4,0)),"",(VLOOKUP(K94,'KAYIT LİSTESİ'!$B$4:$H$1280,4,0))) ->  | N94: =IF(ISERROR(VLOOKUP(K94,'KAYIT LİSTESİ'!$B$4:$H$1280,5,0)),"",(VLOOKUP(K94,'KAYIT LİSTESİ'!$B$4:$H$1280,5,0))) ->  | O94: =IF(ISERROR(VLOOKUP(K94,'KAYIT LİSTESİ'!$B$4:$H$1280,6,0)),"",(VLOOKUP(K94,'KAYIT LİSTESİ'!$B$4:$H$1280,6,0))) -> 
A95: 7 | B95: 1500M-1-7 | C95: =IF(ISERROR(VLOOKUP(B95,'KAYIT LİSTESİ'!$B$4:$H$1280,2,0)),"",(VLOOKUP(B95,'KAYIT LİSTESİ'!$B$4:$H$1280,2,0))) -> 345 | D95: =IF(ISERROR(VLOOKUP(B95,'KAYIT LİSTESİ'!$B$4:$H$1280,4,0)),"",(VLOOKUP(B95,'KAYIT LİSTESİ'!$B$4:$H$1280,4,0))) -> 1995-04-20 | E95: =IF(ISERROR(VLOOKUP(B95,'KAYIT LİSTESİ'!$B$4:$H$1280,5,0)),"",(VLOOKUP(B95,'KAYIT LİSTESİ'!$B$4:$H$1280,5,0))) -> BÜNYAMİN AKYÜREK | F95: =IF(ISERROR(VLOOKUP(B95,'KAYIT LİSTESİ'!$B$4:$H$1280,6,0)),"",(VLOOKUP(B95,'KAYIT LİSTESİ'!$B$4:$H$1280,6,0))) -> TOKAT | J95: 20 | K95: GÜLLE-20 | L95: =IF(ISERROR(VLOOKUP(K95,'KAYIT LİSTESİ'!$B$4:$H$1280,2,0)),"",(VLOOKUP(K95,'KAYIT LİSTESİ'!$B$4:$H$1280,2,0))) ->  | M95: =IF(ISERROR(VLOOKUP(K95,'KAYIT LİSTESİ'!$B$4:$H$1280,4,0)),"",(VLOOKUP(K95,'KAYIT LİSTESİ'!$B$4:$H$1280,4,0))) ->  | N95: =IF(ISERROR(VLOOKUP(K95,'KAYIT LİSTESİ'!$B$4:$H$1280,5,0)),"",(VLOOKUP(K95,'KAYIT LİSTESİ'!$B$4:$H$1280,5,0))) ->  | O95: =IF(ISERROR(VLOOKUP(K95,'KAYIT LİSTESİ'!$B$4:$H$1280,6,0)),"",(VLOOKUP(K95,'KAYIT LİSTESİ'!$B$4:$H$1280,6,0))) -> 
A96: 8 | B96: 1500M-1-8 | C96: =IF(ISERROR(VLOOKUP(B96,'KAYIT LİSTESİ'!$B$4:$H$1280,2,0)),"",(VLOOKUP(B96,'KAYIT LİSTESİ'!$B$4:$H$1280,2,0))) ->  | D96: =IF(ISERROR(VLOOKUP(B96,'KAYIT LİSTESİ'!$B$4:$H$1280,4,0)),"",(VLOOKUP(B96,'KAYIT LİSTESİ'!$B$4:$H$1280,4,0))) ->  | E96: =IF(ISERROR(VLOOKUP(B96,'KAYIT LİSTESİ'!$B$4:$H$1280,5,0)),"",(VLOOKUP(B96,'KAYIT LİSTESİ'!$B$4:$H$1280,5,0))) ->  | F96: =IF(ISERROR(VLOOKUP(B96,'KAYIT LİSTESİ'!$B$4:$H$1280,6,0)),"",(VLOOKUP(B96,'KAYIT LİSTESİ'!$B$4:$H$1280,6,0))) ->  | J96: 21 | K96: GÜLLE-21 | L96: =IF(ISERROR(VLOOKUP(K96,'KAYIT LİSTESİ'!$B$4:$H$1280,2,0)),"",(VLOOKUP(K96,'KAYIT LİSTESİ'!$B$4:$H$1280,2,0))) ->  | M96: =IF(ISERROR(VLOOKUP(K96,'KAYIT LİSTESİ'!$B$4:$H$1280,4,0)),"",(VLOOKUP(K96,'KAYIT LİSTESİ'!$B$4:$H$1280,4,0))) ->  | N96: =IF(ISERROR(VLOOKUP(K96,'KAYIT LİSTESİ'!$B$4:$H$1280,5,0)),"",(VLOOKUP(K96,'KAYIT LİSTESİ'!$B$4:$H$1280,5,0))) ->  | O96: =IF(ISERROR(VLOOKUP(K96,'KAYIT LİSTESİ'!$B$4:$H$1280,6,0)),"",(VLOOKUP(K96,'KAYIT LİSTESİ'!$B$4:$H$1280,6,0))) -> 
A97: 9 | B97: 1500M-1-9 | C97: =IF(ISERROR(VLOOKUP(B97,'KAYIT LİSTESİ'!$B$4:$H$1280,2,0)),"",(VLOOKUP(B97,'KAYIT LİSTESİ'!$B$4:$H$1280,2,0))) ->  | D97: =IF(ISERROR(VLOOKUP(B97,'KAYIT LİSTESİ'!$B$4:$H$1280,4,0)),"",(VLOOKUP(B97,'KAYIT LİSTESİ'!$B$4:$H$1280,4,0))) ->  | E97: =IF(ISERROR(VLOOKUP(B97,'KAYIT LİSTESİ'!$B$4:$H$1280,5,0)),"",(VLOOKUP(B97,'KAYIT LİSTESİ'!$B$4:$H$1280,5,0))) ->  | F97: =IF(ISERROR(VLOOKUP(B97,'KAYIT LİSTESİ'!$B$4:$H$1280,6,0)),"",(VLOOKUP(B97,'KAYIT LİSTESİ'!$B$4:$H$1280,6,0))) ->  | J97: 22 | K97: GÜLLE-22 | L97: =IF(ISERROR(VLOOKUP(K97,'KAYIT LİSTESİ'!$B$4:$H$1280,2,0)),"",(VLOOKUP(K97,'KAYIT LİSTESİ'!$B$4:$H$1280,2,0))) ->  | M97: =IF(ISERROR(VLOOKUP(K97,'KAYIT LİSTESİ'!$B$4:$H$1280,4,0)),"",(VLOOKUP(K97,'KAYIT LİSTESİ'!$B$4:$H$1280,4,0))) ->  | N97: =IF(ISERROR(VLOOKUP(K97,'KAYIT LİSTESİ'!$B$4:$H$1280,5,0)),"",(VLOOKUP(K97,'KAYIT LİSTESİ'!$B$4:$H$1280,5,0))) ->  | O97: =IF(ISERROR(VLOOKUP(K97,'KAYIT LİSTESİ'!$B$4:$H$1280,6,0)),"",(VLOOKUP(K97,'KAYIT LİSTESİ'!$B$4:$H$1280,6,0))) -> 
A98: 10 | B98: 1500M-1-10 | C98: =IF(ISERROR(VLOOKUP(B98,'KAYIT LİSTESİ'!$B$4:$H$1280,2,0)),"",(VLOOKUP(B98,'KAYIT LİSTESİ'!$B$4:$H$1280,2,0))) ->  | D98: =IF(ISERROR(VLOOKUP(B98,'KAYIT LİSTESİ'!$B$4:$H$1280,4,0)),"",(VLOOKUP(B98,'KAYIT LİSTESİ'!$B$4:$H$1280,4,0))) ->  | E98: =IF(ISERROR(VLOOKUP(B98,'KAYIT LİSTESİ'!$B$4:$H$1280,5,0)),"",(VLOOKUP(B98,'KAYIT LİSTESİ'!$B$4:$H$1280,5,0))) ->  | F98: =IF(ISERROR(VLOOKUP(B98,'KAYIT LİSTESİ'!$B$4:$H$1280,6,0)),"",(VLOOKUP(B98,'KAYIT LİSTESİ'!$B$4:$H$1280,6,0))) ->  | J98: 23 | K98: GÜLLE-23 | L98: =IF(ISERROR(VLOOKUP(K98,'KAYIT LİSTESİ'!$B$4:$H$1280,2,0)),"",(VLOOKUP(K98,'KAYIT LİSTESİ'!$B$4:$H$1280,2,0))) ->  | M98: =IF(ISERROR(VLOOKUP(K98,'KAYIT LİSTESİ'!$B$4:$H$1280,4,0)),"",(VLOOKUP(K98,'KAYIT LİSTESİ'!$B$4:$H$1280,4,0))) ->  | N98: =IF(ISERROR(VLOOKUP(K98,'KAYIT LİSTESİ'!$B$4:$H$1280,5,0)),"",(VLOOKUP(K98,'KAYIT LİSTESİ'!$B$4:$H$1280,5,0))) ->  | O98: =IF(ISERROR(VLOOKUP(K98,'KAYIT LİSTESİ'!$B$4:$H$1280,6,0)),"",(VLOOKUP(K98,'KAYIT LİSTESİ'!$B$4:$H$1280,6,0))) -> 
A99: 11 | B99: 1500M-1-11 | C99: =IF(ISERROR(VLOOKUP(B99,'KAYIT LİSTESİ'!$B$4:$H$1280,2,0)),"",(VLOOKUP(B99,'KAYIT LİSTESİ'!$B$4:$H$1280,2,0))) ->  | D99: =IF(ISERROR(VLOOKUP(B99,'KAYIT LİSTESİ'!$B$4:$H$1280,4,0)),"",(VLOOKUP(B99,'KAYIT LİSTESİ'!$B$4:$H$1280,4,0))) ->  | E99: =IF(ISERROR(VLOOKUP(B99,'KAYIT LİSTESİ'!$B$4:$H$1280,5,0)),"",(VLOOKUP(B99,'KAYIT LİSTESİ'!$B$4:$H$1280,5,0))) ->  | F99: =IF(ISERROR(VLOOKUP(B99,'KAYIT LİSTESİ'!$B$4:$H$1280,6,0)),"",(VLOOKUP(B99,'KAYIT LİSTESİ'!$B$4:$H$1280,6,0))) ->  | J99: 24 | K99: GÜLLE-24 | L99: =IF(ISERROR(VLOOKUP(K99,'KAYIT LİSTESİ'!$B$4:$H$1280,2,0)),"",(VLOOKUP(K99,'KAYIT LİSTESİ'!$B$4:$H$1280,2,0))) ->  | M99: =IF(ISERROR(VLOOKUP(K99,'KAYIT LİSTESİ'!$B$4:$H$1280,4,0)),"",(VLOOKUP(K99,'KAYIT LİSTESİ'!$B$4:$H$1280,4,0))) ->  | N99: =IF(ISERROR(VLOOKUP(K99,'KAYIT LİSTESİ'!$B$4:$H$1280,5,0)),"",(VLOOKUP(K99,'KAYIT LİSTESİ'!$B$4:$H$1280,5,0))) ->  | O99: =IF(ISERROR(VLOOKUP(K99,'KAYIT LİSTESİ'!$B$4:$H$1280,6,0)),"",(VLOOKUP(K99,'KAYIT LİSTESİ'!$B$4:$H$1280,6,0))) -> 
A100: 12 | B100: 1500M-1-12 | C100: =IF(ISERROR(VLOOKUP(B100,'KAYIT LİSTESİ'!$B$4:$H$1280,2,0)),"",(VLOOKUP(B100,'KAYIT LİSTESİ'!$B$4:$H$1280,2,0))) ->  | D100: =IF(ISERROR(VLOOKUP(B100,'KAYIT LİSTESİ'!$B$4:$H$1280,4,0)),"",(VLOOKUP(B100,'KAYIT LİSTESİ'!$B$4:$H$1280,4,0))) ->  | E100: =IF(ISERROR(VLOOKUP(B100,'KAYIT LİSTESİ'!$B$4:$H$1280,5,0)),"",(VLOOKUP(B100,'KAYIT LİSTESİ'!$B$4:$H$1280,5,0))) ->  | F100: =IF(ISERROR(VLOOKUP(B100,'KAYIT LİSTESİ'!$B$4:$H$1280,6,0)),"",(VLOOKUP(B100,'KAYIT LİSTESİ'!$B$4:$H$1280,6,0))) ->  | J100: 25 | K100: GÜLLE-25 | L100: =IF(ISERROR(VLOOKUP(K100,'KAYIT LİSTESİ'!$B$4:$H$1280,2,0)),"",(VLOOKUP(K100,'KAYIT LİSTESİ'!$B$4:$H$1280,2,0))) ->  | M100: =IF(ISERROR(VLOOKUP(K100,'KAYIT LİSTESİ'!$B$4:$H$1280,4,0)),"",(VLOOKUP(K100,'KAYIT LİSTESİ'!$B$4:$H$1280,4,0))) ->  | N100: =IF(ISERROR(VLOOKUP(K100,'KAYIT LİSTESİ'!$B$4:$H$1280,5,0)),"",(VLOOKUP(K100,'KAYIT LİSTESİ'!$B$4:$H$1280,5,0))) ->  | O100: =IF(ISERROR(VLOOKUP(K100,'KAYIT LİSTESİ'!$B$4:$H$1280,6,0)),"",(VLOOKUP(K100,'KAYIT LİSTESİ'!$B$4:$H$1280,6,0))) -> 
A101: 2. SERİ | J101: 26 | K101: GÜLLE-26 | L101: =IF(ISERROR(VLOOKUP(K101,'KAYIT LİSTESİ'!$B$4:$H$1280,2,0)),"",(VLOOKUP(K101,'KAYIT LİSTESİ'!$B$4:$H$1280,2,0))) ->  | M101: =IF(ISERROR(VLOOKUP(K101,'KAYIT LİSTESİ'!$B$4:$H$1280,4,0)),"",(VLOOKUP(K101,'KAYIT LİSTESİ'!$B$4:$H$1280,4,0))) ->  | N101: =IF(ISERROR(VLOOKUP(K101,'KAYIT LİSTESİ'!$B$4:$H$1280,5,0)),"",(VLOOKUP(K101,'KAYIT LİSTESİ'!$B$4:$H$1280,5,0))) ->  | O101: =IF(ISERROR(VLOOKUP(K101,'KAYIT LİSTESİ'!$B$4:$H$1280,6,0)),"",(VLOOKUP(K101,'KAYIT LİSTESİ'!$B$4:$H$1280,6,0))) -> 
A102: Sıra No | B102: Formül | C102: Göğüs No | D102: Doğum Tarihi | E102: Adı ve Soyadı | F102: Okulu | G102: Start Kontrol | J102: 27 | K102: GÜLLE-27 | L102: =IF(ISERROR(VLOOKUP(K102,'KAYIT LİSTESİ'!$B$4:$H$1280,2,0)),"",(VLOOKUP(K102,'KAYIT LİSTESİ'!$B$4:$H$1280,2,0))) ->  | M102: =IF(ISERROR(VLOOKUP(K102,'KAYIT LİSTESİ'!$B$4:$H$1280,4,0)),"",(VLOOKUP(K102,'KAYIT LİSTESİ'!$B$4:$H$1280,4,0))) ->  | N102: =IF(ISERROR(VLOOKUP(K102,'KAYIT LİSTESİ'!$B$4:$H$1280,5,0)),"",(VLOOKUP(K102,'KAYIT LİSTESİ'!$B$4:$H$1280,5,0))) ->  | O102: =IF(ISERROR(VLOOKUP(K102,'KAYIT LİSTESİ'!$B$4:$H$1280,6,0)),"",(VLOOKUP(K102,'KAYIT LİSTESİ'!$B$4:$H$1280,6,0))) -> 
A103: 1 | B103: 1500M-2-1 | C103: =IF(ISERROR(VLOOKUP(B103,'KAYIT LİSTESİ'!$B$4:$H$1280,2,0)),"",(VLOOKUP(B103,'KAYIT LİSTESİ'!$B$4:$H$1280,2,0))) ->  | D103: =IF(ISERROR(VLOOKUP(B103,'KAYIT LİSTESİ'!$B$4:$H$1280,4,0)),"",(VLOOKUP(B103,'KAYIT LİSTESİ'!$B$4:$H$1280,4,0))) ->  | E103: =IF(ISERROR(VLOOKUP(B103,'KAYIT LİSTESİ'!$B$4:$H$1280,5,0)),"",(VLOOKUP(B103,'KAYIT LİSTESİ'!$B$4:$H$1280,5,0))) ->  | F103: =IF(ISERROR(VLOOKUP(B103,'KAYIT LİSTESİ'!$B$4:$H$1280,6,0)),"",(VLOOKUP(B103,'KAYIT LİSTESİ'!$B$4:$H$1280,6,0))) ->  | J103: 28 | K103: GÜLLE-28 | L103: =IF(ISERROR(VLOOKUP(K103,'KAYIT LİSTESİ'!$B$4:$H$1280,2,0)),"",(VLOOKUP(K103,'KAYIT LİSTESİ'!$B$4:$H$1280,2,0))) ->  | M103: =IF(ISERROR(VLOOKUP(K103,'KAYIT LİSTESİ'!$B$4:$H$1280,4,0)),"",(VLOOKUP(K103,'KAYIT LİSTESİ'!$B$4:$H$1280,4,0))) ->  | N103: =IF(ISERROR(VLOOKUP(K103,'KAYIT LİSTESİ'!$B$4:$H$1280,5,0)),"",(VLOOKUP(K103,'KAYIT LİSTESİ'!$B$4:$H$1280,5,0))) ->  | O103: =IF(ISERROR(VLOOKUP(K103,'KAYIT LİSTESİ'!$B$4:$H$1280,6,0)),"",(VLOOKUP(K103,'KAYIT LİSTESİ'!$B$4:$H$1280,6,0))) -> 
A104: 2 | B104: 1500M-2-2 | C104: =IF(ISERROR(VLOOKUP(B104,'KAYIT LİSTESİ'!$B$4:$H$1280,2,0)),"",(VLOOKUP(B104,'KAYIT LİSTESİ'!$B$4:$H$1280,2,0))) ->  | D104: =IF(ISERROR(VLOOKUP(B104,'KAYIT LİSTESİ'!$B$4:$H$1280,4,0)),"",(VLOOKUP(B104,'KAYIT LİSTESİ'!$B$4:$H$1280,4,0))) ->  | E104: =IF(ISERROR(VLOOKUP(B104,'KAYIT LİSTESİ'!$B$4:$H$1280,5,0)),"",(VLOOKUP(B104,'KAYIT LİSTESİ'!$B$4:$H$1280,5,0))) ->  | F104: =IF(ISERROR(VLOOKUP(B104,'KAYIT LİSTESİ'!$B$4:$H$1280,6,0)),"",(VLOOKUP(B104,'KAYIT LİSTESİ'!$B$4:$H$1280,6,0))) ->  | J104: 29 | K104: GÜLLE-29 | L104: =IF(ISERROR(VLOOKUP(K104,'KAYIT LİSTESİ'!$B$4:$H$1280,2,0)),"",(VLOOKUP(K104,'KAYIT LİSTESİ'!$B$4:$H$1280,2,0))) ->  | M104: =IF(ISERROR(VLOOKUP(K104,'KAYIT LİSTESİ'!$B$4:$H$1280,4,0)),"",(VLOOKUP(K104,'KAYIT LİSTESİ'!$B$4:$H$1280,4,0))) ->  | N104: =IF(ISERROR(VLOOKUP(K104,'KAYIT LİSTESİ'!$B$4:$H$1280,5,0)),"",(VLOOKUP(K104,'KAYIT LİSTESİ'!$B$4:$H$1280,5,0))) ->  | O104: =IF(ISERROR(VLOOKUP(K104,'KAYIT LİSTESİ'!$B$4:$H$1280,6,0)),"",(VLOOKUP(K104,'KAYIT LİSTESİ'!$B$4:$H$1280,6,0))) -> 
A105: 3 | B105: 1500M-2-3 | C105: =IF(ISERROR(VLOOKUP(B105,'KAYIT LİSTESİ'!$B$4:$H$1280,2,0)),"",(VLOOKUP(B105,'KAYIT LİSTESİ'!$B$4:$H$1280,2,0))) ->  | D105: =IF(ISERROR(VLOOKUP(B105,'KAYIT LİSTESİ'!$B$4:$H$1280,4,0)),"",(VLOOKUP(B105,'KAYIT LİSTESİ'!$B$4:$H$1280,4,0))) ->  | E105: =IF(ISERROR(VLOOKUP(B105,'KAYIT LİSTESİ'!$B$4:$H$1280,5,0)),"",(VLOOKUP(B105,'KAYIT LİSTESİ'!$B$4:$H$1280,5,0))) ->  | F105: =IF(ISERROR(VLOOKUP(B105,'KAYIT LİSTESİ'!$B$4:$H$1280,6,0)),"",(VLOOKUP(B105,'KAYIT LİSTESİ'!$B$4:$H$1280,6,0))) ->  | J105: 30 | K105: GÜLLE-30 | L105: =IF(ISERROR(VLOOKUP(K105,'KAYIT LİSTESİ'!$B$4:$H$1280,2,0)),"",(VLOOKUP(K105,'KAYIT LİSTESİ'!$B$4:$H$1280,2,0))) ->  | M105: =IF(ISERROR(VLOOKUP(K105,'KAYIT LİSTESİ'!$B$4:$H$1280,4,0)),"",(VLOOKUP(K105,'KAYIT LİSTESİ'!$B$4:$H$1280,4,0))) ->  | N105: =IF(ISERROR(VLOOKUP(K105,'KAYIT LİSTESİ'!$B$4:$H$1280,5,0)),"",(VLOOKUP(K105,'KAYIT LİSTESİ'!$B$4:$H$1280,5,0))) ->  | O105: =IF(ISERROR(VLOOKUP(K105,'KAYIT LİSTESİ'!$B$4:$H$1280,6,0)),"",(VLOOKUP(K105,'KAYIT LİSTESİ'!$B$4:$H$1280,6,0))) -> 
A106: 4 | B106: 1500M-2-4 | C106: =IF(ISERROR(VLOOKUP(B106,'KAYIT LİSTESİ'!$B$4:$H$1280,2,0)),"",(VLOOKUP(B106,'KAYIT LİSTESİ'!$B$4:$H$1280,2,0))) ->  | D106: =IF(ISERROR(VLOOKUP(B106,'KAYIT LİSTESİ'!$B$4:$H$1280,4,0)),"",(VLOOKUP(B106,'KAYIT LİSTESİ'!$B$4:$H$1280,4,0))) ->  | E106: =IF(ISERROR(VLOOKUP(B106,'KAYIT LİSTESİ'!$B$4:$H$1280,5,0)),"",(VLOOKUP(B106,'KAYIT LİSTESİ'!$B$4:$H$1280,5,0))) ->  | F106: =IF(ISERROR(VLOOKUP(B106,'KAYIT LİSTESİ'!$B$4:$H$1280,6,0)),"",(VLOOKUP(B106,'KAYIT LİSTESİ'!$B$4:$H$1280,6,0))) ->  | J106: 31 | K106: GÜLLE-31 | L106: =IF(ISERROR(VLOOKUP(K106,'KAYIT LİSTESİ'!$B$4:$H$1280,2,0)),"",(VLOOKUP(K106,'KAYIT LİSTESİ'!$B$4:$H$1280,2,0))) ->  | M106: =IF(ISERROR(VLOOKUP(K106,'KAYIT LİSTESİ'!$B$4:$H$1280,4,0)),"",(VLOOKUP(K106,'KAYIT LİSTESİ'!$B$4:$H$1280,4,0))) ->  | N106: =IF(ISERROR(VLOOKUP(K106,'KAYIT LİSTESİ'!$B$4:$H$1280,5,0)),"",(VLOOKUP(K106,'KAYIT LİSTESİ'!$B$4:$H$1280,5,0))) ->  | O106: =IF(ISERROR(VLOOKUP(K106,'KAYIT LİSTESİ'!$B$4:$H$1280,6,0)),"",(VLOOKUP(K106,'KAYIT LİSTESİ'!$B$4:$H$1280,6,0))) -> 
A107: 5 | B107: 1500M-2-5 | C107: =IF(ISERROR(VLOOKUP(B107,'KAYIT LİSTESİ'!$B$4:$H$1280,2,0)),"",(VLOOKUP(B107,'KAYIT LİSTESİ'!$B$4:$H$1280,2,0))) ->  | D107: =IF(ISERROR(VLOOKUP(B107,'KAYIT LİSTESİ'!$B$4:$H$1280,4,0)),"",(VLOOKUP(B107,'KAYIT LİSTESİ'!$B$4:$H$1280,4,0))) ->  | E107: =IF(ISERROR(VLOOKUP(B107,'KAYIT LİSTESİ'!$B$4:$H$1280,5,0)),"",(VLOOKUP(B107,'KAYIT LİSTESİ'!$B$4:$H$1280,5,0))) ->  | F107: =IF(ISERROR(VLOOKUP(B107,'KAYIT LİSTESİ'!$B$4:$H$1280,6,0)),"",(VLOOKUP(B107,'KAYIT LİSTESİ'!$B$4:$H$1280,6,0))) ->  | J107: 32 | K107: GÜLLE-32 | L107: =IF(ISERROR(VLOOKUP(K107,'KAYIT LİSTESİ'!$B$4:$H$1280,2,0)),"",(VLOOKUP(K107,'KAYIT LİSTESİ'!$B$4:$H$1280,2,0))) ->  | M107: =IF(ISERROR(VLOOKUP(K107,'KAYIT LİSTESİ'!$B$4:$H$1280,4,0)),"",(VLOOKUP(K107,'KAYIT LİSTESİ'!$B$4:$H$1280,4,0))) ->  | N107: =IF(ISERROR(VLOOKUP(K107,'KAYIT LİSTESİ'!$B$4:$H$1280,5,0)),"",(VLOOKUP(K107,'KAYIT LİSTESİ'!$B$4:$H$1280,5,0))) ->  | O107: =IF(ISERROR(VLOOKUP(K107,'KAYIT LİSTESİ'!$B$4:$H$1280,6,0)),"",(VLOOKUP(K107,'KAYIT LİSTESİ'!$B$4:$H$1280,6,0))) -> 
A108: 6 | B108: 1500M-2-6 | C108: =IF(ISERROR(VLOOKUP(B108,'KAYIT LİSTESİ'!$B$4:$H$1280,2,0)),"",(VLOOKUP(B108,'KAYIT LİSTESİ'!$B$4:$H$1280,2,0))) ->  | D108: =IF(ISERROR(VLOOKUP(B108,'KAYIT LİSTESİ'!$B$4:$H$1280,4,0)),"",(VLOOKUP(B108,'KAYIT LİSTESİ'!$B$4:$H$1280,4,0))) ->  | E108: =IF(ISERROR(VLOOKUP(B108,'KAYIT LİSTESİ'!$B$4:$H$1280,5,0)),"",(VLOOKUP(B108,'KAYIT LİSTESİ'!$B$4:$H$1280,5,0))) ->  | F108: =IF(ISERROR(VLOOKUP(B108,'KAYIT LİSTESİ'!$B$4:$H$1280,6,0)),"",(VLOOKUP(B108,'KAYIT LİSTESİ'!$B$4:$H$1280,6,0))) ->  | J108: 33 | K108: GÜLLE-33 | L108: =IF(ISERROR(VLOOKUP(K108,'KAYIT LİSTESİ'!$B$4:$H$1280,2,0)),"",(VLOOKUP(K108,'KAYIT LİSTESİ'!$B$4:$H$1280,2,0))) ->  | M108: =IF(ISERROR(VLOOKUP(K108,'KAYIT LİSTESİ'!$B$4:$H$1280,4,0)),"",(VLOOKUP(K108,'KAYIT LİSTESİ'!$B$4:$H$1280,4,0))) ->  | N108: =IF(ISERROR(VLOOKUP(K108,'KAYIT LİSTESİ'!$B$4:$H$1280,5,0)),"",(VLOOKUP(K108,'KAYIT LİSTESİ'!$B$4:$H$1280,5,0))) ->  | O108: =IF(ISERROR(VLOOKUP(K108,'KAYIT LİSTESİ'!$B$4:$H$1280,6,0)),"",(VLOOKUP(K108,'KAYIT LİSTESİ'!$B$4:$H$1280,6,0))) -> 
A109: 7 | B109: 1500M-2-7 | C109: =IF(ISERROR(VLOOKUP(B109,'KAYIT LİSTESİ'!$B$4:$H$1280,2,0)),"",(VLOOKUP(B109,'KAYIT LİSTESİ'!$B$4:$H$1280,2,0))) ->  | D109: =IF(ISERROR(VLOOKUP(B109,'KAYIT LİSTESİ'!$B$4:$H$1280,4,0)),"",(VLOOKUP(B109,'KAYIT LİSTESİ'!$B$4:$H$1280,4,0))) ->  | E109: =IF(ISERROR(VLOOKUP(B109,'KAYIT LİSTESİ'!$B$4:$H$1280,5,0)),"",(VLOOKUP(B109,'KAYIT LİSTESİ'!$B$4:$H$1280,5,0))) ->  | F109: =IF(ISERROR(VLOOKUP(B109,'KAYIT LİSTESİ'!$B$4:$H$1280,6,0)),"",(VLOOKUP(B109,'KAYIT LİSTESİ'!$B$4:$H$1280,6,0))) ->  | J109: 34 | K109: GÜLLE-34 | L109: =IF(ISERROR(VLOOKUP(K109,'KAYIT LİSTESİ'!$B$4:$H$1280,2,0)),"",(VLOOKUP(K109,'KAYIT LİSTESİ'!$B$4:$H$1280,2,0))) ->  | M109: =IF(ISERROR(VLOOKUP(K109,'KAYIT LİSTESİ'!$B$4:$H$1280,4,0)),"",(VLOOKUP(K109,'KAYIT LİSTESİ'!$B$4:$H$1280,4,0))) ->  | N109: =IF(ISERROR(VLOOKUP(K109,'KAYIT LİSTESİ'!$B$4:$H$1280,5,0)),"",(VLOOKUP(K109,'KAYIT LİSTESİ'!$B$4:$H$1280,5,0))) ->  | O109: =IF(ISERROR(VLOOKUP(K109,'KAYIT LİSTESİ'!$B$4:$H$1280,6,0)),"",(VLOOKUP(K109,'KAYIT LİSTESİ'!$B$4:$H$1280,6,0))) -> 
A110: 8 | B110: 1500M-2-8 | C110: =IF(ISERROR(VLOOKUP(B110,'KAYIT LİSTESİ'!$B$4:$H$1280,2,0)),"",(VLOOKUP(B110,'KAYIT LİSTESİ'!$B$4:$H$1280,2,0))) ->  | D110: =IF(ISERROR(VLOOKUP(B110,'KAYIT LİSTESİ'!$B$4:$H$1280,4,0)),"",(VLOOKUP(B110,'KAYIT LİSTESİ'!$B$4:$H$1280,4,0))) ->  | E110: =IF(ISERROR(VLOOKUP(B110,'KAYIT LİSTESİ'!$B$4:$H$1280,5,0)),"",(VLOOKUP(B110,'KAYIT LİSTESİ'!$B$4:$H$1280,5,0))) ->  | F110: =IF(ISERROR(VLOOKUP(B110,'KAYIT LİSTESİ'!$B$4:$H$1280,6,0)),"",(VLOOKUP(B110,'KAYIT LİSTESİ'!$B$4:$H$1280,6,0))) ->  | J110: 35 | K110: GÜLLE-35 | L110: =IF(ISERROR(VLOOKUP(K110,'KAYIT LİSTESİ'!$B$4:$H$1280,2,0)),"",(VLOOKUP(K110,'KAYIT LİSTESİ'!$B$4:$H$1280,2,0))) ->  | M110: =IF(ISERROR(VLOOKUP(K110,'KAYIT LİSTESİ'!$B$4:$H$1280,4,0)),"",(VLOOKUP(K110,'KAYIT LİSTESİ'!$B$4:$H$1280,4,0))) ->  | N110: =IF(ISERROR(VLOOKUP(K110,'KAYIT LİSTESİ'!$B$4:$H$1280,5,0)),"",(VLOOKUP(K110,'KAYIT LİSTESİ'!$B$4:$H$1280,5,0))) ->  | O110: =IF(ISERROR(VLOOKUP(K110,'KAYIT LİSTESİ'!$B$4:$H$1280,6,0)),"",(VLOOKUP(K110,'KAYIT LİSTESİ'!$B$4:$H$1280,6,0))) -> 
A111: 9 | B111: 1500M-2-9 | C111: =IF(ISERROR(VLOOKUP(B111,'KAYIT LİSTESİ'!$B$4:$H$1280,2,0)),"",(VLOOKUP(B111,'KAYIT LİSTESİ'!$B$4:$H$1280,2,0))) ->  | D111: =IF(ISERROR(VLOOKUP(B111,'KAYIT LİSTESİ'!$B$4:$H$1280,4,0)),"",(VLOOKUP(B111,'KAYIT LİSTESİ'!$B$4:$H$1280,4,0))) ->  | E111: =IF(ISERROR(VLOOKUP(B111,'KAYIT LİSTESİ'!$B$4:$H$1280,5,0)),"",(VLOOKUP(B111,'KAYIT LİSTESİ'!$B$4:$H$1280,5,0))) ->  | F111: =IF(ISERROR(VLOOKUP(B111,'KAYIT LİSTESİ'!$B$4:$H$1280,6,0)),"",(VLOOKUP(B111,'KAYIT LİSTESİ'!$B$4:$H$1280,6,0))) ->  | J111: 36 | K111: GÜLLE-36 | L111: =IF(ISERROR(VLOOKUP(K111,'KAYIT LİSTESİ'!$B$4:$H$1280,2,0)),"",(VLOOKUP(K111,'KAYIT LİSTESİ'!$B$4:$H$1280,2,0))) ->  | M111: =IF(ISERROR(VLOOKUP(K111,'KAYIT LİSTESİ'!$B$4:$H$1280,4,0)),"",(VLOOKUP(K111,'KAYIT LİSTESİ'!$B$4:$H$1280,4,0))) ->  | N111: =IF(ISERROR(VLOOKUP(K111,'KAYIT LİSTESİ'!$B$4:$H$1280,5,0)),"",(VLOOKUP(K111,'KAYIT LİSTESİ'!$B$4:$H$1280,5,0))) ->  | O111: =IF(ISERROR(VLOOKUP(K111,'KAYIT LİSTESİ'!$B$4:$H$1280,6,0)),"",(VLOOKUP(K111,'KAYIT LİSTESİ'!$B$4:$H$1280,6,0))) -> 
A112: 10 | B112: 1500M-2-10 | C112: =IF(ISERROR(VLOOKUP(B112,'KAYIT LİSTESİ'!$B$4:$H$1280,2,0)),"",(VLOOKUP(B112,'KAYIT LİSTESİ'!$B$4:$H$1280,2,0))) ->  | D112: =IF(ISERROR(VLOOKUP(B112,'KAYIT LİSTESİ'!$B$4:$H$1280,4,0)),"",(VLOOKUP(B112,'KAYIT LİSTESİ'!$B$4:$H$1280,4,0))) ->  | E112: =IF(ISERROR(VLOOKUP(B112,'KAYIT LİSTESİ'!$B$4:$H$1280,5,0)),"",(VLOOKUP(B112,'KAYIT LİSTESİ'!$B$4:$H$1280,5,0))) ->  | F112: =IF(ISERROR(VLOOKUP(B112,'KAYIT LİSTESİ'!$B$4:$H$1280,6,0)),"",(VLOOKUP(B112,'KAYIT LİSTESİ'!$B$4:$H$1280,6,0))) ->  | J112: 37 | K112: GÜLLE-37 | L112: =IF(ISERROR(VLOOKUP(K112,'KAYIT LİSTESİ'!$B$4:$H$1280,2,0)),"",(VLOOKUP(K112,'KAYIT LİSTESİ'!$B$4:$H$1280,2,0))) ->  | M112: =IF(ISERROR(VLOOKUP(K112,'KAYIT LİSTESİ'!$B$4:$H$1280,4,0)),"",(VLOOKUP(K112,'KAYIT LİSTESİ'!$B$4:$H$1280,4,0))) ->  | N112: =IF(ISERROR(VLOOKUP(K112,'KAYIT LİSTESİ'!$B$4:$H$1280,5,0)),"",(VLOOKUP(K112,'KAYIT LİSTESİ'!$B$4:$H$1280,5,0))) ->  | O112: =IF(ISERROR(VLOOKUP(K112,'KAYIT LİSTESİ'!$B$4:$H$1280,6,0)),"",(VLOOKUP(K112,'KAYIT LİSTESİ'!$B$4:$H$1280,6,0))) -> 
A113: 11 | B113: 1500M-2-11 | C113: =IF(ISERROR(VLOOKUP(B113,'KAYIT LİSTESİ'!$B$4:$H$1280,2,0)),"",(VLOOKUP(B113,'KAYIT LİSTESİ'!$B$4:$H$1280,2,0))) ->  | D113: =IF(ISERROR(VLOOKUP(B113,'KAYIT LİSTESİ'!$B$4:$H$1280,4,0)),"",(VLOOKUP(B113,'KAYIT LİSTESİ'!$B$4:$H$1280,4,0))) ->  | E113: =IF(ISERROR(VLOOKUP(B113,'KAYIT LİSTESİ'!$B$4:$H$1280,5,0)),"",(VLOOKUP(B113,'KAYIT LİSTESİ'!$B$4:$H$1280,5,0))) ->  | F113: =IF(ISERROR(VLOOKUP(B113,'KAYIT LİSTESİ'!$B$4:$H$1280,6,0)),"",(VLOOKUP(B113,'KAYIT LİSTESİ'!$B$4:$H$1280,6,0))) ->  | J113: 38 | K113: GÜLLE-38 | L113: =IF(ISERROR(VLOOKUP(K113,'KAYIT LİSTESİ'!$B$4:$H$1280,2,0)),"",(VLOOKUP(K113,'KAYIT LİSTESİ'!$B$4:$H$1280,2,0))) ->  | M113: =IF(ISERROR(VLOOKUP(K113,'KAYIT LİSTESİ'!$B$4:$H$1280,4,0)),"",(VLOOKUP(K113,'KAYIT LİSTESİ'!$B$4:$H$1280,4,0))) ->  | N113: =IF(ISERROR(VLOOKUP(K113,'KAYIT LİSTESİ'!$B$4:$H$1280,5,0)),"",(VLOOKUP(K113,'KAYIT LİSTESİ'!$B$4:$H$1280,5,0))) ->  | O113: =IF(ISERROR(VLOOKUP(K113,'KAYIT LİSTESİ'!$B$4:$H$1280,6,0)),"",(VLOOKUP(K113,'KAYIT LİSTESİ'!$B$4:$H$1280,6,0))) -> 
A114: 12 | B114: 1500M-2-12 | C114: =IF(ISERROR(VLOOKUP(B114,'KAYIT LİSTESİ'!$B$4:$H$1280,2,0)),"",(VLOOKUP(B114,'KAYIT LİSTESİ'!$B$4:$H$1280,2,0))) ->  | D114: =IF(ISERROR(VLOOKUP(B114,'KAYIT LİSTESİ'!$B$4:$H$1280,4,0)),"",(VLOOKUP(B114,'KAYIT LİSTESİ'!$B$4:$H$1280,4,0))) ->  | E114: =IF(ISERROR(VLOOKUP(B114,'KAYIT LİSTESİ'!$B$4:$H$1280,5,0)),"",(VLOOKUP(B114,'KAYIT LİSTESİ'!$B$4:$H$1280,5,0))) ->  | F114: =IF(ISERROR(VLOOKUP(B114,'KAYIT LİSTESİ'!$B$4:$H$1280,6,0)),"",(VLOOKUP(B114,'KAYIT LİSTESİ'!$B$4:$H$1280,6,0))) ->  | J114: 39 | K114: GÜLLE-39 | L114: =IF(ISERROR(VLOOKUP(K114,'KAYIT LİSTESİ'!$B$4:$H$1280,2,0)),"",(VLOOKUP(K114,'KAYIT LİSTESİ'!$B$4:$H$1280,2,0))) ->  | M114: =IF(ISERROR(VLOOKUP(K114,'KAYIT LİSTESİ'!$B$4:$H$1280,4,0)),"",(VLOOKUP(K114,'KAYIT LİSTESİ'!$B$4:$H$1280,4,0))) ->  | N114: =IF(ISERROR(VLOOKUP(K114,'KAYIT LİSTESİ'!$B$4:$H$1280,5,0)),"",(VLOOKUP(K114,'KAYIT LİSTESİ'!$B$4:$H$1280,5,0))) ->  | O114: =IF(ISERROR(VLOOKUP(K114,'KAYIT LİSTESİ'!$B$4:$H$1280,6,0)),"",(VLOOKUP(K114,'KAYIT LİSTESİ'!$B$4:$H$1280,6,0))) -> 
A115: 3. SERİ | J115: 40 | K115: GÜLLE-40 | L115: =IF(ISERROR(VLOOKUP(K115,'KAYIT LİSTESİ'!$B$4:$H$1280,2,0)),"",(VLOOKUP(K115,'KAYIT LİSTESİ'!$B$4:$H$1280,2,0))) ->  | M115: =IF(ISERROR(VLOOKUP(K115,'KAYIT LİSTESİ'!$B$4:$H$1280,4,0)),"",(VLOOKUP(K115,'KAYIT LİSTESİ'!$B$4:$H$1280,4,0))) ->  | N115: =IF(ISERROR(VLOOKUP(K115,'KAYIT LİSTESİ'!$B$4:$H$1280,5,0)),"",(VLOOKUP(K115,'KAYIT LİSTESİ'!$B$4:$H$1280,5,0))) ->  | O115: =IF(ISERROR(VLOOKUP(K115,'KAYIT LİSTESİ'!$B$4:$H$1280,6,0)),"",(VLOOKUP(K115,'KAYIT LİSTESİ'!$B$4:$H$1280,6,0))) -> 
A116: Sıra No | B116: Formül | C116: Göğüs No | D116: Doğum Tarihi | E116: Adı ve Soyadı | F116: Okulu | G116: Start Kontrol | J116: UZUN ATLAMA
A117: 1 | B117: 1500M-3-1 | C117: =IF(ISERROR(VLOOKUP(B117,'KAYIT LİSTESİ'!$B$4:$H$1280,2,0)),"",(VLOOKUP(B117,'KAYIT LİSTESİ'!$B$4:$H$1280,2,0))) ->  | D117: =IF(ISERROR(VLOOKUP(B117,'KAYIT LİSTESİ'!$B$4:$H$1280,4,0)),"",(VLOOKUP(B117,'KAYIT LİSTESİ'!$B$4:$H$1280,4,0))) ->  | E117: =IF(ISERROR(VLOOKUP(B117,'KAYIT LİSTESİ'!$B$4:$H$1280,5,0)),"",(VLOOKUP(B117,'KAYIT LİSTESİ'!$B$4:$H$1280,5,0))) ->  | F117: =IF(ISERROR(VLOOKUP(B117,'KAYIT LİSTESİ'!$B$4:$H$1280,6,0)),"",(VLOOKUP(B117,'KAYIT LİSTESİ'!$B$4:$H$1280,6,0))) ->  | J117: SIRA NO | L117: GÖĞÜS NO | M117: DOĞUM TARİHİ | N117: ADI VE SOYADI | O117: OKULU | P117: Start Kontrol
A118: 2 | B118: 1500M-3-2 | C118: =IF(ISERROR(VLOOKUP(B118,'KAYIT LİSTESİ'!$B$4:$H$1280,2,0)),"",(VLOOKUP(B118,'KAYIT LİSTESİ'!$B$4:$H$1280,2,0))) ->  | D118: =IF(ISERROR(VLOOKUP(B118,'KAYIT LİSTESİ'!$B$4:$H$1280,4,0)),"",(VLOOKUP(B118,'KAYIT LİSTESİ'!$B$4:$H$1280,4,0))) ->  | E118: =IF(ISERROR(VLOOKUP(B118,'KAYIT LİSTESİ'!$B$4:$H$1280,5,0)),"",(VLOOKUP(B118,'KAYIT LİSTESİ'!$B$4:$H$1280,5,0))) ->  | F118: =IF(ISERROR(VLOOKUP(B118,'KAYIT LİSTESİ'!$B$4:$H$1280,6,0)),"",(VLOOKUP(B118,'KAYIT LİSTESİ'!$B$4:$H$1280,6,0))) -> 
A119: 3 | B119: 1500M-3-3 | C119: =IF(ISERROR(VLOOKUP(B119,'KAYIT LİSTESİ'!$B$4:$H$1280,2,0)),"",(VLOOKUP(B119,'KAYIT LİSTESİ'!$B$4:$H$1280,2,0))) ->  | D119: =IF(ISERROR(VLOOKUP(B119,'KAYIT LİSTESİ'!$B$4:$H$1280,4,0)),"",(VLOOKUP(B119,'KAYIT LİSTESİ'!$B$4:$H$1280,4,0))) ->  | E119: =IF(ISERROR(VLOOKUP(B119,'KAYIT LİSTESİ'!$B$4:$H$1280,5,0)),"",(VLOOKUP(B119,'KAYIT LİSTESİ'!$B$4:$H$1280,5,0))) ->  | F119: =IF(ISERROR(VLOOKUP(B119,'KAYIT LİSTESİ'!$B$4:$H$1280,6,0)),"",(VLOOKUP(B119,'KAYIT LİSTESİ'!$B$4:$H$1280,6,0))) ->  | J119: 1 | K119: UZUN-1 | L119: =IF(ISERROR(VLOOKUP(K119,'KAYIT LİSTESİ'!$B$4:$H$1280,2,0)),"",(VLOOKUP(K119,'KAYIT LİSTESİ'!$B$4:$H$1280,2,0))) -> 941 | M119: =IF(ISERROR(VLOOKUP(K119,'KAYIT LİSTESİ'!$B$4:$H$1280,4,0)),"",(VLOOKUP(K119,'KAYIT LİSTESİ'!$B$4:$H$1280,4,0))) -> 1983-03-18 | N119: =IF(ISERROR(VLOOKUP(K119,'KAYIT LİSTESİ'!$B$4:$H$1280,5,0)),"",(VLOOKUP(K119,'KAYIT LİSTESİ'!$B$4:$H$1280,5,0))) -> MUSA ALTIN | O119: =IF(ISERROR(VLOOKUP(K119,'KAYIT LİSTESİ'!$B$4:$H$1280,6,0)),"",(VLOOKUP(K119,'KAYIT LİSTESİ'!$B$4:$H$1280,6,0))) -> ANKARA
A120: 4 | B120: 1500M-3-4 | C120: =IF(ISERROR(VLOOKUP(B120,'KAYIT LİSTESİ'!$B$4:$H$1280,2,0)),"",(VLOOKUP(B120,'KAYIT LİSTESİ'!$B$4:$H$1280,2,0))) ->  | D120: =IF(ISERROR(VLOOKUP(B120,'KAYIT LİSTESİ'!$B$4:$H$1280,4,0)),"",(VLOOKUP(B120,'KAYIT LİSTESİ'!$B$4:$H$1280,4,0))) ->  | E120: =IF(ISERROR(VLOOKUP(B120,'KAYIT LİSTESİ'!$B$4:$H$1280,5,0)),"",(VLOOKUP(B120,'KAYIT LİSTESİ'!$B$4:$H$1280,5,0))) ->  | F120: =IF(ISERROR(VLOOKUP(B120,'KAYIT LİSTESİ'!$B$4:$H$1280,6,0)),"",(VLOOKUP(B120,'KAYIT LİSTESİ'!$B$4:$H$1280,6,0))) ->  | J120: 2 | K120: UZUN-2 | L120: =IF(ISERROR(VLOOKUP(K120,'KAYIT LİSTESİ'!$B$4:$H$1280,2,0)),"",(VLOOKUP(K120,'KAYIT LİSTESİ'!$B$4:$H$1280,2,0))) -> 945 | M120: =IF(ISERROR(VLOOKUP(K120,'KAYIT LİSTESİ'!$B$4:$H$1280,4,0)),"",(VLOOKUP(K120,'KAYIT LİSTESİ'!$B$4:$H$1280,4,0))) -> 1995-01-01 | N120: =IF(ISERROR(VLOOKUP(K120,'KAYIT LİSTESİ'!$B$4:$H$1280,5,0)),"",(VLOOKUP(K120,'KAYIT LİSTESİ'!$B$4:$H$1280,5,0))) -> OĞULCAN DÜZYURT | O120: =IF(ISERROR(VLOOKUP(K120,'KAYIT LİSTESİ'!$B$4:$H$1280,6,0)),"",(VLOOKUP(K120,'KAYIT LİSTESİ'!$B$4:$H$1280,6,0))) -> ANKARA
A121: 5 | B121: 1500M-3-5 | C121: =IF(ISERROR(VLOOKUP(B121,'KAYIT LİSTESİ'!$B$4:$H$1280,2,0)),"",(VLOOKUP(B121,'KAYIT LİSTESİ'!$B$4:$H$1280,2,0))) ->  | D121: =IF(ISERROR(VLOOKUP(B121,'KAYIT LİSTESİ'!$B$4:$H$1280,4,0)),"",(VLOOKUP(B121,'KAYIT LİSTESİ'!$B$4:$H$1280,4,0))) ->  | E121: =IF(ISERROR(VLOOKUP(B121,'KAYIT LİSTESİ'!$B$4:$H$1280,5,0)),"",(VLOOKUP(B121,'KAYIT LİSTESİ'!$B$4:$H$1280,5,0))) ->  | F121: =IF(ISERROR(VLOOKUP(B121,'KAYIT LİSTESİ'!$B$4:$H$1280,6,0)),"",(VLOOKUP(B121,'KAYIT LİSTESİ'!$B$4:$H$1280,6,0))) ->  | J121: 3 | K121: UZUN-3 | L121: =IF(ISERROR(VLOOKUP(K121,'KAYIT LİSTESİ'!$B$4:$H$1280,2,0)),"",(VLOOKUP(K121,'KAYIT LİSTESİ'!$B$4:$H$1280,2,0))) -> 945 | M121: =IF(ISERROR(VLOOKUP(K121,'KAYIT LİSTESİ'!$B$4:$H$1280,4,0)),"",(VLOOKUP(K121,'KAYIT LİSTESİ'!$B$4:$H$1280,4,0))) -> 11.01.1995 | N121: =IF(ISERROR(VLOOKUP(K121,'KAYIT LİSTESİ'!$B$4:$H$1280,5,0)),"",(VLOOKUP(K121,'KAYIT LİSTESİ'!$B$4:$H$1280,5,0))) -> OĞULCAN DÜZYURT | O121: =IF(ISERROR(VLOOKUP(K121,'KAYIT LİSTESİ'!$B$4:$H$1280,6,0)),"",(VLOOKUP(K121,'KAYIT LİSTESİ'!$B$4:$H$1280,6,0))) -> ANKARA
A122: 6 | B122: 1500M-3-6 | C122: =IF(ISERROR(VLOOKUP(B122,'KAYIT LİSTESİ'!$B$4:$H$1280,2,0)),"",(VLOOKUP(B122,'KAYIT LİSTESİ'!$B$4:$H$1280,2,0))) ->  | D122: =IF(ISERROR(VLOOKUP(B122,'KAYIT LİSTESİ'!$B$4:$H$1280,4,0)),"",(VLOOKUP(B122,'KAYIT LİSTESİ'!$B$4:$H$1280,4,0))) ->  | E122: =IF(ISERROR(VLOOKUP(B122,'KAYIT LİSTESİ'!$B$4:$H$1280,5,0)),"",(VLOOKUP(B122,'KAYIT LİSTESİ'!$B$4:$H$1280,5,0))) ->  | F122: =IF(ISERROR(VLOOKUP(B122,'KAYIT LİSTESİ'!$B$4:$H$1280,6,0)),"",(VLOOKUP(B122,'KAYIT LİSTESİ'!$B$4:$H$1280,6,0))) ->  | J122: 4 | K122: UZUN-4 | L122: =IF(ISERROR(VLOOKUP(K122,'KAYIT LİSTESİ'!$B$4:$H$1280,2,0)),"",(VLOOKUP(K122,'KAYIT LİSTESİ'!$B$4:$H$1280,2,0))) -> 494 | M122: =IF(ISERROR(VLOOKUP(K122,'KAYIT LİSTESİ'!$B$4:$H$1280,4,0)),"",(VLOOKUP(K122,'KAYIT LİSTESİ'!$B$4:$H$1280,4,0))) -> 1992-04-06 | N122: =IF(ISERROR(VLOOKUP(K122,'KAYIT LİSTESİ'!$B$4:$H$1280,5,0)),"",(VLOOKUP(K122,'KAYIT LİSTESİ'!$B$4:$H$1280,5,0))) -> ALPER KULAKSIZ | O122: =IF(ISERROR(VLOOKUP(K122,'KAYIT LİSTESİ'!$B$4:$H$1280,6,0)),"",(VLOOKUP(K122,'KAYIT LİSTESİ'!$B$4:$H$1280,6,0))) -> İSTANBUL
A123: 7 | B123: 1500M-3-7 | C123: =IF(ISERROR(VLOOKUP(B123,'KAYIT LİSTESİ'!$B$4:$H$1280,2,0)),"",(VLOOKUP(B123,'KAYIT LİSTESİ'!$B$4:$H$1280,2,0))) ->  | D123: =IF(ISERROR(VLOOKUP(B123,'KAYIT LİSTESİ'!$B$4:$H$1280,4,0)),"",(VLOOKUP(B123,'KAYIT LİSTESİ'!$B$4:$H$1280,4,0))) ->  | E123: =IF(ISERROR(VLOOKUP(B123,'KAYIT LİSTESİ'!$B$4:$H$1280,5,0)),"",(VLOOKUP(B123,'KAYIT LİSTESİ'!$B$4:$H$1280,5,0))) ->  | F123: =IF(ISERROR(VLOOKUP(B123,'KAYIT LİSTESİ'!$B$4:$H$1280,6,0)),"",(VLOOKUP(B123,'KAYIT LİSTESİ'!$B$4:$H$1280,6,0))) ->  | J123: 5 | K123: UZUN-5 | L123: =IF(ISERROR(VLOOKUP(K123,'KAYIT LİSTESİ'!$B$4:$H$1280,2,0)),"",(VLOOKUP(K123,'KAYIT LİSTESİ'!$B$4:$H$1280,2,0))) -> 333 | M123: =IF(ISERROR(VLOOKUP(K123,'KAYIT LİSTESİ'!$B$4:$H$1280,4,0)),"",(VLOOKUP(K123,'KAYIT LİSTESİ'!$B$4:$H$1280,4,0))) -> 1995-01-01 | N123: =IF(ISERROR(VLOOKUP(K123,'KAYIT LİSTESİ'!$B$4:$H$1280,5,0)),"",(VLOOKUP(K123,'KAYIT LİSTESİ'!$B$4:$H$1280,5,0))) -> MUHAMMER DEMİR | O123: =IF(ISERROR(VLOOKUP(K123,'KAYIT LİSTESİ'!$B$4:$H$1280,6,0)),"",(VLOOKUP(K123,'KAYIT LİSTESİ'!$B$4:$H$1280,6,0))) -> İZMİR
A124: 8 | B124: 1500M-3-8 | C124: =IF(ISERROR(VLOOKUP(B124,'KAYIT LİSTESİ'!$B$4:$H$1280,2,0)),"",(VLOOKUP(B124,'KAYIT LİSTESİ'!$B$4:$H$1280,2,0))) ->  | D124: =IF(ISERROR(VLOOKUP(B124,'KAYIT LİSTESİ'!$B$4:$H$1280,4,0)),"",(VLOOKUP(B124,'KAYIT LİSTESİ'!$B$4:$H$1280,4,0))) ->  | E124: =IF(ISERROR(VLOOKUP(B124,'KAYIT LİSTESİ'!$B$4:$H$1280,5,0)),"",(VLOOKUP(B124,'KAYIT LİSTESİ'!$B$4:$H$1280,5,0))) ->  | F124: =IF(ISERROR(VLOOKUP(B124,'KAYIT LİSTESİ'!$B$4:$H$1280,6,0)),"",(VLOOKUP(B124,'KAYIT LİSTESİ'!$B$4:$H$1280,6,0))) ->  | J124: 6 | K124: UZUN-6 | L124: =IF(ISERROR(VLOOKUP(K124,'KAYIT LİSTESİ'!$B$4:$H$1280,2,0)),"",(VLOOKUP(K124,'KAYIT LİSTESİ'!$B$4:$H$1280,2,0))) -> 999 | M124: =IF(ISERROR(VLOOKUP(K124,'KAYIT LİSTESİ'!$B$4:$H$1280,4,0)),"",(VLOOKUP(K124,'KAYIT LİSTESİ'!$B$4:$H$1280,4,0))) -> 1991-01-01 | N124: =IF(ISERROR(VLOOKUP(K124,'KAYIT LİSTESİ'!$B$4:$H$1280,5,0)),"",(VLOOKUP(K124,'KAYIT LİSTESİ'!$B$4:$H$1280,5,0))) -> İVAN PAKİN | O124: =IF(ISERROR(VLOOKUP(K124,'KAYIT LİSTESİ'!$B$4:$H$1280,6,0)),"",(VLOOKUP(K124,'KAYIT LİSTESİ'!$B$4:$H$1280,6,0))) -> MERSİN
A125: 9 | B125: 1500M-3-9 | C125: =IF(ISERROR(VLOOKUP(B125,'KAYIT LİSTESİ'!$B$4:$H$1280,2,0)),"",(VLOOKUP(B125,'KAYIT LİSTESİ'!$B$4:$H$1280,2,0))) ->  | D125: =IF(ISERROR(VLOOKUP(B125,'KAYIT LİSTESİ'!$B$4:$H$1280,4,0)),"",(VLOOKUP(B125,'KAYIT LİSTESİ'!$B$4:$H$1280,4,0))) ->  | E125: =IF(ISERROR(VLOOKUP(B125,'KAYIT LİSTESİ'!$B$4:$H$1280,5,0)),"",(VLOOKUP(B125,'KAYIT LİSTESİ'!$B$4:$H$1280,5,0))) ->  | F125: =IF(ISERROR(VLOOKUP(B125,'KAYIT LİSTESİ'!$B$4:$H$1280,6,0)),"",(VLOOKUP(B125,'KAYIT LİSTESİ'!$B$4:$H$1280,6,0))) ->  | J125: 7 | K125: UZUN-7 | L125: =IF(ISERROR(VLOOKUP(K125,'KAYIT LİSTESİ'!$B$4:$H$1280,2,0)),"",(VLOOKUP(K125,'KAYIT LİSTESİ'!$B$4:$H$1280,2,0))) -> 610 | M125: =IF(ISERROR(VLOOKUP(K125,'KAYIT LİSTESİ'!$B$4:$H$1280,4,0)),"",(VLOOKUP(K125,'KAYIT LİSTESİ'!$B$4:$H$1280,4,0))) -> 1981-03-07 | N125: =IF(ISERROR(VLOOKUP(K125,'KAYIT LİSTESİ'!$B$4:$H$1280,5,0)),"",(VLOOKUP(K125,'KAYIT LİSTESİ'!$B$4:$H$1280,5,0))) -> İSMAILASLAN | O125: =IF(ISERROR(VLOOKUP(K125,'KAYIT LİSTESİ'!$B$4:$H$1280,6,0)),"",(VLOOKUP(K125,'KAYIT LİSTESİ'!$B$4:$H$1280,6,0))) -> MERSİN
A126: 10 | B126: 1500M-3-10 | C126: =IF(ISERROR(VLOOKUP(B126,'KAYIT LİSTESİ'!$B$4:$H$1280,2,0)),"",(VLOOKUP(B126,'KAYIT LİSTESİ'!$B$4:$H$1280,2,0))) ->  | D126: =IF(ISERROR(VLOOKUP(B126,'KAYIT LİSTESİ'!$B$4:$H$1280,4,0)),"",(VLOOKUP(B126,'KAYIT LİSTESİ'!$B$4:$H$1280,4,0))) ->  | E126: =IF(ISERROR(VLOOKUP(B126,'KAYIT LİSTESİ'!$B$4:$H$1280,5,0)),"",(VLOOKUP(B126,'KAYIT LİSTESİ'!$B$4:$H$1280,5,0))) ->  | F126: =IF(ISERROR(VLOOKUP(B126,'KAYIT LİSTESİ'!$B$4:$H$1280,6,0)),"",(VLOOKUP(B126,'KAYIT LİSTESİ'!$B$4:$H$1280,6,0))) ->  | J126: 8 | K126: UZUN-8 | L126: =IF(ISERROR(VLOOKUP(K126,'KAYIT LİSTESİ'!$B$4:$H$1280,2,0)),"",(VLOOKUP(K126,'KAYIT LİSTESİ'!$B$4:$H$1280,2,0))) ->  | M126: =IF(ISERROR(VLOOKUP(K126,'KAYIT LİSTESİ'!$B$4:$H$1280,4,0)),"",(VLOOKUP(K126,'KAYIT LİSTESİ'!$B$4:$H$1280,4,0))) ->  | N126: =IF(ISERROR(VLOOKUP(K126,'KAYIT LİSTESİ'!$B$4:$H$1280,5,0)),"",(VLOOKUP(K126,'KAYIT LİSTESİ'!$B$4:$H$1280,5,0))) ->  | O126: =IF(ISERROR(VLOOKUP(K126,'KAYIT LİSTESİ'!$B$4:$H$1280,6,0)),"",(VLOOKUP(K126,'KAYIT LİSTESİ'!$B$4:$H$1280,6,0))) -> 
A127: 11 | B127: 1500M-3-11 | C127: =IF(ISERROR(VLOOKUP(B127,'KAYIT LİSTESİ'!$B$4:$H$1280,2,0)),"",(VLOOKUP(B127,'KAYIT LİSTESİ'!$B$4:$H$1280,2,0))) ->  | D127: =IF(ISERROR(VLOOKUP(B127,'KAYIT LİSTESİ'!$B$4:$H$1280,4,0)),"",(VLOOKUP(B127,'KAYIT LİSTESİ'!$B$4:$H$1280,4,0))) ->  | E127: =IF(ISERROR(VLOOKUP(B127,'KAYIT LİSTESİ'!$B$4:$H$1280,5,0)),"",(VLOOKUP(B127,'KAYIT LİSTESİ'!$B$4:$H$1280,5,0))) ->  | F127: =IF(ISERROR(VLOOKUP(B127,'KAYIT LİSTESİ'!$B$4:$H$1280,6,0)),"",(VLOOKUP(B127,'KAYIT LİSTESİ'!$B$4:$H$1280,6,0))) ->  | J127: 9 | K127: UZUN-9 | L127: =IF(ISERROR(VLOOKUP(K127,'KAYIT LİSTESİ'!$B$4:$H$1280,2,0)),"",(VLOOKUP(K127,'KAYIT LİSTESİ'!$B$4:$H$1280,2,0))) ->  | M127: =IF(ISERROR(VLOOKUP(K127,'KAYIT LİSTESİ'!$B$4:$H$1280,4,0)),"",(VLOOKUP(K127,'KAYIT LİSTESİ'!$B$4:$H$1280,4,0))) ->  | N127: =IF(ISERROR(VLOOKUP(K127,'KAYIT LİSTESİ'!$B$4:$H$1280,5,0)),"",(VLOOKUP(K127,'KAYIT LİSTESİ'!$B$4:$H$1280,5,0))) ->  | O127: =IF(ISERROR(VLOOKUP(K127,'KAYIT LİSTESİ'!$B$4:$H$1280,6,0)),"",(VLOOKUP(K127,'KAYIT LİSTESİ'!$B$4:$H$1280,6,0))) -> 
A128: 12 | B128: 1500M-3-12 | C128: =IF(ISERROR(VLOOKUP(B128,'KAYIT LİSTESİ'!$B$4:$H$1280,2,0)),"",(VLOOKUP(B128,'KAYIT LİSTESİ'!$B$4:$H$1280,2,0))) ->  | D128: =IF(ISERROR(VLOOKUP(B128,'KAYIT LİSTESİ'!$B$4:$H$1280,4,0)),"",(VLOOKUP(B128,'KAYIT LİSTESİ'!$B$4:$H$1280,4,0))) ->  | E128: =IF(ISERROR(VLOOKUP(B128,'KAYIT LİSTESİ'!$B$4:$H$1280,5,0)),"",(VLOOKUP(B128,'KAYIT LİSTESİ'!$B$4:$H$1280,5,0))) ->  | F128: =IF(ISERROR(VLOOKUP(B128,'KAYIT LİSTESİ'!$B$4:$H$1280,6,0)),"",(VLOOKUP(B128,'KAYIT LİSTESİ'!$B$4:$H$1280,6,0))) ->  | J128: 10 | K128: UZUN-10 | L128: =IF(ISERROR(VLOOKUP(K128,'KAYIT LİSTESİ'!$B$4:$H$1280,2,0)),"",(VLOOKUP(K128,'KAYIT LİSTESİ'!$B$4:$H$1280,2,0))) ->  | M128: =IF(ISERROR(VLOOKUP(K128,'KAYIT LİSTESİ'!$B$4:$H$1280,4,0)),"",(VLOOKUP(K128,'KAYIT LİSTESİ'!$B$4:$H$1280,4,0))) ->  | N128: =IF(ISERROR(VLOOKUP(K128,'KAYIT LİSTESİ'!$B$4:$H$1280,5,0)),"",(VLOOKUP(K128,'KAYIT LİSTESİ'!$B$4:$H$1280,5,0))) ->  | O128: =IF(ISERROR(VLOOKUP(K128,'KAYIT LİSTESİ'!$B$4:$H$1280,6,0)),"",(VLOOKUP(K128,'KAYIT LİSTESİ'!$B$4:$H$1280,6,0))) -> 
A129: 4. SERİ | J129: 11 | K129: UZUN-11 | L129: =IF(ISERROR(VLOOKUP(K129,'KAYIT LİSTESİ'!$B$4:$H$1280,2,0)),"",(VLOOKUP(K129,'KAYIT LİSTESİ'!$B$4:$H$1280,2,0))) ->  | M129: =IF(ISERROR(VLOOKUP(K129,'KAYIT LİSTESİ'!$B$4:$H$1280,4,0)),"",(VLOOKUP(K129,'KAYIT LİSTESİ'!$B$4:$H$1280,4,0))) ->  | N129: =IF(ISERROR(VLOOKUP(K129,'KAYIT LİSTESİ'!$B$4:$H$1280,5,0)),"",(VLOOKUP(K129,'KAYIT LİSTESİ'!$B$4:$H$1280,5,0))) ->  | O129: =IF(ISERROR(VLOOKUP(K129,'KAYIT LİSTESİ'!$B$4:$H$1280,6,0)),"",(VLOOKUP(K129,'KAYIT LİSTESİ'!$B$4:$H$1280,6,0))) -> 
A130: Sıra No | B130: Formül | C130: Göğüs No | D130: Doğum Tarihi | E130: Adı ve Soyadı | F130: Okulu | G130: Start Kontrol | J130: 12 | K130: UZUN-12 | L130: =IF(ISERROR(VLOOKUP(K130,'KAYIT LİSTESİ'!$B$4:$H$1280,2,0)),"",(VLOOKUP(K130,'KAYIT LİSTESİ'!$B$4:$H$1280,2,0))) ->  | M130: =IF(ISERROR(VLOOKUP(K130,'KAYIT LİSTESİ'!$B$4:$H$1280,4,0)),"",(VLOOKUP(K130,'KAYIT LİSTESİ'!$B$4:$H$1280,4,0))) ->  | N130: =IF(ISERROR(VLOOKUP(K130,'KAYIT LİSTESİ'!$B$4:$H$1280,5,0)),"",(VLOOKUP(K130,'KAYIT LİSTESİ'!$B$4:$H$1280,5,0))) ->  | O130: =IF(ISERROR(VLOOKUP(K130,'KAYIT LİSTESİ'!$B$4:$H$1280,6,0)),"",(VLOOKUP(K130,'KAYIT LİSTESİ'!$B$4:$H$1280,6,0))) -> 
A131: 1 | B131: 1500M-4-1 | C131: =IF(ISERROR(VLOOKUP(B131,'KAYIT LİSTESİ'!$B$4:$H$1280,2,0)),"",(VLOOKUP(B131,'KAYIT LİSTESİ'!$B$4:$H$1280,2,0))) ->  | D131: =IF(ISERROR(VLOOKUP(B131,'KAYIT LİSTESİ'!$B$4:$H$1280,4,0)),"",(VLOOKUP(B131,'KAYIT LİSTESİ'!$B$4:$H$1280,4,0))) ->  | E131: =IF(ISERROR(VLOOKUP(B131,'KAYIT LİSTESİ'!$B$4:$H$1280,5,0)),"",(VLOOKUP(B131,'KAYIT LİSTESİ'!$B$4:$H$1280,5,0))) ->  | F131: =IF(ISERROR(VLOOKUP(B131,'KAYIT LİSTESİ'!$B$4:$H$1280,6,0)),"",(VLOOKUP(B131,'KAYIT LİSTESİ'!$B$4:$H$1280,6,0))) ->  | J131: 13 | K131: UZUN-13 | L131: =IF(ISERROR(VLOOKUP(K131,'KAYIT LİSTESİ'!$B$4:$H$1280,2,0)),"",(VLOOKUP(K131,'KAYIT LİSTESİ'!$B$4:$H$1280,2,0))) ->  | M131: =IF(ISERROR(VLOOKUP(K131,'KAYIT LİSTESİ'!$B$4:$H$1280,4,0)),"",(VLOOKUP(K131,'KAYIT LİSTESİ'!$B$4:$H$1280,4,0))) ->  | N131: =IF(ISERROR(VLOOKUP(K131,'KAYIT LİSTESİ'!$B$4:$H$1280,5,0)),"",(VLOOKUP(K131,'KAYIT LİSTESİ'!$B$4:$H$1280,5,0))) ->  | O131: =IF(ISERROR(VLOOKUP(K131,'KAYIT LİSTESİ'!$B$4:$H$1280,6,0)),"",(VLOOKUP(K131,'KAYIT LİSTESİ'!$B$4:$H$1280,6,0))) -> 
A132: 2 | B132: 1500M-4-2 | C132: =IF(ISERROR(VLOOKUP(B132,'KAYIT LİSTESİ'!$B$4:$H$1280,2,0)),"",(VLOOKUP(B132,'KAYIT LİSTESİ'!$B$4:$H$1280,2,0))) ->  | D132: =IF(ISERROR(VLOOKUP(B132,'KAYIT LİSTESİ'!$B$4:$H$1280,4,0)),"",(VLOOKUP(B132,'KAYIT LİSTESİ'!$B$4:$H$1280,4,0))) ->  | E132: =IF(ISERROR(VLOOKUP(B132,'KAYIT LİSTESİ'!$B$4:$H$1280,5,0)),"",(VLOOKUP(B132,'KAYIT LİSTESİ'!$B$4:$H$1280,5,0))) ->  | F132: =IF(ISERROR(VLOOKUP(B132,'KAYIT LİSTESİ'!$B$4:$H$1280,6,0)),"",(VLOOKUP(B132,'KAYIT LİSTESİ'!$B$4:$H$1280,6,0))) ->  | J132: 14 | K132: UZUN-14 | L132: =IF(ISERROR(VLOOKUP(K132,'KAYIT LİSTESİ'!$B$4:$H$1280,2,0)),"",(VLOOKUP(K132,'KAYIT LİSTESİ'!$B$4:$H$1280,2,0))) ->  | M132: =IF(ISERROR(VLOOKUP(K132,'KAYIT LİSTESİ'!$B$4:$H$1280,4,0)),"",(VLOOKUP(K132,'KAYIT LİSTESİ'!$B$4:$H$1280,4,0))) ->  | N132: =IF(ISERROR(VLOOKUP(K132,'KAYIT LİSTESİ'!$B$4:$H$1280,5,0)),"",(VLOOKUP(K132,'KAYIT LİSTESİ'!$B$4:$H$1280,5,0))) ->  | O132: =IF(ISERROR(VLOOKUP(K132,'KAYIT LİSTESİ'!$B$4:$H$1280,6,0)),"",(VLOOKUP(K132,'KAYIT LİSTESİ'!$B$4:$H$1280,6,0))) -> 
A133: 3 | B133: 1500M-4-3 | C133: =IF(ISERROR(VLOOKUP(B133,'KAYIT LİSTESİ'!$B$4:$H$1280,2,0)),"",(VLOOKUP(B133,'KAYIT LİSTESİ'!$B$4:$H$1280,2,0))) ->  | D133: =IF(ISERROR(VLOOKUP(B133,'KAYIT LİSTESİ'!$B$4:$H$1280,4,0)),"",(VLOOKUP(B133,'KAYIT LİSTESİ'!$B$4:$H$1280,4,0))) ->  | E133: =IF(ISERROR(VLOOKUP(B133,'KAYIT LİSTESİ'!$B$4:$H$1280,5,0)),"",(VLOOKUP(B133,'KAYIT LİSTESİ'!$B$4:$H$1280,5,0))) ->  | F133: =IF(ISERROR(VLOOKUP(B133,'KAYIT LİSTESİ'!$B$4:$H$1280,6,0)),"",(VLOOKUP(B133,'KAYIT LİSTESİ'!$B$4:$H$1280,6,0))) ->  | J133: 15 | K133: UZUN-15 | L133: =IF(ISERROR(VLOOKUP(K133,'KAYIT LİSTESİ'!$B$4:$H$1280,2,0)),"",(VLOOKUP(K133,'KAYIT LİSTESİ'!$B$4:$H$1280,2,0))) ->  | M133: =IF(ISERROR(VLOOKUP(K133,'KAYIT LİSTESİ'!$B$4:$H$1280,4,0)),"",(VLOOKUP(K133,'KAYIT LİSTESİ'!$B$4:$H$1280,4,0))) ->  | N133: =IF(ISERROR(VLOOKUP(K133,'KAYIT LİSTESİ'!$B$4:$H$1280,5,0)),"",(VLOOKUP(K133,'KAYIT LİSTESİ'!$B$4:$H$1280,5,0))) ->  | O133: =IF(ISERROR(VLOOKUP(K133,'KAYIT LİSTESİ'!$B$4:$H$1280,6,0)),"",(VLOOKUP(K133,'KAYIT LİSTESİ'!$B$4:$H$1280,6,0))) -> 
A134: 4 | B134: 1500M-4-4 | C134: =IF(ISERROR(VLOOKUP(B134,'KAYIT LİSTESİ'!$B$4:$H$1280,2,0)),"",(VLOOKUP(B134,'KAYIT LİSTESİ'!$B$4:$H$1280,2,0))) ->  | D134: =IF(ISERROR(VLOOKUP(B134,'KAYIT LİSTESİ'!$B$4:$H$1280,4,0)),"",(VLOOKUP(B134,'KAYIT LİSTESİ'!$B$4:$H$1280,4,0))) ->  | E134: =IF(ISERROR(VLOOKUP(B134,'KAYIT LİSTESİ'!$B$4:$H$1280,5,0)),"",(VLOOKUP(B134,'KAYIT LİSTESİ'!$B$4:$H$1280,5,0))) ->  | F134: =IF(ISERROR(VLOOKUP(B134,'KAYIT LİSTESİ'!$B$4:$H$1280,6,0)),"",(VLOOKUP(B134,'KAYIT LİSTESİ'!$B$4:$H$1280,6,0))) ->  | J134: 16 | K134: UZUN-16 | L134: =IF(ISERROR(VLOOKUP(K134,'KAYIT LİSTESİ'!$B$4:$H$1280,2,0)),"",(VLOOKUP(K134,'KAYIT LİSTESİ'!$B$4:$H$1280,2,0))) ->  | M134: =IF(ISERROR(VLOOKUP(K134,'KAYIT LİSTESİ'!$B$4:$H$1280,4,0)),"",(VLOOKUP(K134,'KAYIT LİSTESİ'!$B$4:$H$1280,4,0))) ->  | N134: =IF(ISERROR(VLOOKUP(K134,'KAYIT LİSTESİ'!$B$4:$H$1280,5,0)),"",(VLOOKUP(K134,'KAYIT LİSTESİ'!$B$4:$H$1280,5,0))) ->  | O134: =IF(ISERROR(VLOOKUP(K134,'KAYIT LİSTESİ'!$B$4:$H$1280,6,0)),"",(VLOOKUP(K134,'KAYIT LİSTESİ'!$B$4:$H$1280,6,0))) -> 
A135: 5 | B135: 1500M-4-5 | C135: =IF(ISERROR(VLOOKUP(B135,'KAYIT LİSTESİ'!$B$4:$H$1280,2,0)),"",(VLOOKUP(B135,'KAYIT LİSTESİ'!$B$4:$H$1280,2,0))) ->  | D135: =IF(ISERROR(VLOOKUP(B135,'KAYIT LİSTESİ'!$B$4:$H$1280,4,0)),"",(VLOOKUP(B135,'KAYIT LİSTESİ'!$B$4:$H$1280,4,0))) ->  | E135: =IF(ISERROR(VLOOKUP(B135,'KAYIT LİSTESİ'!$B$4:$H$1280,5,0)),"",(VLOOKUP(B135,'KAYIT LİSTESİ'!$B$4:$H$1280,5,0))) ->  | F135: =IF(ISERROR(VLOOKUP(B135,'KAYIT LİSTESİ'!$B$4:$H$1280,6,0)),"",(VLOOKUP(B135,'KAYIT LİSTESİ'!$B$4:$H$1280,6,0))) ->  | J135: 17 | K135: UZUN-17 | L135: =IF(ISERROR(VLOOKUP(K135,'KAYIT LİSTESİ'!$B$4:$H$1280,2,0)),"",(VLOOKUP(K135,'KAYIT LİSTESİ'!$B$4:$H$1280,2,0))) ->  | M135: =IF(ISERROR(VLOOKUP(K135,'KAYIT LİSTESİ'!$B$4:$H$1280,4,0)),"",(VLOOKUP(K135,'KAYIT LİSTESİ'!$B$4:$H$1280,4,0))) ->  | N135: =IF(ISERROR(VLOOKUP(K135,'KAYIT LİSTESİ'!$B$4:$H$1280,5,0)),"",(VLOOKUP(K135,'KAYIT LİSTESİ'!$B$4:$H$1280,5,0))) ->  | O135: =IF(ISERROR(VLOOKUP(K135,'KAYIT LİSTESİ'!$B$4:$H$1280,6,0)),"",(VLOOKUP(K135,'KAYIT LİSTESİ'!$B$4:$H$1280,6,0))) -> 
A136: 6 | B136: 1500M-4-6 | C136: =IF(ISERROR(VLOOKUP(B136,'KAYIT LİSTESİ'!$B$4:$H$1280,2,0)),"",(VLOOKUP(B136,'KAYIT LİSTESİ'!$B$4:$H$1280,2,0))) ->  | D136: =IF(ISERROR(VLOOKUP(B136,'KAYIT LİSTESİ'!$B$4:$H$1280,4,0)),"",(VLOOKUP(B136,'KAYIT LİSTESİ'!$B$4:$H$1280,4,0))) ->  | E136: =IF(ISERROR(VLOOKUP(B136,'KAYIT LİSTESİ'!$B$4:$H$1280,5,0)),"",(VLOOKUP(B136,'KAYIT LİSTESİ'!$B$4:$H$1280,5,0))) ->  | F136: =IF(ISERROR(VLOOKUP(B136,'KAYIT LİSTESİ'!$B$4:$H$1280,6,0)),"",(VLOOKUP(B136,'KAYIT LİSTESİ'!$B$4:$H$1280,6,0))) ->  | J136: 18 | K136: UZUN-18 | L136: =IF(ISERROR(VLOOKUP(K136,'KAYIT LİSTESİ'!$B$4:$H$1280,2,0)),"",(VLOOKUP(K136,'KAYIT LİSTESİ'!$B$4:$H$1280,2,0))) ->  | M136: =IF(ISERROR(VLOOKUP(K136,'KAYIT LİSTESİ'!$B$4:$H$1280,4,0)),"",(VLOOKUP(K136,'KAYIT LİSTESİ'!$B$4:$H$1280,4,0))) ->  | N136: =IF(ISERROR(VLOOKUP(K136,'KAYIT LİSTESİ'!$B$4:$H$1280,5,0)),"",(VLOOKUP(K136,'KAYIT LİSTESİ'!$B$4:$H$1280,5,0))) ->  | O136: =IF(ISERROR(VLOOKUP(K136,'KAYIT LİSTESİ'!$B$4:$H$1280,6,0)),"",(VLOOKUP(K136,'KAYIT LİSTESİ'!$B$4:$H$1280,6,0))) -> 
A137: 7 | B137: 1500M-4-7 | C137: =IF(ISERROR(VLOOKUP(B137,'KAYIT LİSTESİ'!$B$4:$H$1280,2,0)),"",(VLOOKUP(B137,'KAYIT LİSTESİ'!$B$4:$H$1280,2,0))) ->  | D137: =IF(ISERROR(VLOOKUP(B137,'KAYIT LİSTESİ'!$B$4:$H$1280,4,0)),"",(VLOOKUP(B137,'KAYIT LİSTESİ'!$B$4:$H$1280,4,0))) ->  | E137: =IF(ISERROR(VLOOKUP(B137,'KAYIT LİSTESİ'!$B$4:$H$1280,5,0)),"",(VLOOKUP(B137,'KAYIT LİSTESİ'!$B$4:$H$1280,5,0))) ->  | F137: =IF(ISERROR(VLOOKUP(B137,'KAYIT LİSTESİ'!$B$4:$H$1280,6,0)),"",(VLOOKUP(B137,'KAYIT LİSTESİ'!$B$4:$H$1280,6,0))) ->  | J137: 19 | K137: UZUN-19 | L137: =IF(ISERROR(VLOOKUP(K137,'KAYIT LİSTESİ'!$B$4:$H$1280,2,0)),"",(VLOOKUP(K137,'KAYIT LİSTESİ'!$B$4:$H$1280,2,0))) ->  | M137: =IF(ISERROR(VLOOKUP(K137,'KAYIT LİSTESİ'!$B$4:$H$1280,4,0)),"",(VLOOKUP(K137,'KAYIT LİSTESİ'!$B$4:$H$1280,4,0))) ->  | N137: =IF(ISERROR(VLOOKUP(K137,'KAYIT LİSTESİ'!$B$4:$H$1280,5,0)),"",(VLOOKUP(K137,'KAYIT LİSTESİ'!$B$4:$H$1280,5,0))) ->  | O137: =IF(ISERROR(VLOOKUP(K137,'KAYIT LİSTESİ'!$B$4:$H$1280,6,0)),"",(VLOOKUP(K137,'KAYIT LİSTESİ'!$B$4:$H$1280,6,0))) -> 
A138: 8 | B138: 1500M-4-8 | C138: =IF(ISERROR(VLOOKUP(B138,'KAYIT LİSTESİ'!$B$4:$H$1280,2,0)),"",(VLOOKUP(B138,'KAYIT LİSTESİ'!$B$4:$H$1280,2,0))) ->  | D138: =IF(ISERROR(VLOOKUP(B138,'KAYIT LİSTESİ'!$B$4:$H$1280,4,0)),"",(VLOOKUP(B138,'KAYIT LİSTESİ'!$B$4:$H$1280,4,0))) ->  | E138: =IF(ISERROR(VLOOKUP(B138,'KAYIT LİSTESİ'!$B$4:$H$1280,5,0)),"",(VLOOKUP(B138,'KAYIT LİSTESİ'!$B$4:$H$1280,5,0))) ->  | F138: =IF(ISERROR(VLOOKUP(B138,'KAYIT LİSTESİ'!$B$4:$H$1280,6,0)),"",(VLOOKUP(B138,'KAYIT LİSTESİ'!$B$4:$H$1280,6,0))) ->  | J138: 20 | K138: UZUN-20 | L138: =IF(ISERROR(VLOOKUP(K138,'KAYIT LİSTESİ'!$B$4:$H$1280,2,0)),"",(VLOOKUP(K138,'KAYIT LİSTESİ'!$B$4:$H$1280,2,0))) ->  | M138: =IF(ISERROR(VLOOKUP(K138,'KAYIT LİSTESİ'!$B$4:$H$1280,4,0)),"",(VLOOKUP(K138,'KAYIT LİSTESİ'!$B$4:$H$1280,4,0))) ->  | N138: =IF(ISERROR(VLOOKUP(K138,'KAYIT LİSTESİ'!$B$4:$H$1280,5,0)),"",(VLOOKUP(K138,'KAYIT LİSTESİ'!$B$4:$H$1280,5,0))) ->  | O138: =IF(ISERROR(VLOOKUP(K138,'KAYIT LİSTESİ'!$B$4:$H$1280,6,0)),"",(VLOOKUP(K138,'KAYIT LİSTESİ'!$B$4:$H$1280,6,0))) -> 
A139: 9 | B139: 1500M-4-9 | C139: =IF(ISERROR(VLOOKUP(B139,'KAYIT LİSTESİ'!$B$4:$H$1280,2,0)),"",(VLOOKUP(B139,'KAYIT LİSTESİ'!$B$4:$H$1280,2,0))) ->  | D139: =IF(ISERROR(VLOOKUP(B139,'KAYIT LİSTESİ'!$B$4:$H$1280,4,0)),"",(VLOOKUP(B139,'KAYIT LİSTESİ'!$B$4:$H$1280,4,0))) ->  | E139: =IF(ISERROR(VLOOKUP(B139,'KAYIT LİSTESİ'!$B$4:$H$1280,5,0)),"",(VLOOKUP(B139,'KAYIT LİSTESİ'!$B$4:$H$1280,5,0))) ->  | F139: =IF(ISERROR(VLOOKUP(B139,'KAYIT LİSTESİ'!$B$4:$H$1280,6,0)),"",(VLOOKUP(B139,'KAYIT LİSTESİ'!$B$4:$H$1280,6,0))) ->  | J139: 21 | K139: UZUN-21 | L139: =IF(ISERROR(VLOOKUP(K139,'KAYIT LİSTESİ'!$B$4:$H$1280,2,0)),"",(VLOOKUP(K139,'KAYIT LİSTESİ'!$B$4:$H$1280,2,0))) ->  | M139: =IF(ISERROR(VLOOKUP(K139,'KAYIT LİSTESİ'!$B$4:$H$1280,4,0)),"",(VLOOKUP(K139,'KAYIT LİSTESİ'!$B$4:$H$1280,4,0))) ->  | N139: =IF(ISERROR(VLOOKUP(K139,'KAYIT LİSTESİ'!$B$4:$H$1280,5,0)),"",(VLOOKUP(K139,'KAYIT LİSTESİ'!$B$4:$H$1280,5,0))) ->  | O139: =IF(ISERROR(VLOOKUP(K139,'KAYIT LİSTESİ'!$B$4:$H$1280,6,0)),"",(VLOOKUP(K139,'KAYIT LİSTESİ'!$B$4:$H$1280,6,0))) -> 
A140: 10 | B140: 1500M-4-10 | C140: =IF(ISERROR(VLOOKUP(B140,'KAYIT LİSTESİ'!$B$4:$H$1280,2,0)),"",(VLOOKUP(B140,'KAYIT LİSTESİ'!$B$4:$H$1280,2,0))) ->  | D140: =IF(ISERROR(VLOOKUP(B140,'KAYIT LİSTESİ'!$B$4:$H$1280,4,0)),"",(VLOOKUP(B140,'KAYIT LİSTESİ'!$B$4:$H$1280,4,0))) ->  | E140: =IF(ISERROR(VLOOKUP(B140,'KAYIT LİSTESİ'!$B$4:$H$1280,5,0)),"",(VLOOKUP(B140,'KAYIT LİSTESİ'!$B$4:$H$1280,5,0))) ->  | F140: =IF(ISERROR(VLOOKUP(B140,'KAYIT LİSTESİ'!$B$4:$H$1280,6,0)),"",(VLOOKUP(B140,'KAYIT LİSTESİ'!$B$4:$H$1280,6,0))) ->  | J140: 22 | K140: UZUN-22 | L140: =IF(ISERROR(VLOOKUP(K140,'KAYIT LİSTESİ'!$B$4:$H$1280,2,0)),"",(VLOOKUP(K140,'KAYIT LİSTESİ'!$B$4:$H$1280,2,0))) ->  | M140: =IF(ISERROR(VLOOKUP(K140,'KAYIT LİSTESİ'!$B$4:$H$1280,4,0)),"",(VLOOKUP(K140,'KAYIT LİSTESİ'!$B$4:$H$1280,4,0))) ->  | N140: =IF(ISERROR(VLOOKUP(K140,'KAYIT LİSTESİ'!$B$4:$H$1280,5,0)),"",(VLOOKUP(K140,'KAYIT LİSTESİ'!$B$4:$H$1280,5,0))) ->  | O140: =IF(ISERROR(VLOOKUP(K140,'KAYIT LİSTESİ'!$B$4:$H$1280,6,0)),"",(VLOOKUP(K140,'KAYIT LİSTESİ'!$B$4:$H$1280,6,0))) -> 
A141: 11 | B141: 1500M-4-11 | C141: =IF(ISERROR(VLOOKUP(B141,'KAYIT LİSTESİ'!$B$4:$H$1280,2,0)),"",(VLOOKUP(B141,'KAYIT LİSTESİ'!$B$4:$H$1280,2,0))) ->  | D141: =IF(ISERROR(VLOOKUP(B141,'KAYIT LİSTESİ'!$B$4:$H$1280,4,0)),"",(VLOOKUP(B141,'KAYIT LİSTESİ'!$B$4:$H$1280,4,0))) ->  | E141: =IF(ISERROR(VLOOKUP(B141,'KAYIT LİSTESİ'!$B$4:$H$1280,5,0)),"",(VLOOKUP(B141,'KAYIT LİSTESİ'!$B$4:$H$1280,5,0))) ->  | F141: =IF(ISERROR(VLOOKUP(B141,'KAYIT LİSTESİ'!$B$4:$H$1280,6,0)),"",(VLOOKUP(B141,'KAYIT LİSTESİ'!$B$4:$H$1280,6,0))) ->  | J141: 23 | K141: UZUN-23 | L141: =IF(ISERROR(VLOOKUP(K141,'KAYIT LİSTESİ'!$B$4:$H$1280,2,0)),"",(VLOOKUP(K141,'KAYIT LİSTESİ'!$B$4:$H$1280,2,0))) ->  | M141: =IF(ISERROR(VLOOKUP(K141,'KAYIT LİSTESİ'!$B$4:$H$1280,4,0)),"",(VLOOKUP(K141,'KAYIT LİSTESİ'!$B$4:$H$1280,4,0))) ->  | N141: =IF(ISERROR(VLOOKUP(K141,'KAYIT LİSTESİ'!$B$4:$H$1280,5,0)),"",(VLOOKUP(K141,'KAYIT LİSTESİ'!$B$4:$H$1280,5,0))) ->  | O141: =IF(ISERROR(VLOOKUP(K141,'KAYIT LİSTESİ'!$B$4:$H$1280,6,0)),"",(VLOOKUP(K141,'KAYIT LİSTESİ'!$B$4:$H$1280,6,0))) -> 
A142: 12 | B142: 1500M-4-12 | C142: =IF(ISERROR(VLOOKUP(B142,'KAYIT LİSTESİ'!$B$4:$H$1280,2,0)),"",(VLOOKUP(B142,'KAYIT LİSTESİ'!$B$4:$H$1280,2,0))) ->  | D142: =IF(ISERROR(VLOOKUP(B142,'KAYIT LİSTESİ'!$B$4:$H$1280,4,0)),"",(VLOOKUP(B142,'KAYIT LİSTESİ'!$B$4:$H$1280,4,0))) ->  | E142: =IF(ISERROR(VLOOKUP(B142,'KAYIT LİSTESİ'!$B$4:$H$1280,5,0)),"",(VLOOKUP(B142,'KAYIT LİSTESİ'!$B$4:$H$1280,5,0))) ->  | F142: =IF(ISERROR(VLOOKUP(B142,'KAYIT LİSTESİ'!$B$4:$H$1280,6,0)),"",(VLOOKUP(B142,'KAYIT LİSTESİ'!$B$4:$H$1280,6,0))) ->  | J142: 24 | K142: UZUN-24 | L142: =IF(ISERROR(VLOOKUP(K142,'KAYIT LİSTESİ'!$B$4:$H$1280,2,0)),"",(VLOOKUP(K142,'KAYIT LİSTESİ'!$B$4:$H$1280,2,0))) ->  | M142: =IF(ISERROR(VLOOKUP(K142,'KAYIT LİSTESİ'!$B$4:$H$1280,4,0)),"",(VLOOKUP(K142,'KAYIT LİSTESİ'!$B$4:$H$1280,4,0))) ->  | N142: =IF(ISERROR(VLOOKUP(K142,'KAYIT LİSTESİ'!$B$4:$H$1280,5,0)),"",(VLOOKUP(K142,'KAYIT LİSTESİ'!$B$4:$H$1280,5,0))) ->  | O142: =IF(ISERROR(VLOOKUP(K142,'KAYIT LİSTESİ'!$B$4:$H$1280,6,0)),"",(VLOOKUP(K142,'KAYIT LİSTESİ'!$B$4:$H$1280,6,0))) -> 
J143: 25 | K143: UZUN-25 | L143: =IF(ISERROR(VLOOKUP(K143,'KAYIT LİSTESİ'!$B$4:$H$1280,2,0)),"",(VLOOKUP(K143,'KAYIT LİSTESİ'!$B$4:$H$1280,2,0))) ->  | M143: =IF(ISERROR(VLOOKUP(K143,'KAYIT LİSTESİ'!$B$4:$H$1280,4,0)),"",(VLOOKUP(K143,'KAYIT LİSTESİ'!$B$4:$H$1280,4,0))) ->  | N143: =IF(ISERROR(VLOOKUP(K143,'KAYIT LİSTESİ'!$B$4:$H$1280,5,0)),"",(VLOOKUP(K143,'KAYIT LİSTESİ'!$B$4:$H$1280,5,0))) ->  | O143: =IF(ISERROR(VLOOKUP(K143,'KAYIT LİSTESİ'!$B$4:$H$1280,6,0)),"",(VLOOKUP(K143,'KAYIT LİSTESİ'!$B$4:$H$1280,6,0))) -> 

Sheet puan (hidden)
A1: GENÇ VE YILDIZ ERKEKLER PUAN TABLOSU
A2: PUAN | B2: FOTO FİNİSH | D2: FOTO FİNİSH | F2: FOTO FİNİSH | H2: FOTO FİNİSH | J2: FOTO FİNİSH | L2: FOTO FİNİSH | N2: FOTO FİNİSH | P2: FOTO FİNİSH | R2: FOTO FİNİSH | T2: FOTO FİNİSH | V2: FOTO FİNİSH | X2: FOTO FİNİSH | Y2: PUAN | Z2: ATLAMALAR | AD2: ATMALAR | AG2: PUAN
B3: 100m | D3: 200m | F3: 300m Yıldız | H3: 400m | J3: 100 m H 110m H | L3: 300m H | N3: 800m | P3: 1500m | R3: 2000m Yıldız | T3: 3000m | V3: 4X100M Yıldız | X3: İsveç Bayrak | Z3: Yüksek | AA3: Uzun | AB3: Üçadım | AC3: Sırık | AD3: Gülle | AE3: Disk | AF3: Cirit
B4: DERECE | D4: DERECE | F4: DERECE | H4: DERECE | J4: DERECE | L4: DERECE | N4: DERECE | P4: DERECE | R4: DERECE | T4: DERECE | V4: DERECE | X4: DERECE | Z4: DERECE | AA4: DERECE | AB4: DERECE | AC4: DERECE | AD4: DERECE | AE4: DERECE | AF4: DERECE
J5: DNS | Y5: 0 | Z5: 10 | AA5: 100 | AB5: 100 | AC5: 100 | AD5: 100 | AE5: 100 | AF5: 100 | AG5: 0
A6: 100 | B6: 1040 | C6: 100 | D6: 2089 | E6: 100 | F6: 3600 | G6: 100 | H6: 4644 | I6: 100 | J6: 1380 | K6: 100 | L6: 3614 | M6: 100 | N6: 14824 | O6: 100 | P6: 34624 | Q6: 100 | R6: 54524 | S6: 100 | T6: 81024 | U6: 100 | V6: 4764 | W6: 100 | X6: 15624 | Y6: 100 | Z6: 98 | AA6: 310 | AB6: 754 | AC6: 130 | AD6: 430 | AE6: 1000 | AF6: 1000 | AG6: 1
A7: 99 | B7: 1042 | C7: 99 | D7: 2094 | E7: 99 | F7: 3620 | G7: 99 | H7: 4654 | I7: 99 | J7: 1384 | K7: 99 | L7: 3619 | M7: 99 | N7: 14844 | O7: 99 | P7: 34654 | Q7: 99 | R7: 54624 | S7: 99 | T7: 81124 | U7: 99 | V7: 4774 | W7: 99 | X7: 15654 | Y7: 99 | Z7: 100 | AA7: 317 | AB7: 760 | AC7: 140 | AD7: 447 | AE7: 1060 | AF7: 1120 | AG7: 2
A8: 98 | B8: 1044 | C8: 98 | D8: 2099 | E8: 98 | F8: 3640 | G8: 98 | H8: 4664 | I8: 98 | J8: 1388 | K8: 98 | L8: 3624 | M8: 98 | N8: 14864 | O8: 98 | P8: 34684 | Q8: 98 | R8: 54724 | S8: 98 | T8: 81224 | U8: 98 | V8: 4784 | W8: 98 | X8: 15684 | Y8: 98 | Z8: 102 | AA8: 324 | AB8: 768 | AC8: 145 | AD8: 464 | AE8: 1120 | AF8: 1200 | AG8: 3
A9: 97 | B9: 1046 | C9: 97 | D9: 2104 | E9: 97 | F9: 3660 | G9: 97 | H9: 4674 | I9: 97 | J9: 1392 | K9: 97 | L9: 3629 | M9: 97 | N9: 14884 | O9: 97 | P9: 34714 | Q9: 97 | R9: 54824 | S9: 97 | T9: 81324 | U9: 97 | V9: 4794 | W9: 97 | X9: 15714 | Y9: 97 | Z9: 104 | AA9: 331 | AB9: 782 | AC9: 150 | AD9: 481 | AE9: 1180 | AF9: 1280 | AG9: 4
A10: 96 | B10: 1048 | C10: 96 | D10: 2109 | E10: 96 | F10: 3680 | G10: 96 | H10: 4684 | I10: 96 | J10: 1396 | K10: 96 | L10: 3634 | M10: 96 | N10: 14904 | O10: 96 | P10: 34744 | Q10: 96 | R10: 54924 | S10: 96 | T10: 81424 | U10: 96 | V10: 4804 | W10: 96 | X10: 15744 | Y10: 96 | Z10: 106 | AA10: 338 | AB10: 796 | AC10: 155 | AD10: 498 | AE10: 1240 | AF10: 1360 | AG10: 5
A11: 95 | B11: 1050 | C11: 95 | D11: 2114 | E11: 95 | F11: 3700 | G11: 95 | H11: 4694 | I11: 95 | J11: 1400 | K11: 95 | L11: 3639 | M11: 95 | N11: 14924 | O11: 95 | P11: 34774 | Q11: 95 | R11: 55024 | S11: 95 | T11: 81524 | U11: 95 | V11: 4814 | W11: 95 | X11: 15774 | Y11: 95 | Z11: 108 | AA11: 345 | AB11: 808 | AC11: 160 | AD11: 515 | AE11: 1300 | AF11: 1440 | AG11: 6
A12: 94 | B12: 1052 | C12: 94 | D12: 2119 | E12: 94 | F12: 3720 | G12: 94 | H12: 4704 | I12: 94 | J12: 1404 | K12: 94 | L12: 3644 | M12: 94 | N12: 14944 | O12: 94 | P12: 34814 | Q12: 94 | R12: 55124 | S12: 94 | T12: 81624 | U12: 94 | V12: 4824 | W12: 94 | X12: 15804 | Y12: 94 | Z12: 110 | AA12: 352 | AB12: 822 | AC12: 165 | AD12: 532 | AE12: 1360 | AF12: 1520 | AG12: 7
A13: 93 | B13: 1054 | C13: 93 | D13: 2124 | E13: 93 | F13: 3740 | G13: 93 | H13: 4714 | I13: 93 | J13: 1408 | K13: 93 | L13: 3649 | M13: 93 | N13: 14964 | O13: 93 | P13: 34854 | Q13: 93 | R13: 55224 | S13: 93 | T13: 81724 | U13: 93 | V13: 4834 | W13: 93 | X13: 15834 | Y13: 93 | Z13: 112 | AA13: 359 | AB13: 836 | AC13: 170 | AD13: 548 | AE13: 1420 | AF13: 1600 | AG13: 8
A14: 92 | B14: 1056 | C14: 92 | D14: 2129 | E14: 92 | F14: 3760 | G14: 92 | H14: 4724 | I14: 92 | J14: 1412 | K14: 92 | L14: 3654 | M14: 92 | N14: 14984 | O14: 92 | P14: 34894 | Q14: 92 | R14: 55324 | S14: 92 | T14: 81824 | U14: 92 | V14: 4844 | W14: 92 | X14: 15864 | Y14: 92 | Z14: 114 | AA14: 366 | AB14: 848 | AC14: 175 | AD14: 564 | AE14: 1480 | AF14: 1680 | AG14: 9
A15: 91 | B15: 1058 | C15: 91 | D15: 2134 | E15: 91 | F15: 3780 | G15: 91 | H15: 4734 | I15: 91 | J15: 1416 | K15: 91 | L15: 3659 | M15: 91 | N15: 15004 | O15: 91 | P15: 34934 | Q15: 91 | R15: 55424 | S15: 91 | T15: 81924 | U15: 91 | V15: 4854 | W15: 91 | X15: 15894 | Y15: 91 | Z15: 116 | AA15: 373 | AB15: 860 | AC15: 180 | AD15: 580 | AE15: 1540 | AF15: 1750 | AG15: 10
A16: 90 | B16: 1060 | C16: 90 | D16: 2139 | E16: 90 | F16: 3800 | G16: 90 | H16: 4744 | I16: 90 | J16: 1420 | K16: 90 | L16: 3664 | M16: 90 | N16: 15034 | O16: 90 | P16: 34974 | Q16: 90 | R16: 55524 | S16: 90 | T16: 82024 | U16: 90 | V16: 4864 | W16: 90 | X16: 15924 | Y16: 90 | Z16: 118 | AA16: 380 | AB16: 872 | AC16: 185 | AD16: 596 | AE16: 1600 | AF16: 1820 | AG16: 11
A17: 89 | B17: 1062 | C17: 89 | D17: 2144 | E17: 89 | F17: 3820 | G17: 89 | H17: 4754 | I17: 89 | J17: 1424 | K17: 89 | L17: 3674 | M17: 89 | N17: 15064 | O17: 89 | P17: 35024 | Q17: 89 | R17: 55624 | S17: 89 | T17: 82124 | U17: 89 | V17: 4874 | W17: 89 | X17: 15954 | Y17: 89 | Z17: 120 | AA17: 387 | AB17: 884 | AC17: 190 | AD17: 612 | AE17: 1650 | AF17: 1890 | AG17: 12
A18: 88 | B18: 1064 | C18: 88 | D18: 2149 | E18: 88 | F18: 3840 | G18: 88 | H18: 4764 | I18: 88 | J18: 1428 | K18: 88 | L18: 3684 | M18: 88 | N18: 15094 | O18: 88 | P18: 35074 | Q18: 88 | R18: 55724 | S18: 88 | T18: 82224 | U18: 88 | V18: 4884 | W18: 88 | X18: 15984 | Y18: 88 | Z18: 122 | AA18: 394 | AB18: 896 | AC18: 195 | AD18: 628 | AE18: 1700 | AF18: 1960 | AG18: 13
A19: 87 | B19: 1066 | C19: 87 | D19: 2154 | E19: 87 | F19: 3860 | G19: 87 | H19: 4774 | I19: 87 | J19: 1432 | K19: 87 | L19: 3694 | M19: 87 | N19: 15124 | O19: 87 | P19: 35124 | Q19: 87 | R19: 55824 | S19: 87 | T19: 82324 | U19: 87 | V19: 4894 | W19: 87 | X19: 20014 | Y19: 87 | Z19: 124 | AA19: 401 | AB19: 908 | AC19: 200 | AD19: 644 | AE19: 1750 | AF19: 2030 | AG19: 14
A20: 86 | B20: 1068 | C20: 86 | D20: 2159 | E20: 86 | F20: 3880 | G20: 86 | H20: 4784 | I20: 86 | J20: 1436 | K20: 86 | L20: 3704 | M20: 86 | N20: 15154 | O20: 86 | P20: 35174 | Q20: 86 | R20: 55924 | S20: 86 | T20: 82424 | U20: 86 | V20: 4914 | W20: 86 | X20: 20044 | Y20: 86 | Z20: 126 | AA20: 408 | AB20: 920 | AC20: 205 | AD20: 660 | AE20: 1800 | AF20: 2100 | AG20: 15
A21: 85 | B21: 1070 | C21: 85 | D21: 2164 | E21: 85 | F21: 3900 | G21: 85 | H21: 4794 | I21: 85 | J21: 1440 | K21: 85 | L21: 3714 | M21: 85 | N21: 15184 | O21: 85 | P21: 35224 | Q21: 85 | R21: 60024 | S21: 85 | T21: 82524 | U21: 85 | V21: 4934 | W21: 85 | X21: 20074 | Y21: 85 | Z21: 128 | AA21: 415 | AB21: 932 | AC21: 210 | AD21: 676 | AE21: 1850 | AF21: 2170 | AG21: 16
A22: 84 | B22: 1072 | C22: 84 | D22: 2169 | E22: 84 | F22: 3920 | G22: 84 | H22: 4804 | I22: 84 | J22: 1444 | K22: 84 | L22: 3724 | M22: 84 | N22: 15214 | O22: 84 | P22: 35274 | Q22: 84 | R22: 60124 | S22: 84 | T22: 82624 | U22: 84 | V22: 4954 | W22: 84 | X22: 20104 | Y22: 84 | Z22: 130 | AA22: 422 | AB22: 944 | AC22: 215 | AD22: 692 | AE22: 1900 | AF22: 2240 | AG22: 17
A23: 83 | B23: 1074 | C23: 83 | D23: 2174 | E23: 83 | F23: 3940 | G23: 83 | H23: 4814 | I23: 83 | J23: 1449 | K23: 83 | L23: 3734 | M23: 83 | N23: 15244 | O23: 83 | P23: 35324 | Q23: 83 | R23: 60224 | S23: 83 | T23: 82824 | U23: 83 | V23: 4974 | W23: 83 | X23: 20134 | Y23: 83 | Z23: 132 | AA23: 429 | AB23: 956 | AC23: 220 | AD23: 708 | AE23: 1950 | AF23: 2310 | AG23: 18
A24: 82 | B24: 1076 | C24: 82 | D24: 2179 | E24: 82 | F24: 3960 | G24: 82 | H24: 4824 | I24: 82 | J24: 1454 | K24: 82 | L24: 3744 | M24: 82 | N24: 15274 | O24: 82 | P24: 35374 | Q24: 82 | R24: 60324 | S24: 82 | T24: 83024 | U24: 82 | V24: 4994 | W24: 82 | X24: 20164 | Y24: 82 | Z24: 134 | AA24: 436 | AB24: 968 | AC24: 225 | AD24: 724 | AE24: 2000 | AF24: 2380 | AG24: 19
A25: 81 | B25: 1078 | C25: 81 | D25: 2184 | E25: 81 | F25: 3980 | G25: 81 | H25: 4834 | I25: 81 | J25: 1459 | K25: 81 | L25: 3754 | M25: 81 | N25: 15304 | O25: 81 | P25: 35424 | Q25: 81 | R25: 60424 | S25: 81 | T25: 83224 | U25: 81 | V25: 5014 | W25: 81 | X25: 20204 | Y25: 81 | Z25: 136 | AA25: 443 | AB25: 980 | AC25: 230 | AD25: 740 | AE25: 2050 | AF25: 2450 | AG25: 20
A26: 80 | B26: 1080 | C26: 80 | D26: 2189 | E26: 80 | F26: 4000 | G26: 80 | H26: 4844 | I26: 80 | J26: 1464 | K26: 80 | L26: 3764 | M26: 80 | N26: 15334 | O26: 80 | P26: 35484 | Q26: 80 | R26: 60524 | S26: 80 | T26: 83424 | U26: 80 | V26: 5034 | W26: 80 | X26: 20234 | Y26: 80 | Z26: 138 | AA26: 450 | AB26: 992 | AC26: 234 | AD26: 756 | AE26: 2100 | AF26: 2520 | AG26: 21
A27: 79 | B27: 1082 | C27: 79 | D27: 2194 | E27: 79 | F27: 4020 | G27: 79 | H27: 4854 | I27: 79 | J27: 1469 | K27: 79 | L27: 3774 | M27: 79 | N27: 15364 | O27: 79 | P27: 35544 | Q27: 79 | R27: 60624 | S27: 79 | T27: 83624 | U27: 79 | V27: 5054 | W27: 79 | X27: 20264 | Y27: 79 | Z27: 140 | AA27: 456 | AB27: 1004 | AC27: 238 | AD27: 772 | AE27: 2150 | AF27: 2590 | AG27: 22
A28: 78 | B28: 1084 | C28: 78 | D28: 2199 | E28: 78 | F28: 4040 | G28: 78 | H28: 4864 | I28: 78 | J28: 1474 | K28: 78 | L28: 3784 | M28: 78 | N28: 15394 | O28: 78 | P28: 35604 | Q28: 78 | R28: 60724 | S28: 78 | T28: 83824 | U28: 78 | V28: 5074 | W28: 78 | X28: 20304 | Y28: 78 | Z28: 142 | AA28: 462 | AB28: 1016 | AC28: 242 | AD28: 788 | AE28: 2200 | AF28: 2660 | AG28: 23
A29: 77 | B29: 1086 | C29: 77 | D29: 2204 | E29: 77 | F29: 4060 | G29: 77 | H29: 4874 | I29: 77 | J29: 1479 | K29: 77 | L29: 3794 | M29: 77 | N29: 15424 | O29: 77 | P29: 35664 | Q29: 77 | R29: 60824 | S29: 77 | T29: 84024 | U29: 77 | V29: 5094 | W29: 77 | X29: 20344 | Y29: 77 | Z29: 144 | AA29: 468 | AB29: 1028 | AC29: 246 | AD29: 804 | AE29: 2250 | AF29: 2730 | AG29: 24
A30: 76 | B30: 1088 | C30: 76 | D30: 2209 | E30: 76 | F30: 4080 | G30: 76 | H30: 4884 | I30: 76 | J30: 1484 | K30: 76 | L30: 3804 | M30: 76 | N30: 15454 | O30: 76 | P30: 35724 | Q30: 76 | R30: 60924 | S30: 76 | T30: 84224 | U30: 76 | V30: 5114 | W30: 76 | X30: 20384 | Y30: 76 | Z30: 146 | AA30: 474 | AB30: 1040 | AC30: 250 | AD30: 820 | AE30: 2300 | AF30: 2800 | AG30: 25
A31: 75 | B31: 1090 | C31: 75 | D31: 2214 | E31: 75 | F31: 4100 | G31: 75 | H31: 4894 | I31: 75 | J31: 1489 | K31: 75 | L31: 3814 | M31: 75 | N31: 15484 | O31: 75 | P31: 35784 | Q31: 75 | R31: 61024 | S31: 75 | T31: 84424 | U31: 75 | V31: 5134 | W31: 75 | X31: 20424 | Y31: 75 | Z31: 148 | AA31: 480 | AB31: 1049 | AC31: 254 | AD31: 836 | AE31: 2325 | AF31: 2855 | AG31: 26
A32: 74 | B32: 1093 | C32: 74 | D32: 2219 | E32: 74 | F32: 4120 | G32: 74 | H32: 4914 | I32: 74 | J32: 1494 | K32: 74 | L32: 3829 | M32: 74 | N32: 15524 | O32: 74 | P32: 35884 | Q32: 74 | R32: 61124 | S32: 74 | T32: 84624 | U32: 74 | V32: 5154 | W32: 74 | X32: 20464 | Y32: 74 | Z32: 150 | AA32: 486 | AB32: 1058 | AC32: 258 | AD32: 852 | AE32: 2350 | AF32: 2890 | AG32: 27
A33: 73 | B33: 1096 | C33: 73 | D33: 2224 | E33: 73 | F33: 4140 | G33: 73 | H33: 4934 | I33: 73 | J33: 1499 | K33: 73 | L33: 3844 | M33: 73 | N33: 15564 | O33: 73 | P33: 35984 | Q33: 73 | R33: 61224 | S33: 73 | T33: 84824 | U33: 73 | V33: 5174 | W33: 73 | X33: 20504 | Y33: 73 | Z33: 152 | AA33: 492 | AB33: 1067 | AC33: 262 | AD33: 868 | AE33: 2400 | AF33: 2960 | AG33: 28
A34: 72 | B34: 1099 | C34: 72 | D34: 2234 | E34: 72 | F34: 4160 | G34: 72 | H34: 4954 | I34: 72 | J34: 1504 | K34: 72 | L34: 3859 | M34: 72 | N34: 15604 | O34: 72 | P34: 40084 | Q34: 72 | R34: 61324 | S34: 72 | T34: 85024 | U34: 72 | V34: 5194 | W34: 72 | X34: 20544 | Y34: 72 | Z34: 154 | AA34: 498 | AB34: 1076 | AC34: 266 | AD34: 884 | AE34: 2450 | AF34: 3030 | AG34: 29
A35: 71 | B35: 1102 | C35: 71 | D35: 2244 | E35: 71 | F35: 4180 | G35: 71 | H35: 4974 | I35: 71 | J35: 1509 | K35: 71 | L35: 3874 | M35: 71 | N35: 15644 | O35: 71 | P35: 40184 | Q35: 71 | R35: 61424 | S35: 71 | T35: 85224 | U35: 71 | V35: 5214 | W35: 71 | X35: 20584 | Y35: 71 | Z35: 156 | AA35: 504 | AB35: 1085 | AC35: 270 | AD35: 900 | AE35: 2500 | AF35: 3100 | AG35: 30
A36: 70 | B36: 1105 | C36: 70 | D36: 2254 | E36: 70 | F36: 4200 | G36: 70 | H36: 4994 | I36: 70 | J36: 1514 | K36: 70 | L36: 3889 | M36: 70 | N36: 15694 | O36: 70 | P36: 40284 | Q36: 70 | R36: 61524 | S36: 70 | T36: 85424 | U36: 70 | V36: 5234 | W36: 70 | X36: 20624 | Y36: 70 | Z36: 157 | AA36: 510 | AB36: 1094 | AC36: 274 | AD36: 916 | AE36: 2550 | AF36: 3170 | AG36: 31
A37: 69 | B37: 1108 | C37: 69 | D37: 2264 | E37: 69 | F37: 4220 | G37: 69 | H37: 5014 | I37: 69 | J37: 1519 | K37: 69 | L37: 3904 | M37: 69 | N37: 15744 | O37: 69 | P37: 40384 | Q37: 69 | R37: 61624 | S37: 69 | T37: 85624 | U37: 69 | V37: 5254 | W37: 69 | X37: 20664 | Y37: 69 | Z37: 158 | AA37: 516 | AB37: 1103 | AC37: 278 | AD37: 932 | AE37: 2600 | AF37: 3240 | AG37: 32
A38: 68 | B38: 1111 | C38: 68 | D38: 2274 | E38: 68 | F38: 4240 | G38: 68 | H38: 5034 | I38: 68 | J38: 1524 | K38: 68 | L38: 3919 | M38: 68 | N38: 15794 | O38: 68 | P38: 40484 | Q38: 68 | R38: 61724 | S38: 68 | T38: 85824 | U38: 68 | V38: 5274 | W38: 68 | X38: 20704 | Y38: 68 | Z38: 159 | AA38: 521 | AB38: 1112 | AC38: 282 | AD38: 948 | AE38: 2650 | AF38: 3310 | AG38: 33
A39: 67 | B39: 1114 | C39: 67 | D39: 2284 | E39: 67 | F39: 4260 | G39: 67 | H39: 5054 | I39: 67 | J39: 1529 | K39: 67 | L39: 3934 | M39: 67 | N39: 15844 | O39: 67 | P39: 40584 | Q39: 67 | R39: 61824 | S39: 67 | T39: 90024 | U39: 67 | V39: 5294 | W39: 67 | X39: 20744 | Y39: 67 | Z39: 160 | AA39: 526 | AB39: 1121 | AC39: 286 | AD39: 964 | AE39: 2700 | AF39: 3380 | AG39: 34
A40: 66 | B40: 1117 | C40: 66 | D40: 2294 | E40: 66 | F40: 4280 | G40: 66 | H40: 5074 | I40: 66 | J40: 1534 | K40: 66 | L40: 3949 | M40: 66 | N40: 15894 | O40: 66 | P40: 40684 | Q40: 66 | R40: 61924 | S40: 66 | T40: 90224 | U40: 66 | V40: 5314 | W40: 66 | X40: 20784 | Y40: 66 | Z40: 161 | AA40: 531 | AB40: 1130 | AC40: 290 | AD40: 980 | AE40: 2750 | AF40: 3450 | AG40: 35
A41: 65 | B41: 1120 | C41: 65 | D41: 2304 | E41: 65 | F41: 4300 | G41: 65 | H41: 5094 | I41: 65 | J41: 1539 | K41: 65 | L41: 3964 | M41: 65 | N41: 15944 | O41: 65 | P41: 40784 | Q41: 65 | R41: 62024 | S41: 65 | T41: 90424 | U41: 65 | V41: 5334 | W41: 65 | X41: 20824 | Y41: 65 | Z41: 162 | AA41: 536 | AB41: 1139 | AC41: 294 | AD41: 995 | AE41: 2800 | AF41: 3520 | AG41: 36
A42: 64 | B42: 1123 | C42: 64 | D42: 2314 | E42: 64 | F42: 4310 | G42: 64 | H42: 5114 | I42: 64 | J42: 1544 | K42: 64 | L42: 3979 | M42: 64 | N42: 15994 | O42: 64 | P42: 40884 | Q42: 64 | R42: 62124 | S42: 64 | T42: 90624 | U42: 64 | V42: 5354 | W42: 64 | X42: 20864 | Y42: 64 | Z42: 163 | AA42: 541 | AB42: 1148 | AC42: 298 | AD42: 1010 | AE42: 2850 | AF42: 3590 | AG42: 37
A43: 63 | B43: 1126 | C43: 63 | D43: 2324 | E43: 63 | F43: 4320 | G43: 63 | H43: 5134 | I43: 63 | J43: 1554 | K43: 63 | L43: 3994 | M43: 63 | N43: 20244 | O43: 63 | P43: 40984 | Q43: 63 | R43: 62224 | S43: 63 | T43: 90824 | U43: 63 | V43: 5374 | W43: 63 | X43: 20904 | Y43: 63 | Z43: 164 | AA43: 546 | AB43: 1157 | AC43: 302 | AD43: 1025 | AE43: 2900 | AF43: 3660 | AG43: 38
A44: 62 | B44: 1129 | C44: 62 | D44: 2334 | E44: 62 | F44: 4330 | G44: 62 | H44: 5154 | I44: 62 | J44: 1564 | K44: 62 | L44: 4009 | M44: 62 | N44: 20104 | O44: 62 | P44: 41084 | Q44: 62 | R44: 62324 | S44: 62 | T44: 91024 | U44: 62 | V44: 5394 | W44: 62 | X44: 20944 | Y44: 62 | Z44: 165 | AA44: 551 | AB44: 1166 | AC44: 306 | AD44: 1040 | AE44: 2950 | AF44: 3730 | AG44: 39
A45: 61 | B45: 1132 | C45: 61 | D45: 2344 | E45: 61 | F45: 4340 | G45: 61 | H45: 5174 | I45: 61 | J45: 1574 | K45: 61 | L45: 4024 | M45: 61 | N45: 20164 | O45: 61 | P45: 41184 | Q45: 61 | R45: 62424 | S45: 61 | T45: 91224 | U45: 61 | V45: 5424 | W45: 61 | X45: 20984 | Y45: 61 | Z45: 166 | AA45: 556 | AB45: 1175 | AC45: 310 | AD45: 1055 | AE45: 3000 | AF45: 3800 | AG45: 40
A46: 60 | B46: 1135 | C46: 60 | D46: 2354 | E46: 60 | F46: 4350 | G46: 60 | H46: 5194 | I46: 60 | J46: 1584 | K46: 60 | L46: 4039 | M46: 60 | N46: 20224 | O46: 60 | P46: 41284 | Q46: 60 | R46: 62524 | S46: 60 | T46: 91424 | U46: 60 | V46: 5454 | W46: 60 | X46: 21024 | Y46: 60 | Z46: 167 | AA46: 560 | AB46: 1184 | AC46: 314 | AD46: 1070 | AE46: 3050 | AF46: 3870 | AG46: 41
A47: 59 | B47: 1139 | C47: 59 | D47: 2364 | E47: 59 | F47: 4360 | G47: 59 | H47: 5214 | I47: 59 | J47: 1594 | K47: 59 | L47: 4054 | M47: 59 | N47: 20284 | O47: 59 | P47: 41384 | Q47: 59 | R47: 62624 | S47: 59 | T47: 91624 | U47: 59 | V47: 5484 | W47: 59 | X47: 21064 | Y47: 59 | Z47: 168 | AA47: 564 | AB47: 1193 | AC47: 318 | AD47: 1085 | AE47: 3100 | AF47: 3940 | AG47: 42
A48: 58 | B48: 1143 | C48: 58 | D48: 2374 | E48: 58 | F48: 4370 | G48: 58 | H48: 5234 | I48: 58 | J48: 1604 | K48: 58 | L48: 4074 | M48: 58 | N48: 20344 | O48: 58 | P48: 41484 | Q48: 58 | R48: 62724 | S48: 58 | T48: 91824 | U48: 58 | V48: 5514 | W48: 58 | X48: 21104 | Y48: 58 | Z48: 169 | AA48: 568 | AB48: 1202 | AC48: 322 | AD48: 1100 | AE48: 3150 | AF48: 4010 | AG48: 43
A49: 57 | B49: 1147 | C49: 57 | D49: 2384 | E49: 57 | F49: 4380 | G49: 57 | H49: 5254 | I49: 57 | J49: 1614 | K49: 57 | L49: 4094 | M49: 57 | N49: 20404 | O49: 57 | P49: 41584 | Q49: 57 | R49: 62824 | S49: 57 | T49: 92024 | U49: 57 | V49: 5544 | W49: 57 | X49: 21144 | Y49: 57 | Z49: 170 | AA49: 572 | AB49: 1211 | AC49: 326 | AD49: 1115 | AE49: 3200 | AF49: 4080 | AG49: 44
A50: 56 | B50: 1151 | C50: 56 | D50: 2394 | E50: 56 | F50: 4390 | G50: 56 | H50: 5274 | I50: 56 | J50: 1624 | K50: 56 | L50: 4114 | M50: 56 | N50: 20464 | O50: 56 | P50: 41684 | Q50: 56 | R50: 62924 | S50: 56 | T50: 92224 | U50: 56 | V50: 5574 | W50: 56 | X50: 21184 | Y50: 56 | Z50: 171 | AA50: 576 | AB50: 1220 | AC50: 330 | AD50: 1130 | AE50: 3250 | AF50: 4150 | AG50: 45
A51: 55 | B51: 1155 | C51: 55 | D51: 2404 | E51: 55 | F51: 4400 | G51: 55 | H51: 5294 | I51: 55 | J51: 1634 | K51: 55 | L51: 4134 | M51: 55 | N51: 20524 | O51: 55 | P51: 41784 | Q51: 55 | R51: 63024 | S51: 55 | T51: 92424 | U51: 55 | V51: 5604 | W51: 55 | X51: 21224 | Y51: 55 | Z51: 172 | AA51: 580 | AB51: 1229 | AC51: 334 | AD51: 1145 | AE51: 3300 | AF51: 4220 | AG51: 46
A52: 54 | B52: 1159 | C52: 54 | D52: 2414 | E52: 54 | F52: 4410 | G52: 54 | H52: 5314 | I52: 54 | J52: 1644 | K52: 54 | L52: 4154 | M52: 54 | N52: 20584 | O52: 54 | P52: 41884 | Q52: 54 | R52: 63124 | S52: 54 | T52: 92624 | U52: 54 | V52: 5634 | W52: 54 | X52: 21264 | Y52: 54 | Z52: 173 | AA52: 584 | AB52: 1238 | AC52: 338 | AD52: 1160 | AE52: 3350 | AF52: 4290 | AG52: 47
A53: 53 | B53: 1164 | C53: 53 | D53: 2424 | E53: 53 | F53: 4420 | G53: 53 | H53: 5334 | I53: 53 | J53: 1654 | K53: 53 | L53: 4174 | M53: 53 | N53: 20644 | O53: 53 | P53: 41984 | Q53: 53 | R53: 63224 | S53: 53 | T53: 92824 | U53: 53 | V53: 5664 | W53: 53 | X53: 21304 | Y53: 53 | Z53: 174 | AA53: 588 | AB53: 1247 | AC53: 342 | AD53: 1175 | AE53: 3400 | AF53: 4360 | AG53: 48
A54: 52 | B54: 1169 | C54: 52 | D54: 2434 | E54: 52 | F54: 4430 | G54: 52 | H54: 5354 | I54: 52 | J54: 1664 | K54: 52 | L54: 4194 | M54: 52 | N54: 20704 | O54: 52 | P54: 42084 | Q54: 52 | R54: 63324 | S54: 52 | T54: 93024 | U54: 52 | V54: 5694 | W54: 52 | X54: 21344 | Y54: 52 | Z54: 175 | AA54: 592 | AB54: 1256 | AC54: 346 | AD54: 1190 | AE54: 3450 | AF54: 4430 | AG54: 49
A55: 51 | B55: 1174 | C55: 51 | D55: 2444 | E55: 51 | F55: 4440 | G55: 51 | H55: 5374 | I55: 51 | J55: 1674 | K55: 51 | L55: 4214 | M55: 51 | N55: 20764 | O55: 51 | P55: 42204 | Q55: 51 | R55: 63424 | S55: 51 | T55: 93324 | U55: 51 | V55: 5724 | W55: 51 | X55: 21384 | Y55: 51 | Z55: 176 | AA55: 596 | AB55: 1265 | AC55: 350 | AD55: 1205 | AE55: 3500 | AF55: 4500 | AG55: 50
A56: 50 | B56: 1179 | C56: 50 | D56: 2454 | E56: 50 | F56: 4450 | G56: 50 | H56: 5394 | I56: 50 | J56: 1684 | K56: 50 | L56: 4234 | M56: 50 | N56: 20824 | O56: 50 | P56: 42324 | Q56: 50 | R56: 63524 | S56: 50 | T56: 93624 | U56: 50 | V56: 5754 | W56: 50 | X56: 21424 | Y56: 50 | Z56: 177 | AA56: 600 | AB56: 1273 | AC56: 354 | AD56: 1220 | AE56: 3550 | AF56: 4570 | AG56: 51
A57: 49 | B57: 1184 | C57: 49 | D57: 2464 | E57: 49 | F57: 4460 | G57: 49 | H57: 5424 | I57: 49 | J57: 1694 | K57: 49 | L57: 4254 | M57: 49 | N57: 20904 | O57: 49 | P57: 42474 | Q57: 49 | R57: 63624 | S57: 49 | T57: 93924 | U57: 49 | V57: 5784 | W57: 49 | X57: 21484 | Y57: 49 | Z57: 178 | AA57: 604 | AB57: 1281 | AC57: 358 | AD57: 1235 | AE57: 3600 | AF57: 4640 | AG57: 52
A58: 48 | B58: 1189 | C58: 48 | D58: 2474 | E58: 48 | F58: 4470 | G58: 48 | H58: 5454 | I58: 48 | J58: 1704 | K58: 48 | L58: 4274 | M58: 48 | N58: 20984 | O58: 48 | P58: 42624 | Q58: 48 | R58: 63724 | S58: 48 | T58: 94224 | U58: 48 | V58: 5824 | W58: 48 | X58: 21544 | Y58: 48 | Z58: 179 | AA58: 608 | AB58: 1289 | AC58: 362 | AD58: 1250 | AE58: 3650 | AF58: 4710 | AG58: 53
A59: 47 | B59: 1194 | C59: 47 | D59: 2484 | E59: 47 | F59: 4480 | G59: 47 | H59: 5484 | I59: 47 | J59: 1714 | K59: 47 | L59: 4294 | M59: 47 | N59: 21064 | O59: 47 | P59: 42774 | Q59: 47 | R59: 63824 | S59: 47 | T59: 94524 | U59: 47 | V59: 5864 | W59: 47 | X59: 21604 | Y59: 47 | Z59: 180 | AA59: 612 | AB59: 1297 | AC59: 366 | AD59: 1265 | AE59: 3700 | AF59: 4780 | AG59: 54
A60: 46 | B60: 1199 | C60: 46 | D60: 2494 | E60: 46 | F60: 4490 | G60: 46 | H60: 5514 | I60: 46 | J60: 1724 | K60: 46 | L60: 4324 | M60: 46 | N60: 21144 | O60: 46 | P60: 42924 | Q60: 46 | R60: 63924 | S60: 46 | T60: 94824 | U60: 46 | V60: 5904 | W60: 46 | X60: 21664 | Y60: 46 | Z60: 181 | AA60: 616 | AB60: 1305 | AC60: 370 | AD60: 1280 | AE60: 3750 | AF60: 4850 | AG60: 55
A61: 45 | B61: 1204 | C61: 45 | D61: 2504 | E61: 45 | F61: 4500 | G61: 45 | H61: 5544 | I61: 45 | J61: 1734 | K61: 45 | L61: 4354 | M61: 45 | N61: 21224 | O61: 45 | P61: 43074 | Q61: 45 | R61: 64024 | S61: 45 | T61: 95124 | U61: 45 | V61: 5944 | W61: 45 | X61: 21724 | Y61: 45 | Z61: 182 | AA61: 620 | AB61: 1313 | AC61: 374 | AD61: 1295 | AE61: 3800 | AF61: 4920 | AG61: 56
A62: 44 | B62: 1209 | C62: 44 | D62: 2514 | E62: 44 | F62: 4510 | G62: 44 | H62: 5574 | I62: 44 | J62: 1744 | K62: 44 | L62: 4384 | M62: 44 | N62: 21304 | O62: 44 | P62: 43224 | Q62: 44 | R62: 64124 | S62: 44 | T62: 95524 | U62: 44 | V62: 5984 | W62: 44 | X62: 21784 | Y62: 44 | Z62: 183 | AA62: 624 | AB62: 1321 | AC62: 378 | AD62: 1310 | AE62: 3850 | AF62: 4990 | AG62: 57
A63: 43 | B63: 1214 | C63: 43 | D63: 2524 | E63: 43 | F63: 4520 | G63: 43 | H63: 5604 | I63: 43 | J63: 1754 | K63: 43 | L63: 4414 | M63: 43 | N63: 21404 | O63: 43 | P63: 43374 | Q63: 43 | R63: 64224 | S63: 43 | T63: 95924 | U63: 43 | V63: 10024 | W63: 43 | X63: 21844 | Y63: 43 | Z63: 184 | AA63: 628 | AB63: 1329 | AC63: 382 | AD63: 1325 | AE63: 3900 | AF63: 5060 | AG63: 58
A64: 42 | B64: 1219 | C64: 42 | D64: 2534 | E64: 42 | F64: 4530 | G64: 42 | H64: 5634 | I64: 42 | J64: 1764 | K64: 42 | L64: 4444 | M64: 42 | N64: 21504 | O64: 42 | P64: 43524 | Q64: 42 | R64: 64324 | S64: 42 | T64: 100324 | U64: 42 | V64: 10064 | W64: 42 | X64: 21904 | Y64: 42 | Z64: 185 | AA64: 632 | AB64: 1337 | AC64: 386 | AD64: 1340 | AE64: 3950 | AF64: 5130 | AG64: 59
A65: 41 | B65: 1224 | C65: 41 | D65: 2544 | E65: 41 | F65: 4540 | G65: 41 | H65: 5664 | I65: 41 | J65: 1774 | K65: 41 | L65: 4474 | M65: 41 | N65: 21604 | O65: 41 | P65: 43674 | Q65: 41 | R65: 64424 | S65: 41 | T65: 100724 | U65: 41 | V65: 10104 | W65: 41 | X65: 21964 | Y65: 41 | Z65: 186 | AA65: 636 | AB65: 1345 | AC65: 390 | AD65: 1355 | AE65: 4000 | AF65: 5200 | AG65: 60
A66: 40 | B66: 1229 | C66: 40 | D66: 2554 | E66: 40 | F66: 4550 | G66: 40 | H66: 5694 | I66: 40 | J66: 1784 | K66: 40 | L66: 4504 | M66: 40 | N66: 21704 | O66: 40 | P66: 43824 | Q66: 40 | R66: 64524 | S66: 40 | T66: 101124 | U66: 40 | V66: 10144 | W66: 40 | X66: 22024 | Y66: 40 | Z66: 187 | AA66: 640 | AB66: 1352 | AC66: 393 | AD66: 1370 | AE66: 4040 | AF66: 5260 | AG66: 61
A67: 39 | B67: 1234 | C67: 39 | D67: 2574 | E67: 39 | F67: 4560 | G67: 39 | H67: 5724 | I67: 39 | J67: 1794 | K67: 39 | L67: 4534 | M67: 39 | N67: 21804 | O67: 39 | P67: 44024 | Q67: 39 | R67: 64624 | S67: 39 | T67: 101624 | U67: 39 | V67: 10184 | W67: 39 | X67: 22084 | Y67: 39 | Z67: 188 | AA67: 644 | AB67: 1359 | AC67: 396 | AD67: 1385 | AE67: 4080 | AF67: 5320 | AG67: 62
A68: 38 | B68: 1244 | C68: 38 | D68: 2594 | E68: 38 | F68: 4570 | G68: 38 | H68: 5754 | I68: 38 | J68: 1804 | K68: 38 | L68: 4564 | M68: 38 | N68: 21904 | O68: 38 | P68: 44224 | Q68: 38 | R68: 64724 | S68: 38 | T68: 102124 | U68: 38 | V68: 10224 | W68: 38 | X68: 22144 | Y68: 38 | Z68: 189 | AA68: 648 | AB68: 1366 | AC68: 399 | AD68: 1400 | AE68: 4120 | AF68: 5380 | AG68: 63
A69: 37 | B69: 1254 | C69: 37 | D69: 2614 | E69: 37 | F69: 4580 | G69: 37 | H69: 5784 | I69: 37 | J69: 1814 | K69: 37 | L69: 4594 | M69: 37 | N69: 22004 | O69: 37 | P69: 44424 | Q69: 37 | R69: 64824 | S69: 37 | T69: 102624 | U69: 37 | V69: 10264 | W69: 37 | X69: 22204 | Y69: 37 | Z69: 190 | AA69: 652 | AB69: 1373 | AC69: 402 | AD69: 1415 | AE69: 4160 | AF69: 5440 | AG69: 64
A70: 36 | B70: 1264 | C70: 36 | D70: 2634 | E70: 36 | F70: 4590 | G70: 36 | H70: 5824 | I70: 36 | J70: 1824 | K70: 36 | L70: 4624 | M70: 36 | N70: 22124 | O70: 36 | P70: 44624 | Q70: 36 | R70: 64924 | S70: 36 | T70: 103124 | U70: 36 | V70: 10314 | W70: 36 | X70: 22264 | Y70: 36 | Z70: 191 | AA70: 656 | AB70: 1380 | AC70: 405 | AD70: 1430 | AE70: 4200 | AF70: 5500 | AG70: 65
A71: 35 | B71: 1274 | C71: 35 | D71: 2654 | E71: 35 | F71: 4600 | G71: 35 | H71: 5864 | I71: 35 | J71: 1844 | K71: 35 | L71: 4654 | M71: 35 | N71: 22244 | O71: 35 | P71: 44924 | Q71: 35 | R71: 65024 | S71: 35 | T71: 103624 | U71: 35 | V71: 10364 | W71: 35 | X71: 22324 | Y71: 35 | Z71: 192 | AA71: 660 | AB71: 1387 | AC71: 408 | AD71: 1445 | AE71: 4240 | AF71: 5560 | AG71: 66
A72: 34 | B72: 1284 | C72: 34 | D72: 2674 | E72: 34 | F72: 4610 | G72: 34 | H72: 5904 | I72: 34 | J72: 1864 | K72: 34 | L72: 4684 | M72: 34 | N72: 22364 | O72: 34 | P72: 45224 | Q72: 34 | R72: 65124 | S72: 34 | T72: 104124 | U72: 34 | V72: 10414 | W72: 34 | X72: 22384 | Y72: 34 | Z72: 193 | AA72: 664 | AB72: 1394 | AC72: 411 | AD72: 1460 | AE72: 4280 | AF72: 5620 | AG72: 67
A73: 33 | B73: 1294 | C73: 33 | D73: 2694 | E73: 33 | F73: 4620 | G73: 33 | H73: 5944 | I73: 33 | J73: 1884 | K73: 33 | L73: 4714 | M73: 33 | N73: 22484 | O73: 33 | P73: 45524 | Q73: 33 | R73: 65224 | S73: 33 | T73: 104724 | U73: 33 | V73: 10464 | W73: 33 | X73: 22444 | Y73: 33 | Z73: 194 | AA73: 668 | AB73: 1401 | AC73: 414 | AD73: 1475 | AE73: 4320 | AF73: 5680 | AG73: 68
A74: 32 | B74: 1304 | C74: 32 | D74: 2714 | E74: 32 | F74: 4630 | G74: 32 | H74: 5984 | I74: 32 | J74: 1904 | K74: 32 | L74: 4744 | M74: 32 | N74: 22604 | O74: 32 | P74: 45824 | Q74: 32 | R74: 65324 | S74: 32 | T74: 105324 | U74: 32 | V74: 10514 | W74: 32 | X74: 22504 | Y74: 32 | Z74: 195 | AA74: 672 | AB74: 1408 | AC74: 417 | AD74: 1490 | AE74: 4360 | AF74: 5740 | AG74: 69
A75: 31 | B75: 1314 | C75: 31 | D75: 2734 | E75: 31 | F75: 4640 | G75: 31 | H75: 10024 | I75: 31 | J75: 1924 | K75: 31 | L75: 4774 | M75: 31 | N75: 22724 | O75: 31 | P75: 50124 | Q75: 31 | R75: 65424 | S75: 31 | T75: 105924 | U75: 31 | V75: 10564 | W75: 31 | X75: 22564 | Y75: 31 | Z75: 196 | AA75: 676 | AB75: 1415 | AC75: 420 | AD75: 1505 | AE75: 4400 | AF75: 5800 | AG75: 70
A76: 30 | B76: 1324 | C76: 30 | D76: 2754 | E76: 30 | F76: 4650 | G76: 30 | H76: 10064 | I76: 30 | J76: 1944 | K76: 30 | L76: 4804 | M76: 30 | N76: 22874 | O76: 30 | P76: 50424 | Q76: 30 | R76: 65524 | S76: 30 | T76: 110524 | U76: 30 | V76: 10624 | W76: 30 | X76: 22624 | Y76: 30 | Z76: 197 | AA76: 680 | AB76: 1422 | AC76: 423 | AD76: 1520 | AE76: 4440 | AF76: 5860 | AG76: 71
A77: 29 | B77: 1334 | C77: 29 | D77: 2774 | E77: 29 | F77: 4660 | G77: 29 | H77: 10104 | I77: 29 | J77: 1964 | K77: 29 | L77: 4834 | M77: 29 | N77: 23024 | O77: 29 | P77: 50724 | Q77: 29 | R77: 65624 | S77: 29 | T77: 111224 | U77: 29 | V77: 10684 | W77: 29 | X77: 22684 | Y77: 29 | Z77: 198 | AA77: 684 | AB77: 1429 | AC77: 426 | AD77: 1535 | AE77: 4480 | AF77: 5920 | AG77: 72
A78: 28 | B78: 1344 | C78: 28 | D78: 2794 | E78: 28 | F78: 4670 | G78: 28 | H78: 10144 | I78: 28 | J78: 1984 | K78: 28 | L78: 4864 | M78: 28 | N78: 23174 | O78: 28 | P78: 51024 | Q78: 28 | R78: 65724 | S78: 28 | T78: 111924 | U78: 28 | V78: 10744 | W78: 28 | X78: 22744 | Y78: 28 | Z78: 199 | AA78: 688 | AB78: 1436 | AC78: 429 | AD78: 1550 | AE78: 4520 | AF78: 5980 | AG78: 73
A79: 27 | B79: 1354 | C79: 27 | D79: 2814 | E79: 27 | F79: 4680 | G79: 27 | H79: 10184 | I79: 27 | J79: 2004 | K79: 27 | L79: 4904 | M79: 27 | N79: 23324 | O79: 27 | P79: 51324 | Q79: 27 | R79: 65824 | S79: 27 | T79: 112624 | U79: 27 | V79: 10804 | W79: 27 | X79: 22804 | Y79: 27 | Z79: 200 | AA79: 692 | AB79: 1443 | AC79: 432 | AD79: 1565 | AE79: 4560 | AF79: 6040 | AG79: 74
A80: 26 | B80: 1364 | C80: 26 | D80: 2834 | E80: 26 | F80: 4690 | G80: 26 | H80: 10224 | I80: 26 | J80: 2024 | K80: 26 | L80: 4944 | M80: 26 | N80: 23474 | O80: 26 | P80: 51624 | Q80: 26 | R80: 65924 | S80: 26 | T80: 113324 | U80: 26 | V80: 10864 | W80: 26 | X80: 22864 | Y80: 26 | Z80: 201 | AA80: 696 | AB80: 1450 | AC80: 435 | AD80: 1580 | AE80: 4600 | AF80: 6100 | AG80: 75
A81: 25 | B81: 1374 | C81: 25 | D81: 2854 | E81: 25 | F81: 4700 | G81: 25 | H81: 10264 | I81: 25 | J81: 2044 | K81: 25 | L81: 4984 | M81: 25 | N81: 23624 | O81: 25 | P81: 51924 | Q81: 25 | R81: 70024 | S81: 25 | T81: 114024 | U81: 25 | V81: 10924 | W81: 25 | X81: 22924 | Y81: 25 | Z81: 202 | AA81: 700 | AB81: 1456 | AC81: 438 | AD81: 1595 | AE81: 4640 | AF81: 6160 | AG81: 76
A82: 24 | B82: 1384 | C82: 24 | D82: 2874 | E82: 24 | F82: 4710 | G82: 24 | H82: 10314 | I82: 24 | J82: 2064 | K82: 24 | L82: 5024 | M82: 24 | N82: 23824 | O82: 24 | P82: 52224 | Q82: 24 | R82: 70124 | S82: 24 | T82: 114824 | U82: 24 | V82: 11004 | W82: 24 | X82: 23024 | Y82: 24 | Z82: 203 | AA82: 704 | AB82: 1462 | AC82: 441 | AD82: 1610 | AE82: 4680 | AF82: 6220 | AG82: 77
A83: 23 | B83: 1394 | C83: 23 | D83: 2894 | E83: 23 | F83: 4720 | G83: 23 | H83: 10364 | I83: 23 | J83: 2084 | K83: 23 | L83: 5064 | M83: 23 | N83: 24024 | O83: 23 | P83: 52524 | Q83: 23 | R83: 70224 | S83: 23 | T83: 115624 | U83: 23 | V83: 11084 | W83: 23 | X83: 23124 | Y83: 23 | Z83: 204 | AA83: 708 | AB83: 1468 | AC83: 444 | AD83: 1625 | AE83: 4720 | AF83: 6280 | AG83: 78
A84: 22 | B84: 1404 | C84: 22 | D84: 2914 | E84: 22 | F84: 4730 | G84: 22 | H84: 10414 | I84: 22 | J84: 2104 | K84: 22 | L84: 5104 | M84: 22 | N84: 24224 | O84: 22 | P84: 52824 | Q84: 22 | R84: 70324 | S84: 22 | T84: 120424 | U84: 22 | V84: 11164 | W84: 22 | X84: 23224 | Y84: 22 | Z84: 205 | AA84: 712 | AB84: 1474 | AC84: 447 | AD84: 1640 | AE84: 4760 | AF84: 6340 | AG84: 79
A85: 21 | B85: 1414 | C85: 21 | D85: 2944 | E85: 21 | F85: 4740 | G85: 21 | H85: 10464 | I85: 21 | J85: 2124 | K85: 21 | L85: 5144 | M85: 21 | N85: 24424 | O85: 21 | P85: 53124 | Q85: 21 | R85: 70424 | S85: 21 | T85: 121224 | U85: 21 | V85: 11244 | W85: 21 | X85: 23324 | Y85: 21 | Z85: 206 | AA85: 716 | AB85: 1480 | AC85: 450 | AD85: 1655 | AE85: 4800 | AF85: 6400 | AG85: 80
A86: 20 | B86: 1424 | C86: 20 | D86: 2974 | E86: 20 | F86: 4750 | G86: 20 | H86: 10514 | I86: 20 | J86: 2144 | K86: 20 | L86: 5184 | M86: 20 | N86: 24624 | O86: 20 | P86: 53524 | Q86: 20 | R86: 70524 | S86: 20 | T86: 122124 | U86: 20 | V86: 11324 | W86: 20 | X86: 23424 | Y86: 20 | Z86: 207 | AA86: 720 | AB86: 1486 | AC86: 453 | AD86: 1670 | AE86: 4840 | AF86: 6460 | AG86: 81
A87: 19 | B87: 1434 | C87: 19 | D87: 3004 | E87: 19 | F87: 4760 | G87: 19 | H87: 10564 | I87: 19 | J87: 2164 | K87: 19 | L87: 5224 | M87: 19 | N87: 24824 | O87: 19 | P87: 53924 | Q87: 19 | R87: 70624 | S87: 19 | T87: 123024 | U87: 19 | V87: 11404 | W87: 19 | X87: 23524 | Y87: 19 | Z87: 208 | AA87: 724 | AB87: 1492 | AC87: 456 | AD87: 1685 | AE87: 4880 | AF87: 6520 | AG87: 82
A88: 18 | B88: 1444 | C88: 18 | D88: 3034 | E88: 18 | F88: 4770 | G88: 18 | H88: 10624 | I88: 18 | J88: 2184 | K88: 18 | L88: 5264 | M88: 18 | N88: 25024 | O88: 18 | P88: 54324 | Q88: 18 | R88: 70724 | S88: 18 | T88: 123924 | U88: 18 | V88: 11504 | W88: 18 | X88: 23624 | Y88: 18 | Z88: 209 | AA88: 728 | AB88: 1498 | AC88: 459 | AD88: 1700 | AE88: 4920 | AF88: 6580 | AG88: 83
A89: 17 | B89: 1454 | C89: 17 | D89: 3064 | E89: 17 | F89: 4780 | G89: 17 | H89: 10684 | I89: 17 | J89: 2204 | K89: 17 | L89: 5314 | M89: 17 | N89: 25224 | O89: 17 | P89: 54724 | Q89: 17 | R89: 70824 | S89: 17 | T89: 124824 | U89: 17 | V89: 11604 | W89: 17 | X89: 23724 | Y89: 17 | Z89: 210 | AA89: 732 | AB89: 1504 | AC89: 462 | AD89: 1715 | AE89: 4960 | AF89: 6640 | AG89: 84
A90: 16 | B90: 1464 | C90: 16 | D90: 3094 | E90: 16 | F90: 4790 | G90: 16 | H90: 10744 | I90: 16 | J90: 2224 | K90: 16 | L90: 5364 | M90: 16 | N90: 25424 | O90: 16 | P90: 55124 | Q90: 16 | R90: 70924 | S90: 16 | T90: 125824 | U90: 16 | V90: 11704 | W90: 16 | X90: 23824 | Y90: 16 | Z90: 211 | AA90: 736 | AB90: 1510 | AC90: 465 | AD90: 1730 | AE90: 5000 | AF90: 6700 | AG90: 85
A91: 15 | B91: 1474 | C91: 15 | D91: 3124 | E91: 15 | F91: 4800 | G91: 15 | H91: 10804 | I91: 15 | J91: 2244 | K91: 15 | L91: 5414 | M91: 15 | N91: 25624 | O91: 15 | P91: 55524 | Q91: 15 | R91: 71024 | S91: 15 | T91: 130824 | U91: 15 | V91: 11804 | W91: 15 | X91: 23924 | Y91: 15 | Z91: 212 | AA91: 739 | AB91: 1516 | AC91: 468 | AD91: 1745 | AE91: 5040 | AF91: 6760 | AG91: 86
A92: 14 | B92: 1484 | C92: 14 | D92: 3154 | E92: 14 | F92: 4810 | G92: 14 | H92: 10864 | I92: 14 | J92: 2264 | K92: 14 | L92: 5464 | M92: 14 | N92: 25824 | O92: 14 | P92: 55924 | Q92: 14 | R92: 71124 | S92: 14 | T92: 131824 | U92: 14 | V92: 11904 | W92: 14 | X92: 24024 | Y92: 14 | Z92: 213 | AA92: 742 | AB92: 1522 | AC92: 471 | AD92: 1760 | AE92: 5080 | AF92: 6820 | AG92: 87
A93: 13 | B93: 1494 | C93: 13 | D93: 3184 | E93: 13 | F93: 4820 | G93: 13 | H93: 10924 | I93: 13 | J93: 2284 | K93: 13 | L93: 5514 | M93: 13 | N93: 30024 | O93: 13 | P93: 60324 | Q93: 13 | R93: 71224 | S93: 13 | T93: 132824 | U93: 13 | V93: 12004 | W93: 13 | X93: 24124 | Y93: 13 | Z93: 214 | AA93: 745 | AB93: 1528 | AC93: 474 | AD93: 1775 | AE93: 5120 | AF93: 6880 | AG93: 88
A94: 12 | B94: 1504 | C94: 12 | D94: 3214 | E94: 12 | F94: 4830 | G94: 12 | H94: 11004 | I94: 12 | J94: 2304 | K94: 12 | L94: 5564 | M94: 12 | N94: 30224 | O94: 12 | P94: 60724 | Q94: 12 | R94: 71324 | S94: 12 | T94: 133924 | U94: 12 | V94: 12030 | W94: 12 | X94: 24224 | Y94: 12 | Z94: 215 | AA94: 748 | AB94: 1534 | AC94: 477 | AD94: 1790 | AE94: 5160 | AF94: 6940 | AG94: 89
A95: 11 | B95: 1524 | C95: 11 | D95: 3254 | E95: 11 | F95: 4840 | G95: 11 | H95: 11084 | I95: 11 | J95: 2324 | K95: 11 | L95: 5614 | M95: 11 | N95: 30524 | O95: 11 | P95: 61124 | Q95: 11 | R95: 71424 | S95: 11 | T95: 135024 | U95: 11 | V95: 12040 | W95: 11 | X95: 24324 | Y95: 11 | Z95: 216 | AA95: 751 | AB95: 1540 | AC95: 480 | AD95: 1805 | AE95: 5200 | AF95: 7000 | AG95: 90
A96: 10 | B96: 1544 | C96: 10 | D96: 3294 | E96: 10 | F96: 4850 | G96: 10 | H96: 11164 | I96: 10 | J96: 2354 | K96: 10 | L96: 5664 | M96: 10 | N96: 30824 | O96: 10 | P96: 61624 | Q96: 10 | R96: 71524 | S96: 10 | T96: 140124 | U96: 10 | V96: 12054 | W96: 10 | X96: 24424 | Y96: 10 | AA96: 754 | AB96: 1546 | AC96: 483 | AD96: 1820 | AE96: 5240 | AF96: 7060 | AG96: 91
A97: 9 | B97: 1564 | C97: 9 | D97: 3334 | E97: 9 | F97: 4860 | G97: 9 | H97: 11244 | I97: 9 | J97: 2384 | K97: 9 | L97: 5734 | M97: 9 | N97: 31124 | O97: 9 | P97: 62124 | Q97: 9 | R97: 71624 | S97: 9 | T97: 141224 | U97: 9 | V97: 12074 | W97: 9 | X97: 24524 | Y97: 9 | Z97: 217 | AA97: 757 | AB97: 1552 | AC97: 486 | AD97: 1835 | AE97: 5280 | AF97: 7120 | AG97: 92
A98: 8 | B98: 1584 | C98: 8 | D98: 3374 | E98: 8 | F98: 4870 | G98: 8 | H98: 11324 | I98: 8 | J98: 2414 | K98: 8 | L98: 5804 | M98: 8 | N98: 31424 | O98: 8 | P98: 62624 | Q98: 8 | R98: 71724 | S98: 8 | T98: 142324 | U98: 8 | V98: 13000 | W98: 8 | X98: 24624 | Y98: 8 | AA98: 760 | AB98: 1558 | AC98: 489 | AD98: 1850 | AE98: 5320 | AF98: 7180 | AG98: 93
A99: 7 | B99: 1604 | C99: 7 | D99: 3414 | E99: 7 | F99: 4880 | G99: 7 | H99: 11404 | I99: 7 | J99: 2444 | K99: 7 | L99: 5874 | M99: 7 | N99: 31724 | O99: 7 | P99: 63124 | Q99: 7 | R99: 71824 | S99: 7 | T99: 143424 | U99: 7 | V99: 13010 | W99: 7 | X99: 24724 | Y99: 7 | Z99: 218 | AA99: 763 | AB99: 1564 | AC99: 492 | AD99: 1865 | AE99: 5360 | AF99: 7240 | AG99: 94
A100: 6 | B100: 1624 | C100: 6 | D100: 3454 | E100: 6 | F100: 4890 | G100: 6 | H100: 11504 | I100: 6 | J100: 2474 | K100: 6 | L100: 5944 | M100: 6 | N100: 32024 | O100: 6 | P100: 63624 | Q100: 6 | R100: 71924 | S100: 6 | T100: 144524 | U100: 6 | V100: 13040 | W100: 6 | X100: 24824 | Y100: 6 | AA100: 766 | AB100: 1570 | AC100: 495 | AD100: 1880 | AE100: 5400 | AF100: 7300 | AG100: 95
A101: 5 | B101: 1644 | C101: 5 | D101: 3494 | E101: 5 | F101: 4900 | G101: 5 | H101: 11604 | I101: 5 | J101: 2504 | K101: 5 | L101: 10014 | M101: 5 | N101: 32324 | O101: 5 | P101: 64124 | Q101: 5 | R101: 72024 | S101: 5 | T101: 145624 | U101: 5 | V101: 13050 | W101: 5 | X101: 24924 | Y101: 5 | Z101: 219 | AA101: 768 | AB101: 1576 | AC101: 498 | AD101: 1894 | AE101: 5440 | AF101: 7360 | AG101: 96
A102: 4 | B102: 1664 | C102: 4 | D102: 3544 | E102: 4 | F102: 4910 | G102: 4 | H102: 11704 | I102: 4 | J102: 2544 | K102: 4 | L102: 10094 | M102: 4 | N102: 32624 | O102: 4 | P102: 64724 | Q102: 4 | R102: 72124 | S102: 4 | T102: 150724 | U102: 4 | V102: 13104 | W102: 4 | X102: 25024 | Y102: 4 | AA102: 770 | AB102: 1582 | AC102: 501 | AD102: 1908 | AE102: 5480 | AF102: 7420 | AG102: 97
A103: 3 | B103: 1684 | C103: 3 | D103: 3594 | E103: 3 | F103: 4920 | G103: 3 | H103: 11804 | I103: 3 | J103: 2584 | K103: 3 | L103: 10194 | M103: 3 | N103: 33024 | O103: 3 | P103: 65424 | Q103: 3 | R103: 72224 | S103: 3 | T103: 151824 | U103: 3 | V103: 13114 | W103: 3 | X103: 25124 | Y103: 3 | Z103: 220 | AA103: 772 | AB103: 1588 | AC103: 504 | AD103: 1922 | AE103: 5520 | AF103: 7480 | AG103: 98
A104: 2 | B104: 1704 | C104: 2 | D104: 3644 | E104: 2 | F104: 4930 | G104: 2 | H104: 11904 | I104: 2 | J104: 2624 | K104: 2 | L104: 10294 | M104: 2 | N104: 33524 | O104: 2 | P104: 70224 | Q104: 2 | R104: 72324 | S104: 2 | T104: 152924 | U104: 2 | V104: 13130 | W104: 2 | X104: 25224 | Y104: 2 | AA104: 774 | AB104: 1594 | AC104: 507 | AD104: 1936 | AE104: 5560 | AF104: 7540 | AG104: 99
A105: 1 | B105: 1724 | C105: 1 | D105: 3694 | E105: 1 | F105: 4940 | G105: 1 | H105: 12004 | I105: 1 | J105: 2664 | K105: 1 | L105: 10394 | M105: 1 | N105: 34024 | O105: 1 | P105: 71124 | Q105: 1 | R105: 72424 | S105: 1 | T105: 153024 | U105: 1 | V105: 13140 | W105: 1 | X105: 25324 | Y105: 1 | Z105: 221 | AA105: 776 | AB105: 1600 | AC105: 510 | AD105: 1950 | AE105: 5600 | AF105: 7600 | AG105: 100
B106: DNS | D106: DNS | F106: DNS | H106: DNS | J106: DNS | L106: DNS | N106: DNS | P106: DNS | R106: DNS | T106: DNS | V106: DNS | X106: DNS | Y106: 0 | Z106: DNS | AA106: DNS | AB106: DNS | AC106: DNS | AD106: DNS | AE106: DNS | AF106: DNS | AG106: 0
B107: DNF | D107: DNF | F107: DNF | H107: DNF | J107: DNF | L107: DNF | N107: DNF | P107: DNF | R107: DNF | T107: DNF | V107: DNF | X107: DNF | Y107: 0 | Z107: NM | AA107: NM | AB107: NM | AC107: NM | AD107: NM | AE107: NM | AF107: NM | AG107: 0
B108: NM | D108: NM | F108: NM | H108: NM | J108: NM | L108: NM | N108: NM | P108: NM | R108: NM | T108: NM | V108: NM | X108: NM | Y108: 0 | Z108: DQ | AA108: DQ | AB108: DQ | AC108: DQ | AD108: DQ | AE108: DQ | AF108: DQ | AG108: 0
B109: DQ | D109: DQ | F109: DQ | H109: DQ | J109: DQ | L109: DQ | N109: DQ | P109: DQ | R109: DQ | T109: DQ | V109: DQ | X109: DQ | Y109: 0 | AG109: 0

Sheet 110m.Eng
A1: =('YARIŞMA BİLGİLERİ'!A2) -> Gençlik ve Spor Bakanlığı Spor Genel Müdürlüğü Spor Faaliyetleri Daire Başkanlığı
A2: ='YARIŞMA BİLGİLERİ'!F19 -> Olimpik Baraj Yarışmları
A3: Yarışma : | D3: ='YARIŞMA PROGRAMI'!C11 -> 110 Metre Engelli | F3: Baraj Derecesi | H3: :
A4: Kategori : | D4: ='YARIŞMA BİLGİLERİ'!F21 -> Büyük Erkekler | M4: Tarih-Saat : | N4: ='YARIŞMA PROGRAMI'!B11 -> 16 Mayıs 2015 - 16:25
N5: =NOW() -> 42142.49098
A6: Sıra No | B6: Göğüs No | C6: Doğum Tarihi Gün/Ay/Yıl | D6: Adı ve Soyadı | E6: İLİ-OKULU | F6: Derece | G6: Puan | I6: 1. SERİ | M6: Rüzgar: | N6: -1.0
I7: Sıra No | J7: Formül | K7: Göğüs No | L7: Doğum Tarihi | M7: Adı ve Soyadı | N7: İLİ-OKULU | O7: Elektronik Kronometre | P7: El Kronometre | Q7: Seri Geliş
A8: 1 | B8: 6 | C8: 1994-08-08 | D8: TOLGA YILMAZ | E8: SAMSUN | F8: 1517 | I8: 1 | J8: 110M.ENG-1-1 | K8: =IF(ISERROR(VLOOKUP(J8,'KAYIT LİSTESİ'!$B$4:$H$1280,2,0)),"",(VLOOKUP(J8,'KAYIT LİSTESİ'!$B$4:$H$1280,2,0))) ->  | L8: =IF(ISERROR(VLOOKUP(J8,'KAYIT LİSTESİ'!$B$4:$H$1280,4,0)),"",(VLOOKUP(J8,'KAYIT LİSTESİ'!$B$4:$H$1280,4,0))) ->  | M8: =IF(ISERROR(VLOOKUP(J8,'KAYIT LİSTESİ'!$B$4:$H$1280,5,0)),"",(VLOOKUP(J8,'KAYIT LİSTESİ'!$B$4:$H$1280,5,0))) ->  | N8: =IF(ISERROR(VLOOKUP(J8,'KAYIT LİSTESİ'!$B$4:$H$1280,6,0)),"",(VLOOKUP(J8,'KAYIT LİSTESİ'!$B$4:$H$1280,6,0))) ->  | O8: =IF(IF(OR(P8="NM",P8="DNF",P8="DNS",P8="DQ",P8=""),P8,(ROUNDUP(P8,)+24))=0," ",IF(OR(P8="NM",P8="DNF",P8="DNS",P8="DQ",P8=""),P8,(ROUNDUP(P8,)+24))) -> 
I9: 2 | J9: 110M.ENG-1-2 | K9: =IF(ISERROR(VLOOKUP(J9,'KAYIT LİSTESİ'!$B$4:$H$1280,2,0)),"",(VLOOKUP(J9,'KAYIT LİSTESİ'!$B$4:$H$1280,2,0))) -> 6 | L9: =IF(ISERROR(VLOOKUP(J9,'KAYIT LİSTESİ'!$B$4:$H$1280,4,0)),"",(VLOOKUP(J9,'KAYIT LİSTESİ'!$B$4:$H$1280,4,0))) -> 1994-08-08 | M9: =IF(ISERROR(VLOOKUP(J9,'KAYIT LİSTESİ'!$B$4:$H$1280,5,0)),"",(VLOOKUP(J9,'KAYIT LİSTESİ'!$B$4:$H$1280,5,0))) -> TOLGA YILMAZ | N9: =IF(ISERROR(VLOOKUP(J9,'KAYIT LİSTESİ'!$B$4:$H$1280,6,0)),"",(VLOOKUP(J9,'KAYIT LİSTESİ'!$B$4:$H$1280,6,0))) -> SAMSUN | O9: 1517
I10: 3 | J10: 110M.ENG-1-3 | K10: =IF(ISERROR(VLOOKUP(J10,'KAYIT LİSTESİ'!$B$4:$H$1280,2,0)),"",(VLOOKUP(J10,'KAYIT LİSTESİ'!$B$4:$H$1280,2,0))) ->  | L10: =IF(ISERROR(VLOOKUP(J10,'KAYIT LİSTESİ'!$B$4:$H$1280,4,0)),"",(VLOOKUP(J10,'KAYIT LİSTESİ'!$B$4:$H$1280,4,0))) ->  | M10: =IF(ISERROR(VLOOKUP(J10,'KAYIT LİSTESİ'!$B$4:$H$1280,5,0)),"",(VLOOKUP(J10,'KAYIT LİSTESİ'!$B$4:$H$1280,5,0))) ->  | N10: =IF(ISERROR(VLOOKUP(J10,'KAYIT LİSTESİ'!$B$4:$H$1280,6,0)),"",(VLOOKUP(J10,'KAYIT LİSTESİ'!$B$4:$H$1280,6,0))) -> 
I11: 4 | J11: 110M.ENG-1-4 | K11: =IF(ISERROR(VLOOKUP(J11,'KAYIT LİSTESİ'!$B$4:$H$1280,2,0)),"",(VLOOKUP(J11,'KAYIT LİSTESİ'!$B$4:$H$1280,2,0))) ->  | L11: =IF(ISERROR(VLOOKUP(J11,'KAYIT LİSTESİ'!$B$4:$H$1280,4,0)),"",(VLOOKUP(J11,'KAYIT LİSTESİ'!$B$4:$H$1280,4,0))) ->  | M11: =IF(ISERROR(VLOOKUP(J11,'KAYIT LİSTESİ'!$B$4:$H$1280,5,0)),"",(VLOOKUP(J11,'KAYIT LİSTESİ'!$B$4:$H$1280,5,0))) ->  | N11: =IF(ISERROR(VLOOKUP(J11,'KAYIT LİSTESİ'!$B$4:$H$1280,6,0)),"",(VLOOKUP(J11,'KAYIT LİSTESİ'!$B$4:$H$1280,6,0))) -> 
I12: 5 | J12: 110M.ENG-1-5 | K12: =IF(ISERROR(VLOOKUP(J12,'KAYIT LİSTESİ'!$B$4:$H$1280,2,0)),"",(VLOOKUP(J12,'KAYIT LİSTESİ'!$B$4:$H$1280,2,0))) ->  | L12: =IF(ISERROR(VLOOKUP(J12,'KAYIT LİSTESİ'!$B$4:$H$1280,4,0)),"",(VLOOKUP(J12,'KAYIT LİSTESİ'!$B$4:$H$1280,4,0))) ->  | M12: =IF(ISERROR(VLOOKUP(J12,'KAYIT LİSTESİ'!$B$4:$H$1280,5,0)),"",(VLOOKUP(J12,'KAYIT LİSTESİ'!$B$4:$H$1280,5,0))) ->  | N12: =IF(ISERROR(VLOOKUP(J12,'KAYIT LİSTESİ'!$B$4:$H$1280,6,0)),"",(VLOOKUP(J12,'KAYIT LİSTESİ'!$B$4:$H$1280,6,0))) -> 
I13: 6 | J13: 110M.ENG-1-6 | K13: =IF(ISERROR(VLOOKUP(J13,'KAYIT LİSTESİ'!$B$4:$H$1280,2,0)),"",(VLOOKUP(J13,'KAYIT LİSTESİ'!$B$4:$H$1280,2,0))) ->  | L13: =IF(ISERROR(VLOOKUP(J13,'KAYIT LİSTESİ'!$B$4:$H$1280,4,0)),"",(VLOOKUP(J13,'KAYIT LİSTESİ'!$B$4:$H$1280,4,0))) ->  | M13: =IF(ISERROR(VLOOKUP(J13,'KAYIT LİSTESİ'!$B$4:$H$1280,5,0)),"",(VLOOKUP(J13,'KAYIT LİSTESİ'!$B$4:$H$1280,5,0))) ->  | N13: =IF(ISERROR(VLOOKUP(J13,'KAYIT LİSTESİ'!$B$4:$H$1280,6,0)),"",(VLOOKUP(J13,'KAYIT LİSTESİ'!$B$4:$H$1280,6,0))) -> 
I14: 7 | J14: 110M.ENG-1-7 | K14: =IF(ISERROR(VLOOKUP(J14,'KAYIT LİSTESİ'!$B$4:$H$1280,2,0)),"",(VLOOKUP(J14,'KAYIT LİSTESİ'!$B$4:$H$1280,2,0))) ->  | L14: =IF(ISERROR(VLOOKUP(J14,'KAYIT LİSTESİ'!$B$4:$H$1280,4,0)),"",(VLOOKUP(J14,'KAYIT LİSTESİ'!$B$4:$H$1280,4,0))) ->  | M14: =IF(ISERROR(VLOOKUP(J14,'KAYIT LİSTESİ'!$B$4:$H$1280,5,0)),"",(VLOOKUP(J14,'KAYIT LİSTESİ'!$B$4:$H$1280,5,0))) ->  | N14: =IF(ISERROR(VLOOKUP(J14,'KAYIT LİSTESİ'!$B$4:$H$1280,6,0)),"",(VLOOKUP(J14,'KAYIT LİSTESİ'!$B$4:$H$1280,6,0))) -> 
I15: 8 | J15: 110M.ENG-1-8 | K15: =IF(ISERROR(VLOOKUP(J15,'KAYIT LİSTESİ'!$B$4:$H$1280,2,0)),"",(VLOOKUP(J15,'KAYIT LİSTESİ'!$B$4:$H$1280,2,0))) ->  | L15: =IF(ISERROR(VLOOKUP(J15,'KAYIT LİSTESİ'!$B$4:$H$1280,4,0)),"",(VLOOKUP(J15,'KAYIT LİSTESİ'!$B$4:$H$1280,4,0))) ->  | M15: =IF(ISERROR(VLOOKUP(J15,'KAYIT LİSTESİ'!$B$4:$H$1280,5,0)),"",(VLOOKUP(J15,'KAYIT LİSTESİ'!$B$4:$H$1280,5,0))) ->  | N15: =IF(ISERROR(VLOOKUP(J15,'KAYIT LİSTESİ'!$B$4:$H$1280,6,0)),"",(VLOOKUP(J15,'KAYIT LİSTESİ'!$B$4:$H$1280,6,0))) -> 
I16: 2. SERİ | M16: Rüzgar:
I17: Sıra No | J17: Formül | K17: Göğüs No | L17: Doğum Tarihi | M17: Adı ve Soyadı | N17: İLİ-OKULU | O17: Elektronik Kronometre | P17: El Kronometre | Q17: Seri Geliş
I18: 1 | J18: 110M.ENG-2-1 | K18: =IF(ISERROR(VLOOKUP(J18,'KAYIT LİSTESİ'!$B$4:$H$1280,2,0)),"",(VLOOKUP(J18,'KAYIT LİSTESİ'!$B$4:$H$1280,2,0))) ->  | L18: =IF(ISERROR(VLOOKUP(J18,'KAYIT LİSTESİ'!$B$4:$H$1280,4,0)),"",(VLOOKUP(J18,'KAYIT LİSTESİ'!$B$4:$H$1280,4,0))) ->  | M18: =IF(ISERROR(VLOOKUP(J18,'KAYIT LİSTESİ'!$B$4:$H$1280,5,0)),"",(VLOOKUP(J18,'KAYIT LİSTESİ'!$B$4:$H$1280,5,0))) ->  | N18: =IF(ISERROR(VLOOKUP(J18,'KAYIT LİSTESİ'!$B$4:$H$1280,6,0)),"",(VLOOKUP(J18,'KAYIT LİSTESİ'!$B$4:$H$1280,6,0))) ->  | O18: =IF(IF(OR(P18="NM",P18="DNF",P18="DNS",P18="DQ",P18=""),P18,(ROUNDUP(P18,)+24))=0," ",IF(OR(P18="NM",P18="DNF",P18="DNS",P18="DQ",P18=""),P18,(ROUNDUP(P18,)+24))) -> 
I19: 2 | J19: 110M.ENG-2-2 | K19: =IF(ISERROR(VLOOKUP(J19,'KAYIT LİSTESİ'!$B$4:$H$1280,2,0)),"",(VLOOKUP(J19,'KAYIT LİSTESİ'!$B$4:$H$1280,2,0))) ->  | L19: =IF(ISERROR(VLOOKUP(J19,'KAYIT LİSTESİ'!$B$4:$H$1280,4,0)),"",(VLOOKUP(J19,'KAYIT LİSTESİ'!$B$4:$H$1280,4,0))) ->  | M19: =IF(ISERROR(VLOOKUP(J19,'KAYIT LİSTESİ'!$B$4:$H$1280,5,0)),"",(VLOOKUP(J19,'KAYIT LİSTESİ'!$B$4:$H$1280,5,0))) ->  | N19: =IF(ISERROR(VLOOKUP(J19,'KAYIT LİSTESİ'!$B$4:$H$1280,6,0)),"",(VLOOKUP(J19,'KAYIT LİSTESİ'!$B$4:$H$1280,6,0))) -> 
I20: 3 | J20: 110M.ENG-2-3 | K20: =IF(ISERROR(VLOOKUP(J20,'KAYIT LİSTESİ'!$B$4:$H$1280,2,0)),"",(VLOOKUP(J20,'KAYIT LİSTESİ'!$B$4:$H$1280,2,0))) ->  | L20: =IF(ISERROR(VLOOKUP(J20,'KAYIT LİSTESİ'!$B$4:$H$1280,4,0)),"",(VLOOKUP(J20,'KAYIT LİSTESİ'!$B$4:$H$1280,4,0))) ->  | M20: =IF(ISERROR(VLOOKUP(J20,'KAYIT LİSTESİ'!$B$4:$H$1280,5,0)),"",(VLOOKUP(J20,'KAYIT LİSTESİ'!$B$4:$H$1280,5,0))) ->  | N20: =IF(ISERROR(VLOOKUP(J20,'KAYIT LİSTESİ'!$B$4:$H$1280,6,0)),"",(VLOOKUP(J20,'KAYIT LİSTESİ'!$B$4:$H$1280,6,0))) -> 
I21: 4 | J21: 110M.ENG-2-4 | K21: =IF(ISERROR(VLOOKUP(J21,'KAYIT LİSTESİ'!$B$4:$H$1280,2,0)),"",(VLOOKUP(J21,'KAYIT LİSTESİ'!$B$4:$H$1280,2,0))) ->  | L21: =IF(ISERROR(VLOOKUP(J21,'KAYIT LİSTESİ'!$B$4:$H$1280,4,0)),"",(VLOOKUP(J21,'KAYIT LİSTESİ'!$B$4:$H$1280,4,0))) ->  | M21: =IF(ISERROR(VLOOKUP(J21,'KAYIT LİSTESİ'!$B$4:$H$1280,5,0)),"",(VLOOKUP(J21,'KAYIT LİSTESİ'!$B$4:$H$1280,5,0))) ->  | N21: =IF(ISERROR(VLOOKUP(J21,'KAYIT LİSTESİ'!$B$4:$H$1280,6,0)),"",(VLOOKUP(J21,'KAYIT LİSTESİ'!$B$4:$H$1280,6,0))) -> 
I22: 5 | J22: 110M.ENG-2-5 | K22: =IF(ISERROR(VLOOKUP(J22,'KAYIT LİSTESİ'!$B$4:$H$1280,2,0)),"",(VLOOKUP(J22,'KAYIT LİSTESİ'!$B$4:$H$1280,2,0))) ->  | L22: =IF(ISERROR(VLOOKUP(J22,'KAYIT LİSTESİ'!$B$4:$H$1280,4,0)),"",(VLOOKUP(J22,'KAYIT LİSTESİ'!$B$4:$H$1280,4,0))) ->  | M22: =IF(ISERROR(VLOOKUP(J22,'KAYIT LİSTESİ'!$B$4:$H$1280,5,0)),"",(VLOOKUP(J22,'KAYIT LİSTESİ'!$B$4:$H$1280,5,0))) ->  | N22: =IF(ISERROR(VLOOKUP(J22,'KAYIT LİSTESİ'!$B$4:$H$1280,6,0)),"",(VLOOKUP(J22,'KAYIT LİSTESİ'!$B$4:$H$1280,6,0))) -> 
I23: 6 | J23: 110M.ENG-2-6 | K23: =IF(ISERROR(VLOOKUP(J23,'KAYIT LİSTESİ'!$B$4:$H$1280,2,0)),"",(VLOOKUP(J23,'KAYIT LİSTESİ'!$B$4:$H$1280,2,0))) ->  | L23: =IF(ISERROR(VLOOKUP(J23,'KAYIT LİSTESİ'!$B$4:$H$1280,4,0)),"",(VLOOKUP(J23,'KAYIT LİSTESİ'!$B$4:$H$1280,4,0))) ->  | M23: =IF(ISERROR(VLOOKUP(J23,'KAYIT LİSTESİ'!$B$4:$H$1280,5,0)),"",(VLOOKUP(J23,'KAYIT LİSTESİ'!$B$4:$H$1280,5,0))) ->  | N23: =IF(ISERROR(VLOOKUP(J23,'KAYIT LİSTESİ'!$B$4:$H$1280,6,0)),"",(VLOOKUP(J23,'KAYIT LİSTESİ'!$B$4:$H$1280,6,0))) -> 
I24: 7 | J24: 110M.ENG-2-7 | K24: =IF(ISERROR(VLOOKUP(J24,'KAYIT LİSTESİ'!$B$4:$H$1280,2,0)),"",(VLOOKUP(J24,'KAYIT LİSTESİ'!$B$4:$H$1280,2,0))) ->  | L24: =IF(ISERROR(VLOOKUP(J24,'KAYIT LİSTESİ'!$B$4:$H$1280,4,0)),"",(VLOOKUP(J24,'KAYIT LİSTESİ'!$B$4:$H$1280,4,0))) ->  | M24: =IF(ISERROR(VLOOKUP(J24,'KAYIT LİSTESİ'!$B$4:$H$1280,5,0)),"",(VLOOKUP(J24,'KAYIT LİSTESİ'!$B$4:$H$1280,5,0))) ->  | N24: =IF(ISERROR(VLOOKUP(J24,'KAYIT LİSTESİ'!$B$4:$H$1280,6,0)),"",(VLOOKUP(J24,'KAYIT LİSTESİ'!$B$4:$H$1280,6,0))) -> 
I25: 8 | J25: 110M.ENG-2-8 | K25: =IF(ISERROR(VLOOKUP(J25,'KAYIT LİSTESİ'!$B$4:$H$1280,2,0)),"",(VLOOKUP(J25,'KAYIT LİSTESİ'!$B$4:$H$1280,2,0))) ->  | L25: =IF(ISERROR(VLOOKUP(J25,'KAYIT LİSTESİ'!$B$4:$H$1280,4,0)),"",(VLOOKUP(J25,'KAYIT LİSTESİ'!$B$4:$H$1280,4,0))) ->  | M25: =IF(ISERROR(VLOOKUP(J25,'KAYIT LİSTESİ'!$B$4:$H$1280,5,0)),"",(VLOOKUP(J25,'KAYIT LİSTESİ'!$B$4:$H$1280,5,0))) ->  | N25: =IF(ISERROR(VLOOKUP(J25,'KAYIT LİSTESİ'!$B$4:$H$1280,6,0)),"",(VLOOKUP(J25,'KAYIT LİSTESİ'!$B$4:$H$1280,6,0))) -> 
G26: =IF(ISTEXT(F26)," ",IFERROR(VLOOKUP(SMALL(puan!$J$4:$K$111,COUNTIF(puan!$J$4:$K$111,"<"&F26)+1),puan!$J$4:$K$111,2,0)," ")) ->  | I26: 3. SERİ | M26: Rüzgar:
A27: 20 | G27: =IF(ISTEXT(F27)," ",IFERROR(VLOOKUP(SMALL(puan!$J$4:$K$111,COUNTIF(puan!$J$4:$K$111,"<"&F27)+1),puan!$J$4:$K$111,2,0)," ")) ->  | I27: Sıra No | J27: Formül | K27: Göğüs No | L27: Doğum Tarihi | M27: Adı ve Soyadı | N27: İLİ-OKULU | O27: Elektronik Kronometre | P27: El Kronometre | Q27: Seri Geliş
A28: 21 | G28: =IF(ISTEXT(F28)," ",IFERROR(VLOOKUP(SMALL(puan!$J$4:$K$111,COUNTIF(puan!$J$4:$K$111,"<"&F28)+1),puan!$J$4:$K$111,2,0)," ")) ->  | I28: 1 | J28: 110M.ENG-3-1 | K28: =IF(ISERROR(VLOOKUP(J28,'KAYIT LİSTESİ'!$B$4:$H$1280,2,0)),"",(VLOOKUP(J28,'KAYIT LİSTESİ'!$B$4:$H$1280,2,0))) ->  | L28: =IF(ISERROR(VLOOKUP(J28,'KAYIT LİSTESİ'!$B$4:$H$1280,4,0)),"",(VLOOKUP(J28,'KAYIT LİSTESİ'!$B$4:$H$1280,4,0))) ->  | M28: =IF(ISERROR(VLOOKUP(J28,'KAYIT LİSTESİ'!$B$4:$H$1280,5,0)),"",(VLOOKUP(J28,'KAYIT LİSTESİ'!$B$4:$H$1280,5,0))) ->  | N28: =IF(ISERROR(VLOOKUP(J28,'KAYIT LİSTESİ'!$B$4:$H$1280,6,0)),"",(VLOOKUP(J28,'KAYIT LİSTESİ'!$B$4:$H$1280,6,0))) ->  | O28: =IF(IF(OR(P28="NM",P28="DNF",P28="DNS",P28="DQ",P28=""),P28,(ROUNDUP(P28,)+24))=0," ",IF(OR(P28="NM",P28="DNF",P28="DNS",P28="DQ",P28=""),P28,(ROUNDUP(P28,)+24))) -> 
A29: 22 | G29: =IF(ISTEXT(F29)," ",IFERROR(VLOOKUP(SMALL(puan!$J$4:$K$111,COUNTIF(puan!$J$4:$K$111,"<"&F29)+1),puan!$J$4:$K$111,2,0)," ")) ->  | I29: 2 | J29: 110M.ENG-3-2 | K29: =IF(ISERROR(VLOOKUP(J29,'KAYIT LİSTESİ'!$B$4:$H$1280,2,0)),"",(VLOOKUP(J29,'KAYIT LİSTESİ'!$B$4:$H$1280,2,0))) ->  | L29: =IF(ISERROR(VLOOKUP(J29,'KAYIT LİSTESİ'!$B$4:$H$1280,4,0)),"",(VLOOKUP(J29,'KAYIT LİSTESİ'!$B$4:$H$1280,4,0))) ->  | M29: =IF(ISERROR(VLOOKUP(J29,'KAYIT LİSTESİ'!$B$4:$H$1280,5,0)),"",(VLOOKUP(J29,'KAYIT LİSTESİ'!$B$4:$H$1280,5,0))) ->  | N29: =IF(ISERROR(VLOOKUP(J29,'KAYIT LİSTESİ'!$B$4:$H$1280,6,0)),"",(VLOOKUP(J29,'KAYIT LİSTESİ'!$B$4:$H$1280,6,0))) -> 
A30: 23 | G30: =IF(ISTEXT(F30)," ",IFERROR(VLOOKUP(SMALL(puan!$J$4:$K$111,COUNTIF(puan!$J$4:$K$111,"<"&F30)+1),puan!$J$4:$K$111,2,0)," ")) ->  | I30: 3 | J30: 110M.ENG-3-3 | K30: =IF(ISERROR(VLOOKUP(J30,'KAYIT LİSTESİ'!$B$4:$H$1280,2,0)),"",(VLOOKUP(J30,'KAYIT LİSTESİ'!$B$4:$H$1280,2,0))) ->  | L30: =IF(ISERROR(VLOOKUP(J30,'KAYIT LİSTESİ'!$B$4:$H$1280,4,0)),"",(VLOOKUP(J30,'KAYIT LİSTESİ'!$B$4:$H$1280,4,0))) ->  | M30: =IF(ISERROR(VLOOKUP(J30,'KAYIT LİSTESİ'!$B$4:$H$1280,5,0)),"",(VLOOKUP(J30,'KAYIT LİSTESİ'!$B$4:$H$1280,5,0))) ->  | N30: =IF(ISERROR(VLOOKUP(J30,'KAYIT LİSTESİ'!$B$4:$H$1280,6,0)),"",(VLOOKUP(J30,'KAYIT LİSTESİ'!$B$4:$H$1280,6,0))) -> 
A31: 24 | G31: =IF(ISTEXT(F31)," ",IFERROR(VLOOKUP(SMALL(puan!$J$4:$K$111,COUNTIF(puan!$J$4:$K$111,"<"&F31)+1),puan!$J$4:$K$111,2,0)," ")) ->  | I31: 4 | J31: 110M.ENG-3-4 | K31: =IF(ISERROR(VLOOKUP(J31,'KAYIT LİSTESİ'!$B$4:$H$1280,2,0)),"",(VLOOKUP(J31,'KAYIT LİSTESİ'!$B$4:$H$1280,2,0))) ->  | L31: =IF(ISERROR(VLOOKUP(J31,'KAYIT LİSTESİ'!$B$4:$H$1280,4,0)),"",(VLOOKUP(J31,'KAYIT LİSTESİ'!$B$4:$H$1280,4,0))) ->  | M31: =IF(ISERROR(VLOOKUP(J31,'KAYIT LİSTESİ'!$B$4:$H$1280,5,0)),"",(VLOOKUP(J31,'KAYIT LİSTESİ'!$B$4:$H$1280,5,0))) ->  | N31: =IF(ISERROR(VLOOKUP(J31,'KAYIT LİSTESİ'!$B$4:$H$1280,6,0)),"",(VLOOKUP(J31,'KAYIT LİSTESİ'!$B$4:$H$1280,6,0))) -> 
A32: 25 | G32: =IF(ISTEXT(F32)," ",IFERROR(VLOOKUP(SMALL(puan!$J$4:$K$111,COUNTIF(puan!$J$4:$K$111,"<"&F32)+1),puan!$J$4:$K$111,2,0)," ")) ->  | I32: 5 | J32: 110M.ENG-3-5 | K32: =IF(ISERROR(VLOOKUP(J32,'KAYIT LİSTESİ'!$B$4:$H$1280,2,0)),"",(VLOOKUP(J32,'KAYIT LİSTESİ'!$B$4:$H$1280,2,0))) ->  | L32: =IF(ISERROR(VLOOKUP(J32,'KAYIT LİSTESİ'!$B$4:$H$1280,4,0)),"",(VLOOKUP(J32,'KAYIT LİSTESİ'!$B$4:$H$1280,4,0))) ->  | M32: =IF(ISERROR(VLOOKUP(J32,'KAYIT LİSTESİ'!$B$4:$H$1280,5,0)),"",(VLOOKUP(J32,'KAYIT LİSTESİ'!$B$4:$H$1280,5,0))) ->  | N32: =IF(ISERROR(VLOOKUP(J32,'KAYIT LİSTESİ'!$B$4:$H$1280,6,0)),"",(VLOOKUP(J32,'KAYIT LİSTESİ'!$B$4:$H$1280,6,0))) -> 
A33: 26 | G33: =IF(ISTEXT(F33)," ",IFERROR(VLOOKUP(SMALL(puan!$J$4:$K$111,COUNTIF(puan!$J$4:$K$111,"<"&F33)+1),puan!$J$4:$K$111,2,0)," ")) ->  | I33: 6 | J33: 110M.ENG-3-6 | K33: =IF(ISERROR(VLOOKUP(J33,'KAYIT LİSTESİ'!$B$4:$H$1280,2,0)),"",(VLOOKUP(J33,'KAYIT LİSTESİ'!$B$4:$H$1280,2,0))) ->  | L33: =IF(ISERROR(VLOOKUP(J33,'KAYIT LİSTESİ'!$B$4:$H$1280,4,0)),"",(VLOOKUP(J33,'KAYIT LİSTESİ'!$B$4:$H$1280,4,0))) ->  | M33: =IF(ISERROR(VLOOKUP(J33,'KAYIT LİSTESİ'!$B$4:$H$1280,5,0)),"",(VLOOKUP(J33,'KAYIT LİSTESİ'!$B$4:$H$1280,5,0))) ->  | N33: =IF(ISERROR(VLOOKUP(J33,'KAYIT LİSTESİ'!$B$4:$H$1280,6,0)),"",(VLOOKUP(J33,'KAYIT LİSTESİ'!$B$4:$H$1280,6,0))) -> 
A34: 27 | G34: =IF(ISTEXT(F34)," ",IFERROR(VLOOKUP(SMALL(puan!$J$4:$K$111,COUNTIF(puan!$J$4:$K$111,"<"&F34)+1),puan!$J$4:$K$111,2,0)," ")) ->  | I34: 7 | J34: 110M.ENG-3-7 | K34: =IF(ISERROR(VLOOKUP(J34,'KAYIT LİSTESİ'!$B$4:$H$1280,2,0)),"",(VLOOKUP(J34,'KAYIT LİSTESİ'!$B$4:$H$1280,2,0))) ->  | L34: =IF(ISERROR(VLOOKUP(J34,'KAYIT LİSTESİ'!$B$4:$H$1280,4,0)),"",(VLOOKUP(J34,'KAYIT LİSTESİ'!$B$4:$H$1280,4,0))) ->  | M34: =IF(ISERROR(VLOOKUP(J34,'KAYIT LİSTESİ'!$B$4:$H$1280,5,0)),"",(VLOOKUP(J34,'KAYIT LİSTESİ'!$B$4:$H$1280,5,0))) ->  | N34: =IF(ISERROR(VLOOKUP(J34,'KAYIT LİSTESİ'!$B$4:$H$1280,6,0)),"",(VLOOKUP(J34,'KAYIT LİSTESİ'!$B$4:$H$1280,6,0))) -> 
A35: 28 | G35: =IF(ISTEXT(F35)," ",IFERROR(VLOOKUP(SMALL(puan!$J$4:$K$111,COUNTIF(puan!$J$4:$K$111,"<"&F35)+1),puan!$J$4:$K$111,2,0)," ")) ->  | I35: 8 | J35: 110M.ENG-3-8 | K35: =IF(ISERROR(VLOOKUP(J35,'KAYIT LİSTESİ'!$B$4:$H$1280,2,0)),"",(VLOOKUP(J35,'KAYIT LİSTESİ'!$B$4:$H$1280,2,0))) ->  | L35: =IF(ISERROR(VLOOKUP(J35,'KAYIT LİSTESİ'!$B$4:$H$1280,4,0)),"",(VLOOKUP(J35,'KAYIT LİSTESİ'!$B$4:$H$1280,4,0))) ->  | M35: =IF(ISERROR(VLOOKUP(J35,'KAYIT LİSTESİ'!$B$4:$H$1280,5,0)),"",(VLOOKUP(J35,'KAYIT LİSTESİ'!$B$4:$H$1280,5,0))) ->  | N35: =IF(ISERROR(VLOOKUP(J35,'KAYIT LİSTESİ'!$B$4:$H$1280,6,0)),"",(VLOOKUP(J35,'KAYIT LİSTESİ'!$B$4:$H$1280,6,0))) -> 
A36: 29 | G36: =IF(ISTEXT(F36)," ",IFERROR(VLOOKUP(SMALL(puan!$J$4:$K$111,COUNTIF(puan!$J$4:$K$111,"<"&F36)+1),puan!$J$4:$K$111,2,0)," ")) ->  | I36: 4. SERİ | M36: Rüzgar:
A37: 30 | G37: =IF(ISTEXT(F37)," ",IFERROR(VLOOKUP(SMALL(puan!$J$4:$K$111,COUNTIF(puan!$J$4:$K$111,"<"&F37)+1),puan!$J$4:$K$111,2,0)," ")) ->  | I37: Sıra No | J37: Formül | K37: Göğüs No | L37: Doğum Tarihi | M37: Adı ve Soyadı | N37: İLİ-OKULU | O37: Elektronik Kronometre | P37: El Kronometre | Q37: Seri Geliş
A38: 31 | G38: =IF(ISTEXT(F38)," ",IFERROR(VLOOKUP(SMALL(puan!$J$4:$K$111,COUNTIF(puan!$J$4:$K$111,"<"&F38)+1),puan!$J$4:$K$111,2,0)," ")) ->  | I38: 1 | J38: 110M.ENG-4-1 | K38: =IF(ISERROR(VLOOKUP(J38,'KAYIT LİSTESİ'!$B$4:$H$1280,2,0)),"",(VLOOKUP(J38,'KAYIT LİSTESİ'!$B$4:$H$1280,2,0))) ->  | L38: =IF(ISERROR(VLOOKUP(J38,'KAYIT LİSTESİ'!$B$4:$H$1280,4,0)),"",(VLOOKUP(J38,'KAYIT LİSTESİ'!$B$4:$H$1280,4,0))) ->  | M38: =IF(ISERROR(VLOOKUP(J38,'KAYIT LİSTESİ'!$B$4:$H$1280,5,0)),"",(VLOOKUP(J38,'KAYIT LİSTESİ'!$B$4:$H$1280,5,0))) ->  | N38: =IF(ISERROR(VLOOKUP(J38,'KAYIT LİSTESİ'!$B$4:$H$1280,6,0)),"",(VLOOKUP(J38,'KAYIT LİSTESİ'!$B$4:$H$1280,6,0))) ->  | O38: =IF(IF(OR(P38="NM",P38="DNF",P38="DNS",P38="DQ",P38=""),P38,(ROUNDUP(P38,)+24))=0," ",IF(OR(P38="NM",P38="DNF",P38="DNS",P38="DQ",P38=""),P38,(ROUNDUP(P38,)+24))) -> 
A39: 32 | G39: =IF(ISTEXT(F39)," ",IFERROR(VLOOKUP(SMALL(puan!$J$4:$K$111,COUNTIF(puan!$J$4:$K$111,"<"&F39)+1),puan!$J$4:$K$111,2,0)," ")) ->  | I39: 2 | J39: 110M.ENG-4-2 | K39: =IF(ISERROR(VLOOKUP(J39,'KAYIT LİSTESİ'!$B$4:$H$1280,2,0)),"",(VLOOKUP(J39,'KAYIT LİSTESİ'!$B$4:$H$1280,2,0))) ->  | L39: =IF(ISERROR(VLOOKUP(J39,'KAYIT LİSTESİ'!$B$4:$H$1280,4,0)),"",(VLOOKUP(J39,'KAYIT LİSTESİ'!$B$4:$H$1280,4,0))) ->  | M39: =IF(ISERROR(VLOOKUP(J39,'KAYIT LİSTESİ'!$B$4:$H$1280,5,0)),"",(VLOOKUP(J39,'KAYIT LİSTESİ'!$B$4:$H$1280,5,0))) ->  | N39: =IF(ISERROR(VLOOKUP(J39,'KAYIT LİSTESİ'!$B$4:$H$1280,6,0)),"",(VLOOKUP(J39,'KAYIT LİSTESİ'!$B$4:$H$1280,6,0))) -> 
A40: 33 | G40: =IF(ISTEXT(F40)," ",IFERROR(VLOOKUP(SMALL(puan!$J$4:$K$111,COUNTIF(puan!$J$4:$K$111,"<"&F40)+1),puan!$J$4:$K$111,2,0)," ")) ->  | I40: 3 | J40: 110M.ENG-4-3 | K40: =IF(ISERROR(VLOOKUP(J40,'KAYIT LİSTESİ'!$B$4:$H$1280,2,0)),"",(VLOOKUP(J40,'KAYIT LİSTESİ'!$B$4:$H$1280,2,0))) ->  | L40: =IF(ISERROR(VLOOKUP(J40,'KAYIT LİSTESİ'!$B$4:$H$1280,4,0)),"",(VLOOKUP(J40,'KAYIT LİSTESİ'!$B$4:$H$1280,4,0))) ->  | M40: =IF(ISERROR(VLOOKUP(J40,'KAYIT LİSTESİ'!$B$4:$H$1280,5,0)),"",(VLOOKUP(J40,'KAYIT LİSTESİ'!$B$4:$H$1280,5,0))) ->  | N40: =IF(ISERROR(VLOOKUP(J40,'KAYIT LİSTESİ'!$B$4:$H$1280,6,0)),"",(VLOOKUP(J40,'KAYIT LİSTESİ'!$B$4:$H$1280,6,0))) -> 
A41: 34 | G41: =IF(ISTEXT(F41)," ",IFERROR(VLOOKUP(SMALL(puan!$J$4:$K$111,COUNTIF(puan!$J$4:$K$111,"<"&F41)+1),puan!$J$4:$K$111,2,0)," ")) ->  | I41: 4 | J41: 110M.ENG-4-4 | K41: =IF(ISERROR(VLOOKUP(J41,'KAYIT LİSTESİ'!$B$4:$H$1280,2,0)),"",(VLOOKUP(J41,'KAYIT LİSTESİ'!$B$4:$H$1280,2,0))) ->  | L41: =IF(ISERROR(VLOOKUP(J41,'KAYIT LİSTESİ'!$B$4:$H$1280,4,0)),"",(VLOOKUP(J41,'KAYIT LİSTESİ'!$B$4:$H$1280,4,0))) ->  | M41: =IF(ISERROR(VLOOKUP(J41,'KAYIT LİSTESİ'!$B$4:$H$1280,5,0)),"",(VLOOKUP(J41,'KAYIT LİSTESİ'!$B$4:$H$1280,5,0))) ->  | N41: =IF(ISERROR(VLOOKUP(J41,'KAYIT LİSTESİ'!$B$4:$H$1280,6,0)),"",(VLOOKUP(J41,'KAYIT LİSTESİ'!$B$4:$H$1280,6,0))) -> 
A42: 35 | G42: =IF(ISTEXT(F42)," ",IFERROR(VLOOKUP(SMALL(puan!$J$4:$K$111,COUNTIF(puan!$J$4:$K$111,"<"&F42)+1),puan!$J$4:$K$111,2,0)," ")) ->  | I42: 5 | J42: 110M.ENG-4-5 | K42: =IF(ISERROR(VLOOKUP(J42,'KAYIT LİSTESİ'!$B$4:$H$1280,2,0)),"",(VLOOKUP(J42,'KAYIT LİSTESİ'!$B$4:$H$1280,2,0))) ->  | L42: =IF(ISERROR(VLOOKUP(J42,'KAYIT LİSTESİ'!$B$4:$H$1280,4,0)),"",(VLOOKUP(J42,'KAYIT LİSTESİ'!$B$4:$H$1280,4,0))) ->  | M42: =IF(ISERROR(VLOOKUP(J42,'KAYIT LİSTESİ'!$B$4:$H$1280,5,0)),"",(VLOOKUP(J42,'KAYIT LİSTESİ'!$B$4:$H$1280,5,0))) ->  | N42: =IF(ISERROR(VLOOKUP(J42,'KAYIT LİSTESİ'!$B$4:$H$1280,6,0)),"",(VLOOKUP(J42,'KAYIT LİSTESİ'!$B$4:$H$1280,6,0))) -> 
A43: 36 | G43: =IF(ISTEXT(F43)," ",IFERROR(VLOOKUP(SMALL(puan!$J$4:$K$111,COUNTIF(puan!$J$4:$K$111,"<"&F43)+1),puan!$J$4:$K$111,2,0)," ")) ->  | I43: 6 | J43: 110M.ENG-4-6 | K43: =IF(ISERROR(VLOOKUP(J43,'KAYIT LİSTESİ'!$B$4:$H$1280,2,0)),"",(VLOOKUP(J43,'KAYIT LİSTESİ'!$B$4:$H$1280,2,0))) ->  | L43: =IF(ISERROR(VLOOKUP(J43,'KAYIT LİSTESİ'!$B$4:$H$1280,4,0)),"",(VLOOKUP(J43,'KAYIT LİSTESİ'!$B$4:$H$1280,4,0))) ->  | M43: =IF(ISERROR(VLOOKUP(J43,'KAYIT LİSTESİ'!$B$4:$H$1280,5,0)),"",(VLOOKUP(J43,'KAYIT LİSTESİ'!$B$4:$H$1280,5,0))) ->  | N43: =IF(ISERROR(VLOOKUP(J43,'KAYIT LİSTESİ'!$B$4:$H$1280,6,0)),"",(VLOOKUP(J43,'KAYIT LİSTESİ'!$B$4:$H$1280,6,0))) -> 
A44: 37 | G44: =IF(ISTEXT(F44)," ",IFERROR(VLOOKUP(SMALL(puan!$J$4:$K$111,COUNTIF(puan!$J$4:$K$111,"<"&F44)+1),puan!$J$4:$K$111,2,0)," ")) ->  | I44: 7 | J44: 110M.ENG-4-7 | K44: =IF(ISERROR(VLOOKUP(J44,'KAYIT LİSTESİ'!$B$4:$H$1280,2,0)),"",(VLOOKUP(J44,'KAYIT LİSTESİ'!$B$4:$H$1280,2,0))) ->  | L44: =IF(ISERROR(VLOOKUP(J44,'KAYIT LİSTESİ'!$B$4:$H$1280,4,0)),"",(VLOOKUP(J44,'KAYIT LİSTESİ'!$B$4:$H$1280,4,0))) ->  | M44: =IF(ISERROR(VLOOKUP(J44,'KAYIT LİSTESİ'!$B$4:$H$1280,5,0)),"",(VLOOKUP(J44,'KAYIT LİSTESİ'!$B$4:$H$1280,5,0))) ->  | N44: =IF(ISERROR(VLOOKUP(J44,'KAYIT LİSTESİ'!$B$4:$H$1280,6,0)),"",(VLOOKUP(J44,'KAYIT LİSTESİ'!$B$4:$H$1280,6,0))) -> 
A45: 38 | G45: =IF(ISTEXT(F45)," ",IFERROR(VLOOKUP(SMALL(puan!$J$4:$K$111,COUNTIF(puan!$J$4:$K$111,"<"&F45)+1),puan!$J$4:$K$111,2,0)," ")) ->  | I45: 8 | J45: 110M.ENG-4-8 | K45: =IF(ISERROR(VLOOKUP(J45,'KAYIT LİSTESİ'!$B$4:$H$1280,2,0)),"",(VLOOKUP(J45,'KAYIT LİSTESİ'!$B$4:$H$1280,2,0))) ->  | L45: =IF(ISERROR(VLOOKUP(J45,'KAYIT LİSTESİ'!$B$4:$H$1280,4,0)),"",(VLOOKUP(J45,'KAYIT LİSTESİ'!$B$4:$H$1280,4,0))) ->  | M45: =IF(ISERROR(VLOOKUP(J45,'KAYIT LİSTESİ'!$B$4:$H$1280,5,0)),"",(VLOOKUP(J45,'KAYIT LİSTESİ'!$B$4:$H$1280,5,0))) ->  | N45: =IF(ISERROR(VLOOKUP(J45,'KAYIT LİSTESİ'!$B$4:$H$1280,6,0)),"",(VLOOKUP(J45,'KAYIT LİSTESİ'!$B$4:$H$1280,6,0))) -> 
A47: Müsabakalar Direktörü | E47: Baş Hakem | F47: Lider | H47: Sekreter | M47: Hakem | N47: Hakem | P47: Hakem
A65536: CELAL KAYAÖZ

Sheet 100m.
A1: =('YARIŞMA BİLGİLERİ'!A2) -> Gençlik ve Spor Bakanlığı Spor Genel Müdürlüğü Spor Faaliyetleri Daire Başkanlığı
A2: ='YARIŞMA BİLGİLERİ'!F19 -> Olimpik Baraj Yarışmları
A3: Yarışma : | D3: ='YARIŞMA PROGRAMI'!C7 -> 100 Metre | F3: Baraj Derecesi | H3: : | I3: ='YARIŞMA PROGRAMI'!D7 -> 0
A4: Kategori : | D4: ='YARIŞMA BİLGİLERİ'!F21 -> Büyük Erkekler | M4: Tarih-Saat : | N4: ='YARIŞMA PROGRAMI'!B7 -> 16 Mayıs 2015 - 17:50
N5: =NOW() -> 42142.49098
A6: Sıra No | B6: Göğüs No | C6: Doğum Tarihi Gün/Ay/Yıl | D6: Adı ve Soyadı | E6: İLİ-OKULU | F6: Derece | G6: Puan | I6: 1. SERİ | M6: Rüzgar: | N6: +0.4
I7: Sıra No | J7: Formül | K7: Göğüs No | L7: Doğum Tarihi | M7: Adı ve Soyadı | N7: İLİ-OKULU | O7: Elektronik Kronometre | P7: El Kronometre | Q7: Seri Geliş
A8: 1 | B8: A528 | C8: 1991-06-11 | D8: VOLKAN ÇAKAN | E8: İSTANBUL | F8: 1083 | I8: 1 | J8: 100M-1-1 | K8: =IF(ISERROR(VLOOKUP(J8,'KAYIT LİSTESİ'!$B$4:$H$1280,2,0)),"",(VLOOKUP(J8,'KAYIT LİSTESİ'!$B$4:$H$1280,2,0))) ->  | L8: =IF(ISERROR(VLOOKUP(J8,'KAYIT LİSTESİ'!$B$4:$H$1280,4,0)),"",(VLOOKUP(J8,'KAYIT LİSTESİ'!$B$4:$H$1280,4,0))) ->  | M8: =IF(ISERROR(VLOOKUP(J8,'KAYIT LİSTESİ'!$B$4:$H$1280,5,0)),"",(VLOOKUP(J8,'KAYIT LİSTESİ'!$B$4:$H$1280,5,0))) ->  | N8: =IF(ISERROR(VLOOKUP(J8,'KAYIT LİSTESİ'!$B$4:$H$1280,6,0)),"",(VLOOKUP(J8,'KAYIT LİSTESİ'!$B$4:$H$1280,6,0))) ->  | O8: =IF(IF(OR(P8="NM",P8="DNF",P8="DNS",P8="DQ",P8=""),P8,(ROUNDUP(P8,)+24))=0," ",IF(OR(P8="NM",P8="DNF",P8="DNS",P8="DQ",P8=""),P8,(ROUNDUP(P8,)+24))) -> 
A9: 2 | B9: A89 | C9: 00:00:00 | D9: CUMALI U. EMEKTAŞ | E9: BURSA | F9: 1084 | I9: 2 | J9: 100M-1-2 | K9: =IF(ISERROR(VLOOKUP(J9,'KAYIT LİSTESİ'!$B$4:$H$1280,2,0)),"",(VLOOKUP(J9,'KAYIT LİSTESİ'!$B$4:$H$1280,2,0))) -> 919 | L9: =IF(ISERROR(VLOOKUP(J9,'KAYIT LİSTESİ'!$B$4:$H$1280,4,0)),"",(VLOOKUP(J9,'KAYIT LİSTESİ'!$B$4:$H$1280,4,0))) -> 08.02.1979 | M9: =IF(ISERROR(VLOOKUP(J9,'KAYIT LİSTESİ'!$B$4:$H$1280,5,0)),"",(VLOOKUP(J9,'KAYIT LİSTESİ'!$B$4:$H$1280,5,0))) -> MEHMET AKIF ÇELİK | N9: =IF(ISERROR(VLOOKUP(J9,'KAYIT LİSTESİ'!$B$4:$H$1280,6,0)),"",(VLOOKUP(J9,'KAYIT LİSTESİ'!$B$4:$H$1280,6,0))) -> AMASYA | O9: DNS
A10: 3 | B10: 601 | C10: 1995-02-11 | D10: EMRE BERK CAN | E10: MERSİN | F10: 1087 | I10: 3 | J10: 100M-1-3 | K10: =IF(ISERROR(VLOOKUP(J10,'KAYIT LİSTESİ'!$B$4:$H$1280,2,0)),"",(VLOOKUP(J10,'KAYIT LİSTESİ'!$B$4:$H$1280,2,0))) -> 921 | L10: =IF(ISERROR(VLOOKUP(J10,'KAYIT LİSTESİ'!$B$4:$H$1280,4,0)),"",(VLOOKUP(J10,'KAYIT LİSTESİ'!$B$4:$H$1280,4,0))) -> 15.08.1993 | M10: =IF(ISERROR(VLOOKUP(J10,'KAYIT LİSTESİ'!$B$4:$H$1280,5,0)),"",(VLOOKUP(J10,'KAYIT LİSTESİ'!$B$4:$H$1280,5,0))) -> SAMET KESLER | N10: =IF(ISERROR(VLOOKUP(J10,'KAYIT LİSTESİ'!$B$4:$H$1280,6,0)),"",(VLOOKUP(J10,'KAYIT LİSTESİ'!$B$4:$H$1280,6,0))) -> AMASYA | O10: 1363 | Q10: 6
A11: 4 | B11: 935 | C11: 1982-09-29 | D11: HAKAN KARACAOĞLU | E11: ANKARA | F11: 1097 | I11: 4 | J11: 100M-1-4 | K11: =IF(ISERROR(VLOOKUP(J11,'KAYIT LİSTESİ'!$B$4:$H$1280,2,0)),"",(VLOOKUP(J11,'KAYIT LİSTESİ'!$B$4:$H$1280,2,0))) -> 935 | L11: =IF(ISERROR(VLOOKUP(J11,'KAYIT LİSTESİ'!$B$4:$H$1280,4,0)),"",(VLOOKUP(J11,'KAYIT LİSTESİ'!$B$4:$H$1280,4,0))) -> 1982-09-29 | M11: =IF(ISERROR(VLOOKUP(J11,'KAYIT LİSTESİ'!$B$4:$H$1280,5,0)),"",(VLOOKUP(J11,'KAYIT LİSTESİ'!$B$4:$H$1280,5,0))) -> HAKAN KARACAOĞLU | N11: =IF(ISERROR(VLOOKUP(J11,'KAYIT LİSTESİ'!$B$4:$H$1280,6,0)),"",(VLOOKUP(J11,'KAYIT LİSTESİ'!$B$4:$H$1280,6,0))) -> ANKARA | O11: 1097 | Q11: 1
A12: 5 | B12: 947 | C12: 1985-07-16 | D12: OKAN KAMIŞ | E12: ANKARA | F12: 1107 | I12: 5 | J12: 100M-1-5 | K12: =IF(ISERROR(VLOOKUP(J12,'KAYIT LİSTESİ'!$B$4:$H$1280,2,0)),"",(VLOOKUP(J12,'KAYIT LİSTESİ'!$B$4:$H$1280,2,0))) -> 941 | L12: =IF(ISERROR(VLOOKUP(J12,'KAYIT LİSTESİ'!$B$4:$H$1280,4,0)),"",(VLOOKUP(J12,'KAYIT LİSTESİ'!$B$4:$H$1280,4,0))) -> 1983-03-18 | M12: =IF(ISERROR(VLOOKUP(J12,'KAYIT LİSTESİ'!$B$4:$H$1280,5,0)),"",(VLOOKUP(J12,'KAYIT LİSTESİ'!$B$4:$H$1280,5,0))) -> MUSA ALTIN | N12: =IF(ISERROR(VLOOKUP(J12,'KAYIT LİSTESİ'!$B$4:$H$1280,6,0)),"",(VLOOKUP(J12,'KAYIT LİSTESİ'!$B$4:$H$1280,6,0))) -> ANKARA | O12: 1151 | Q12: 5
A13: 6 | B13: 944 | C13: 1990-08-07 | D13: MUSTAFA YAĞMURLU | E13: ANKARA | F13: 1126 | I13: 6 | J13: 100M-1-6 | K13: =IF(ISERROR(VLOOKUP(J13,'KAYIT LİSTESİ'!$B$4:$H$1280,2,0)),"",(VLOOKUP(J13,'KAYIT LİSTESİ'!$B$4:$H$1280,2,0))) -> 944 | L13: =IF(ISERROR(VLOOKUP(J13,'KAYIT LİSTESİ'!$B$4:$H$1280,4,0)),"",(VLOOKUP(J13,'KAYIT LİSTESİ'!$B$4:$H$1280,4,0))) -> 1990-08-07 | M13: =IF(ISERROR(VLOOKUP(J13,'KAYIT LİSTESİ'!$B$4:$H$1280,5,0)),"",(VLOOKUP(J13,'KAYIT LİSTESİ'!$B$4:$H$1280,5,0))) -> MUSTAFA YAĞMURLU | N13: =IF(ISERROR(VLOOKUP(J13,'KAYIT LİSTESİ'!$B$4:$H$1280,6,0)),"",(VLOOKUP(J13,'KAYIT LİSTESİ'!$B$4:$H$1280,6,0))) -> ANKARA | O13: 1126 | Q13: 3
A14: 7 | B14: 951 | C14: 1987-10-03 | D14: SERDAR ELMAS | E14: ANKARA | F14: 1132 | I14: 7 | J14: 100M-1-7 | K14: =IF(ISERROR(VLOOKUP(J14,'KAYIT LİSTESİ'!$B$4:$H$1280,2,0)),"",(VLOOKUP(J14,'KAYIT LİSTESİ'!$B$4:$H$1280,2,0))) -> 947 | L14: =IF(ISERROR(VLOOKUP(J14,'KAYIT LİSTESİ'!$B$4:$H$1280,4,0)),"",(VLOOKUP(J14,'KAYIT LİSTESİ'!$B$4:$H$1280,4,0))) -> 1985-07-16 | M14: =IF(ISERROR(VLOOKUP(J14,'KAYIT LİSTESİ'!$B$4:$H$1280,5,0)),"",(VLOOKUP(J14,'KAYIT LİSTESİ'!$B$4:$H$1280,5,0))) -> OKAN KAMIŞ | N14: =IF(ISERROR(VLOOKUP(J14,'KAYIT LİSTESİ'!$B$4:$H$1280,6,0)),"",(VLOOKUP(J14,'KAYIT LİSTESİ'!$B$4:$H$1280,6,0))) -> ANKARA | O14: 1107 | Q14: 2
A15: 8 | B15: 941 | C15: 1983-03-18 | D15: MUSA ALTIN | E15: ANKARA | F15: 1151 | I15: 8 | J15: 100M-1-8 | K15: =IF(ISERROR(VLOOKUP(J15,'KAYIT LİSTESİ'!$B$4:$H$1280,2,0)),"",(VLOOKUP(J15,'KAYIT LİSTESİ'!$B$4:$H$1280,2,0))) -> 951 | L15: =IF(ISERROR(VLOOKUP(J15,'KAYIT LİSTESİ'!$B$4:$H$1280,4,0)),"",(VLOOKUP(J15,'KAYIT LİSTESİ'!$B$4:$H$1280,4,0))) -> 1987-10-03 | M15: =IF(ISERROR(VLOOKUP(J15,'KAYIT LİSTESİ'!$B$4:$H$1280,5,0)),"",(VLOOKUP(J15,'KAYIT LİSTESİ'!$B$4:$H$1280,5,0))) -> SERDAR ELMAS | N15: =IF(ISERROR(VLOOKUP(J15,'KAYIT LİSTESİ'!$B$4:$H$1280,6,0)),"",(VLOOKUP(J15,'KAYIT LİSTESİ'!$B$4:$H$1280,6,0))) -> ANKARA | O15: 1132 | Q15: 4
A16: 9 | B16: 9 | C16: 1990-01-05 | D16: ABDURRAHMAN ORUÇ | E16: ŞANLIURFA | F16: 1214 | I16: 2. SERİ | M16: Rüzgar:
A17: 10 | B17: 542 | C17: 08 02 1979 | D17: LEVENT YEK | E17: KAHRAMANMARAŞ | F17: 1237 | I17: Sıra No | J17: Formül | K17: Göğüs No | L17: Doğum Tarihi | M17: Adı ve Soyadı | N17: İLİ-OKULU | O17: Elektronik Kronometre | P17: El Kronometre | Q17: Seri Geliş
A18: 11 | B18: 343 | C18: 1993-01-02 | D18: MAHMUT ÇİFTÇİ | E18: ŞANLIURFA | F18: 1321 | I18: 1 | J18: 100M-2-1 | K18: =IF(ISERROR(VLOOKUP(J18,'KAYIT LİSTESİ'!$B$4:$H$1280,2,0)),"",(VLOOKUP(J18,'KAYIT LİSTESİ'!$B$4:$H$1280,2,0))) -> 957 | L18: =IF(ISERROR(VLOOKUP(J18,'KAYIT LİSTESİ'!$B$4:$H$1280,4,0)),"",(VLOOKUP(J18,'KAYIT LİSTESİ'!$B$4:$H$1280,4,0))) -> 1995-01-01 | M18: =IF(ISERROR(VLOOKUP(J18,'KAYIT LİSTESİ'!$B$4:$H$1280,5,0)),"",(VLOOKUP(J18,'KAYIT LİSTESİ'!$B$4:$H$1280,5,0))) -> AYKUT AY | N18: =IF(ISERROR(VLOOKUP(J18,'KAYIT LİSTESİ'!$B$4:$H$1280,6,0)),"",(VLOOKUP(J18,'KAYIT LİSTESİ'!$B$4:$H$1280,6,0))) -> ANTALYA | O18: DNF
A19: 12 | B19: 921 | C19: 15.08.1993 | D19: SAMET KESLER | E19: AMASYA | F19: 1363 | I19: 2 | J19: 100M-2-2 | K19: =IF(ISERROR(VLOOKUP(J19,'KAYIT LİSTESİ'!$B$4:$H$1280,2,0)),"",(VLOOKUP(J19,'KAYIT LİSTESİ'!$B$4:$H$1280,2,0))) -> A89 | L19: =IF(ISERROR(VLOOKUP(J19,'KAYIT LİSTESİ'!$B$4:$H$1280,4,0)),"",(VLOOKUP(J19,'KAYIT LİSTESİ'!$B$4:$H$1280,4,0))) -> 00:00:00 | M19: =IF(ISERROR(VLOOKUP(J19,'KAYIT LİSTESİ'!$B$4:$H$1280,5,0)),"",(VLOOKUP(J19,'KAYIT LİSTESİ'!$B$4:$H$1280,5,0))) -> CUMALI U. EMEKTAŞ | N19: =IF(ISERROR(VLOOKUP(J19,'KAYIT LİSTESİ'!$B$4:$H$1280,6,0)),"",(VLOOKUP(J19,'KAYIT LİSTESİ'!$B$4:$H$1280,6,0))) -> BURSA | O19: 1084 | Q19: 2
A20: - | B20: 957 | C20: 1995-01-01 | D20: AYKUT AY | E20: ANTALYA | F20: DNF | I20: 3 | J20: 100M-2-3 | K20: =IF(ISERROR(VLOOKUP(J20,'KAYIT LİSTESİ'!$B$4:$H$1280,2,0)),"",(VLOOKUP(J20,'KAYIT LİSTESİ'!$B$4:$H$1280,2,0))) -> A528 | L20: =IF(ISERROR(VLOOKUP(J20,'KAYIT LİSTESİ'!$B$4:$H$1280,4,0)),"",(VLOOKUP(J20,'KAYIT LİSTESİ'!$B$4:$H$1280,4,0))) -> 1991-06-11 | M20: =IF(ISERROR(VLOOKUP(J20,'KAYIT LİSTESİ'!$B$4:$H$1280,5,0)),"",(VLOOKUP(J20,'KAYIT LİSTESİ'!$B$4:$H$1280,5,0))) -> VOLKAN ÇAKAN | N20: =IF(ISERROR(VLOOKUP(J20,'KAYIT LİSTESİ'!$B$4:$H$1280,6,0)),"",(VLOOKUP(J20,'KAYIT LİSTESİ'!$B$4:$H$1280,6,0))) -> İSTANBUL | O20: 1083 | Q20: 1
A21: - | B21: 919 | C21: 08.02.1979 | D21: MEHMET AKIF ÇELİK | E21: AMASYA | F21: DNS | I21: 4 | J21: 100M-2-4 | K21: =IF(ISERROR(VLOOKUP(J21,'KAYIT LİSTESİ'!$B$4:$H$1280,2,0)),"",(VLOOKUP(J21,'KAYIT LİSTESİ'!$B$4:$H$1280,2,0))) -> 542 | L21: =IF(ISERROR(VLOOKUP(J21,'KAYIT LİSTESİ'!$B$4:$H$1280,4,0)),"",(VLOOKUP(J21,'KAYIT LİSTESİ'!$B$4:$H$1280,4,0))) -> 08 02 1979 | M21: =IF(ISERROR(VLOOKUP(J21,'KAYIT LİSTESİ'!$B$4:$H$1280,5,0)),"",(VLOOKUP(J21,'KAYIT LİSTESİ'!$B$4:$H$1280,5,0))) -> LEVENT YEK | N21: =IF(ISERROR(VLOOKUP(J21,'KAYIT LİSTESİ'!$B$4:$H$1280,6,0)),"",(VLOOKUP(J21,'KAYIT LİSTESİ'!$B$4:$H$1280,6,0))) -> KAHRAMANMARAŞ | O21: 1237 | Q21: 5
A22: - | B22: 610 | C22: 1981-03-07 | D22: İSMAILASLAN | E22: MERSİN | F22: DNS | I22: 5 | J22: 100M-2-5 | K22: =IF(ISERROR(VLOOKUP(J22,'KAYIT LİSTESİ'!$B$4:$H$1280,2,0)),"",(VLOOKUP(J22,'KAYIT LİSTESİ'!$B$4:$H$1280,2,0))) -> 601 | L22: =IF(ISERROR(VLOOKUP(J22,'KAYIT LİSTESİ'!$B$4:$H$1280,4,0)),"",(VLOOKUP(J22,'KAYIT LİSTESİ'!$B$4:$H$1280,4,0))) -> 1995-02-11 | M22: =IF(ISERROR(VLOOKUP(J22,'KAYIT LİSTESİ'!$B$4:$H$1280,5,0)),"",(VLOOKUP(J22,'KAYIT LİSTESİ'!$B$4:$H$1280,5,0))) -> EMRE BERK CAN | N22: =IF(ISERROR(VLOOKUP(J22,'KAYIT LİSTESİ'!$B$4:$H$1280,6,0)),"",(VLOOKUP(J22,'KAYIT LİSTESİ'!$B$4:$H$1280,6,0))) -> MERSİN | O22: 1087 | Q22: 3
I23: 6 | J23: 100M-2-6 | K23: =IF(ISERROR(VLOOKUP(J23,'KAYIT LİSTESİ'!$B$4:$H$1280,2,0)),"",(VLOOKUP(J23,'KAYIT LİSTESİ'!$B$4:$H$1280,2,0))) -> 610 | L23: =IF(ISERROR(VLOOKUP(J23,'KAYIT LİSTESİ'!$B$4:$H$1280,4,0)),"",(VLOOKUP(J23,'KAYIT LİSTESİ'!$B$4:$H$1280,4,0))) -> 1981-03-07 | M23: =IF(ISERROR(VLOOKUP(J23,'KAYIT LİSTESİ'!$B$4:$H$1280,5,0)),"",(VLOOKUP(J23,'KAYIT LİSTESİ'!$B$4:$H$1280,5,0))) -> İSMAILASLAN | N23: =IF(ISERROR(VLOOKUP(J23,'KAYIT LİSTESİ'!$B$4:$H$1280,6,0)),"",(VLOOKUP(J23,'KAYIT LİSTESİ'!$B$4:$H$1280,6,0))) -> MERSİN | O23: DNS | Q23: -
I24: 7 | J24: 100M-2-7 | K24: =IF(ISERROR(VLOOKUP(J24,'KAYIT LİSTESİ'!$B$4:$H$1280,2,0)),"",(VLOOKUP(J24,'KAYIT LİSTESİ'!$B$4:$H$1280,2,0))) -> 9 | L24: =IF(ISERROR(VLOOKUP(J24,'KAYIT LİSTESİ'!$B$4:$H$1280,4,0)),"",(VLOOKUP(J24,'KAYIT LİSTESİ'!$B$4:$H$1280,4,0))) -> 1990-01-05 | M24: =IF(ISERROR(VLOOKUP(J24,'KAYIT LİSTESİ'!$B$4:$H$1280,5,0)),"",(VLOOKUP(J24,'KAYIT LİSTESİ'!$B$4:$H$1280,5,0))) -> ABDURRAHMAN ORUÇ | N24: =IF(ISERROR(VLOOKUP(J24,'KAYIT LİSTESİ'!$B$4:$H$1280,6,0)),"",(VLOOKUP(J24,'KAYIT LİSTESİ'!$B$4:$H$1280,6,0))) -> ŞANLIURFA | O24: 1214 | Q24: 4
I25: 8 | J25: 100M-2-8 | K25: =IF(ISERROR(VLOOKUP(J25,'KAYIT LİSTESİ'!$B$4:$H$1280,2,0)),"",(VLOOKUP(J25,'KAYIT LİSTESİ'!$B$4:$H$1280,2,0))) -> 343 | L25: =IF(ISERROR(VLOOKUP(J25,'KAYIT LİSTESİ'!$B$4:$H$1280,4,0)),"",(VLOOKUP(J25,'KAYIT LİSTESİ'!$B$4:$H$1280,4,0))) -> 1993-01-02 | M25: =IF(ISERROR(VLOOKUP(J25,'KAYIT LİSTESİ'!$B$4:$H$1280,5,0)),"",(VLOOKUP(J25,'KAYIT LİSTESİ'!$B$4:$H$1280,5,0))) -> MAHMUT ÇİFTÇİ | N25: =IF(ISERROR(VLOOKUP(J25,'KAYIT LİSTESİ'!$B$4:$H$1280,6,0)),"",(VLOOKUP(J25,'KAYIT LİSTESİ'!$B$4:$H$1280,6,0))) -> ŞANLIURFA | O25: 1321 | Q25: 6
I26: 3. SERİ | M26: Rüzgar:
I27: Sıra No | J27: Formül | K27: Göğüs No | L27: Doğum Tarihi | M27: Adı ve Soyadı | N27: İLİ-OKULU | O27: Elektronik Kronometre | P27: El Kronometre | Q27: Seri Geliş
I28: 1 | J28: 100M-3-1 | K28: =IF(ISERROR(VLOOKUP(J28,'KAYIT LİSTESİ'!$B$4:$H$1280,2,0)),"",(VLOOKUP(J28,'KAYIT LİSTESİ'!$B$4:$H$1280,2,0))) ->  | L28: =IF(ISERROR(VLOOKUP(J28,'KAYIT LİSTESİ'!$B$4:$H$1280,4,0)),"",(VLOOKUP(J28,'KAYIT LİSTESİ'!$B$4:$H$1280,4,0))) ->  | M28: =IF(ISERROR(VLOOKUP(J28,'KAYIT LİSTESİ'!$B$4:$H$1280,5,0)),"",(VLOOKUP(J28,'KAYIT LİSTESİ'!$B$4:$H$1280,5,0))) ->  | N28: =IF(ISERROR(VLOOKUP(J28,'KAYIT LİSTESİ'!$B$4:$H$1280,6,0)),"",(VLOOKUP(J28,'KAYIT LİSTESİ'!$B$4:$H$1280,6,0))) ->  | O28: =IF(IF(OR(P28="NM",P28="DNF",P28="DNS",P28="DQ",P28=""),P28,(ROUNDUP(P28,)+24))=0," ",IF(OR(P28="NM",P28="DNF",P28="DNS",P28="DQ",P28=""),P28,(ROUNDUP(P28,)+24))) -> 
I29: 2 | J29: 100M-3-2 | K29: =IF(ISERROR(VLOOKUP(J29,'KAYIT LİSTESİ'!$B$4:$H$1280,2,0)),"",(VLOOKUP(J29,'KAYIT LİSTESİ'!$B$4:$H$1280,2,0))) ->  | L29: =IF(ISERROR(VLOOKUP(J29,'KAYIT LİSTESİ'!$B$4:$H$1280,4,0)),"",(VLOOKUP(J29,'KAYIT LİSTESİ'!$B$4:$H$1280,4,0))) ->  | M29: =IF(ISERROR(VLOOKUP(J29,'KAYIT LİSTESİ'!$B$4:$H$1280,5,0)),"",(VLOOKUP(J29,'KAYIT LİSTESİ'!$B$4:$H$1280,5,0))) ->  | N29: =IF(ISERROR(VLOOKUP(J29,'KAYIT LİSTESİ'!$B$4:$H$1280,6,0)),"",(VLOOKUP(J29,'KAYIT LİSTESİ'!$B$4:$H$1280,6,0))) -> 
I30: 3 | J30: 100M-3-3 | K30: =IF(ISERROR(VLOOKUP(J30,'KAYIT LİSTESİ'!$B$4:$H$1280,2,0)),"",(VLOOKUP(J30,'KAYIT LİSTESİ'!$B$4:$H$1280,2,0))) ->  | L30: =IF(ISERROR(VLOOKUP(J30,'KAYIT LİSTESİ'!$B$4:$H$1280,4,0)),"",(VLOOKUP(J30,'KAYIT LİSTESİ'!$B$4:$H$1280,4,0))) ->  | M30: =IF(ISERROR(VLOOKUP(J30,'KAYIT LİSTESİ'!$B$4:$H$1280,5,0)),"",(VLOOKUP(J30,'KAYIT LİSTESİ'!$B$4:$H$1280,5,0))) ->  | N30: =IF(ISERROR(VLOOKUP(J30,'KAYIT LİSTESİ'!$B$4:$H$1280,6,0)),"",(VLOOKUP(J30,'KAYIT LİSTESİ'!$B$4:$H$1280,6,0))) -> 
I31: 4 | J31: 100M-3-4 | K31: =IF(ISERROR(VLOOKUP(J31,'KAYIT LİSTESİ'!$B$4:$H$1280,2,0)),"",(VLOOKUP(J31,'KAYIT LİSTESİ'!$B$4:$H$1280,2,0))) ->  | L31: =IF(ISERROR(VLOOKUP(J31,'KAYIT LİSTESİ'!$B$4:$H$1280,4,0)),"",(VLOOKUP(J31,'KAYIT LİSTESİ'!$B$4:$H$1280,4,0))) ->  | M31: =IF(ISERROR(VLOOKUP(J31,'KAYIT LİSTESİ'!$B$4:$H$1280,5,0)),"",(VLOOKUP(J31,'KAYIT LİSTESİ'!$B$4:$H$1280,5,0))) ->  | N31: =IF(ISERROR(VLOOKUP(J31,'KAYIT LİSTESİ'!$B$4:$H$1280,6,0)),"",(VLOOKUP(J31,'KAYIT LİSTESİ'!$B$4:$H$1280,6,0))) -> 
I32: 5 | J32: 100M-3-5 | K32: =IF(ISERROR(VLOOKUP(J32,'KAYIT LİSTESİ'!$B$4:$H$1280,2,0)),"",(VLOOKUP(J32,'KAYIT LİSTESİ'!$B$4:$H$1280,2,0))) ->  | L32: =IF(ISERROR(VLOOKUP(J32,'KAYIT LİSTESİ'!$B$4:$H$1280,4,0)),"",(VLOOKUP(J32,'KAYIT LİSTESİ'!$B$4:$H$1280,4,0))) ->  | M32: =IF(ISERROR(VLOOKUP(J32,'KAYIT LİSTESİ'!$B$4:$H$1280,5,0)),"",(VLOOKUP(J32,'KAYIT LİSTESİ'!$B$4:$H$1280,5,0))) ->  | N32: =IF(ISERROR(VLOOKUP(J32,'KAYIT LİSTESİ'!$B$4:$H$1280,6,0)),"",(VLOOKUP(J32,'KAYIT LİSTESİ'!$B$4:$H$1280,6,0))) -> 
I33: 6 | J33: 100M-3-6 | K33: =IF(ISERROR(VLOOKUP(J33,'KAYIT LİSTESİ'!$B$4:$H$1280,2,0)),"",(VLOOKUP(J33,'KAYIT LİSTESİ'!$B$4:$H$1280,2,0))) ->  | L33: =IF(ISERROR(VLOOKUP(J33,'KAYIT LİSTESİ'!$B$4:$H$1280,4,0)),"",(VLOOKUP(J33,'KAYIT LİSTESİ'!$B$4:$H$1280,4,0))) ->  | M33: =IF(ISERROR(VLOOKUP(J33,'KAYIT LİSTESİ'!$B$4:$H$1280,5,0)),"",(VLOOKUP(J33,'KAYIT LİSTESİ'!$B$4:$H$1280,5,0))) ->  | N33: =IF(ISERROR(VLOOKUP(J33,'KAYIT LİSTESİ'!$B$4:$H$1280,6,0)),"",(VLOOKUP(J33,'KAYIT LİSTESİ'!$B$4:$H$1280,6,0))) -> 
I34: 7 | J34: 100M-3-7 | K34: =IF(ISERROR(VLOOKUP(J34,'KAYIT LİSTESİ'!$B$4:$H$1280,2,0)),"",(VLOOKUP(J34,'KAYIT LİSTESİ'!$B$4:$H$1280,2,0))) ->  | L34: =IF(ISERROR(VLOOKUP(J34,'KAYIT LİSTESİ'!$B$4:$H$1280,4,0)),"",(VLOOKUP(J34,'KAYIT LİSTESİ'!$B$4:$H$1280,4,0))) ->  | M34: =IF(ISERROR(VLOOKUP(J34,'KAYIT LİSTESİ'!$B$4:$H$1280,5,0)),"",(VLOOKUP(J34,'KAYIT LİSTESİ'!$B$4:$H$1280,5,0))) ->  | N34: =IF(ISERROR(VLOOKUP(J34,'KAYIT LİSTESİ'!$B$4:$H$1280,6,0)),"",(VLOOKUP(J34,'KAYIT LİSTESİ'!$B$4:$H$1280,6,0))) -> 
I35: 8 | J35: 100M-3-8 | K35: =IF(ISERROR(VLOOKUP(J35,'KAYIT LİSTESİ'!$B$4:$H$1280,2,0)),"",(VLOOKUP(J35,'KAYIT LİSTESİ'!$B$4:$H$1280,2,0))) ->  | L35: =IF(ISERROR(VLOOKUP(J35,'KAYIT LİSTESİ'!$B$4:$H$1280,4,0)),"",(VLOOKUP(J35,'KAYIT LİSTESİ'!$B$4:$H$1280,4,0))) ->  | M35: =IF(ISERROR(VLOOKUP(J35,'KAYIT LİSTESİ'!$B$4:$H$1280,5,0)),"",(VLOOKUP(J35,'KAYIT LİSTESİ'!$B$4:$H$1280,5,0))) ->  | N35: =IF(ISERROR(VLOOKUP(J35,'KAYIT LİSTESİ'!$B$4:$H$1280,6,0)),"",(VLOOKUP(J35,'KAYIT LİSTESİ'!$B$4:$H$1280,6,0))) -> 
I36: 4. SERİ | M36: Rüzgar:
I37: Sıra No | J37: Formül | K37: Göğüs No | L37: Doğum Tarihi | M37: Adı ve Soyadı | N37: İLİ-OKULU | O37: Elektronik Kronometre | P37: El Kronometre | Q37: Seri Geliş
I38: 1 | J38: 100M-4-1 | K38: =IF(ISERROR(VLOOKUP(J38,'KAYIT LİSTESİ'!$B$4:$H$1280,2,0)),"",(VLOOKUP(J38,'KAYIT LİSTESİ'!$B$4:$H$1280,2,0))) ->  | L38: =IF(ISERROR(VLOOKUP(J38,'KAYIT LİSTESİ'!$B$4:$H$1280,4,0)),"",(VLOOKUP(J38,'KAYIT LİSTESİ'!$B$4:$H$1280,4,0))) ->  | M38: =IF(ISERROR(VLOOKUP(J38,'KAYIT LİSTESİ'!$B$4:$H$1280,5,0)),"",(VLOOKUP(J38,'KAYIT LİSTESİ'!$B$4:$H$1280,5,0))) ->  | N38: =IF(ISERROR(VLOOKUP(J38,'KAYIT LİSTESİ'!$B$4:$H$1280,6,0)),"",(VLOOKUP(J38,'KAYIT LİSTESİ'!$B$4:$H$1280,6,0))) ->  | O38: =IF(IF(OR(P38="NM",P38="DNF",P38="DNS",P38="DQ",P38=""),P38,(ROUNDUP(P38,)+24))=0," ",IF(OR(P38="NM",P38="DNF",P38="DNS",P38="DQ",P38=""),P38,(ROUNDUP(P38,)+24))) -> 
I39: 2 | J39: 100M-4-2 | K39: =IF(ISERROR(VLOOKUP(J39,'KAYIT LİSTESİ'!$B$4:$H$1280,2,0)),"",(VLOOKUP(J39,'KAYIT LİSTESİ'!$B$4:$H$1280,2,0))) ->  | L39: =IF(ISERROR(VLOOKUP(J39,'KAYIT LİSTESİ'!$B$4:$H$1280,4,0)),"",(VLOOKUP(J39,'KAYIT LİSTESİ'!$B$4:$H$1280,4,0))) ->  | M39: =IF(ISERROR(VLOOKUP(J39,'KAYIT LİSTESİ'!$B$4:$H$1280,5,0)),"",(VLOOKUP(J39,'KAYIT LİSTESİ'!$B$4:$H$1280,5,0))) ->  | N39: =IF(ISERROR(VLOOKUP(J39,'KAYIT LİSTESİ'!$B$4:$H$1280,6,0)),"",(VLOOKUP(J39,'KAYIT LİSTESİ'!$B$4:$H$1280,6,0))) -> 
I40: 3 | J40: 100M-4-3 | K40: =IF(ISERROR(VLOOKUP(J40,'KAYIT LİSTESİ'!$B$4:$H$1280,2,0)),"",(VLOOKUP(J40,'KAYIT LİSTESİ'!$B$4:$H$1280,2,0))) ->  | L40: =IF(ISERROR(VLOOKUP(J40,'KAYIT LİSTESİ'!$B$4:$H$1280,4,0)),"",(VLOOKUP(J40,'KAYIT LİSTESİ'!$B$4:$H$1280,4,0))) ->  | M40: =IF(ISERROR(VLOOKUP(J40,'KAYIT LİSTESİ'!$B$4:$H$1280,5,0)),"",(VLOOKUP(J40,'KAYIT LİSTESİ'!$B$4:$H$1280,5,0))) ->  | N40: =IF(ISERROR(VLOOKUP(J40,'KAYIT LİSTESİ'!$B$4:$H$1280,6,0)),"",(VLOOKUP(J40,'KAYIT LİSTESİ'!$B$4:$H$1280,6,0))) -> 
I41: 4 | J41: 100M-4-4 | K41: =IF(ISERROR(VLOOKUP(J41,'KAYIT LİSTESİ'!$B$4:$H$1280,2,0)),"",(VLOOKUP(J41,'KAYIT LİSTESİ'!$B$4:$H$1280,2,0))) ->  | L41: =IF(ISERROR(VLOOKUP(J41,'KAYIT LİSTESİ'!$B$4:$H$1280,4,0)),"",(VLOOKUP(J41,'KAYIT LİSTESİ'!$B$4:$H$1280,4,0))) ->  | M41: =IF(ISERROR(VLOOKUP(J41,'KAYIT LİSTESİ'!$B$4:$H$1280,5,0)),"",(VLOOKUP(J41,'KAYIT LİSTESİ'!$B$4:$H$1280,5,0))) ->  | N41: =IF(ISERROR(VLOOKUP(J41,'KAYIT LİSTESİ'!$B$4:$H$1280,6,0)),"",(VLOOKUP(J41,'KAYIT LİSTESİ'!$B$4:$H$1280,6,0))) -> 
I42: 5 | J42: 100M-4-5 | K42: =IF(ISERROR(VLOOKUP(J42,'KAYIT LİSTESİ'!$B$4:$H$1280,2,0)),"",(VLOOKUP(J42,'KAYIT LİSTESİ'!$B$4:$H$1280,2,0))) ->  | L42: =IF(ISERROR(VLOOKUP(J42,'KAYIT LİSTESİ'!$B$4:$H$1280,4,0)),"",(VLOOKUP(J42,'KAYIT LİSTESİ'!$B$4:$H$1280,4,0))) ->  | M42: =IF(ISERROR(VLOOKUP(J42,'KAYIT LİSTESİ'!$B$4:$H$1280,5,0)),"",(VLOOKUP(J42,'KAYIT LİSTESİ'!$B$4:$H$1280,5,0))) ->  | N42: =IF(ISERROR(VLOOKUP(J42,'KAYIT LİSTESİ'!$B$4:$H$1280,6,0)),"",(VLOOKUP(J42,'KAYIT LİSTESİ'!$B$4:$H$1280,6,0))) -> 
I43: 6 | J43: 100M-4-6 | K43: =IF(ISERROR(VLOOKUP(J43,'KAYIT LİSTESİ'!$B$4:$H$1280,2,0)),"",(VLOOKUP(J43,'KAYIT LİSTESİ'!$B$4:$H$1280,2,0))) ->  | L43: =IF(ISERROR(VLOOKUP(J43,'KAYIT LİSTESİ'!$B$4:$H$1280,4,0)),"",(VLOOKUP(J43,'KAYIT LİSTESİ'!$B$4:$H$1280,4,0))) ->  | M43: =IF(ISERROR(VLOOKUP(J43,'KAYIT LİSTESİ'!$B$4:$H$1280,5,0)),"",(VLOOKUP(J43,'KAYIT LİSTESİ'!$B$4:$H$1280,5,0))) ->  | N43: =IF(ISERROR(VLOOKUP(J43,'KAYIT LİSTESİ'!$B$4:$H$1280,6,0)),"",(VLOOKUP(J43,'KAYIT LİSTESİ'!$B$4:$H$1280,6,0))) -> 
I44: 7 | J44: 100M-4-7 | K44: =IF(ISERROR(VLOOKUP(J44,'KAYIT LİSTESİ'!$B$4:$H$1280,2,0)),"",(VLOOKUP(J44,'KAYIT LİSTESİ'!$B$4:$H$1280,2,0))) ->  | L44: =IF(ISERROR(VLOOKUP(J44,'KAYIT LİSTESİ'!$B$4:$H$1280,4,0)),"",(VLOOKUP(J44,'KAYIT LİSTESİ'!$B$4:$H$1280,4,0))) ->  | M44: =IF(ISERROR(VLOOKUP(J44,'KAYIT LİSTESİ'!$B$4:$H$1280,5,0)),"",(VLOOKUP(J44,'KAYIT LİSTESİ'!$B$4:$H$1280,5,0))) ->  | N44: =IF(ISERROR(VLOOKUP(J44,'KAYIT LİSTESİ'!$B$4:$H$1280,6,0)),"",(VLOOKUP(J44,'KAYIT LİSTESİ'!$B$4:$H$1280,6,0))) -> 
I45: 8 | J45: 100M-4-8 | K45: =IF(ISERROR(VLOOKUP(J45,'KAYIT LİSTESİ'!$B$4:$H$1280,2,0)),"",(VLOOKUP(J45,'KAYIT LİSTESİ'!$B$4:$H$1280,2,0))) ->  | L45: =IF(ISERROR(VLOOKUP(J45,'KAYIT LİSTESİ'!$B$4:$H$1280,4,0)),"",(VLOOKUP(J45,'KAYIT LİSTESİ'!$B$4:$H$1280,4,0))) ->  | M45: =IF(ISERROR(VLOOKUP(J45,'KAYIT LİSTESİ'!$B$4:$H$1280,5,0)),"",(VLOOKUP(J45,'KAYIT LİSTESİ'!$B$4:$H$1280,5,0))) ->  | N45: =IF(ISERROR(VLOOKUP(J45,'KAYIT LİSTESİ'!$B$4:$H$1280,6,0)),"",(VLOOKUP(J45,'KAYIT LİSTESİ'!$B$4:$H$1280,6,0))) -> 
A47: Müsabakalar Direktörü | E47: Baş Hakem | F47: Lider | H47: Sekreter | M47: Hakem | N47: Hakem | P47: Hakem
A65536: CELAL KAYAÖZ

Sheet 400m.
A1: =('YARIŞMA BİLGİLERİ'!A2) -> Gençlik ve Spor Bakanlığı Spor Genel Müdürlüğü Spor Faaliyetleri Daire Başkanlığı
A2: ='YARIŞMA BİLGİLERİ'!F19 -> Olimpik Baraj Yarışmları
A3: Yarışma : | D3: ='YARIŞMA PROGRAMI'!C8 -> 400 Metre | F3: Baraj Derecesi | H3: :
A4: Kategori : | D4: ='YARIŞMA BİLGİLERİ'!F21 -> Büyük Erkekler | M4: Tarih-Saat : | N4: ='YARIŞMA PROGRAMI'!B8 -> 16 Mayıs 2015 - 20:30
N5: =NOW() -> 42142.49098
A6: Sıra No | B6: Göğüs No | C6: Doğum Tarihi Gün/Ay/Yıl | D6: Adı ve Soyadı | E6: İLİ-OKULU | F6: Derece | G6: Puan | I6: 1. SERİ
I7: Sıra No | J7: Formül | K7: Göğüs No | L7: Doğum Tarihi | M7: Adı ve Soyadı | N7: İLİ-OKULU | O7: Elektronik Kronometre | P7: El Kronometre | Q7: Seri Geliş
A8: 1 | B8: 924 | C8: 1987-04-05 | D8: ALİ EKBER KAYAŞ | E8: ANKARA | F8: 4786 | I8: 1 | J8: 400M-1-1 | K8: =IF(ISERROR(VLOOKUP(J8,'KAYIT LİSTESİ'!$B$4:$H$1280,2,0)),"",(VLOOKUP(J8,'KAYIT LİSTESİ'!$B$4:$H$1280,2,0))) ->  | L8: =IF(ISERROR(VLOOKUP(J8,'KAYIT LİSTESİ'!$B$4:$H$1280,4,0)),"",(VLOOKUP(J8,'KAYIT LİSTESİ'!$B$4:$H$1280,4,0))) ->  | M8: =IF(ISERROR(VLOOKUP(J8,'KAYIT LİSTESİ'!$B$4:$H$1280,5,0)),"",(VLOOKUP(J8,'KAYIT LİSTESİ'!$B$4:$H$1280,5,0))) ->  | N8: =IF(ISERROR(VLOOKUP(J8,'KAYIT LİSTESİ'!$B$4:$H$1280,6,0)),"",(VLOOKUP(J8,'KAYIT LİSTESİ'!$B$4:$H$1280,6,0))) ->  | O8: =IF(IF(OR(P8="NM",P8="DNF",P8="DNS",P8="DQ",P8=""),P8,(ROUNDUP(P8,)+24))=0," ",IF(OR(P8="NM",P8="DNF",P8="DNS",P8="DQ",P8=""),P8,(ROUNDUP(P8,)+24))) -> 
A9: 2 | B9: 501 | C9: 1992-03-01 | D9: HALİT KILIÇ | E9: İSTANBUL | F9: 4805 | I9: 2 | J9: 400M-1-2 | K9: =IF(ISERROR(VLOOKUP(J9,'KAYIT LİSTESİ'!$B$4:$H$1280,2,0)),"",(VLOOKUP(J9,'KAYIT LİSTESİ'!$B$4:$H$1280,2,0))) -> 989 | L9: =IF(ISERROR(VLOOKUP(J9,'KAYIT LİSTESİ'!$B$4:$H$1280,4,0)),"",(VLOOKUP(J9,'KAYIT LİSTESİ'!$B$4:$H$1280,4,0))) -> 1995-03-05 | M9: =IF(ISERROR(VLOOKUP(J9,'KAYIT LİSTESİ'!$B$4:$H$1280,5,0)),"",(VLOOKUP(J9,'KAYIT LİSTESİ'!$B$4:$H$1280,5,0))) -> ARDA ERİŞ | N9: =IF(ISERROR(VLOOKUP(J9,'KAYIT LİSTESİ'!$B$4:$H$1280,6,0)),"",(VLOOKUP(J9,'KAYIT LİSTESİ'!$B$4:$H$1280,6,0))) -> GAZİANTEP | O9: 5066 | Q9: 4
A10: 3 | B10: 495 | C10: 1991-07-14 | D10: BUĞRAHAN KOCABEYOĞLU | E10: İSTANBUL | F10: 4895 | I10: 3 | J10: 400M-1-3 | K10: =IF(ISERROR(VLOOKUP(J10,'KAYIT LİSTESİ'!$B$4:$H$1280,2,0)),"",(VLOOKUP(J10,'KAYIT LİSTESİ'!$B$4:$H$1280,2,0))) -> A346 | L10: =IF(ISERROR(VLOOKUP(J10,'KAYIT LİSTESİ'!$B$4:$H$1280,4,0)),"",(VLOOKUP(J10,'KAYIT LİSTESİ'!$B$4:$H$1280,4,0))) -> 1989-01-01 | M10: =IF(ISERROR(VLOOKUP(J10,'KAYIT LİSTESİ'!$B$4:$H$1280,5,0)),"",(VLOOKUP(J10,'KAYIT LİSTESİ'!$B$4:$H$1280,5,0))) -> HÜSEYİN TOK | N10: =IF(ISERROR(VLOOKUP(J10,'KAYIT LİSTESİ'!$B$4:$H$1280,6,0)),"",(VLOOKUP(J10,'KAYIT LİSTESİ'!$B$4:$H$1280,6,0))) -> ANKARA | O10: 5095 | Q10: 5
A11: 4 | B11: 58 | C11: 1995-02-08 | D11: UTKU ÇOBANOĞLU | E11: MERSİN | F11: 4940 | I11: 4 | J11: 400M-1-4 | K11: =IF(ISERROR(VLOOKUP(J11,'KAYIT LİSTESİ'!$B$4:$H$1280,2,0)),"",(VLOOKUP(J11,'KAYIT LİSTESİ'!$B$4:$H$1280,2,0))) -> 973 | L11: =IF(ISERROR(VLOOKUP(J11,'KAYIT LİSTESİ'!$B$4:$H$1280,4,0)),"",(VLOOKUP(J11,'KAYIT LİSTESİ'!$B$4:$H$1280,4,0))) -> 1993-05-11 | M11: =IF(ISERROR(VLOOKUP(J11,'KAYIT LİSTESİ'!$B$4:$H$1280,5,0)),"",(VLOOKUP(J11,'KAYIT LİSTESİ'!$B$4:$H$1280,5,0))) -> KAAN AKALP | N11: =IF(ISERROR(VLOOKUP(J11,'KAYIT LİSTESİ'!$B$4:$H$1280,6,0)),"",(VLOOKUP(J11,'KAYIT LİSTESİ'!$B$4:$H$1280,6,0))) -> BURSA | O11: 4950 | Q11: 3
A12: 5 | B12: 973 | C12: 1993-05-11 | D12: KAAN AKALP | E12: BURSA | F12: 4950 | I12: 5 | J12: 400M-1-5 | K12: =IF(ISERROR(VLOOKUP(J12,'KAYIT LİSTESİ'!$B$4:$H$1280,2,0)),"",(VLOOKUP(J12,'KAYIT LİSTESİ'!$B$4:$H$1280,2,0))) -> 924 | L12: =IF(ISERROR(VLOOKUP(J12,'KAYIT LİSTESİ'!$B$4:$H$1280,4,0)),"",(VLOOKUP(J12,'KAYIT LİSTESİ'!$B$4:$H$1280,4,0))) -> 1987-04-05 | M12: =IF(ISERROR(VLOOKUP(J12,'KAYIT LİSTESİ'!$B$4:$H$1280,5,0)),"",(VLOOKUP(J12,'KAYIT LİSTESİ'!$B$4:$H$1280,5,0))) -> ALİ EKBER KAYAŞ | N12: =IF(ISERROR(VLOOKUP(J12,'KAYIT LİSTESİ'!$B$4:$H$1280,6,0)),"",(VLOOKUP(J12,'KAYIT LİSTESİ'!$B$4:$H$1280,6,0))) -> ANKARA | O12: 4786 | Q12: 1
A13: 6 | B13: 989 | C13: 1995-03-05 | D13: ARDA ERİŞ | E13: GAZİANTEP | F13: 5066 | I13: 6 | J13: 400M-1-6 | K13: =IF(ISERROR(VLOOKUP(J13,'KAYIT LİSTESİ'!$B$4:$H$1280,2,0)),"",(VLOOKUP(J13,'KAYIT LİSTESİ'!$B$4:$H$1280,2,0))) -> 495 | L13: =IF(ISERROR(VLOOKUP(J13,'KAYIT LİSTESİ'!$B$4:$H$1280,4,0)),"",(VLOOKUP(J13,'KAYIT LİSTESİ'!$B$4:$H$1280,4,0))) -> 1991-07-14 | M13: =IF(ISERROR(VLOOKUP(J13,'KAYIT LİSTESİ'!$B$4:$H$1280,5,0)),"",(VLOOKUP(J13,'KAYIT LİSTESİ'!$B$4:$H$1280,5,0))) -> BUĞRAHAN KOCABEYOĞLU | N13: =IF(ISERROR(VLOOKUP(J13,'KAYIT LİSTESİ'!$B$4:$H$1280,6,0)),"",(VLOOKUP(J13,'KAYIT LİSTESİ'!$B$4:$H$1280,6,0))) -> İSTANBUL | O13: 4895 | Q13: 2
A14: 7 | B14: A346 | C14: 1989-01-01 | D14: HÜSEYİN TOK | E14: ANKARA | F14: 5095 | I14: 7 | J14: 400M-1-7 | K14: =IF(ISERROR(VLOOKUP(J14,'KAYIT LİSTESİ'!$B$4:$H$1280,2,0)),"",(VLOOKUP(J14,'KAYIT LİSTESİ'!$B$4:$H$1280,2,0))) ->  | L14: =IF(ISERROR(VLOOKUP(J14,'KAYIT LİSTESİ'!$B$4:$H$1280,4,0)),"",(VLOOKUP(J14,'KAYIT LİSTESİ'!$B$4:$H$1280,4,0))) ->  | M14: =IF(ISERROR(VLOOKUP(J14,'KAYIT LİSTESİ'!$B$4:$H$1280,5,0)),"",(VLOOKUP(J14,'KAYIT LİSTESİ'!$B$4:$H$1280,5,0))) ->  | N14: =IF(ISERROR(VLOOKUP(J14,'KAYIT LİSTESİ'!$B$4:$H$1280,6,0)),"",(VLOOKUP(J14,'KAYIT LİSTESİ'!$B$4:$H$1280,6,0))) -> 
A15: 8 | B15: 344 | C15: 1995-02-17 | D15: MEHMET CASIM BAKIR | E15: ŞANLIURFA | F15: 5099 | I15: 8 | J15: 400M-1-8 | K15: =IF(ISERROR(VLOOKUP(J15,'KAYIT LİSTESİ'!$B$4:$H$1280,2,0)),"",(VLOOKUP(J15,'KAYIT LİSTESİ'!$B$4:$H$1280,2,0))) ->  | L15: =IF(ISERROR(VLOOKUP(J15,'KAYIT LİSTESİ'!$B$4:$H$1280,4,0)),"",(VLOOKUP(J15,'KAYIT LİSTESİ'!$B$4:$H$1280,4,0))) ->  | M15: =IF(ISERROR(VLOOKUP(J15,'KAYIT LİSTESİ'!$B$4:$H$1280,5,0)),"",(VLOOKUP(J15,'KAYIT LİSTESİ'!$B$4:$H$1280,5,0))) ->  | N15: =IF(ISERROR(VLOOKUP(J15,'KAYIT LİSTESİ'!$B$4:$H$1280,6,0)),"",(VLOOKUP(J15,'KAYIT LİSTESİ'!$B$4:$H$1280,6,0))) -> 
A16: 9 | B16: 540 | C16: 07 07 1995 | D16: HASAN BİRİCİK | E16: KAHRAMANMARAŞ | F16: 5187 | I16: 2. SERİ
A17: 10 | B17: 546 | C17: 19 08 1994 | D17: ZAFER GÖK | E17: KAHRAMANMARAŞ | F17: 5591 | I17: Sıra No | J17: Formül | K17: Göğüs No | L17: Doğum Tarihi | M17: Adı ve Soyadı | N17: İLİ-OKULU | O17: Elektronik Kronometre | P17: El Kronometre | Q17: Seri Geliş
I18: 1 | J18: 400M-2-1 | K18: =IF(ISERROR(VLOOKUP(J18,'KAYIT LİSTESİ'!$B$4:$H$1280,2,0)),"",(VLOOKUP(J18,'KAYIT LİSTESİ'!$B$4:$H$1280,2,0))) ->  | L18: =IF(ISERROR(VLOOKUP(J18,'KAYIT LİSTESİ'!$B$4:$H$1280,4,0)),"",(VLOOKUP(J18,'KAYIT LİSTESİ'!$B$4:$H$1280,4,0))) ->  | M18: =IF(ISERROR(VLOOKUP(J18,'KAYIT LİSTESİ'!$B$4:$H$1280,5,0)),"",(VLOOKUP(J18,'KAYIT LİSTESİ'!$B$4:$H$1280,5,0))) ->  | N18: =IF(ISERROR(VLOOKUP(J18,'KAYIT LİSTESİ'!$B$4:$H$1280,6,0)),"",(VLOOKUP(J18,'KAYIT LİSTESİ'!$B$4:$H$1280,6,0))) ->  | O18: =IF(IF(OR(P18="NM",P18="DNF",P18="DNS",P18="DQ",P18=""),P18,(ROUNDUP(P18,)+24))=0," ",IF(OR(P18="NM",P18="DNF",P18="DNS",P18="DQ",P18=""),P18,(ROUNDUP(P18,)+24))) -> 
I19: 2 | J19: 400M-2-2 | K19: =IF(ISERROR(VLOOKUP(J19,'KAYIT LİSTESİ'!$B$4:$H$1280,2,0)),"",(VLOOKUP(J19,'KAYIT LİSTESİ'!$B$4:$H$1280,2,0))) -> 501 | L19: =IF(ISERROR(VLOOKUP(J19,'KAYIT LİSTESİ'!$B$4:$H$1280,4,0)),"",(VLOOKUP(J19,'KAYIT LİSTESİ'!$B$4:$H$1280,4,0))) -> 1992-03-01 | M19: =IF(ISERROR(VLOOKUP(J19,'KAYIT LİSTESİ'!$B$4:$H$1280,5,0)),"",(VLOOKUP(J19,'KAYIT LİSTESİ'!$B$4:$H$1280,5,0))) -> HALİT KILIÇ | N19: =IF(ISERROR(VLOOKUP(J19,'KAYIT LİSTESİ'!$B$4:$H$1280,6,0)),"",(VLOOKUP(J19,'KAYIT LİSTESİ'!$B$4:$H$1280,6,0))) -> İSTANBUL | O19: 4805 | Q19: 1
I20: 3 | J20: 400M-2-3 | K20: =IF(ISERROR(VLOOKUP(J20,'KAYIT LİSTESİ'!$B$4:$H$1280,2,0)),"",(VLOOKUP(J20,'KAYIT LİSTESİ'!$B$4:$H$1280,2,0))) -> 540 | L20: =IF(ISERROR(VLOOKUP(J20,'KAYIT LİSTESİ'!$B$4:$H$1280,4,0)),"",(VLOOKUP(J20,'KAYIT LİSTESİ'!$B$4:$H$1280,4,0))) -> 07 07 1995 | M20: =IF(ISERROR(VLOOKUP(J20,'KAYIT LİSTESİ'!$B$4:$H$1280,5,0)),"",(VLOOKUP(J20,'KAYIT LİSTESİ'!$B$4:$H$1280,5,0))) -> HASAN BİRİCİK | N20: =IF(ISERROR(VLOOKUP(J20,'KAYIT LİSTESİ'!$B$4:$H$1280,6,0)),"",(VLOOKUP(J20,'KAYIT LİSTESİ'!$B$4:$H$1280,6,0))) -> KAHRAMANMARAŞ | O20: 5187 | Q20: 4
I21: 4 | J21: 400M-2-4 | K21: =IF(ISERROR(VLOOKUP(J21,'KAYIT LİSTESİ'!$B$4:$H$1280,2,0)),"",(VLOOKUP(J21,'KAYIT LİSTESİ'!$B$4:$H$1280,2,0))) -> 546 | L21: =IF(ISERROR(VLOOKUP(J21,'KAYIT LİSTESİ'!$B$4:$H$1280,4,0)),"",(VLOOKUP(J21,'KAYIT LİSTESİ'!$B$4:$H$1280,4,0))) -> 19 08 1994 | M21: =IF(ISERROR(VLOOKUP(J21,'KAYIT LİSTESİ'!$B$4:$H$1280,5,0)),"",(VLOOKUP(J21,'KAYIT LİSTESİ'!$B$4:$H$1280,5,0))) -> ZAFER GÖK | N21: =IF(ISERROR(VLOOKUP(J21,'KAYIT LİSTESİ'!$B$4:$H$1280,6,0)),"",(VLOOKUP(J21,'KAYIT LİSTESİ'!$B$4:$H$1280,6,0))) -> KAHRAMANMARAŞ | O21: 5591 | Q21: 5
I22: 5 | J22: 400M-2-5 | K22: =IF(ISERROR(VLOOKUP(J22,'KAYIT LİSTESİ'!$B$4:$H$1280,2,0)),"",(VLOOKUP(J22,'KAYIT LİSTESİ'!$B$4:$H$1280,2,0))) -> 58 | L22: =IF(ISERROR(VLOOKUP(J22,'KAYIT LİSTESİ'!$B$4:$H$1280,4,0)),"",(VLOOKUP(J22,'KAYIT LİSTESİ'!$B$4:$H$1280,4,0))) -> 1995-02-08 | M22: =IF(ISERROR(VLOOKUP(J22,'KAYIT LİSTESİ'!$B$4:$H$1280,5,0)),"",(VLOOKUP(J22,'KAYIT LİSTESİ'!$B$4:$H$1280,5,0))) -> UTKU ÇOBANOĞLU | N22: =IF(ISERROR(VLOOKUP(J22,'KAYIT LİSTESİ'!$B$4:$H$1280,6,0)),"",(VLOOKUP(J22,'KAYIT LİSTESİ'!$B$4:$H$1280,6,0))) -> MERSİN | O22: 4940 | Q22: 2
I23: 6 | J23: 400M-2-6 | K23: =IF(ISERROR(VLOOKUP(J23,'KAYIT LİSTESİ'!$B$4:$H$1280,2,0)),"",(VLOOKUP(J23,'KAYIT LİSTESİ'!$B$4:$H$1280,2,0))) -> 344 | L23: =IF(ISERROR(VLOOKUP(J23,'KAYIT LİSTESİ'!$B$4:$H$1280,4,0)),"",(VLOOKUP(J23,'KAYIT LİSTESİ'!$B$4:$H$1280,4,0))) -> 1995-02-17 | M23: =IF(ISERROR(VLOOKUP(J23,'KAYIT LİSTESİ'!$B$4:$H$1280,5,0)),"",(VLOOKUP(J23,'KAYIT LİSTESİ'!$B$4:$H$1280,5,0))) -> MEHMET CASIM BAKIR | N23: =IF(ISERROR(VLOOKUP(J23,'KAYIT LİSTESİ'!$B$4:$H$1280,6,0)),"",(VLOOKUP(J23,'KAYIT LİSTESİ'!$B$4:$H$1280,6,0))) -> ŞANLIURFA | O23: 5099 | Q23: 3
I24: 7 | J24: 400M-2-7 | K24: =IF(ISERROR(VLOOKUP(J24,'KAYIT LİSTESİ'!$B$4:$H$1280,2,0)),"",(VLOOKUP(J24,'KAYIT LİSTESİ'!$B$4:$H$1280,2,0))) ->  | L24: =IF(ISERROR(VLOOKUP(J24,'KAYIT LİSTESİ'!$B$4:$H$1280,4,0)),"",(VLOOKUP(J24,'KAYIT LİSTESİ'!$B$4:$H$1280,4,0))) ->  | M24: =IF(ISERROR(VLOOKUP(J24,'KAYIT LİSTESİ'!$B$4:$H$1280,5,0)),"",(VLOOKUP(J24,'KAYIT LİSTESİ'!$B$4:$H$1280,5,0))) ->  | N24: =IF(ISERROR(VLOOKUP(J24,'KAYIT LİSTESİ'!$B$4:$H$1280,6,0)),"",(VLOOKUP(J24,'KAYIT LİSTESİ'!$B$4:$H$1280,6,0))) -> 
I25: 8 | J25: 400M-2-8 | K25: =IF(ISERROR(VLOOKUP(J25,'KAYIT LİSTESİ'!$B$4:$H$1280,2,0)),"",(VLOOKUP(J25,'KAYIT LİSTESİ'!$B$4:$H$1280,2,0))) ->  | L25: =IF(ISERROR(VLOOKUP(J25,'KAYIT LİSTESİ'!$B$4:$H$1280,4,0)),"",(VLOOKUP(J25,'KAYIT LİSTESİ'!$B$4:$H$1280,4,0))) ->  | M25: =IF(ISERROR(VLOOKUP(J25,'KAYIT LİSTESİ'!$B$4:$H$1280,5,0)),"",(VLOOKUP(J25,'KAYIT LİSTESİ'!$B$4:$H$1280,5,0))) ->  | N25: =IF(ISERROR(VLOOKUP(J25,'KAYIT LİSTESİ'!$B$4:$H$1280,6,0)),"",(VLOOKUP(J25,'KAYIT LİSTESİ'!$B$4:$H$1280,6,0))) -> 
I26: 3. SERİ
I27: Sıra No | J27: Formül | K27: Göğüs No | L27: Doğum Tarihi | M27: Adı ve Soyadı | N27: İLİ-OKULU | O27: Elektronik Kronometre | P27: El Kronometre | Q27: Seri Geliş
I28: 1 | J28: 400M-3-1 | K28: =IF(ISERROR(VLOOKUP(J28,'KAYIT LİSTESİ'!$B$4:$H$1280,2,0)),"",(VLOOKUP(J28,'KAYIT LİSTESİ'!$B$4:$H$1280,2,0))) ->  | L28: =IF(ISERROR(VLOOKUP(J28,'KAYIT LİSTESİ'!$B$4:$H$1280,4,0)),"",(VLOOKUP(J28,'KAYIT LİSTESİ'!$B$4:$H$1280,4,0))) ->  | M28: =IF(ISERROR(VLOOKUP(J28,'KAYIT LİSTESİ'!$B$4:$H$1280,5,0)),"",(VLOOKUP(J28,'KAYIT LİSTESİ'!$B$4:$H$1280,5,0))) ->  | N28: =IF(ISERROR(VLOOKUP(J28,'KAYIT LİSTESİ'!$B$4:$H$1280,6,0)),"",(VLOOKUP(J28,'KAYIT LİSTESİ'!$B$4:$H$1280,6,0))) ->  | O28: =IF(IF(OR(P28="NM",P28="DNF",P28="DNS",P28="DQ",P28=""),P28,(ROUNDUP(P28,)+24))=0," ",IF(OR(P28="NM",P28="DNF",P28="DNS",P28="DQ",P28=""),P28,(ROUNDUP(P28,)+24))) -> 
I29: 2 | J29: 400M-3-2 | K29: =IF(ISERROR(VLOOKUP(J29,'KAYIT LİSTESİ'!$B$4:$H$1280,2,0)),"",(VLOOKUP(J29,'KAYIT LİSTESİ'!$B$4:$H$1280,2,0))) ->  | L29: =IF(ISERROR(VLOOKUP(J29,'KAYIT LİSTESİ'!$B$4:$H$1280,4,0)),"",(VLOOKUP(J29,'KAYIT LİSTESİ'!$B$4:$H$1280,4,0))) ->  | M29: =IF(ISERROR(VLOOKUP(J29,'KAYIT LİSTESİ'!$B$4:$H$1280,5,0)),"",(VLOOKUP(J29,'KAYIT LİSTESİ'!$B$4:$H$1280,5,0))) ->  | N29: =IF(ISERROR(VLOOKUP(J29,'KAYIT LİSTESİ'!$B$4:$H$1280,6,0)),"",(VLOOKUP(J29,'KAYIT LİSTESİ'!$B$4:$H$1280,6,0))) -> 
I30: 3 | J30: 400M-3-3 | K30: =IF(ISERROR(VLOOKUP(J30,'KAYIT LİSTESİ'!$B$4:$H$1280,2,0)),"",(VLOOKUP(J30,'KAYIT LİSTESİ'!$B$4:$H$1280,2,0))) ->  | L30: =IF(ISERROR(VLOOKUP(J30,'KAYIT LİSTESİ'!$B$4:$H$1280,4,0)),"",(VLOOKUP(J30,'KAYIT LİSTESİ'!$B$4:$H$1280,4,0))) ->  | M30: =IF(ISERROR(VLOOKUP(J30,'KAYIT LİSTESİ'!$B$4:$H$1280,5,0)),"",(VLOOKUP(J30,'KAYIT LİSTESİ'!$B$4:$H$1280,5,0))) ->  | N30: =IF(ISERROR(VLOOKUP(J30,'KAYIT LİSTESİ'!$B$4:$H$1280,6,0)),"",(VLOOKUP(J30,'KAYIT LİSTESİ'!$B$4:$H$1280,6,0))) -> 
I31: 4 | J31: 400M-3-4 | K31: =IF(ISERROR(VLOOKUP(J31,'KAYIT LİSTESİ'!$B$4:$H$1280,2,0)),"",(VLOOKUP(J31,'KAYIT LİSTESİ'!$B$4:$H$1280,2,0))) ->  | L31: =IF(ISERROR(VLOOKUP(J31,'KAYIT LİSTESİ'!$B$4:$H$1280,4,0)),"",(VLOOKUP(J31,'KAYIT LİSTESİ'!$B$4:$H$1280,4,0))) ->  | M31: =IF(ISERROR(VLOOKUP(J31,'KAYIT LİSTESİ'!$B$4:$H$1280,5,0)),"",(VLOOKUP(J31,'KAYIT LİSTESİ'!$B$4:$H$1280,5,0))) ->  | N31: =IF(ISERROR(VLOOKUP(J31,'KAYIT LİSTESİ'!$B$4:$H$1280,6,0)),"",(VLOOKUP(J31,'KAYIT LİSTESİ'!$B$4:$H$1280,6,0))) -> 
I32: 5 | J32: 400M-3-5 | K32: =IF(ISERROR(VLOOKUP(J32,'KAYIT LİSTESİ'!$B$4:$H$1280,2,0)),"",(VLOOKUP(J32,'KAYIT LİSTESİ'!$B$4:$H$1280,2,0))) ->  | L32: =IF(ISERROR(VLOOKUP(J32,'KAYIT LİSTESİ'!$B$4:$H$1280,4,0)),"",(VLOOKUP(J32,'KAYIT LİSTESİ'!$B$4:$H$1280,4,0))) ->  | M32: =IF(ISERROR(VLOOKUP(J32,'KAYIT LİSTESİ'!$B$4:$H$1280,5,0)),"",(VLOOKUP(J32,'KAYIT LİSTESİ'!$B$4:$H$1280,5,0))) ->  | N32: =IF(ISERROR(VLOOKUP(J32,'KAYIT LİSTESİ'!$B$4:$H$1280,6,0)),"",(VLOOKUP(J32,'KAYIT LİSTESİ'!$B$4:$H$1280,6,0))) -> 
I33: 6 | J33: 400M-3-6 | K33: =IF(ISERROR(VLOOKUP(J33,'KAYIT LİSTESİ'!$B$4:$H$1280,2,0)),"",(VLOOKUP(J33,'KAYIT LİSTESİ'!$B$4:$H$1280,2,0))) ->  | L33: =IF(ISERROR(VLOOKUP(J33,'KAYIT LİSTESİ'!$B$4:$H$1280,4,0)),"",(VLOOKUP(J33,'KAYIT LİSTESİ'!$B$4:$H$1280,4,0))) ->  | M33: =IF(ISERROR(VLOOKUP(J33,'KAYIT LİSTESİ'!$B$4:$H$1280,5,0)),"",(VLOOKUP(J33,'KAYIT LİSTESİ'!$B$4:$H$1280,5,0))) ->  | N33: =IF(ISERROR(VLOOKUP(J33,'KAYIT LİSTESİ'!$B$4:$H$1280,6,0)),"",(VLOOKUP(J33,'KAYIT LİSTESİ'!$B$4:$H$1280,6,0))) -> 
I34: 7 | J34: 400M-3-7 | K34: =IF(ISERROR(VLOOKUP(J34,'KAYIT LİSTESİ'!$B$4:$H$1280,2,0)),"",(VLOOKUP(J34,'KAYIT LİSTESİ'!$B$4:$H$1280,2,0))) ->  | L34: =IF(ISERROR(VLOOKUP(J34,'KAYIT LİSTESİ'!$B$4:$H$1280,4,0)),"",(VLOOKUP(J34,'KAYIT LİSTESİ'!$B$4:$H$1280,4,0))) ->  | M34: =IF(ISERROR(VLOOKUP(J34,'KAYIT LİSTESİ'!$B$4:$H$1280,5,0)),"",(VLOOKUP(J34,'KAYIT LİSTESİ'!$B$4:$H$1280,5,0))) ->  | N34: =IF(ISERROR(VLOOKUP(J34,'KAYIT LİSTESİ'!$B$4:$H$1280,6,0)),"",(VLOOKUP(J34,'KAYIT LİSTESİ'!$B$4:$H$1280,6,0))) -> 
I35: 8 | J35: 400M-3-8 | K35: =IF(ISERROR(VLOOKUP(J35,'KAYIT LİSTESİ'!$B$4:$H$1280,2,0)),"",(VLOOKUP(J35,'KAYIT LİSTESİ'!$B$4:$H$1280,2,0))) ->  | L35: =IF(ISERROR(VLOOKUP(J35,'KAYIT LİSTESİ'!$B$4:$H$1280,4,0)),"",(VLOOKUP(J35,'KAYIT LİSTESİ'!$B$4:$H$1280,4,0))) ->  | M35: =IF(ISERROR(VLOOKUP(J35,'KAYIT LİSTESİ'!$B$4:$H$1280,5,0)),"",(VLOOKUP(J35,'KAYIT LİSTESİ'!$B$4:$H$1280,5,0))) ->  | N35: =IF(ISERROR(VLOOKUP(J35,'KAYIT LİSTESİ'!$B$4:$H$1280,6,0)),"",(VLOOKUP(J35,'KAYIT LİSTESİ'!$B$4:$H$1280,6,0))) -> 
I36: 4. SERİ
I37: Sıra No | J37: Formül | K37: Göğüs No | L37: Doğum Tarihi | M37: Adı ve Soyadı | N37: İLİ-OKULU | O37: Elektronik Kronometre | P37: El Kronometre | Q37: Seri Geliş
I38: 1 | J38: 400M-4-1 | K38: =IF(ISERROR(VLOOKUP(J38,'KAYIT LİSTESİ'!$B$4:$H$1280,2,0)),"",(VLOOKUP(J38,'KAYIT LİSTESİ'!$B$4:$H$1280,2,0))) ->  | L38: =IF(ISERROR(VLOOKUP(J38,'KAYIT LİSTESİ'!$B$4:$H$1280,4,0)),"",(VLOOKUP(J38,'KAYIT LİSTESİ'!$B$4:$H$1280,4,0))) ->  | M38: =IF(ISERROR(VLOOKUP(J38,'KAYIT LİSTESİ'!$B$4:$H$1280,5,0)),"",(VLOOKUP(J38,'KAYIT LİSTESİ'!$B$4:$H$1280,5,0))) ->  | N38: =IF(ISERROR(VLOOKUP(J38,'KAYIT LİSTESİ'!$B$4:$H$1280,6,0)),"",(VLOOKUP(J38,'KAYIT LİSTESİ'!$B$4:$H$1280,6,0))) ->  | O38: =IF(IF(OR(P38="NM",P38="DNF",P38="DNS",P38="DQ",P38=""),P38,(ROUNDUP(P38,)+24))=0," ",IF(OR(P38="NM",P38="DNF",P38="DNS",P38="DQ",P38=""),P38,(ROUNDUP(P38,)+24))) -> 
I39: 2 | J39: 400M-4-2 | K39: =IF(ISERROR(VLOOKUP(J39,'KAYIT LİSTESİ'!$B$4:$H$1280,2,0)),"",(VLOOKUP(J39,'KAYIT LİSTESİ'!$B$4:$H$1280,2,0))) ->  | L39: =IF(ISERROR(VLOOKUP(J39,'KAYIT LİSTESİ'!$B$4:$H$1280,4,0)),"",(VLOOKUP(J39,'KAYIT LİSTESİ'!$B$4:$H$1280,4,0))) ->  | M39: =IF(ISERROR(VLOOKUP(J39,'KAYIT LİSTESİ'!$B$4:$H$1280,5,0)),"",(VLOOKUP(J39,'KAYIT LİSTESİ'!$B$4:$H$1280,5,0))) ->  | N39: =IF(ISERROR(VLOOKUP(J39,'KAYIT LİSTESİ'!$B$4:$H$1280,6,0)),"",(VLOOKUP(J39,'KAYIT LİSTESİ'!$B$4:$H$1280,6,0))) -> 
I40: 3 | J40: 400M-4-3 | K40: =IF(ISERROR(VLOOKUP(J40,'KAYIT LİSTESİ'!$B$4:$H$1280,2,0)),"",(VLOOKUP(J40,'KAYIT LİSTESİ'!$B$4:$H$1280,2,0))) ->  | L40: =IF(ISERROR(VLOOKUP(J40,'KAYIT LİSTESİ'!$B$4:$H$1280,4,0)),"",(VLOOKUP(J40,'KAYIT LİSTESİ'!$B$4:$H$1280,4,0))) ->  | M40: =IF(ISERROR(VLOOKUP(J40,'KAYIT LİSTESİ'!$B$4:$H$1280,5,0)),"",(VLOOKUP(J40,'KAYIT LİSTESİ'!$B$4:$H$1280,5,0))) ->  | N40: =IF(ISERROR(VLOOKUP(J40,'KAYIT LİSTESİ'!$B$4:$H$1280,6,0)),"",(VLOOKUP(J40,'KAYIT LİSTESİ'!$B$4:$H$1280,6,0))) -> 
I41: 4 | J41: 400M-4-4 | K41: =IF(ISERROR(VLOOKUP(J41,'KAYIT LİSTESİ'!$B$4:$H$1280,2,0)),"",(VLOOKUP(J41,'KAYIT LİSTESİ'!$B$4:$H$1280,2,0))) ->  | L41: =IF(ISERROR(VLOOKUP(J41,'KAYIT LİSTESİ'!$B$4:$H$1280,4,0)),"",(VLOOKUP(J41,'KAYIT LİSTESİ'!$B$4:$H$1280,4,0))) ->  | M41: =IF(ISERROR(VLOOKUP(J41,'KAYIT LİSTESİ'!$B$4:$H$1280,5,0)),"",(VLOOKUP(J41,'KAYIT LİSTESİ'!$B$4:$H$1280,5,0))) ->  | N41: =IF(ISERROR(VLOOKUP(J41,'KAYIT LİSTESİ'!$B$4:$H$1280,6,0)),"",(VLOOKUP(J41,'KAYIT LİSTESİ'!$B$4:$H$1280,6,0))) -> 
I42: 5 | J42: 400M-4-5 | K42: =IF(ISERROR(VLOOKUP(J42,'KAYIT LİSTESİ'!$B$4:$H$1280,2,0)),"",(VLOOKUP(J42,'KAYIT LİSTESİ'!$B$4:$H$1280,2,0))) ->  | L42: =IF(ISERROR(VLOOKUP(J42,'KAYIT LİSTESİ'!$B$4:$H$1280,4,0)),"",(VLOOKUP(J42,'KAYIT LİSTESİ'!$B$4:$H$1280,4,0))) ->  | M42: =IF(ISERROR(VLOOKUP(J42,'KAYIT LİSTESİ'!$B$4:$H$1280,5,0)),"",(VLOOKUP(J42,'KAYIT LİSTESİ'!$B$4:$H$1280,5,0))) ->  | N42: =IF(ISERROR(VLOOKUP(J42,'KAYIT LİSTESİ'!$B$4:$H$1280,6,0)),"",(VLOOKUP(J42,'KAYIT LİSTESİ'!$B$4:$H$1280,6,0))) -> 
I43: 6 | J43: 400M-4-6 | K43: =IF(ISERROR(VLOOKUP(J43,'KAYIT LİSTESİ'!$B$4:$H$1280,2,0)),"",(VLOOKUP(J43,'KAYIT LİSTESİ'!$B$4:$H$1280,2,0))) ->  | L43: =IF(ISERROR(VLOOKUP(J43,'KAYIT LİSTESİ'!$B$4:$H$1280,4,0)),"",(VLOOKUP(J43,'KAYIT LİSTESİ'!$B$4:$H$1280,4,0))) ->  | M43: =IF(ISERROR(VLOOKUP(J43,'KAYIT LİSTESİ'!$B$4:$H$1280,5,0)),"",(VLOOKUP(J43,'KAYIT LİSTESİ'!$B$4:$H$1280,5,0))) ->  | N43: =IF(ISERROR(VLOOKUP(J43,'KAYIT LİSTESİ'!$B$4:$H$1280,6,0)),"",(VLOOKUP(J43,'KAYIT LİSTESİ'!$B$4:$H$1280,6,0))) -> 
I44: 7 | J44: 400M-4-7 | K44: =IF(ISERROR(VLOOKUP(J44,'KAYIT LİSTESİ'!$B$4:$H$1280,2,0)),"",(VLOOKUP(J44,'KAYIT LİSTESİ'!$B$4:$H$1280,2,0))) ->  | L44: =IF(ISERROR(VLOOKUP(J44,'KAYIT LİSTESİ'!$B$4:$H$1280,4,0)),"",(VLOOKUP(J44,'KAYIT LİSTESİ'!$B$4:$H$1280,4,0))) ->  | M44: =IF(ISERROR(VLOOKUP(J44,'KAYIT LİSTESİ'!$B$4:$H$1280,5,0)),"",(VLOOKUP(J44,'KAYIT LİSTESİ'!$B$4:$H$1280,5,0))) ->  | N44: =IF(ISERROR(VLOOKUP(J44,'KAYIT LİSTESİ'!$B$4:$H$1280,6,0)),"",(VLOOKUP(J44,'KAYIT LİSTESİ'!$B$4:$H$1280,6,0))) -> 
I45: 8 | J45: 400M-4-8 | K45: =IF(ISERROR(VLOOKUP(J45,'KAYIT LİSTESİ'!$B$4:$H$1280,2,0)),"",(VLOOKUP(J45,'KAYIT LİSTESİ'!$B$4:$H$1280,2,0))) ->  | L45: =IF(ISERROR(VLOOKUP(J45,'KAYIT LİSTESİ'!$B$4:$H$1280,4,0)),"",(VLOOKUP(J45,'KAYIT LİSTESİ'!$B$4:$H$1280,4,0))) ->  | M45: =IF(ISERROR(VLOOKUP(J45,'KAYIT LİSTESİ'!$B$4:$H$1280,5,0)),"",(VLOOKUP(J45,'KAYIT LİSTESİ'!$B$4:$H$1280,5,0))) ->  | N45: =IF(ISERROR(VLOOKUP(J45,'KAYIT LİSTESİ'!$B$4:$H$1280,6,0)),"",(VLOOKUP(J45,'KAYIT LİSTESİ'!$B$4:$H$1280,6,0))) -> 
A47: Müsabakalar Direktörü | E47: Baş Hakem | F47: Lider | H47: Sekreter | M47: Hakem | N47: Hakem | P47: Hakem
A65536: CELAL KAYAÖZ

Sheet 1500m.
A1: =('YARIŞMA BİLGİLERİ'!A2) -> Gençlik ve Spor Bakanlığı Spor Genel Müdürlüğü Spor Faaliyetleri Daire Başkanlığı
A2: ='YARIŞMA BİLGİLERİ'!F19 -> Olimpik Baraj Yarışmları
A3: Yarışma : | D3: ='YARIŞMA PROGRAMI'!C9 -> 1500 Metre | F3: Baraj Derecesi | H3: :
A4: Kategori : | D4: ='YARIŞMA BİLGİLERİ'!F21 -> Büyük Erkekler | M4: Tarih-Saat | N4: ='YARIŞMA PROGRAMI'!B9 -> 16 Mayıs 2015 - 19:38
N5: =NOW() -> 42142.49098
A6: Sıra No | B6: Göğüs No | C6: Doğum Tarihi Gün/Ay/Yıl | D6: Adı ve Soyadı | E6: İLİ-OKULU | F6: Derece | G6: Puan | I6: 1. SERİ
I7: Sıra No | J7: Formül | K7: Göğüs No | L7: Doğum Tarihi | M7: Adı ve Soyadı | N7: İLİ-OKULU | O7: Elektronik Kronometre | P7: El Kronometre | Q7: Seri Geliş
A8: 1 | B8: 554 | C8: 1985-01-25 | D8: KEMAL KOYUNCU | E8: KAYSERİ | F8: 34375 | I8: 1 | J8: 1500M-1-1 | K8: =IF(ISERROR(VLOOKUP(J8,'KAYIT LİSTESİ'!$B$4:$H$1280,2,0)),"",(VLOOKUP(J8,'KAYIT LİSTESİ'!$B$4:$H$1280,2,0))) -> 942 | L8: =IF(ISERROR(VLOOKUP(J8,'KAYIT LİSTESİ'!$B$4:$H$1280,4,0)),"",(VLOOKUP(J8,'KAYIT LİSTESİ'!$B$4:$H$1280,4,0))) -> 00:00:00 | M8: =IF(ISERROR(VLOOKUP(J8,'KAYIT LİSTESİ'!$B$4:$H$1280,5,0)),"",(VLOOKUP(J8,'KAYIT LİSTESİ'!$B$4:$H$1280,5,0))) -> MUSTAFA INCESU | N8: =IF(ISERROR(VLOOKUP(J8,'KAYIT LİSTESİ'!$B$4:$H$1280,6,0)),"",(VLOOKUP(J8,'KAYIT LİSTESİ'!$B$4:$H$1280,6,0))) -> ANKARA | O8: 35567 | Q8: 2
A9: 2 | B9: 942 | C9: 00:00:00 | D9: MUSTAFA INCESU | E9: ANKARA | F9: 35567 | I9: 2 | J9: 1500M-1-2 | K9: =IF(ISERROR(VLOOKUP(J9,'KAYIT LİSTESİ'!$B$4:$H$1280,2,0)),"",(VLOOKUP(J9,'KAYIT LİSTESİ'!$B$4:$H$1280,2,0))) -> 943 | L9: =IF(ISERROR(VLOOKUP(J9,'KAYIT LİSTESİ'!$B$4:$H$1280,4,0)),"",(VLOOKUP(J9,'KAYIT LİSTESİ'!$B$4:$H$1280,4,0))) -> 00:00:00 | M9: =IF(ISERROR(VLOOKUP(J9,'KAYIT LİSTESİ'!$B$4:$H$1280,5,0)),"",(VLOOKUP(J9,'KAYIT LİSTESİ'!$B$4:$H$1280,5,0))) -> MUSTAFA MAVİLİ | N9: =IF(ISERROR(VLOOKUP(J9,'KAYIT LİSTESİ'!$B$4:$H$1280,6,0)),"",(VLOOKUP(J9,'KAYIT LİSTESİ'!$B$4:$H$1280,6,0))) -> ANKARA | O9: 35591 | Q9: 3
A10: 3 | B10: 943 | C10: 00:00:00 | D10: MUSTAFA MAVİLİ | E10: ANKARA | F10: 35591 | I10: 3 | J10: 1500M-1-3 | K10: =IF(ISERROR(VLOOKUP(J10,'KAYIT LİSTESİ'!$B$4:$H$1280,2,0)),"",(VLOOKUP(J10,'KAYIT LİSTESİ'!$B$4:$H$1280,2,0))) -> 972 | L10: =IF(ISERROR(VLOOKUP(J10,'KAYIT LİSTESİ'!$B$4:$H$1280,4,0)),"",(VLOOKUP(J10,'KAYIT LİSTESİ'!$B$4:$H$1280,4,0))) -> 1997-01-04 | M10: =IF(ISERROR(VLOOKUP(J10,'KAYIT LİSTESİ'!$B$4:$H$1280,5,0)),"",(VLOOKUP(J10,'KAYIT LİSTESİ'!$B$4:$H$1280,5,0))) -> FERHAT ARGUN | N10: =IF(ISERROR(VLOOKUP(J10,'KAYIT LİSTESİ'!$B$4:$H$1280,6,0)),"",(VLOOKUP(J10,'KAYIT LİSTESİ'!$B$4:$H$1280,6,0))) -> BURSA | O10: 42700 | Q10: 5
A11: 4 | B11: 345 | C11: 1995-04-20 | D11: BÜNYAMİN AKYÜREK | E11: TOKAT | F11: 35794 | I11: 4 | J11: 1500M-1-4 | K11: =IF(ISERROR(VLOOKUP(J11,'KAYIT LİSTESİ'!$B$4:$H$1280,2,0)),"",(VLOOKUP(J11,'KAYIT LİSTESİ'!$B$4:$H$1280,2,0))) -> 544 | L11: =IF(ISERROR(VLOOKUP(J11,'KAYIT LİSTESİ'!$B$4:$H$1280,4,0)),"",(VLOOKUP(J11,'KAYIT LİSTESİ'!$B$4:$H$1280,4,0))) -> 1995-01-10 | M11: =IF(ISERROR(VLOOKUP(J11,'KAYIT LİSTESİ'!$B$4:$H$1280,5,0)),"",(VLOOKUP(J11,'KAYIT LİSTESİ'!$B$4:$H$1280,5,0))) -> MUSTAFA BARLI | N11: =IF(ISERROR(VLOOKUP(J11,'KAYIT LİSTESİ'!$B$4:$H$1280,6,0)),"",(VLOOKUP(J11,'KAYIT LİSTESİ'!$B$4:$H$1280,6,0))) -> KAHRAMANMARAŞ | O11: DNF | Q11: -
A12: 5 | B12: 972 | C12: 1997-01-04 | D12: FERHAT ARGUN | E12: BURSA | F12: 42700 | I12: 5 | J12: 1500M-1-5 | K12: =IF(ISERROR(VLOOKUP(J12,'KAYIT LİSTESİ'!$B$4:$H$1280,2,0)),"",(VLOOKUP(J12,'KAYIT LİSTESİ'!$B$4:$H$1280,2,0))) -> 554 | L12: =IF(ISERROR(VLOOKUP(J12,'KAYIT LİSTESİ'!$B$4:$H$1280,4,0)),"",(VLOOKUP(J12,'KAYIT LİSTESİ'!$B$4:$H$1280,4,0))) -> 1985-01-25 | M12: =IF(ISERROR(VLOOKUP(J12,'KAYIT LİSTESİ'!$B$4:$H$1280,5,0)),"",(VLOOKUP(J12,'KAYIT LİSTESİ'!$B$4:$H$1280,5,0))) -> KEMAL KOYUNCU | N12: =IF(ISERROR(VLOOKUP(J12,'KAYIT LİSTESİ'!$B$4:$H$1280,6,0)),"",(VLOOKUP(J12,'KAYIT LİSTESİ'!$B$4:$H$1280,6,0))) -> KAYSERİ | O12: 34375 | Q12: 1
A13: - | B13: 544 | C13: 1995-01-10 | D13: MUSTAFA BARLI | E13: KAHRAMANMARAŞ | F13: DNF | I13: 6 | J13: 1500M-1-6 | K13: =IF(ISERROR(VLOOKUP(J13,'KAYIT LİSTESİ'!$B$4:$H$1280,2,0)),"",(VLOOKUP(J13,'KAYIT LİSTESİ'!$B$4:$H$1280,2,0))) -> 558 | L13: =IF(ISERROR(VLOOKUP(J13,'KAYIT LİSTESİ'!$B$4:$H$1280,4,0)),"",(VLOOKUP(J13,'KAYIT LİSTESİ'!$B$4:$H$1280,4,0))) -> 1995-06-15 | M13: =IF(ISERROR(VLOOKUP(J13,'KAYIT LİSTESİ'!$B$4:$H$1280,5,0)),"",(VLOOKUP(J13,'KAYIT LİSTESİ'!$B$4:$H$1280,5,0))) -> TURGAY BAYRAM | N13: =IF(ISERROR(VLOOKUP(J13,'KAYIT LİSTESİ'!$B$4:$H$1280,6,0)),"",(VLOOKUP(J13,'KAYIT LİSTESİ'!$B$4:$H$1280,6,0))) -> KAYSERİ | O13: DNF | Q13: -
A14: - | B14: 558 | C14: 1995-06-15 | D14: TURGAY BAYRAM | E14: KAYSERİ | F14: DNF | I14: 7 | J14: 1500M-1-7 | K14: =IF(ISERROR(VLOOKUP(J14,'KAYIT LİSTESİ'!$B$4:$H$1280,2,0)),"",(VLOOKUP(J14,'KAYIT LİSTESİ'!$B$4:$H$1280,2,0))) -> 345 | L14: =IF(ISERROR(VLOOKUP(J14,'KAYIT LİSTESİ'!$B$4:$H$1280,4,0)),"",(VLOOKUP(J14,'KAYIT LİSTESİ'!$B$4:$H$1280,4,0))) -> 1995-04-20 | M14: =IF(ISERROR(VLOOKUP(J14,'KAYIT LİSTESİ'!$B$4:$H$1280,5,0)),"",(VLOOKUP(J14,'KAYIT LİSTESİ'!$B$4:$H$1280,5,0))) -> BÜNYAMİN AKYÜREK | N14: =IF(ISERROR(VLOOKUP(J14,'KAYIT LİSTESİ'!$B$4:$H$1280,6,0)),"",(VLOOKUP(J14,'KAYIT LİSTESİ'!$B$4:$H$1280,6,0))) -> TOKAT | O14: 35794 | Q14: 4
I15: 8 | J15: 1500M-1-8 | K15: =IF(ISERROR(VLOOKUP(J15,'KAYIT LİSTESİ'!$B$4:$H$1280,2,0)),"",(VLOOKUP(J15,'KAYIT LİSTESİ'!$B$4:$H$1280,2,0))) ->  | L15: =IF(ISERROR(VLOOKUP(J15,'KAYIT LİSTESİ'!$B$4:$H$1280,4,0)),"",(VLOOKUP(J15,'KAYIT LİSTESİ'!$B$4:$H$1280,4,0))) ->  | M15: =IF(ISERROR(VLOOKUP(J15,'KAYIT LİSTESİ'!$B$4:$H$1280,5,0)),"",(VLOOKUP(J15,'KAYIT LİSTESİ'!$B$4:$H$1280,5,0))) ->  | N15: =IF(ISERROR(VLOOKUP(J15,'KAYIT LİSTESİ'!$B$4:$H$1280,6,0)),"",(VLOOKUP(J15,'KAYIT LİSTESİ'!$B$4:$H$1280,6,0))) ->  | O15: =IF(IF(OR(P15="NM",P15="DNF",P15="DNS",P15="DQ",P15=""),P15,(ROUNDUP(P15,)+24))=0," ",IF(OR(P15="NM",P15="DNF",P15="DNS",P15="DQ",P15=""),P15,(ROUNDUP(P15,)+24))) -> 
I16: 9 | J16: 1500M-1-9 | K16: =IF(ISERROR(VLOOKUP(J16,'KAYIT LİSTESİ'!$B$4:$H$1280,2,0)),"",(VLOOKUP(J16,'KAYIT LİSTESİ'!$B$4:$H$1280,2,0))) ->  | L16: =IF(ISERROR(VLOOKUP(J16,'KAYIT LİSTESİ'!$B$4:$H$1280,4,0)),"",(VLOOKUP(J16,'KAYIT LİSTESİ'!$B$4:$H$1280,4,0))) ->  | M16: =IF(ISERROR(VLOOKUP(J16,'KAYIT LİSTESİ'!$B$4:$H$1280,5,0)),"",(VLOOKUP(J16,'KAYIT LİSTESİ'!$B$4:$H$1280,5,0))) ->  | N16: =IF(ISERROR(VLOOKUP(J16,'KAYIT LİSTESİ'!$B$4:$H$1280,6,0)),"",(VLOOKUP(J16,'KAYIT LİSTESİ'!$B$4:$H$1280,6,0))) -> 
I17: 10 | J17: 1500M-1-10 | K17: =IF(ISERROR(VLOOKUP(J17,'KAYIT LİSTESİ'!$B$4:$H$1280,2,0)),"",(VLOOKUP(J17,'KAYIT LİSTESİ'!$B$4:$H$1280,2,0))) ->  | L17: =IF(ISERROR(VLOOKUP(J17,'KAYIT LİSTESİ'!$B$4:$H$1280,4,0)),"",(VLOOKUP(J17,'KAYIT LİSTESİ'!$B$4:$H$1280,4,0))) ->  | M17: =IF(ISERROR(VLOOKUP(J17,'KAYIT LİSTESİ'!$B$4:$H$1280,5,0)),"",(VLOOKUP(J17,'KAYIT LİSTESİ'!$B$4:$H$1280,5,0))) ->  | N17: =IF(ISERROR(VLOOKUP(J17,'KAYIT LİSTESİ'!$B$4:$H$1280,6,0)),"",(VLOOKUP(J17,'KAYIT LİSTESİ'!$B$4:$H$1280,6,0))) -> 
I18: 11 | J18: 1500M-1-11 | K18: =IF(ISERROR(VLOOKUP(J18,'KAYIT LİSTESİ'!$B$4:$H$1280,2,0)),"",(VLOOKUP(J18,'KAYIT LİSTESİ'!$B$4:$H$1280,2,0))) ->  | L18: =IF(ISERROR(VLOOKUP(J18,'KAYIT LİSTESİ'!$B$4:$H$1280,4,0)),"",(VLOOKUP(J18,'KAYIT LİSTESİ'!$B$4:$H$1280,4,0))) ->  | M18: =IF(ISERROR(VLOOKUP(J18,'KAYIT LİSTESİ'!$B$4:$H$1280,5,0)),"",(VLOOKUP(J18,'KAYIT LİSTESİ'!$B$4:$H$1280,5,0))) ->  | N18: =IF(ISERROR(VLOOKUP(J18,'KAYIT LİSTESİ'!$B$4:$H$1280,6,0)),"",(VLOOKUP(J18,'KAYIT LİSTESİ'!$B$4:$H$1280,6,0))) -> 
I19: 12 | J19: 1500M-1-12 | K19: =IF(ISERROR(VLOOKUP(J19,'KAYIT LİSTESİ'!$B$4:$H$1280,2,0)),"",(VLOOKUP(J19,'KAYIT LİSTESİ'!$B$4:$H$1280,2,0))) ->  | L19: =IF(ISERROR(VLOOKUP(J19,'KAYIT LİSTESİ'!$B$4:$H$1280,4,0)),"",(VLOOKUP(J19,'KAYIT LİSTESİ'!$B$4:$H$1280,4,0))) ->  | M19: =IF(ISERROR(VLOOKUP(J19,'KAYIT LİSTESİ'!$B$4:$H$1280,5,0)),"",(VLOOKUP(J19,'KAYIT LİSTESİ'!$B$4:$H$1280,5,0))) ->  | N19: =IF(ISERROR(VLOOKUP(J19,'KAYIT LİSTESİ'!$B$4:$H$1280,6,0)),"",(VLOOKUP(J19,'KAYIT LİSTESİ'!$B$4:$H$1280,6,0))) -> 
I20: 2. SERİ
I21: Sıra No | J21: Formül | K21: Göğüs No | L21: Doğum Tarihi | M21: Adı ve Soyadı | N21: İLİ-OKULU | O21: Elektronik Kronometre | P21: El Kronometre | Q21: Seri Geliş
I22: 1 | J22: 1500M-2-1 | K22: =IF(ISERROR(VLOOKUP(J22,'KAYIT LİSTESİ'!$B$4:$H$1280,2,0)),"",(VLOOKUP(J22,'KAYIT LİSTESİ'!$B$4:$H$1280,2,0))) ->  | L22: =IF(ISERROR(VLOOKUP(J22,'KAYIT LİSTESİ'!$B$4:$H$1280,4,0)),"",(VLOOKUP(J22,'KAYIT LİSTESİ'!$B$4:$H$1280,4,0))) ->  | M22: =IF(ISERROR(VLOOKUP(J22,'KAYIT LİSTESİ'!$B$4:$H$1280,5,0)),"",(VLOOKUP(J22,'KAYIT LİSTESİ'!$B$4:$H$1280,5,0))) ->  | N22: =IF(ISERROR(VLOOKUP(J22,'KAYIT LİSTESİ'!$B$4:$H$1280,6,0)),"",(VLOOKUP(J22,'KAYIT LİSTESİ'!$B$4:$H$1280,6,0))) ->  | O22: =IF(IF(OR(P22="NM",P22="DNF",P22="DNS",P22="DQ",P22=""),P22,(ROUNDUP(P22,)+24))=0," ",IF(OR(P22="NM",P22="DNF",P22="DNS",P22="DQ",P22=""),P22,(ROUNDUP(P22,)+24))) -> 
I23: 2 | J23: 1500M-2-2 | K23: =IF(ISERROR(VLOOKUP(J23,'KAYIT LİSTESİ'!$B$4:$H$1280,2,0)),"",(VLOOKUP(J23,'KAYIT LİSTESİ'!$B$4:$H$1280,2,0))) ->  | L23: =IF(ISERROR(VLOOKUP(J23,'KAYIT LİSTESİ'!$B$4:$H$1280,4,0)),"",(VLOOKUP(J23,'KAYIT LİSTESİ'!$B$4:$H$1280,4,0))) ->  | M23: =IF(ISERROR(VLOOKUP(J23,'KAYIT LİSTESİ'!$B$4:$H$1280,5,0)),"",(VLOOKUP(J23,'KAYIT LİSTESİ'!$B$4:$H$1280,5,0))) ->  | N23: =IF(ISERROR(VLOOKUP(J23,'KAYIT LİSTESİ'!$B$4:$H$1280,6,0)),"",(VLOOKUP(J23,'KAYIT LİSTESİ'!$B$4:$H$1280,6,0))) -> 
I24: 3 | J24: 1500M-2-3 | K24: =IF(ISERROR(VLOOKUP(J24,'KAYIT LİSTESİ'!$B$4:$H$1280,2,0)),"",(VLOOKUP(J24,'KAYIT LİSTESİ'!$B$4:$H$1280,2,0))) ->  | L24: =IF(ISERROR(VLOOKUP(J24,'KAYIT LİSTESİ'!$B$4:$H$1280,4,0)),"",(VLOOKUP(J24,'KAYIT LİSTESİ'!$B$4:$H$1280,4,0))) ->  | M24: =IF(ISERROR(VLOOKUP(J24,'KAYIT LİSTESİ'!$B$4:$H$1280,5,0)),"",(VLOOKUP(J24,'KAYIT LİSTESİ'!$B$4:$H$1280,5,0))) ->  | N24: =IF(ISERROR(VLOOKUP(J24,'KAYIT LİSTESİ'!$B$4:$H$1280,6,0)),"",(VLOOKUP(J24,'KAYIT LİSTESİ'!$B$4:$H$1280,6,0))) -> 
I25: 4 | J25: 1500M-2-4 | K25: =IF(ISERROR(VLOOKUP(J25,'KAYIT LİSTESİ'!$B$4:$H$1280,2,0)),"",(VLOOKUP(J25,'KAYIT LİSTESİ'!$B$4:$H$1280,2,0))) ->  | L25: =IF(ISERROR(VLOOKUP(J25,'KAYIT LİSTESİ'!$B$4:$H$1280,4,0)),"",(VLOOKUP(J25,'KAYIT LİSTESİ'!$B$4:$H$1280,4,0))) ->  | M25: =IF(ISERROR(VLOOKUP(J25,'KAYIT LİSTESİ'!$B$4:$H$1280,5,0)),"",(VLOOKUP(J25,'KAYIT LİSTESİ'!$B$4:$H$1280,5,0))) ->  | N25: =IF(ISERROR(VLOOKUP(J25,'KAYIT LİSTESİ'!$B$4:$H$1280,6,0)),"",(VLOOKUP(J25,'KAYIT LİSTESİ'!$B$4:$H$1280,6,0))) -> 
I26: 5 | J26: 1500M-2-5 | K26: =IF(ISERROR(VLOOKUP(J26,'KAYIT LİSTESİ'!$B$4:$H$1280,2,0)),"",(VLOOKUP(J26,'KAYIT LİSTESİ'!$B$4:$H$1280,2,0))) ->  | L26: =IF(ISERROR(VLOOKUP(J26,'KAYIT LİSTESİ'!$B$4:$H$1280,4,0)),"",(VLOOKUP(J26,'KAYIT LİSTESİ'!$B$4:$H$1280,4,0))) ->  | M26: =IF(ISERROR(VLOOKUP(J26,'KAYIT LİSTESİ'!$B$4:$H$1280,5,0)),"",(VLOOKUP(J26,'KAYIT LİSTESİ'!$B$4:$H$1280,5,0))) ->  | N26: =IF(ISERROR(VLOOKUP(J26,'KAYIT LİSTESİ'!$B$4:$H$1280,6,0)),"",(VLOOKUP(J26,'KAYIT LİSTESİ'!$B$4:$H$1280,6,0))) -> 
I27: 6 | J27: 1500M-2-6 | K27: =IF(ISERROR(VLOOKUP(J27,'KAYIT LİSTESİ'!$B$4:$H$1280,2,0)),"",(VLOOKUP(J27,'KAYIT LİSTESİ'!$B$4:$H$1280,2,0))) ->  | L27: =IF(ISERROR(VLOOKUP(J27,'KAYIT LİSTESİ'!$B$4:$H$1280,4,0)),"",(VLOOKUP(J27,'KAYIT LİSTESİ'!$B$4:$H$1280,4,0))) ->  | M27: =IF(ISERROR(VLOOKUP(J27,'KAYIT LİSTESİ'!$B$4:$H$1280,5,0)),"",(VLOOKUP(J27,'KAYIT LİSTESİ'!$B$4:$H$1280,5,0))) ->  | N27: =IF(ISERROR(VLOOKUP(J27,'KAYIT LİSTESİ'!$B$4:$H$1280,6,0)),"",(VLOOKUP(J27,'KAYIT LİSTESİ'!$B$4:$H$1280,6,0))) -> 
I28: 7 | J28: 1500M-2-7 | K28: =IF(ISERROR(VLOOKUP(J28,'KAYIT LİSTESİ'!$B$4:$H$1280,2,0)),"",(VLOOKUP(J28,'KAYIT LİSTESİ'!$B$4:$H$1280,2,0))) ->  | L28: =IF(ISERROR(VLOOKUP(J28,'KAYIT LİSTESİ'!$B$4:$H$1280,4,0)),"",(VLOOKUP(J28,'KAYIT LİSTESİ'!$B$4:$H$1280,4,0))) ->  | M28: =IF(ISERROR(VLOOKUP(J28,'KAYIT LİSTESİ'!$B$4:$H$1280,5,0)),"",(VLOOKUP(J28,'KAYIT LİSTESİ'!$B$4:$H$1280,5,0))) ->  | N28: =IF(ISERROR(VLOOKUP(J28,'KAYIT LİSTESİ'!$B$4:$H$1280,6,0)),"",(VLOOKUP(J28,'KAYIT LİSTESİ'!$B$4:$H$1280,6,0))) -> 
I29: 8 | J29: 1500M-2-8 | K29: =IF(ISERROR(VLOOKUP(J29,'KAYIT LİSTESİ'!$B$4:$H$1280,2,0)),"",(VLOOKUP(J29,'KAYIT LİSTESİ'!$B$4:$H$1280,2,0))) ->  | L29: =IF(ISERROR(VLOOKUP(J29,'KAYIT LİSTESİ'!$B$4:$H$1280,4,0)),"",(VLOOKUP(J29,'KAYIT LİSTESİ'!$B$4:$H$1280,4,0))) ->  | M29: =IF(ISERROR(VLOOKUP(J29,'KAYIT LİSTESİ'!$B$4:$H$1280,5,0)),"",(VLOOKUP(J29,'KAYIT LİSTESİ'!$B$4:$H$1280,5,0))) ->  | N29: =IF(ISERROR(VLOOKUP(J29,'KAYIT LİSTESİ'!$B$4:$H$1280,6,0)),"",(VLOOKUP(J29,'KAYIT LİSTESİ'!$B$4:$H$1280,6,0))) -> 
I30: 9 | J30: 1500M-2-9 | K30: =IF(ISERROR(VLOOKUP(J30,'KAYIT LİSTESİ'!$B$4:$H$1280,2,0)),"",(VLOOKUP(J30,'KAYIT LİSTESİ'!$B$4:$H$1280,2,0))) ->  | L30: =IF(ISERROR(VLOOKUP(J30,'KAYIT LİSTESİ'!$B$4:$H$1280,4,0)),"",(VLOOKUP(J30,'KAYIT LİSTESİ'!$B$4:$H$1280,4,0))) ->  | M30: =IF(ISERROR(VLOOKUP(J30,'KAYIT LİSTESİ'!$B$4:$H$1280,5,0)),"",(VLOOKUP(J30,'KAYIT LİSTESİ'!$B$4:$H$1280,5,0))) ->  | N30: =IF(ISERROR(VLOOKUP(J30,'KAYIT LİSTESİ'!$B$4:$H$1280,6,0)),"",(VLOOKUP(J30,'KAYIT LİSTESİ'!$B$4:$H$1280,6,0))) -> 
I31: 10 | J31: 1500M-2-10 | K31: =IF(ISERROR(VLOOKUP(J31,'KAYIT LİSTESİ'!$B$4:$H$1280,2,0)),"",(VLOOKUP(J31,'KAYIT LİSTESİ'!$B$4:$H$1280,2,0))) ->  | L31: =IF(ISERROR(VLOOKUP(J31,'KAYIT LİSTESİ'!$B$4:$H$1280,4,0)),"",(VLOOKUP(J31,'KAYIT LİSTESİ'!$B$4:$H$1280,4,0))) ->  | M31: =IF(ISERROR(VLOOKUP(J31,'KAYIT LİSTESİ'!$B$4:$H$1280,5,0)),"",(VLOOKUP(J31,'KAYIT LİSTESİ'!$B$4:$H$1280,5,0))) ->  | N31: =IF(ISERROR(VLOOKUP(J31,'KAYIT LİSTESİ'!$B$4:$H$1280,6,0)),"",(VLOOKUP(J31,'KAYIT LİSTESİ'!$B$4:$H$1280,6,0))) -> 
I32: 11 | J32: 1500M-2-11 | K32: =IF(ISERROR(VLOOKUP(J32,'KAYIT LİSTESİ'!$B$4:$H$1280,2,0)),"",(VLOOKUP(J32,'KAYIT LİSTESİ'!$B$4:$H$1280,2,0))) ->  | L32: =IF(ISERROR(VLOOKUP(J32,'KAYIT LİSTESİ'!$B$4:$H$1280,4,0)),"",(VLOOKUP(J32,'KAYIT LİSTESİ'!$B$4:$H$1280,4,0))) ->  | M32: =IF(ISERROR(VLOOKUP(J32,'KAYIT LİSTESİ'!$B$4:$H$1280,5,0)),"",(VLOOKUP(J32,'KAYIT LİSTESİ'!$B$4:$H$1280,5,0))) ->  | N32: =IF(ISERROR(VLOOKUP(J32,'KAYIT LİSTESİ'!$B$4:$H$1280,6,0)),"",(VLOOKUP(J32,'KAYIT LİSTESİ'!$B$4:$H$1280,6,0))) -> 
I33: 12 | J33: 1500M-2-12 | K33: =IF(ISERROR(VLOOKUP(J33,'KAYIT LİSTESİ'!$B$4:$H$1280,2,0)),"",(VLOOKUP(J33,'KAYIT LİSTESİ'!$B$4:$H$1280,2,0))) ->  | L33: =IF(ISERROR(VLOOKUP(J33,'KAYIT LİSTESİ'!$B$4:$H$1280,4,0)),"",(VLOOKUP(J33,'KAYIT LİSTESİ'!$B$4:$H$1280,4,0))) ->  | M33: =IF(ISERROR(VLOOKUP(J33,'KAYIT LİSTESİ'!$B$4:$H$1280,5,0)),"",(VLOOKUP(J33,'KAYIT LİSTESİ'!$B$4:$H$1280,5,0))) ->  | N33: =IF(ISERROR(VLOOKUP(J33,'KAYIT LİSTESİ'!$B$4:$H$1280,6,0)),"",(VLOOKUP(J33,'KAYIT LİSTESİ'!$B$4:$H$1280,6,0))) -> 
I34: 3. SERİ
I35: Sıra No | J35: Formül | K35: Göğüs No | L35: Doğum Tarihi | M35: Adı ve Soyadı | N35: İLİ-OKULU | O35: Elektronik Kronometre | P35: El Kronometre | Q35: Seri Geliş
I36: 1 | J36: 1500M-3-1 | K36: =IF(ISERROR(VLOOKUP(J36,'KAYIT LİSTESİ'!$B$4:$H$1280,2,0)),"",(VLOOKUP(J36,'KAYIT LİSTESİ'!$B$4:$H$1280,2,0))) ->  | L36: =IF(ISERROR(VLOOKUP(J36,'KAYIT LİSTESİ'!$B$4:$H$1280,4,0)),"",(VLOOKUP(J36,'KAYIT LİSTESİ'!$B$4:$H$1280,4,0))) ->  | M36: =IF(ISERROR(VLOOKUP(J36,'KAYIT LİSTESİ'!$B$4:$H$1280,5,0)),"",(VLOOKUP(J36,'KAYIT LİSTESİ'!$B$4:$H$1280,5,0))) ->  | N36: =IF(ISERROR(VLOOKUP(J36,'KAYIT LİSTESİ'!$B$4:$H$1280,6,0)),"",(VLOOKUP(J36,'KAYIT LİSTESİ'!$B$4:$H$1280,6,0))) ->  | O36: =IF(IF(OR(P36="NM",P36="DNF",P36="DNS",P36="DQ",P36=""),P36,(ROUNDUP(P36,)+24))=0," ",IF(OR(P36="NM",P36="DNF",P36="DNS",P36="DQ",P36=""),P36,(ROUNDUP(P36,)+24))) -> 
I37: 2 | J37: 1500M-3-2 | K37: =IF(ISERROR(VLOOKUP(J37,'KAYIT LİSTESİ'!$B$4:$H$1280,2,0)),"",(VLOOKUP(J37,'KAYIT LİSTESİ'!$B$4:$H$1280,2,0))) ->  | L37: =IF(ISERROR(VLOOKUP(J37,'KAYIT LİSTESİ'!$B$4:$H$1280,4,0)),"",(VLOOKUP(J37,'KAYIT LİSTESİ'!$B$4:$H$1280,4,0))) ->  | M37: =IF(ISERROR(VLOOKUP(J37,'KAYIT LİSTESİ'!$B$4:$H$1280,5,0)),"",(VLOOKUP(J37,'KAYIT LİSTESİ'!$B$4:$H$1280,5,0))) ->  | N37: =IF(ISERROR(VLOOKUP(J37,'KAYIT LİSTESİ'!$B$4:$H$1280,6,0)),"",(VLOOKUP(J37,'KAYIT LİSTESİ'!$B$4:$H$1280,6,0))) -> 
I38: 3 | J38: 1500M-3-3 | K38: =IF(ISERROR(VLOOKUP(J38,'KAYIT LİSTESİ'!$B$4:$H$1280,2,0)),"",(VLOOKUP(J38,'KAYIT LİSTESİ'!$B$4:$H$1280,2,0))) ->  | L38: =IF(ISERROR(VLOOKUP(J38,'KAYIT LİSTESİ'!$B$4:$H$1280,4,0)),"",(VLOOKUP(J38,'KAYIT LİSTESİ'!$B$4:$H$1280,4,0))) ->  | M38: =IF(ISERROR(VLOOKUP(J38,'KAYIT LİSTESİ'!$B$4:$H$1280,5,0)),"",(VLOOKUP(J38,'KAYIT LİSTESİ'!$B$4:$H$1280,5,0))) ->  | N38: =IF(ISERROR(VLOOKUP(J38,'KAYIT LİSTESİ'!$B$4:$H$1280,6,0)),"",(VLOOKUP(J38,'KAYIT LİSTESİ'!$B$4:$H$1280,6,0))) -> 
I39: 4 | J39: 1500M-3-4 | K39: =IF(ISERROR(VLOOKUP(J39,'KAYIT LİSTESİ'!$B$4:$H$1280,2,0)),"",(VLOOKUP(J39,'KAYIT LİSTESİ'!$B$4:$H$1280,2,0))) ->  | L39: =IF(ISERROR(VLOOKUP(J39,'KAYIT LİSTESİ'!$B$4:$H$1280,4,0)),"",(VLOOKUP(J39,'KAYIT LİSTESİ'!$B$4:$H$1280,4,0))) ->  | M39: =IF(ISERROR(VLOOKUP(J39,'KAYIT LİSTESİ'!$B$4:$H$1280,5,0)),"",(VLOOKUP(J39,'KAYIT LİSTESİ'!$B$4:$H$1280,5,0))) ->  | N39: =IF(ISERROR(VLOOKUP(J39,'KAYIT LİSTESİ'!$B$4:$H$1280,6,0)),"",(VLOOKUP(J39,'KAYIT LİSTESİ'!$B$4:$H$1280,6,0))) -> 
I40: 5 | J40: 1500M-3-5 | K40: =IF(ISERROR(VLOOKUP(J40,'KAYIT LİSTESİ'!$B$4:$H$1280,2,0)),"",(VLOOKUP(J40,'KAYIT LİSTESİ'!$B$4:$H$1280,2,0))) ->  | L40: =IF(ISERROR(VLOOKUP(J40,'KAYIT LİSTESİ'!$B$4:$H$1280,4,0)),"",(VLOOKUP(J40,'KAYIT LİSTESİ'!$B$4:$H$1280,4,0))) ->  | M40: =IF(ISERROR(VLOOKUP(J40,'KAYIT LİSTESİ'!$B$4:$H$1280,5,0)),"",(VLOOKUP(J40,'KAYIT LİSTESİ'!$B$4:$H$1280,5,0))) ->  | N40: =IF(ISERROR(VLOOKUP(J40,'KAYIT LİSTESİ'!$B$4:$H$1280,6,0)),"",(VLOOKUP(J40,'KAYIT LİSTESİ'!$B$4:$H$1280,6,0))) -> 
I41: 6 | J41: 1500M-3-6 | K41: =IF(ISERROR(VLOOKUP(J41,'KAYIT LİSTESİ'!$B$4:$H$1280,2,0)),"",(VLOOKUP(J41,'KAYIT LİSTESİ'!$B$4:$H$1280,2,0))) ->  | L41: =IF(ISERROR(VLOOKUP(J41,'KAYIT LİSTESİ'!$B$4:$H$1280,4,0)),"",(VLOOKUP(J41,'KAYIT LİSTESİ'!$B$4:$H$1280,4,0))) ->  | M41: =IF(ISERROR(VLOOKUP(J41,'KAYIT LİSTESİ'!$B$4:$H$1280,5,0)),"",(VLOOKUP(J41,'KAYIT LİSTESİ'!$B$4:$H$1280,5,0))) ->  | N41: =IF(ISERROR(VLOOKUP(J41,'KAYIT LİSTESİ'!$B$4:$H$1280,6,0)),"",(VLOOKUP(J41,'KAYIT LİSTESİ'!$B$4:$H$1280,6,0))) -> 
I42: 7 | J42: 1500M-3-7 | K42: =IF(ISERROR(VLOOKUP(J42,'KAYIT LİSTESİ'!$B$4:$H$1280,2,0)),"",(VLOOKUP(J42,'KAYIT LİSTESİ'!$B$4:$H$1280,2,0))) ->  | L42: =IF(ISERROR(VLOOKUP(J42,'KAYIT LİSTESİ'!$B$4:$H$1280,4,0)),"",(VLOOKUP(J42,'KAYIT LİSTESİ'!$B$4:$H$1280,4,0))) ->  | M42: =IF(ISERROR(VLOOKUP(J42,'KAYIT LİSTESİ'!$B$4:$H$1280,5,0)),"",(VLOOKUP(J42,'KAYIT LİSTESİ'!$B$4:$H$1280,5,0))) ->  | N42: =IF(ISERROR(VLOOKUP(J42,'KAYIT LİSTESİ'!$B$4:$H$1280,6,0)),"",(VLOOKUP(J42,'KAYIT LİSTESİ'!$B$4:$H$1280,6,0))) -> 
I43: 8 | J43: 1500M-3-8 | K43: =IF(ISERROR(VLOOKUP(J43,'KAYIT LİSTESİ'!$B$4:$H$1280,2,0)),"",(VLOOKUP(J43,'KAYIT LİSTESİ'!$B$4:$H$1280,2,0))) ->  | L43: =IF(ISERROR(VLOOKUP(J43,'KAYIT LİSTESİ'!$B$4:$H$1280,4,0)),"",(VLOOKUP(J43,'KAYIT LİSTESİ'!$B$4:$H$1280,4,0))) ->  | M43: =IF(ISERROR(VLOOKUP(J43,'KAYIT LİSTESİ'!$B$4:$H$1280,5,0)),"",(VLOOKUP(J43,'KAYIT LİSTESİ'!$B$4:$H$1280,5,0))) ->  | N43: =IF(ISERROR(VLOOKUP(J43,'KAYIT LİSTESİ'!$B$4:$H$1280,6,0)),"",(VLOOKUP(J43,'KAYIT LİSTESİ'!$B$4:$H$1280,6,0))) -> 
I44: 9 | J44: 1500M-3-9 | K44: =IF(ISERROR(VLOOKUP(J44,'KAYIT LİSTESİ'!$B$4:$H$1280,2,0)),"",(VLOOKUP(J44,'KAYIT LİSTESİ'!$B$4:$H$1280,2,0))) ->  | L44: =IF(ISERROR(VLOOKUP(J44,'KAYIT LİSTESİ'!$B$4:$H$1280,4,0)),"",(VLOOKUP(J44,'KAYIT LİSTESİ'!$B$4:$H$1280,4,0))) ->  | M44: =IF(ISERROR(VLOOKUP(J44,'KAYIT LİSTESİ'!$B$4:$H$1280,5,0)),"",(VLOOKUP(J44,'KAYIT LİSTESİ'!$B$4:$H$1280,5,0))) ->  | N44: =IF(ISERROR(VLOOKUP(J44,'KAYIT LİSTESİ'!$B$4:$H$1280,6,0)),"",(VLOOKUP(J44,'KAYIT LİSTESİ'!$B$4:$H$1280,6,0))) -> 
I45: 10 | J45: 1500M-3-10 | K45: =IF(ISERROR(VLOOKUP(J45,'KAYIT LİSTESİ'!$B$4:$H$1280,2,0)),"",(VLOOKUP(J45,'KAYIT LİSTESİ'!$B$4:$H$1280,2,0))) ->  | L45: =IF(ISERROR(VLOOKUP(J45,'KAYIT LİSTESİ'!$B$4:$H$1280,4,0)),"",(VLOOKUP(J45,'KAYIT LİSTESİ'!$B$4:$H$1280,4,0))) ->  | M45: =IF(ISERROR(VLOOKUP(J45,'KAYIT LİSTESİ'!$B$4:$H$1280,5,0)),"",(VLOOKUP(J45,'KAYIT LİSTESİ'!$B$4:$H$1280,5,0))) ->  | N45: =IF(ISERROR(VLOOKUP(J45,'KAYIT LİSTESİ'!$B$4:$H$1280,6,0)),"",(VLOOKUP(J45,'KAYIT LİSTESİ'!$B$4:$H$1280,6,0))) -> 
I46: 11 | J46: 1500M-3-11 | K46: =IF(ISERROR(VLOOKUP(J46,'KAYIT LİSTESİ'!$B$4:$H$1280,2,0)),"",(VLOOKUP(J46,'KAYIT LİSTESİ'!$B$4:$H$1280,2,0))) ->  | L46: =IF(ISERROR(VLOOKUP(J46,'KAYIT LİSTESİ'!$B$4:$H$1280,4,0)),"",(VLOOKUP(J46,'KAYIT LİSTESİ'!$B$4:$H$1280,4,0))) ->  | M46: =IF(ISERROR(VLOOKUP(J46,'KAYIT LİSTESİ'!$B$4:$H$1280,5,0)),"",(VLOOKUP(J46,'KAYIT LİSTESİ'!$B$4:$H$1280,5,0))) ->  | N46: =IF(ISERROR(VLOOKUP(J46,'KAYIT LİSTESİ'!$B$4:$H$1280,6,0)),"",(VLOOKUP(J46,'KAYIT LİSTESİ'!$B$4:$H$1280,6,0))) -> 
I47: 12 | J47: 1500M-3-12 | K47: =IF(ISERROR(VLOOKUP(J47,'KAYIT LİSTESİ'!$B$4:$H$1280,2,0)),"",(VLOOKUP(J47,'KAYIT LİSTESİ'!$B$4:$H$1280,2,0))) ->  | L47: =IF(ISERROR(VLOOKUP(J47,'KAYIT LİSTESİ'!$B$4:$H$1280,4,0)),"",(VLOOKUP(J47,'KAYIT LİSTESİ'!$B$4:$H$1280,4,0))) ->  | M47: =IF(ISERROR(VLOOKUP(J47,'KAYIT LİSTESİ'!$B$4:$H$1280,5,0)),"",(VLOOKUP(J47,'KAYIT LİSTESİ'!$B$4:$H$1280,5,0))) ->  | N47: =IF(ISERROR(VLOOKUP(J47,'KAYIT LİSTESİ'!$B$4:$H$1280,6,0)),"",(VLOOKUP(J47,'KAYIT LİSTESİ'!$B$4:$H$1280,6,0))) -> 
I48: 4. SERİ
I49: Sıra No | J49: Formül | K49: Göğüs No | L49: Doğum Tarihi | M49: Adı ve Soyadı | N49: İLİ-OKULU | O49: Elektronik Kronometre | P49: El Kronometre | Q49: Seri Geliş
I50: 1 | J50: 1500M-4-1 | K50: =IF(ISERROR(VLOOKUP(J50,'KAYIT LİSTESİ'!$B$4:$H$1280,2,0)),"",(VLOOKUP(J50,'KAYIT LİSTESİ'!$B$4:$H$1280,2,0))) ->  | L50: =IF(ISERROR(VLOOKUP(J50,'KAYIT LİSTESİ'!$B$4:$H$1280,4,0)),"",(VLOOKUP(J50,'KAYIT LİSTESİ'!$B$4:$H$1280,4,0))) ->  | M50: =IF(ISERROR(VLOOKUP(J50,'KAYIT LİSTESİ'!$B$4:$H$1280,5,0)),"",(VLOOKUP(J50,'KAYIT LİSTESİ'!$B$4:$H$1280,5,0))) ->  | N50: =IF(ISERROR(VLOOKUP(J50,'KAYIT LİSTESİ'!$B$4:$H$1280,6,0)),"",(VLOOKUP(J50,'KAYIT LİSTESİ'!$B$4:$H$1280,6,0))) ->  | O50: =IF(IF(OR(P50="NM",P50="DNF",P50="DNS",P50="DQ",P50=""),P50,(ROUNDUP(P50,)+24))=0," ",IF(OR(P50="NM",P50="DNF",P50="DNS",P50="DQ",P50=""),P50,(ROUNDUP(P50,)+24))) -> 
I51: 2 | J51: 1500M-4-2 | K51: =IF(ISERROR(VLOOKUP(J51,'KAYIT LİSTESİ'!$B$4:$H$1280,2,0)),"",(VLOOKUP(J51,'KAYIT LİSTESİ'!$B$4:$H$1280,2,0))) ->  | L51: =IF(ISERROR(VLOOKUP(J51,'KAYIT LİSTESİ'!$B$4:$H$1280,4,0)),"",(VLOOKUP(J51,'KAYIT LİSTESİ'!$B$4:$H$1280,4,0))) ->  | M51: =IF(ISERROR(VLOOKUP(J51,'KAYIT LİSTESİ'!$B$4:$H$1280,5,0)),"",(VLOOKUP(J51,'KAYIT LİSTESİ'!$B$4:$H$1280,5,0))) ->  | N51: =IF(ISERROR(VLOOKUP(J51,'KAYIT LİSTESİ'!$B$4:$H$1280,6,0)),"",(VLOOKUP(J51,'KAYIT LİSTESİ'!$B$4:$H$1280,6,0))) -> 
I52: 3 | J52: 1500M-4-3 | K52: =IF(ISERROR(VLOOKUP(J52,'KAYIT LİSTESİ'!$B$4:$H$1280,2,0)),"",(VLOOKUP(J52,'KAYIT LİSTESİ'!$B$4:$H$1280,2,0))) ->  | L52: =IF(ISERROR(VLOOKUP(J52,'KAYIT LİSTESİ'!$B$4:$H$1280,4,0)),"",(VLOOKUP(J52,'KAYIT LİSTESİ'!$B$4:$H$1280,4,0))) ->  | M52: =IF(ISERROR(VLOOKUP(J52,'KAYIT LİSTESİ'!$B$4:$H$1280,5,0)),"",(VLOOKUP(J52,'KAYIT LİSTESİ'!$B$4:$H$1280,5,0))) ->  | N52: =IF(ISERROR(VLOOKUP(J52,'KAYIT LİSTESİ'!$B$4:$H$1280,6,0)),"",(VLOOKUP(J52,'KAYIT LİSTESİ'!$B$4:$H$1280,6,0))) -> 
I53: 4 | J53: 1500M-4-4 | K53: =IF(ISERROR(VLOOKUP(J53,'KAYIT LİSTESİ'!$B$4:$H$1280,2,0)),"",(VLOOKUP(J53,'KAYIT LİSTESİ'!$B$4:$H$1280,2,0))) ->  | L53: =IF(ISERROR(VLOOKUP(J53,'KAYIT LİSTESİ'!$B$4:$H$1280,4,0)),"",(VLOOKUP(J53,'KAYIT LİSTESİ'!$B$4:$H$1280,4,0))) ->  | M53: =IF(ISERROR(VLOOKUP(J53,'KAYIT LİSTESİ'!$B$4:$H$1280,5,0)),"",(VLOOKUP(J53,'KAYIT LİSTESİ'!$B$4:$H$1280,5,0))) ->  | N53: =IF(ISERROR(VLOOKUP(J53,'KAYIT LİSTESİ'!$B$4:$H$1280,6,0)),"",(VLOOKUP(J53,'KAYIT LİSTESİ'!$B$4:$H$1280,6,0))) -> 
I54: 5 | J54: 1500M-4-5 | K54: =IF(ISERROR(VLOOKUP(J54,'KAYIT LİSTESİ'!$B$4:$H$1280,2,0)),"",(VLOOKUP(J54,'KAYIT LİSTESİ'!$B$4:$H$1280,2,0))) ->  | L54: =IF(ISERROR(VLOOKUP(J54,'KAYIT LİSTESİ'!$B$4:$H$1280,4,0)),"",(VLOOKUP(J54,'KAYIT LİSTESİ'!$B$4:$H$1280,4,0))) ->  | M54: =IF(ISERROR(VLOOKUP(J54,'KAYIT LİSTESİ'!$B$4:$H$1280,5,0)),"",(VLOOKUP(J54,'KAYIT LİSTESİ'!$B$4:$H$1280,5,0))) ->  | N54: =IF(ISERROR(VLOOKUP(J54,'KAYIT LİSTESİ'!$B$4:$H$1280,6,0)),"",(VLOOKUP(J54,'KAYIT LİSTESİ'!$B$4:$H$1280,6,0))) -> 
I55: 6 | J55: 1500M-4-6 | K55: =IF(ISERROR(VLOOKUP(J55,'KAYIT LİSTESİ'!$B$4:$H$1280,2,0)),"",(VLOOKUP(J55,'KAYIT LİSTESİ'!$B$4:$H$1280,2,0))) ->  | L55: =IF(ISERROR(VLOOKUP(J55,'KAYIT LİSTESİ'!$B$4:$H$1280,4,0)),"",(VLOOKUP(J55,'KAYIT LİSTESİ'!$B$4:$H$1280,4,0))) ->  | M55: =IF(ISERROR(VLOOKUP(J55,'KAYIT LİSTESİ'!$B$4:$H$1280,5,0)),"",(VLOOKUP(J55,'KAYIT LİSTESİ'!$B$4:$H$1280,5,0))) ->  | N55: =IF(ISERROR(VLOOKUP(J55,'KAYIT LİSTESİ'!$B$4:$H$1280,6,0)),"",(VLOOKUP(J55,'KAYIT LİSTESİ'!$B$4:$H$1280,6,0))) -> 
I56: 7 | J56: 1500M-4-7 | K56: =IF(ISERROR(VLOOKUP(J56,'KAYIT LİSTESİ'!$B$4:$H$1280,2,0)),"",(VLOOKUP(J56,'KAYIT LİSTESİ'!$B$4:$H$1280,2,0))) ->  | L56: =IF(ISERROR(VLOOKUP(J56,'KAYIT LİSTESİ'!$B$4:$H$1280,4,0)),"",(VLOOKUP(J56,'KAYIT LİSTESİ'!$B$4:$H$1280,4,0))) ->  | M56: =IF(ISERROR(VLOOKUP(J56,'KAYIT LİSTESİ'!$B$4:$H$1280,5,0)),"",(VLOOKUP(J56,'KAYIT LİSTESİ'!$B$4:$H$1280,5,0))) ->  | N56: =IF(ISERROR(VLOOKUP(J56,'KAYIT LİSTESİ'!$B$4:$H$1280,6,0)),"",(VLOOKUP(J56,'KAYIT LİSTESİ'!$B$4:$H$1280,6,0))) -> 
I57: 8 | J57: 1500M-4-8 | K57: =IF(ISERROR(VLOOKUP(J57,'KAYIT LİSTESİ'!$B$4:$H$1280,2,0)),"",(VLOOKUP(J57,'KAYIT LİSTESİ'!$B$4:$H$1280,2,0))) ->  | L57: =IF(ISERROR(VLOOKUP(J57,'KAYIT LİSTESİ'!$B$4:$H$1280,4,0)),"",(VLOOKUP(J57,'KAYIT LİSTESİ'!$B$4:$H$1280,4,0))) ->  | M57: =IF(ISERROR(VLOOKUP(J57,'KAYIT LİSTESİ'!$B$4:$H$1280,5,0)),"",(VLOOKUP(J57,'KAYIT LİSTESİ'!$B$4:$H$1280,5,0))) ->  | N57: =IF(ISERROR(VLOOKUP(J57,'KAYIT LİSTESİ'!$B$4:$H$1280,6,0)),"",(VLOOKUP(J57,'KAYIT LİSTESİ'!$B$4:$H$1280,6,0))) -> 
I58: 9 | J58: 1500M-4-9 | K58: =IF(ISERROR(VLOOKUP(J58,'KAYIT LİSTESİ'!$B$4:$H$1280,2,0)),"",(VLOOKUP(J58,'KAYIT LİSTESİ'!$B$4:$H$1280,2,0))) ->  | L58: =IF(ISERROR(VLOOKUP(J58,'KAYIT LİSTESİ'!$B$4:$H$1280,4,0)),"",(VLOOKUP(J58,'KAYIT LİSTESİ'!$B$4:$H$1280,4,0))) ->  | M58: =IF(ISERROR(VLOOKUP(J58,'KAYIT LİSTESİ'!$B$4:$H$1280,5,0)),"",(VLOOKUP(J58,'KAYIT LİSTESİ'!$B$4:$H$1280,5,0))) ->  | N58: =IF(ISERROR(VLOOKUP(J58,'KAYIT LİSTESİ'!$B$4:$H$1280,6,0)),"",(VLOOKUP(J58,'KAYIT LİSTESİ'!$B$4:$H$1280,6,0))) -> 
I59: 10 | J59: 1500M-4-10 | K59: =IF(ISERROR(VLOOKUP(J59,'KAYIT LİSTESİ'!$B$4:$H$1280,2,0)),"",(VLOOKUP(J59,'KAYIT LİSTESİ'!$B$4:$H$1280,2,0))) ->  | L59: =IF(ISERROR(VLOOKUP(J59,'KAYIT LİSTESİ'!$B$4:$H$1280,4,0)),"",(VLOOKUP(J59,'KAYIT LİSTESİ'!$B$4:$H$1280,4,0))) ->  | M59: =IF(ISERROR(VLOOKUP(J59,'KAYIT LİSTESİ'!$B$4:$H$1280,5,0)),"",(VLOOKUP(J59,'KAYIT LİSTESİ'!$B$4:$H$1280,5,0))) ->  | N59: =IF(ISERROR(VLOOKUP(J59,'KAYIT LİSTESİ'!$B$4:$H$1280,6,0)),"",(VLOOKUP(J59,'KAYIT LİSTESİ'!$B$4:$H$1280,6,0))) -> 
I60: 11 | J60: 1500M-4-11 | K60: =IF(ISERROR(VLOOKUP(J60,'KAYIT LİSTESİ'!$B$4:$H$1280,2,0)),"",(VLOOKUP(J60,'KAYIT LİSTESİ'!$B$4:$H$1280,2,0))) ->  | L60: =IF(ISERROR(VLOOKUP(J60,'KAYIT LİSTESİ'!$B$4:$H$1280,4,0)),"",(VLOOKUP(J60,'KAYIT LİSTESİ'!$B$4:$H$1280,4,0))) ->  | M60: =IF(ISERROR(VLOOKUP(J60,'KAYIT LİSTESİ'!$B$4:$H$1280,5,0)),"",(VLOOKUP(J60,'KAYIT LİSTESİ'!$B$4:$H$1280,5,0))) ->  | N60: =IF(ISERROR(VLOOKUP(J60,'KAYIT LİSTESİ'!$B$4:$H$1280,6,0)),"",(VLOOKUP(J60,'KAYIT LİSTESİ'!$B$4:$H$1280,6,0))) -> 
I61: 12 | J61: 1500M-4-12 | K61: =IF(ISERROR(VLOOKUP(J61,'KAYIT LİSTESİ'!$B$4:$H$1280,2,0)),"",(VLOOKUP(J61,'KAYIT LİSTESİ'!$B$4:$H$1280,2,0))) ->  | L61: =IF(ISERROR(VLOOKUP(J61,'KAYIT LİSTESİ'!$B$4:$H$1280,4,0)),"",(VLOOKUP(J61,'KAYIT LİSTESİ'!$B$4:$H$1280,4,0))) ->  | M61: =IF(ISERROR(VLOOKUP(J61,'KAYIT LİSTESİ'!$B$4:$H$1280,5,0)),"",(VLOOKUP(J61,'KAYIT LİSTESİ'!$B$4:$H$1280,5,0))) ->  | N61: =IF(ISERROR(VLOOKUP(J61,'KAYIT LİSTESİ'!$B$4:$H$1280,6,0)),"",(VLOOKUP(J61,'KAYIT LİSTESİ'!$B$4:$H$1280,6,0))) -> 
A63: Müsabakalar Direktörü | E63: Baş Hakem | F63: Lider | H63: Sekreter | M63: Hakem | N63: Hakem | P63: Hakem
A65536: CELAL KAYAÖZ

Sheet 5000M
A1: =('YARIŞMA BİLGİLERİ'!A2) -> Gençlik ve Spor Bakanlığı Spor Genel Müdürlüğü Spor Faaliyetleri Daire Başkanlığı
A2: ='YARIŞMA BİLGİLERİ'!F19 -> Olimpik Baraj Yarışmları
A3: Yarışma : | D3: 5000 METRE | F3: Baraj Derecesi | H3: :
A4: Kategori : | D4: ='YARIŞMA BİLGİLERİ'!F21 -> Büyük Erkekler | M4: Tarih-Saat | N4: ='YARIŞMA PROGRAMI'!B10 -> 16 Mayıs 2015 - 20:40
N5: =NOW() -> 42142.49098
A6: Sıra No | B6: Göğüs No | C6: Doğum Tarihi Gün/Ay/Yıl | D6: Adı ve Soyadı | E6: İLİ-OKULU | F6: Derece | G6: Puan | I6: 1. SERİ
I7: Sıra No | J7: Formül | K7: Göğüs No | L7: Doğum Tarihi | M7: Adı ve Soyadı | N7: İLİ-OKULU | O7: Elektronik Kronometre | P7: El Kronometre | Q7: Seri Geliş
A8: 1 | B8: 943 | C8: 00:00:00 | D8: MUSTAFA MAVİLİ | E8: ANKARA | F8: 151804 | G8: =IF(ISTEXT(F8)," ",IFERROR(VLOOKUP(SMALL(puan!$P$4:$Q$111,COUNTIF(puan!$P$4:$Q$111,"<"&F8)+1),puan!$P$4:$Q$111,2,0)," ")) ->  | I8: 1 | J8: 5000M-1-1 | K8: =IF(ISERROR(VLOOKUP(J8,'KAYIT LİSTESİ'!$B$4:$H$1280,2,0)),"",(VLOOKUP(J8,'KAYIT LİSTESİ'!$B$4:$H$1280,2,0))) -> 936 | L8: =IF(ISERROR(VLOOKUP(J8,'KAYIT LİSTESİ'!$B$4:$H$1280,4,0)),"",(VLOOKUP(J8,'KAYIT LİSTESİ'!$B$4:$H$1280,4,0))) -> 1990-02-14 | M8: =IF(ISERROR(VLOOKUP(J8,'KAYIT LİSTESİ'!$B$4:$H$1280,5,0)),"",(VLOOKUP(J8,'KAYIT LİSTESİ'!$B$4:$H$1280,5,0))) -> HAMZA AYDOĞAN | N8: =IF(ISERROR(VLOOKUP(J8,'KAYIT LİSTESİ'!$B$4:$H$1280,6,0)),"",(VLOOKUP(J8,'KAYIT LİSTESİ'!$B$4:$H$1280,6,0))) -> ANKARA | O8: DNF
A9: - | B9: 936 | C9: 1990-02-14 | D9: HAMZA AYDOĞAN | E9: ANKARA | F9: DNF | G9: =IF(ISTEXT(F9)," ",IFERROR(VLOOKUP(SMALL(puan!$P$4:$Q$111,COUNTIF(puan!$P$4:$Q$111,"<"&F9)+1),puan!$P$4:$Q$111,2,0)," ")) ->  | I9: 2 | J9: 5000M-1-2 | K9: =IF(ISERROR(VLOOKUP(J9,'KAYIT LİSTESİ'!$B$4:$H$1280,2,0)),"",(VLOOKUP(J9,'KAYIT LİSTESİ'!$B$4:$H$1280,2,0))) -> 943 | L9: =IF(ISERROR(VLOOKUP(J9,'KAYIT LİSTESİ'!$B$4:$H$1280,4,0)),"",(VLOOKUP(J9,'KAYIT LİSTESİ'!$B$4:$H$1280,4,0))) -> 00:00:00 | M9: =IF(ISERROR(VLOOKUP(J9,'KAYIT LİSTESİ'!$B$4:$H$1280,5,0)),"",(VLOOKUP(J9,'KAYIT LİSTESİ'!$B$4:$H$1280,5,0))) -> MUSTAFA MAVİLİ | N9: =IF(ISERROR(VLOOKUP(J9,'KAYIT LİSTESİ'!$B$4:$H$1280,6,0)),"",(VLOOKUP(J9,'KAYIT LİSTESİ'!$B$4:$H$1280,6,0))) -> ANKARA | O9: 151804 | Q9: 1
A10: - | B10: 488 | C10: 1977-06-04 | D10: ALMİTU BEKELE DEGFA | E10: İSTANBUL | F10: DNS | G10: =IF(ISTEXT(F10)," ",IFERROR(VLOOKUP(SMALL(puan!$P$4:$Q$111,COUNTIF(puan!$P$4:$Q$111,"<"&F10)+1),puan!$P$4:$Q$111,2,0)," ")) ->  | I10: 3 | J10: 5000M-1-3 | K10: =IF(ISERROR(VLOOKUP(J10,'KAYIT LİSTESİ'!$B$4:$H$1280,2,0)),"",(VLOOKUP(J10,'KAYIT LİSTESİ'!$B$4:$H$1280,2,0))) -> 488 | L10: =IF(ISERROR(VLOOKUP(J10,'KAYIT LİSTESİ'!$B$4:$H$1280,4,0)),"",(VLOOKUP(J10,'KAYIT LİSTESİ'!$B$4:$H$1280,4,0))) -> 1977-06-04 | M10: =IF(ISERROR(VLOOKUP(J10,'KAYIT LİSTESİ'!$B$4:$H$1280,5,0)),"",(VLOOKUP(J10,'KAYIT LİSTESİ'!$B$4:$H$1280,5,0))) -> ALMİTU BEKELE DEGFA | N10: =IF(ISERROR(VLOOKUP(J10,'KAYIT LİSTESİ'!$B$4:$H$1280,6,0)),"",(VLOOKUP(J10,'KAYIT LİSTESİ'!$B$4:$H$1280,6,0))) -> İSTANBUL | O10: DNS
G11: =IF(ISTEXT(F11)," ",IFERROR(VLOOKUP(SMALL(puan!$P$4:$Q$111,COUNTIF(puan!$P$4:$Q$111,"<"&F11)+1),puan!$P$4:$Q$111,2,0)," ")) ->  | I11: 4 | J11: 5000M-1-4 | K11: =IF(ISERROR(VLOOKUP(J11,'KAYIT LİSTESİ'!$B$4:$H$1280,2,0)),"",(VLOOKUP(J11,'KAYIT LİSTESİ'!$B$4:$H$1280,2,0))) ->  | L11: =IF(ISERROR(VLOOKUP(J11,'KAYIT LİSTESİ'!$B$4:$H$1280,4,0)),"",(VLOOKUP(J11,'KAYIT LİSTESİ'!$B$4:$H$1280,4,0))) ->  | M11: =IF(ISERROR(VLOOKUP(J11,'KAYIT LİSTESİ'!$B$4:$H$1280,5,0)),"",(VLOOKUP(J11,'KAYIT LİSTESİ'!$B$4:$H$1280,5,0))) ->  | N11: =IF(ISERROR(VLOOKUP(J11,'KAYIT LİSTESİ'!$B$4:$H$1280,6,0)),"",(VLOOKUP(J11,'KAYIT LİSTESİ'!$B$4:$H$1280,6,0))) ->  | O11: =IF(IF(OR(P11="NM",P11="DNF",P11="DNS",P11="DQ",P11=""),P11,(ROUNDUP(P11,)+24))=0," ",IF(OR(P11="NM",P11="DNF",P11="DNS",P11="DQ",P11=""),P11,(ROUNDUP(P11,)+24))) -> 
G12: =IF(ISTEXT(F12)," ",IFERROR(VLOOKUP(SMALL(puan!$P$4:$Q$111,COUNTIF(puan!$P$4:$Q$111,"<"&F12)+1),puan!$P$4:$Q$111,2,0)," ")) ->  | I12: 5 | J12: 5000M-1-5 | K12: =IF(ISERROR(VLOOKUP(J12,'KAYIT LİSTESİ'!$B$4:$H$1280,2,0)),"",(VLOOKUP(J12,'KAYIT LİSTESİ'!$B$4:$H$1280,2,0))) ->  | L12: =IF(ISERROR(VLOOKUP(J12,'KAYIT LİSTESİ'!$B$4:$H$1280,4,0)),"",(VLOOKUP(J12,'KAYIT LİSTESİ'!$B$4:$H$1280,4,0))) ->  | M12: =IF(ISERROR(VLOOKUP(J12,'KAYIT LİSTESİ'!$B$4:$H$1280,5,0)),"",(VLOOKUP(J12,'KAYIT LİSTESİ'!$B$4:$H$1280,5,0))) ->  | N12: =IF(ISERROR(VLOOKUP(J12,'KAYIT LİSTESİ'!$B$4:$H$1280,6,0)),"",(VLOOKUP(J12,'KAYIT LİSTESİ'!$B$4:$H$1280,6,0))) -> 
G13: =IF(ISTEXT(F13)," ",IFERROR(VLOOKUP(SMALL(puan!$P$4:$Q$111,COUNTIF(puan!$P$4:$Q$111,"<"&F13)+1),puan!$P$4:$Q$111,2,0)," ")) ->  | I13: 6 | J13: 5000M-1-6 | K13: =IF(ISERROR(VLOOKUP(J13,'KAYIT LİSTESİ'!$B$4:$H$1280,2,0)),"",(VLOOKUP(J13,'KAYIT LİSTESİ'!$B$4:$H$1280,2,0))) ->  | L13: =IF(ISERROR(VLOOKUP(J13,'KAYIT LİSTESİ'!$B$4:$H$1280,4,0)),"",(VLOOKUP(J13,'KAYIT LİSTESİ'!$B$4:$H$1280,4,0))) ->  | M13: =IF(ISERROR(VLOOKUP(J13,'KAYIT LİSTESİ'!$B$4:$H$1280,5,0)),"",(VLOOKUP(J13,'KAYIT LİSTESİ'!$B$4:$H$1280,5,0))) ->  | N13: =IF(ISERROR(VLOOKUP(J13,'KAYIT LİSTESİ'!$B$4:$H$1280,6,0)),"",(VLOOKUP(J13,'KAYIT LİSTESİ'!$B$4:$H$1280,6,0))) -> 
G14: =IF(ISTEXT(F14)," ",IFERROR(VLOOKUP(SMALL(puan!$P$4:$Q$111,COUNTIF(puan!$P$4:$Q$111,"<"&F14)+1),puan!$P$4:$Q$111,2,0)," ")) ->  | I14: 7 | J14: 5000M-1-7 | K14: =IF(ISERROR(VLOOKUP(J14,'KAYIT LİSTESİ'!$B$4:$H$1280,2,0)),"",(VLOOKUP(J14,'KAYIT LİSTESİ'!$B$4:$H$1280,2,0))) ->  | L14: =IF(ISERROR(VLOOKUP(J14,'KAYIT LİSTESİ'!$B$4:$H$1280,4,0)),"",(VLOOKUP(J14,'KAYIT LİSTESİ'!$B$4:$H$1280,4,0))) ->  | M14: =IF(ISERROR(VLOOKUP(J14,'KAYIT LİSTESİ'!$B$4:$H$1280,5,0)),"",(VLOOKUP(J14,'KAYIT LİSTESİ'!$B$4:$H$1280,5,0))) ->  | N14: =IF(ISERROR(VLOOKUP(J14,'KAYIT LİSTESİ'!$B$4:$H$1280,6,0)),"",(VLOOKUP(J14,'KAYIT LİSTESİ'!$B$4:$H$1280,6,0))) -> 
G15: =IF(ISTEXT(F15)," ",IFERROR(VLOOKUP(SMALL(puan!$P$4:$Q$111,COUNTIF(puan!$P$4:$Q$111,"<"&F15)+1),puan!$P$4:$Q$111,2,0)," ")) ->  | I15: 8 | J15: 5000M-1-8 | K15: =IF(ISERROR(VLOOKUP(J15,'KAYIT LİSTESİ'!$B$4:$H$1280,2,0)),"",(VLOOKUP(J15,'KAYIT LİSTESİ'!$B$4:$H$1280,2,0))) ->  | L15: =IF(ISERROR(VLOOKUP(J15,'KAYIT LİSTESİ'!$B$4:$H$1280,4,0)),"",(VLOOKUP(J15,'KAYIT LİSTESİ'!$B$4:$H$1280,4,0))) ->  | M15: =IF(ISERROR(VLOOKUP(J15,'KAYIT LİSTESİ'!$B$4:$H$1280,5,0)),"",(VLOOKUP(J15,'KAYIT LİSTESİ'!$B$4:$H$1280,5,0))) ->  | N15: =IF(ISERROR(VLOOKUP(J15,'KAYIT LİSTESİ'!$B$4:$H$1280,6,0)),"",(VLOOKUP(J15,'KAYIT LİSTESİ'!$B$4:$H$1280,6,0))) -> 
G16: =IF(ISTEXT(F16)," ",IFERROR(VLOOKUP(SMALL(puan!$P$4:$Q$111,COUNTIF(puan!$P$4:$Q$111,"<"&F16)+1),puan!$P$4:$Q$111,2,0)," ")) ->  | I16: 9 | J16: 5000M-1-9 | K16: =IF(ISERROR(VLOOKUP(J16,'KAYIT LİSTESİ'!$B$4:$H$1280,2,0)),"",(VLOOKUP(J16,'KAYIT LİSTESİ'!$B$4:$H$1280,2,0))) ->  | L16: =IF(ISERROR(VLOOKUP(J16,'KAYIT LİSTESİ'!$B$4:$H$1280,4,0)),"",(VLOOKUP(J16,'KAYIT LİSTESİ'!$B$4:$H$1280,4,0))) ->  | M16: =IF(ISERROR(VLOOKUP(J16,'KAYIT LİSTESİ'!$B$4:$H$1280,5,0)),"",(VLOOKUP(J16,'KAYIT LİSTESİ'!$B$4:$H$1280,5,0))) ->  | N16: =IF(ISERROR(VLOOKUP(J16,'KAYIT LİSTESİ'!$B$4:$H$1280,6,0)),"",(VLOOKUP(J16,'KAYIT LİSTESİ'!$B$4:$H$1280,6,0))) -> 
G17: =IF(ISTEXT(F17)," ",IFERROR(VLOOKUP(SMALL(puan!$P$4:$Q$111,COUNTIF(puan!$P$4:$Q$111,"<"&F17)+1),puan!$P$4:$Q$111,2,0)," ")) ->  | I17: 10 | J17: 5000M-1-10 | K17: =IF(ISERROR(VLOOKUP(J17,'KAYIT LİSTESİ'!$B$4:$H$1280,2,0)),"",(VLOOKUP(J17,'KAYIT LİSTESİ'!$B$4:$H$1280,2,0))) ->  | L17: =IF(ISERROR(VLOOKUP(J17,'KAYIT LİSTESİ'!$B$4:$H$1280,4,0)),"",(VLOOKUP(J17,'KAYIT LİSTESİ'!$B$4:$H$1280,4,0))) ->  | M17: =IF(ISERROR(VLOOKUP(J17,'KAYIT LİSTESİ'!$B$4:$H$1280,5,0)),"",(VLOOKUP(J17,'KAYIT LİSTESİ'!$B$4:$H$1280,5,0))) ->  | N17: =IF(ISERROR(VLOOKUP(J17,'KAYIT LİSTESİ'!$B$4:$H$1280,6,0)),"",(VLOOKUP(J17,'KAYIT LİSTESİ'!$B$4:$H$1280,6,0))) -> 
G18: =IF(ISTEXT(F18)," ",IFERROR(VLOOKUP(SMALL(puan!$P$4:$Q$111,COUNTIF(puan!$P$4:$Q$111,"<"&F18)+1),puan!$P$4:$Q$111,2,0)," ")) ->  | I18: 11 | J18: 5000M-1-11 | K18: =IF(ISERROR(VLOOKUP(J18,'KAYIT LİSTESİ'!$B$4:$H$1280,2,0)),"",(VLOOKUP(J18,'KAYIT LİSTESİ'!$B$4:$H$1280,2,0))) ->  | L18: =IF(ISERROR(VLOOKUP(J18,'KAYIT LİSTESİ'!$B$4:$H$1280,4,0)),"",(VLOOKUP(J18,'KAYIT LİSTESİ'!$B$4:$H$1280,4,0))) ->  | M18: =IF(ISERROR(VLOOKUP(J18,'KAYIT LİSTESİ'!$B$4:$H$1280,5,0)),"",(VLOOKUP(J18,'KAYIT LİSTESİ'!$B$4:$H$1280,5,0))) ->  | N18: =IF(ISERROR(VLOOKUP(J18,'KAYIT LİSTESİ'!$B$4:$H$1280,6,0)),"",(VLOOKUP(J18,'KAYIT LİSTESİ'!$B$4:$H$1280,6,0))) -> 
G19: =IF(ISTEXT(F19)," ",IFERROR(VLOOKUP(SMALL(puan!$P$4:$Q$111,COUNTIF(puan!$P$4:$Q$111,"<"&F19)+1),puan!$P$4:$Q$111,2,0)," ")) ->  | I19: 12 | J19: 5000M-1-12 | K19: =IF(ISERROR(VLOOKUP(J19,'KAYIT LİSTESİ'!$B$4:$H$1280,2,0)),"",(VLOOKUP(J19,'KAYIT LİSTESİ'!$B$4:$H$1280,2,0))) ->  | L19: =IF(ISERROR(VLOOKUP(J19,'KAYIT LİSTESİ'!$B$4:$H$1280,4,0)),"",(VLOOKUP(J19,'KAYIT LİSTESİ'!$B$4:$H$1280,4,0))) ->  | M19: =IF(ISERROR(VLOOKUP(J19,'KAYIT LİSTESİ'!$B$4:$H$1280,5,0)),"",(VLOOKUP(J19,'KAYIT LİSTESİ'!$B$4:$H$1280,5,0))) ->  | N19: =IF(ISERROR(VLOOKUP(J19,'KAYIT LİSTESİ'!$B$4:$H$1280,6,0)),"",(VLOOKUP(J19,'KAYIT LİSTESİ'!$B$4:$H$1280,6,0))) -> 
G20: =IF(ISTEXT(F20)," ",IFERROR(VLOOKUP(SMALL(puan!$P$4:$Q$111,COUNTIF(puan!$P$4:$Q$111,"<"&F20)+1),puan!$P$4:$Q$111,2,0)," ")) ->  | I20: 2. SERİ
G21: =IF(ISTEXT(F21)," ",IFERROR(VLOOKUP(SMALL(puan!$P$4:$Q$111,COUNTIF(puan!$P$4:$Q$111,"<"&F21)+1),puan!$P$4:$Q$111,2,0)," ")) ->  | I21: Sıra No | J21: Formül | K21: Göğüs No | L21: Doğum Tarihi | M21: Adı ve Soyadı | N21: İLİ-OKULU | O21: Elektronik Kronometre | P21: El Kronometre | Q21: Seri Geliş
G22: =IF(ISTEXT(F22)," ",IFERROR(VLOOKUP(SMALL(puan!$P$4:$Q$111,COUNTIF(puan!$P$4:$Q$111,"<"&F22)+1),puan!$P$4:$Q$111,2,0)," ")) ->  | I22: 1 | J22: 5000M-2-1 | K22: =IF(ISERROR(VLOOKUP(J22,'KAYIT LİSTESİ'!$B$4:$H$1280,2,0)),"",(VLOOKUP(J22,'KAYIT LİSTESİ'!$B$4:$H$1280,2,0))) ->  | L22: =IF(ISERROR(VLOOKUP(J22,'KAYIT LİSTESİ'!$B$4:$H$1280,4,0)),"",(VLOOKUP(J22,'KAYIT LİSTESİ'!$B$4:$H$1280,4,0))) ->  | M22: =IF(ISERROR(VLOOKUP(J22,'KAYIT LİSTESİ'!$B$4:$H$1280,5,0)),"",(VLOOKUP(J22,'KAYIT LİSTESİ'!$B$4:$H$1280,5,0))) ->  | N22: =IF(ISERROR(VLOOKUP(J22,'KAYIT LİSTESİ'!$B$4:$H$1280,6,0)),"",(VLOOKUP(J22,'KAYIT LİSTESİ'!$B$4:$H$1280,6,0))) ->  | O22: =IF(IF(OR(P22="NM",P22="DNF",P22="DNS",P22="DQ",P22=""),P22,(ROUNDUP(P22,)+24))=0," ",IF(OR(P22="NM",P22="DNF",P22="DNS",P22="DQ",P22=""),P22,(ROUNDUP(P22,)+24))) -> 
G23: =IF(ISTEXT(F23)," ",IFERROR(VLOOKUP(SMALL(puan!$P$4:$Q$111,COUNTIF(puan!$P$4:$Q$111,"<"&F23)+1),puan!$P$4:$Q$111,2,0)," ")) ->  | I23: 2 | J23: 5000M-2-2 | K23: =IF(ISERROR(VLOOKUP(J23,'KAYIT LİSTESİ'!$B$4:$H$1280,2,0)),"",(VLOOKUP(J23,'KAYIT LİSTESİ'!$B$4:$H$1280,2,0))) ->  | L23: =IF(ISERROR(VLOOKUP(J23,'KAYIT LİSTESİ'!$B$4:$H$1280,4,0)),"",(VLOOKUP(J23,'KAYIT LİSTESİ'!$B$4:$H$1280,4,0))) ->  | M23: =IF(ISERROR(VLOOKUP(J23,'KAYIT LİSTESİ'!$B$4:$H$1280,5,0)),"",(VLOOKUP(J23,'KAYIT LİSTESİ'!$B$4:$H$1280,5,0))) ->  | N23: =IF(ISERROR(VLOOKUP(J23,'KAYIT LİSTESİ'!$B$4:$H$1280,6,0)),"",(VLOOKUP(J23,'KAYIT LİSTESİ'!$B$4:$H$1280,6,0))) -> 
G24: =IF(ISTEXT(F24)," ",IFERROR(VLOOKUP(SMALL(puan!$P$4:$Q$111,COUNTIF(puan!$P$4:$Q$111,"<"&F24)+1),puan!$P$4:$Q$111,2,0)," ")) ->  | I24: 3 | J24: 5000M-2-3 | K24: =IF(ISERROR(VLOOKUP(J24,'KAYIT LİSTESİ'!$B$4:$H$1280,2,0)),"",(VLOOKUP(J24,'KAYIT LİSTESİ'!$B$4:$H$1280,2,0))) ->  | L24: =IF(ISERROR(VLOOKUP(J24,'KAYIT LİSTESİ'!$B$4:$H$1280,4,0)),"",(VLOOKUP(J24,'KAYIT LİSTESİ'!$B$4:$H$1280,4,0))) ->  | M24: =IF(ISERROR(VLOOKUP(J24,'KAYIT LİSTESİ'!$B$4:$H$1280,5,0)),"",(VLOOKUP(J24,'KAYIT LİSTESİ'!$B$4:$H$1280,5,0))) ->  | N24: =IF(ISERROR(VLOOKUP(J24,'KAYIT LİSTESİ'!$B$4:$H$1280,6,0)),"",(VLOOKUP(J24,'KAYIT LİSTESİ'!$B$4:$H$1280,6,0))) -> 
G25: =IF(ISTEXT(F25)," ",IFERROR(VLOOKUP(SMALL(puan!$P$4:$Q$111,COUNTIF(puan!$P$4:$Q$111,"<"&F25)+1),puan!$P$4:$Q$111,2,0)," ")) ->  | I25: 4 | J25: 5000M-2-4 | K25: =IF(ISERROR(VLOOKUP(J25,'KAYIT LİSTESİ'!$B$4:$H$1280,2,0)),"",(VLOOKUP(J25,'KAYIT LİSTESİ'!$B$4:$H$1280,2,0))) ->  | L25: =IF(ISERROR(VLOOKUP(J25,'KAYIT LİSTESİ'!$B$4:$H$1280,4,0)),"",(VLOOKUP(J25,'KAYIT LİSTESİ'!$B$4:$H$1280,4,0))) ->  | M25: =IF(ISERROR(VLOOKUP(J25,'KAYIT LİSTESİ'!$B$4:$H$1280,5,0)),"",(VLOOKUP(J25,'KAYIT LİSTESİ'!$B$4:$H$1280,5,0))) ->  | N25: =IF(ISERROR(VLOOKUP(J25,'KAYIT LİSTESİ'!$B$4:$H$1280,6,0)),"",(VLOOKUP(J25,'KAYIT LİSTESİ'!$B$4:$H$1280,6,0))) -> 
G26: =IF(ISTEXT(F26)," ",IFERROR(VLOOKUP(SMALL(puan!$P$4:$Q$111,COUNTIF(puan!$P$4:$Q$111,"<"&F26)+1),puan!$P$4:$Q$111,2,0)," ")) ->  | I26: 5 | J26: 5000M-2-5 | K26: =IF(ISERROR(VLOOKUP(J26,'KAYIT LİSTESİ'!$B$4:$H$1280,2,0)),"",(VLOOKUP(J26,'KAYIT LİSTESİ'!$B$4:$H$1280,2,0))) ->  | L26: =IF(ISERROR(VLOOKUP(J26,'KAYIT LİSTESİ'!$B$4:$H$1280,4,0)),"",(VLOOKUP(J26,'KAYIT LİSTESİ'!$B$4:$H$1280,4,0))) ->  | M26: =IF(ISERROR(VLOOKUP(J26,'KAYIT LİSTESİ'!$B$4:$H$1280,5,0)),"",(VLOOKUP(J26,'KAYIT LİSTESİ'!$B$4:$H$1280,5,0))) ->  | N26: =IF(ISERROR(VLOOKUP(J26,'KAYIT LİSTESİ'!$B$4:$H$1280,6,0)),"",(VLOOKUP(J26,'KAYIT LİSTESİ'!$B$4:$H$1280,6,0))) -> 
G27: =IF(ISTEXT(F27)," ",IFERROR(VLOOKUP(SMALL(puan!$P$4:$Q$111,COUNTIF(puan!$P$4:$Q$111,"<"&F27)+1),puan!$P$4:$Q$111,2,0)," ")) ->  | I27: 6 | J27: 5000M-2-6 | K27: =IF(ISERROR(VLOOKUP(J27,'KAYIT LİSTESİ'!$B$4:$H$1280,2,0)),"",(VLOOKUP(J27,'KAYIT LİSTESİ'!$B$4:$H$1280,2,0))) ->  | L27: =IF(ISERROR(VLOOKUP(J27,'KAYIT LİSTESİ'!$B$4:$H$1280,4,0)),"",(VLOOKUP(J27,'KAYIT LİSTESİ'!$B$4:$H$1280,4,0))) ->  | M27: =IF(ISERROR(VLOOKUP(J27,'KAYIT LİSTESİ'!$B$4:$H$1280,5,0)),"",(VLOOKUP(J27,'KAYIT LİSTESİ'!$B$4:$H$1280,5,0))) ->  | N27: =IF(ISERROR(VLOOKUP(J27,'KAYIT LİSTESİ'!$B$4:$H$1280,6,0)),"",(VLOOKUP(J27,'KAYIT LİSTESİ'!$B$4:$H$1280,6,0))) -> 
G28: =IF(ISTEXT(F28)," ",IFERROR(VLOOKUP(SMALL(puan!$P$4:$Q$111,COUNTIF(puan!$P$4:$Q$111,"<"&F28)+1),puan!$P$4:$Q$111,2,0)," ")) ->  | I28: 7 | J28: 5000M-2-7 | K28: =IF(ISERROR(VLOOKUP(J28,'KAYIT LİSTESİ'!$B$4:$H$1280,2,0)),"",(VLOOKUP(J28,'KAYIT LİSTESİ'!$B$4:$H$1280,2,0))) ->  | L28: =IF(ISERROR(VLOOKUP(J28,'KAYIT LİSTESİ'!$B$4:$H$1280,4,0)),"",(VLOOKUP(J28,'KAYIT LİSTESİ'!$B$4:$H$1280,4,0))) ->  | M28: =IF(ISERROR(VLOOKUP(J28,'KAYIT LİSTESİ'!$B$4:$H$1280,5,0)),"",(VLOOKUP(J28,'KAYIT LİSTESİ'!$B$4:$H$1280,5,0))) ->  | N28: =IF(ISERROR(VLOOKUP(J28,'KAYIT LİSTESİ'!$B$4:$H$1280,6,0)),"",(VLOOKUP(J28,'KAYIT LİSTESİ'!$B$4:$H$1280,6,0))) -> 
G29: =IF(ISTEXT(F29)," ",IFERROR(VLOOKUP(SMALL(puan!$P$4:$Q$111,COUNTIF(puan!$P$4:$Q$111,"<"&F29)+1),puan!$P$4:$Q$111,2,0)," ")) ->  | I29: 8 | J29: 5000M-2-8 | K29: =IF(ISERROR(VLOOKUP(J29,'KAYIT LİSTESİ'!$B$4:$H$1280,2,0)),"",(VLOOKUP(J29,'KAYIT LİSTESİ'!$B$4:$H$1280,2,0))) ->  | L29: =IF(ISERROR(VLOOKUP(J29,'KAYIT LİSTESİ'!$B$4:$H$1280,4,0)),"",(VLOOKUP(J29,'KAYIT LİSTESİ'!$B$4:$H$1280,4,0))) ->  | M29: =IF(ISERROR(VLOOKUP(J29,'KAYIT LİSTESİ'!$B$4:$H$1280,5,0)),"",(VLOOKUP(J29,'KAYIT LİSTESİ'!$B$4:$H$1280,5,0))) ->  | N29: =IF(ISERROR(VLOOKUP(J29,'KAYIT LİSTESİ'!$B$4:$H$1280,6,0)),"",(VLOOKUP(J29,'KAYIT LİSTESİ'!$B$4:$H$1280,6,0))) -> 
G30: =IF(ISTEXT(F30)," ",IFERROR(VLOOKUP(SMALL(puan!$P$4:$Q$111,COUNTIF(puan!$P$4:$Q$111,"<"&F30)+1),puan!$P$4:$Q$111,2,0)," ")) ->  | I30: 9 | J30: 5000M-2-9 | K30: =IF(ISERROR(VLOOKUP(J30,'KAYIT LİSTESİ'!$B$4:$H$1280,2,0)),"",(VLOOKUP(J30,'KAYIT LİSTESİ'!$B$4:$H$1280,2,0))) ->  | L30: =IF(ISERROR(VLOOKUP(J30,'KAYIT LİSTESİ'!$B$4:$H$1280,4,0)),"",(VLOOKUP(J30,'KAYIT LİSTESİ'!$B$4:$H$1280,4,0))) ->  | M30: =IF(ISERROR(VLOOKUP(J30,'KAYIT LİSTESİ'!$B$4:$H$1280,5,0)),"",(VLOOKUP(J30,'KAYIT LİSTESİ'!$B$4:$H$1280,5,0))) ->  | N30: =IF(ISERROR(VLOOKUP(J30,'KAYIT LİSTESİ'!$B$4:$H$1280,6,0)),"",(VLOOKUP(J30,'KAYIT LİSTESİ'!$B$4:$H$1280,6,0))) -> 
G31: =IF(ISTEXT(F31)," ",IFERROR(VLOOKUP(SMALL(puan!$P$4:$Q$111,COUNTIF(puan!$P$4:$Q$111,"<"&F31)+1),puan!$P$4:$Q$111,2,0)," ")) ->  | I31: 10 | J31: 5000M-2-10 | K31: =IF(ISERROR(VLOOKUP(J31,'KAYIT LİSTESİ'!$B$4:$H$1280,2,0)),"",(VLOOKUP(J31,'KAYIT LİSTESİ'!$B$4:$H$1280,2,0))) ->  | L31: =IF(ISERROR(VLOOKUP(J31,'KAYIT LİSTESİ'!$B$4:$H$1280,4,0)),"",(VLOOKUP(J31,'KAYIT LİSTESİ'!$B$4:$H$1280,4,0))) ->  | M31: =IF(ISERROR(VLOOKUP(J31,'KAYIT LİSTESİ'!$B$4:$H$1280,5,0)),"",(VLOOKUP(J31,'KAYIT LİSTESİ'!$B$4:$H$1280,5,0))) ->  | N31: =IF(ISERROR(VLOOKUP(J31,'KAYIT LİSTESİ'!$B$4:$H$1280,6,0)),"",(VLOOKUP(J31,'KAYIT LİSTESİ'!$B$4:$H$1280,6,0))) -> 
G32: =IF(ISTEXT(F32)," ",IFERROR(VLOOKUP(SMALL(puan!$P$4:$Q$111,COUNTIF(puan!$P$4:$Q$111,"<"&F32)+1),puan!$P$4:$Q$111,2,0)," ")) ->  | I32: 11 | J32: 5000M-2-11 | K32: =IF(ISERROR(VLOOKUP(J32,'KAYIT LİSTESİ'!$B$4:$H$1280,2,0)),"",(VLOOKUP(J32,'KAYIT LİSTESİ'!$B$4:$H$1280,2,0))) ->  | L32: =IF(ISERROR(VLOOKUP(J32,'KAYIT LİSTESİ'!$B$4:$H$1280,4,0)),"",(VLOOKUP(J32,'KAYIT LİSTESİ'!$B$4:$H$1280,4,0))) ->  | M32: =IF(ISERROR(VLOOKUP(J32,'KAYIT LİSTESİ'!$B$4:$H$1280,5,0)),"",(VLOOKUP(J32,'KAYIT LİSTESİ'!$B$4:$H$1280,5,0))) ->  | N32: =IF(ISERROR(VLOOKUP(J32,'KAYIT LİSTESİ'!$B$4:$H$1280,6,0)),"",(VLOOKUP(J32,'KAYIT LİSTESİ'!$B$4:$H$1280,6,0))) -> 
G33: =IF(ISTEXT(F33)," ",IFERROR(VLOOKUP(SMALL(puan!$P$4:$Q$111,COUNTIF(puan!$P$4:$Q$111,"<"&F33)+1),puan!$P$4:$Q$111,2,0)," ")) ->  | I33: 12 | J33: 5000M-2-12 | K33: =IF(ISERROR(VLOOKUP(J33,'KAYIT LİSTESİ'!$B$4:$H$1280,2,0)),"",(VLOOKUP(J33,'KAYIT LİSTESİ'!$B$4:$H$1280,2,0))) ->  | L33: =IF(ISERROR(VLOOKUP(J33,'KAYIT LİSTESİ'!$B$4:$H$1280,4,0)),"",(VLOOKUP(J33,'KAYIT LİSTESİ'!$B$4:$H$1280,4,0))) ->  | M33: =IF(ISERROR(VLOOKUP(J33,'KAYIT LİSTESİ'!$B$4:$H$1280,5,0)),"",(VLOOKUP(J33,'KAYIT LİSTESİ'!$B$4:$H$1280,5,0))) ->  | N33: =IF(ISERROR(VLOOKUP(J33,'KAYIT LİSTESİ'!$B$4:$H$1280,6,0)),"",(VLOOKUP(J33,'KAYIT LİSTESİ'!$B$4:$H$1280,6,0))) -> 
G34: =IF(ISTEXT(F34)," ",IFERROR(VLOOKUP(SMALL(puan!$P$4:$Q$111,COUNTIF(puan!$P$4:$Q$111,"<"&F34)+1),puan!$P$4:$Q$111,2,0)," ")) ->  | I34: 3. SERİ
A35: 28 | G35: =IF(ISTEXT(F35)," ",IFERROR(VLOOKUP(SMALL(puan!$P$4:$Q$111,COUNTIF(puan!$P$4:$Q$111,"<"&F35)+1),puan!$P$4:$Q$111,2,0)," ")) ->  | I35: Sıra No | J35: Formül | K35: Göğüs No | L35: Doğum Tarihi | M35: Adı ve Soyadı | N35: İLİ-OKULU | O35: Elektronik Kronometre | P35: El Kronometre | Q35: Seri Geliş
A36: 29 | G36: =IF(ISTEXT(F36)," ",IFERROR(VLOOKUP(SMALL(puan!$P$4:$Q$111,COUNTIF(puan!$P$4:$Q$111,"<"&F36)+1),puan!$P$4:$Q$111,2,0)," ")) ->  | I36: 1 | J36: 1500M-3-1 | K36: =IF(ISERROR(VLOOKUP(J36,'KAYIT LİSTESİ'!$B$4:$H$1280,2,0)),"",(VLOOKUP(J36,'KAYIT LİSTESİ'!$B$4:$H$1280,2,0))) ->  | L36: =IF(ISERROR(VLOOKUP(J36,'KAYIT LİSTESİ'!$B$4:$H$1280,4,0)),"",(VLOOKUP(J36,'KAYIT LİSTESİ'!$B$4:$H$1280,4,0))) ->  | M36: =IF(ISERROR(VLOOKUP(J36,'KAYIT LİSTESİ'!$B$4:$H$1280,5,0)),"",(VLOOKUP(J36,'KAYIT LİSTESİ'!$B$4:$H$1280,5,0))) ->  | N36: =IF(ISERROR(VLOOKUP(J36,'KAYIT LİSTESİ'!$B$4:$H$1280,6,0)),"",(VLOOKUP(J36,'KAYIT LİSTESİ'!$B$4:$H$1280,6,0))) ->  | O36: =IF(IF(OR(P36="NM",P36="DNF",P36="DNS",P36="DQ",P36=""),P36,(ROUNDUP(P36,)+24))=0," ",IF(OR(P36="NM",P36="DNF",P36="DNS",P36="DQ",P36=""),P36,(ROUNDUP(P36,)+24))) -> 
A37: 30 | G37: =IF(ISTEXT(F37)," ",IFERROR(VLOOKUP(SMALL(puan!$P$4:$Q$111,COUNTIF(puan!$P$4:$Q$111,"<"&F37)+1),puan!$P$4:$Q$111,2,0)," ")) ->  | I37: 2 | J37: 1500M-3-2 | K37: =IF(ISERROR(VLOOKUP(J37,'KAYIT LİSTESİ'!$B$4:$H$1280,2,0)),"",(VLOOKUP(J37,'KAYIT LİSTESİ'!$B$4:$H$1280,2,0))) ->  | L37: =IF(ISERROR(VLOOKUP(J37,'KAYIT LİSTESİ'!$B$4:$H$1280,4,0)),"",(VLOOKUP(J37,'KAYIT LİSTESİ'!$B$4:$H$1280,4,0))) ->  | M37: =IF(ISERROR(VLOOKUP(J37,'KAYIT LİSTESİ'!$B$4:$H$1280,5,0)),"",(VLOOKUP(J37,'KAYIT LİSTESİ'!$B$4:$H$1280,5,0))) ->  | N37: =IF(ISERROR(VLOOKUP(J37,'KAYIT LİSTESİ'!$B$4:$H$1280,6,0)),"",(VLOOKUP(J37,'KAYIT LİSTESİ'!$B$4:$H$1280,6,0))) -> 
A38: 31 | G38: =IF(ISTEXT(F38)," ",IFERROR(VLOOKUP(SMALL(puan!$P$4:$Q$111,COUNTIF(puan!$P$4:$Q$111,"<"&F38)+1),puan!$P$4:$Q$111,2,0)," ")) ->  | I38: 3 | J38: 1500M-3-3 | K38: =IF(ISERROR(VLOOKUP(J38,'KAYIT LİSTESİ'!$B$4:$H$1280,2,0)),"",(VLOOKUP(J38,'KAYIT LİSTESİ'!$B$4:$H$1280,2,0))) ->  | L38: =IF(ISERROR(VLOOKUP(J38,'KAYIT LİSTESİ'!$B$4:$H$1280,4,0)),"",(VLOOKUP(J38,'KAYIT LİSTESİ'!$B$4:$H$1280,4,0))) ->  | M38: =IF(ISERROR(VLOOKUP(J38,'KAYIT LİSTESİ'!$B$4:$H$1280,5,0)),"",(VLOOKUP(J38,'KAYIT LİSTESİ'!$B$4:$H$1280,5,0))) ->  | N38: =IF(ISERROR(VLOOKUP(J38,'KAYIT LİSTESİ'!$B$4:$H$1280,6,0)),"",(VLOOKUP(J38,'KAYIT LİSTESİ'!$B$4:$H$1280,6,0))) -> 
A39: 32 | G39: =IF(ISTEXT(F39)," ",IFERROR(VLOOKUP(SMALL(puan!$P$4:$Q$111,COUNTIF(puan!$P$4:$Q$111,"<"&F39)+1),puan!$P$4:$Q$111,2,0)," ")) ->  | I39: 4 | J39: 1500M-3-4 | K39: =IF(ISERROR(VLOOKUP(J39,'KAYIT LİSTESİ'!$B$4:$H$1280,2,0)),"",(VLOOKUP(J39,'KAYIT LİSTESİ'!$B$4:$H$1280,2,0))) ->  | L39: =IF(ISERROR(VLOOKUP(J39,'KAYIT LİSTESİ'!$B$4:$H$1280,4,0)),"",(VLOOKUP(J39,'KAYIT LİSTESİ'!$B$4:$H$1280,4,0))) ->  | M39: =IF(ISERROR(VLOOKUP(J39,'KAYIT LİSTESİ'!$B$4:$H$1280,5,0)),"",(VLOOKUP(J39,'KAYIT LİSTESİ'!$B$4:$H$1280,5,0))) ->  | N39: =IF(ISERROR(VLOOKUP(J39,'KAYIT LİSTESİ'!$B$4:$H$1280,6,0)),"",(VLOOKUP(J39,'KAYIT LİSTESİ'!$B$4:$H$1280,6,0))) -> 
A40: 33 | G40: =IF(ISTEXT(F40)," ",IFERROR(VLOOKUP(SMALL(puan!$P$4:$Q$111,COUNTIF(puan!$P$4:$Q$111,"<"&F40)+1),puan!$P$4:$Q$111,2,0)," ")) ->  | I40: 5 | J40: 1500M-3-5 | K40: =IF(ISERROR(VLOOKUP(J40,'KAYIT LİSTESİ'!$B$4:$H$1280,2,0)),"",(VLOOKUP(J40,'KAYIT LİSTESİ'!$B$4:$H$1280,2,0))) ->  | L40: =IF(ISERROR(VLOOKUP(J40,'KAYIT LİSTESİ'!$B$4:$H$1280,4,0)),"",(VLOOKUP(J40,'KAYIT LİSTESİ'!$B$4:$H$1280,4,0))) ->  | M40: =IF(ISERROR(VLOOKUP(J40,'KAYIT LİSTESİ'!$B$4:$H$1280,5,0)),"",(VLOOKUP(J40,'KAYIT LİSTESİ'!$B$4:$H$1280,5,0))) ->  | N40: =IF(ISERROR(VLOOKUP(J40,'KAYIT LİSTESİ'!$B$4:$H$1280,6,0)),"",(VLOOKUP(J40,'KAYIT LİSTESİ'!$B$4:$H$1280,6,0))) -> 
A41: 34 | G41: =IF(ISTEXT(F41)," ",IFERROR(VLOOKUP(SMALL(puan!$P$4:$Q$111,COUNTIF(puan!$P$4:$Q$111,"<"&F41)+1),puan!$P$4:$Q$111,2,0)," ")) ->  | I41: 6 | J41: 1500M-3-6 | K41: =IF(ISERROR(VLOOKUP(J41,'KAYIT LİSTESİ'!$B$4:$H$1280,2,0)),"",(VLOOKUP(J41,'KAYIT LİSTESİ'!$B$4:$H$1280,2,0))) ->  | L41: =IF(ISERROR(VLOOKUP(J41,'KAYIT LİSTESİ'!$B$4:$H$1280,4,0)),"",(VLOOKUP(J41,'KAYIT LİSTESİ'!$B$4:$H$1280,4,0))) ->  | M41: =IF(ISERROR(VLOOKUP(J41,'KAYIT LİSTESİ'!$B$4:$H$1280,5,0)),"",(VLOOKUP(J41,'KAYIT LİSTESİ'!$B$4:$H$1280,5,0))) ->  | N41: =IF(ISERROR(VLOOKUP(J41,'KAYIT LİSTESİ'!$B$4:$H$1280,6,0)),"",(VLOOKUP(J41,'KAYIT LİSTESİ'!$B$4:$H$1280,6,0))) -> 
A42: 35 | G42: =IF(ISTEXT(F42)," ",IFERROR(VLOOKUP(SMALL(puan!$P$4:$Q$111,COUNTIF(puan!$P$4:$Q$111,"<"&F42)+1),puan!$P$4:$Q$111,2,0)," ")) ->  | I42: 7 | J42: 1500M-3-7 | K42: =IF(ISERROR(VLOOKUP(J42,'KAYIT LİSTESİ'!$B$4:$H$1280,2,0)),"",(VLOOKUP(J42,'KAYIT LİSTESİ'!$B$4:$H$1280,2,0))) ->  | L42: =IF(ISERROR(VLOOKUP(J42,'KAYIT LİSTESİ'!$B$4:$H$1280,4,0)),"",(VLOOKUP(J42,'KAYIT LİSTESİ'!$B$4:$H$1280,4,0))) ->  | M42: =IF(ISERROR(VLOOKUP(J42,'KAYIT LİSTESİ'!$B$4:$H$1280,5,0)),"",(VLOOKUP(J42,'KAYIT LİSTESİ'!$B$4:$H$1280,5,0))) ->  | N42: =IF(ISERROR(VLOOKUP(J42,'KAYIT LİSTESİ'!$B$4:$H$1280,6,0)),"",(VLOOKUP(J42,'KAYIT LİSTESİ'!$B$4:$H$1280,6,0))) -> 
A43: 36 | G43: =IF(ISTEXT(F43)," ",IFERROR(VLOOKUP(SMALL(puan!$P$4:$Q$111,COUNTIF(puan!$P$4:$Q$111,"<"&F43)+1),puan!$P$4:$Q$111,2,0)," ")) ->  | I43: 8 | J43: 1500M-3-8 | K43: =IF(ISERROR(VLOOKUP(J43,'KAYIT LİSTESİ'!$B$4:$H$1280,2,0)),"",(VLOOKUP(J43,'KAYIT LİSTESİ'!$B$4:$H$1280,2,0))) ->  | L43: =IF(ISERROR(VLOOKUP(J43,'KAYIT LİSTESİ'!$B$4:$H$1280,4,0)),"",(VLOOKUP(J43,'KAYIT LİSTESİ'!$B$4:$H$1280,4,0))) ->  | M43: =IF(ISERROR(VLOOKUP(J43,'KAYIT LİSTESİ'!$B$4:$H$1280,5,0)),"",(VLOOKUP(J43,'KAYIT LİSTESİ'!$B$4:$H$1280,5,0))) ->  | N43: =IF(ISERROR(VLOOKUP(J43,'KAYIT LİSTESİ'!$B$4:$H$1280,6,0)),"",(VLOOKUP(J43,'KAYIT LİSTESİ'!$B$4:$H$1280,6,0))) -> 
A44: 37 | G44: =IF(ISTEXT(F44)," ",IFERROR(VLOOKUP(SMALL(puan!$P$4:$Q$111,COUNTIF(puan!$P$4:$Q$111,"<"&F44)+1),puan!$P$4:$Q$111,2,0)," ")) ->  | I44: 9 | J44: 1500M-3-9 | K44: =IF(ISERROR(VLOOKUP(J44,'KAYIT LİSTESİ'!$B$4:$H$1280,2,0)),"",(VLOOKUP(J44,'KAYIT LİSTESİ'!$B$4:$H$1280,2,0))) ->  | L44: =IF(ISERROR(VLOOKUP(J44,'KAYIT LİSTESİ'!$B$4:$H$1280,4,0)),"",(VLOOKUP(J44,'KAYIT LİSTESİ'!$B$4:$H$1280,4,0))) ->  | M44: =IF(ISERROR(VLOOKUP(J44,'KAYIT LİSTESİ'!$B$4:$H$1280,5,0)),"",(VLOOKUP(J44,'KAYIT LİSTESİ'!$B$4:$H$1280,5,0))) ->  | N44: =IF(ISERROR(VLOOKUP(J44,'KAYIT LİSTESİ'!$B$4:$H$1280,6,0)),"",(VLOOKUP(J44,'KAYIT LİSTESİ'!$B$4:$H$1280,6,0))) -> 
A45: 38 | G45: =IF(ISTEXT(F45)," ",IFERROR(VLOOKUP(SMALL(puan!$P$4:$Q$111,COUNTIF(puan!$P$4:$Q$111,"<"&F45)+1),puan!$P$4:$Q$111,2,0)," ")) ->  | I45: 10 | J45: 1500M-3-10 | K45: =IF(ISERROR(VLOOKUP(J45,'KAYIT LİSTESİ'!$B$4:$H$1280,2,0)),"",(VLOOKUP(J45,'KAYIT LİSTESİ'!$B$4:$H$1280,2,0))) ->  | L45: =IF(ISERROR(VLOOKUP(J45,'KAYIT LİSTESİ'!$B$4:$H$1280,4,0)),"",(VLOOKUP(J45,'KAYIT LİSTESİ'!$B$4:$H$1280,4,0))) ->  | M45: =IF(ISERROR(VLOOKUP(J45,'KAYIT LİSTESİ'!$B$4:$H$1280,5,0)),"",(VLOOKUP(J45,'KAYIT LİSTESİ'!$B$4:$H$1280,5,0))) ->  | N45: =IF(ISERROR(VLOOKUP(J45,'KAYIT LİSTESİ'!$B$4:$H$1280,6,0)),"",(VLOOKUP(J45,'KAYIT LİSTESİ'!$B$4:$H$1280,6,0))) -> 
A46: 39 | G46: =IF(ISTEXT(F46)," ",IFERROR(VLOOKUP(SMALL(puan!$P$4:$Q$111,COUNTIF(puan!$P$4:$Q$111,"<"&F46)+1),puan!$P$4:$Q$111,2,0)," ")) ->  | I46: 11 | J46: 1500M-3-11 | K46: =IF(ISERROR(VLOOKUP(J46,'KAYIT LİSTESİ'!$B$4:$H$1280,2,0)),"",(VLOOKUP(J46,'KAYIT LİSTESİ'!$B$4:$H$1280,2,0))) ->  | L46: =IF(ISERROR(VLOOKUP(J46,'KAYIT LİSTESİ'!$B$4:$H$1280,4,0)),"",(VLOOKUP(J46,'KAYIT LİSTESİ'!$B$4:$H$1280,4,0))) ->  | M46: =IF(ISERROR(VLOOKUP(J46,'KAYIT LİSTESİ'!$B$4:$H$1280,5,0)),"",(VLOOKUP(J46,'KAYIT LİSTESİ'!$B$4:$H$1280,5,0))) ->  | N46: =IF(ISERROR(VLOOKUP(J46,'KAYIT LİSTESİ'!$B$4:$H$1280,6,0)),"",(VLOOKUP(J46,'KAYIT LİSTESİ'!$B$4:$H$1280,6,0))) -> 
A47: 40 | G47: =IF(ISTEXT(F47)," ",IFERROR(VLOOKUP(SMALL(puan!$P$4:$Q$111,COUNTIF(puan!$P$4:$Q$111,"<"&F47)+1),puan!$P$4:$Q$111,2,0)," ")) ->  | I47: 12 | J47: 1500M-3-12 | K47: =IF(ISERROR(VLOOKUP(J47,'KAYIT LİSTESİ'!$B$4:$H$1280,2,0)),"",(VLOOKUP(J47,'KAYIT LİSTESİ'!$B$4:$H$1280,2,0))) ->  | L47: =IF(ISERROR(VLOOKUP(J47,'KAYIT LİSTESİ'!$B$4:$H$1280,4,0)),"",(VLOOKUP(J47,'KAYIT LİSTESİ'!$B$4:$H$1280,4,0))) ->  | M47: =IF(ISERROR(VLOOKUP(J47,'KAYIT LİSTESİ'!$B$4:$H$1280,5,0)),"",(VLOOKUP(J47,'KAYIT LİSTESİ'!$B$4:$H$1280,5,0))) ->  | N47: =IF(ISERROR(VLOOKUP(J47,'KAYIT LİSTESİ'!$B$4:$H$1280,6,0)),"",(VLOOKUP(J47,'KAYIT LİSTESİ'!$B$4:$H$1280,6,0))) -> 
A48: 41 | G48: =IF(ISTEXT(F48)," ",IFERROR(VLOOKUP(SMALL(puan!$P$4:$Q$111,COUNTIF(puan!$P$4:$Q$111,"<"&F48)+1),puan!$P$4:$Q$111,2,0)," ")) ->  | I48: 4. SERİ
A49: 42 | G49: =IF(ISTEXT(F49)," ",IFERROR(VLOOKUP(SMALL(puan!$P$4:$Q$111,COUNTIF(puan!$P$4:$Q$111,"<"&F49)+1),puan!$P$4:$Q$111,2,0)," ")) ->  | I49: Sıra No | J49: Formül | K49: Göğüs No | L49: Doğum Tarihi | M49: Adı ve Soyadı | N49: İLİ-OKULU | O49: Elektronik Kronometre | P49: El Kronometre | Q49: Seri Geliş
A50: 43 | G50: =IF(ISTEXT(F50)," ",IFERROR(VLOOKUP(SMALL(puan!$P$4:$Q$111,COUNTIF(puan!$P$4:$Q$111,"<"&F50)+1),puan!$P$4:$Q$111,2,0)," ")) ->  | I50: 1 | J50: 1500M-4-1 | K50: =IF(ISERROR(VLOOKUP(J50,'KAYIT LİSTESİ'!$B$4:$H$1280,2,0)),"",(VLOOKUP(J50,'KAYIT LİSTESİ'!$B$4:$H$1280,2,0))) ->  | L50: =IF(ISERROR(VLOOKUP(J50,'KAYIT LİSTESİ'!$B$4:$H$1280,4,0)),"",(VLOOKUP(J50,'KAYIT LİSTESİ'!$B$4:$H$1280,4,0))) ->  | M50: =IF(ISERROR(VLOOKUP(J50,'KAYIT LİSTESİ'!$B$4:$H$1280,5,0)),"",(VLOOKUP(J50,'KAYIT LİSTESİ'!$B$4:$H$1280,5,0))) ->  | N50: =IF(ISERROR(VLOOKUP(J50,'KAYIT LİSTESİ'!$B$4:$H$1280,6,0)),"",(VLOOKUP(J50,'KAYIT LİSTESİ'!$B$4:$H$1280,6,0))) ->  | O50: =IF(IF(OR(P50="NM",P50="DNF",P50="DNS",P50="DQ",P50=""),P50,(ROUNDUP(P50,)+24))=0," ",IF(OR(P50="NM",P50="DNF",P50="DNS",P50="DQ",P50=""),P50,(ROUNDUP(P50,)+24))) -> 
A51: 44 | G51: =IF(ISTEXT(F51)," ",IFERROR(VLOOKUP(SMALL(puan!$P$4:$Q$111,COUNTIF(puan!$P$4:$Q$111,"<"&F51)+1),puan!$P$4:$Q$111,2,0)," ")) ->  | I51: 2 | J51: 1500M-4-2 | K51: =IF(ISERROR(VLOOKUP(J51,'KAYIT LİSTESİ'!$B$4:$H$1280,2,0)),"",(VLOOKUP(J51,'KAYIT LİSTESİ'!$B$4:$H$1280,2,0))) ->  | L51: =IF(ISERROR(VLOOKUP(J51,'KAYIT LİSTESİ'!$B$4:$H$1280,4,0)),"",(VLOOKUP(J51,'KAYIT LİSTESİ'!$B$4:$H$1280,4,0))) ->  | M51: =IF(ISERROR(VLOOKUP(J51,'KAYIT LİSTESİ'!$B$4:$H$1280,5,0)),"",(VLOOKUP(J51,'KAYIT LİSTESİ'!$B$4:$H$1280,5,0))) ->  | N51: =IF(ISERROR(VLOOKUP(J51,'KAYIT LİSTESİ'!$B$4:$H$1280,6,0)),"",(VLOOKUP(J51,'KAYIT LİSTESİ'!$B$4:$H$1280,6,0))) -> 
A52: 45 | G52: =IF(ISTEXT(F52)," ",IFERROR(VLOOKUP(SMALL(puan!$P$4:$Q$111,COUNTIF(puan!$P$4:$Q$111,"<"&F52)+1),puan!$P$4:$Q$111,2,0)," ")) ->  | I52: 3 | J52: 1500M-4-3 | K52: =IF(ISERROR(VLOOKUP(J52,'KAYIT LİSTESİ'!$B$4:$H$1280,2,0)),"",(VLOOKUP(J52,'KAYIT LİSTESİ'!$B$4:$H$1280,2,0))) ->  | L52: =IF(ISERROR(VLOOKUP(J52,'KAYIT LİSTESİ'!$B$4:$H$1280,4,0)),"",(VLOOKUP(J52,'KAYIT LİSTESİ'!$B$4:$H$1280,4,0))) ->  | M52: =IF(ISERROR(VLOOKUP(J52,'KAYIT LİSTESİ'!$B$4:$H$1280,5,0)),"",(VLOOKUP(J52,'KAYIT LİSTESİ'!$B$4:$H$1280,5,0))) ->  | N52: =IF(ISERROR(VLOOKUP(J52,'KAYIT LİSTESİ'!$B$4:$H$1280,6,0)),"",(VLOOKUP(J52,'KAYIT LİSTESİ'!$B$4:$H$1280,6,0))) -> 
A53: 46 | G53: =IF(ISTEXT(F53)," ",IFERROR(VLOOKUP(SMALL(puan!$P$4:$Q$111,COUNTIF(puan!$P$4:$Q$111,"<"&F53)+1),puan!$P$4:$Q$111,2,0)," ")) ->  | I53: 4 | J53: 1500M-4-4 | K53: =IF(ISERROR(VLOOKUP(J53,'KAYIT LİSTESİ'!$B$4:$H$1280,2,0)),"",(VLOOKUP(J53,'KAYIT LİSTESİ'!$B$4:$H$1280,2,0))) ->  | L53: =IF(ISERROR(VLOOKUP(J53,'KAYIT LİSTESİ'!$B$4:$H$1280,4,0)),"",(VLOOKUP(J53,'KAYIT LİSTESİ'!$B$4:$H$1280,4,0))) ->  | M53: =IF(ISERROR(VLOOKUP(J53,'KAYIT LİSTESİ'!$B$4:$H$1280,5,0)),"",(VLOOKUP(J53,'KAYIT LİSTESİ'!$B$4:$H$1280,5,0))) ->  | N53: =IF(ISERROR(VLOOKUP(J53,'KAYIT LİSTESİ'!$B$4:$H$1280,6,0)),"",(VLOOKUP(J53,'KAYIT LİSTESİ'!$B$4:$H$1280,6,0))) -> 
A54: 47 | G54: =IF(ISTEXT(F54)," ",IFERROR(VLOOKUP(SMALL(puan!$P$4:$Q$111,COUNTIF(puan!$P$4:$Q$111,"<"&F54)+1),puan!$P$4:$Q$111,2,0)," ")) ->  | I54: 5 | J54: 1500M-4-5 | K54: =IF(ISERROR(VLOOKUP(J54,'KAYIT LİSTESİ'!$B$4:$H$1280,2,0)),"",(VLOOKUP(J54,'KAYIT LİSTESİ'!$B$4:$H$1280,2,0))) ->  | L54: =IF(ISERROR(VLOOKUP(J54,'KAYIT LİSTESİ'!$B$4:$H$1280,4,0)),"",(VLOOKUP(J54,'KAYIT LİSTESİ'!$B$4:$H$1280,4,0))) ->  | M54: =IF(ISERROR(VLOOKUP(J54,'KAYIT LİSTESİ'!$B$4:$H$1280,5,0)),"",(VLOOKUP(J54,'KAYIT LİSTESİ'!$B$4:$H$1280,5,0))) ->  | N54: =IF(ISERROR(VLOOKUP(J54,'KAYIT LİSTESİ'!$B$4:$H$1280,6,0)),"",(VLOOKUP(J54,'KAYIT LİSTESİ'!$B$4:$H$1280,6,0))) -> 
A55: 48 | G55: =IF(ISTEXT(F55)," ",IFERROR(VLOOKUP(SMALL(puan!$P$4:$Q$111,COUNTIF(puan!$P$4:$Q$111,"<"&F55)+1),puan!$P$4:$Q$111,2,0)," ")) ->  | I55: 6 | J55: 1500M-4-6 | K55: =IF(ISERROR(VLOOKUP(J55,'KAYIT LİSTESİ'!$B$4:$H$1280,2,0)),"",(VLOOKUP(J55,'KAYIT LİSTESİ'!$B$4:$H$1280,2,0))) ->  | L55: =IF(ISERROR(VLOOKUP(J55,'KAYIT LİSTESİ'!$B$4:$H$1280,4,0)),"",(VLOOKUP(J55,'KAYIT LİSTESİ'!$B$4:$H$1280,4,0))) ->  | M55: =IF(ISERROR(VLOOKUP(J55,'KAYIT LİSTESİ'!$B$4:$H$1280,5,0)),"",(VLOOKUP(J55,'KAYIT LİSTESİ'!$B$4:$H$1280,5,0))) ->  | N55: =IF(ISERROR(VLOOKUP(J55,'KAYIT LİSTESİ'!$B$4:$H$1280,6,0)),"",(VLOOKUP(J55,'KAYIT LİSTESİ'!$B$4:$H$1280,6,0))) -> 
